Workbook

Sheet INSTRUCTIONS
A1: EVENT POINT ENTRY STEPS FOR SCORING
B2: PROCESS:
A3: NOTE: | B3: Steps 1 through 4 can be accomplished as you receive information prior to the show. You will then need to add 'drive in' registrations the day of the show. This can be a big time saver during the morning of the show.
A4: Step 1 | B4: Select "Save as" and save document with new name; event name/location and year- ie Spring Works Camp Verde 2015. This will preserve your Template and create a new document for your current show.
A5: Step 2 | B5: Populate Entry Information page with the Event Name, Date, Judges Information.
A6: Step 3 | B6: Populate each Entrant with Back Number, Last Name, First Name, Registered Horse Name, WSVRHA Number,and Horse ID Number. Mark with a "y" if they are a Select Rider, Junior Horse, or All Around Entry. If Not an All Around Entry then leave blank and mark the individual classes entered with a "y". The score entry boxes will be completly unshadded for All Around entries and Individual Classes will be unshaded if only entering individual classes. Be sure entry is entered in the correct Division.
A7: Step 4 | B7: SAVE AND SAVE OFTEN
A8: NOTE: | B8: To aid in score sheet entry, blank lines on the Entry Information page can be hidden. To hide rows - First Unprotect the page using the password "WSVRHA" then, Highlight blank rows on the Entry Information page, and either right click and select HIDE or select FORMAT, then ROW, then HIDE. Once all empty lines are hidden PROTECT the page using the passowrd "WSVRHA"
A9: NOTE: | B9: YOU ARE NOW READY TO START ENTERING THE JUDGES SCORE SHEETS:
A10: Step 5 | B10: On the Entry Information page, go to the contestants"Back Number" corresponding with the score sheet in hand. CHECK TO BE SURE YOU ARE ON THE CORRECT LINE.
A11: Step 6 | B11: Enter the SCORE in the correct class area (ie - Ranch Riding). Should there be a Major Penalty enter an "x" in the Major Penalty column for the correct class. Score sheet will automatically propagate the "Results" pages. Scores with Major Penalties will not be allowed to place higher than those without. No score will show until a number is enterd in the Judges Score box, be sure to enter 0 if that is the Judes Score.
A12: Step 7 | B12: Be sure to "SAVE" upon completion of entering every score sheet.
A13: NOTE: | B13: REPEAT STEPS 5 - 7 FOR EACH ENTRANTS CLASS AT THE EVENT
A14: Step 8 | B14: When all scores for a class are in, review Results page for each division (ie. Novice, Limited, etc). The spreadsheet is formatted to automatically rank the class and assign placement points. NOTE: Tied scores will provide a like "Ranking" and be highlighted in RED. Review score sheets to break ties, place a "1" next to the entrant that wins a tie (for multiple ties place a 2 or 3 with the winner getting the highest value), computer will automatically adjust placement points. Tie Breaker information for the division/class can be found at the bottom of the results pages.
A15: Step 9 | B15: Review Spread Sheet for completeness. Make certain that all class information has been entered or can be accounted for. (a rider may have scratched a class)
A16: Step 10 | B16: Review AWARDS page, there will be an "#N/A" if there is no winner for the class or division. Print "AWARDS" pages for the presentor to use at the awards ceremony.
A17: Step 11 | B17: SAVE AND SAVE OFTEN
A18: Step 13 | B18: Provide a copy of your results to Show Management and send a copy to the WSVRHA office.

Sheet Entry Information
A2: Entrant / Show Information
A4: Event Name: | C4: Ranch Horse Challenge | E4: Judge #1 Name / Classes | F4: Mike Lund
A5: Event Date: | C5: 2018-03-25 | E5: Judge #2 Name / Classes | F5: Karen Arlin
A6: Ranch Riding Patern #
A7: Working Ranch Horse Patern #
A9: Entry # | B9: Back No. | C9: Last Name | D9: First Name | E9: Registered Horse Name | F9: WSRHA Horse ID # | G9: WSRHA Member # | H9: SELECT RIDER | I9: JR HORSE | J9: ALL AROUND ENTRY | K9: Individual Ranch RIDING Entry | L9: Individual Ranch TRAIL Entry | M9: Individual Ranch CUTTING Entry | N9: Individual Ranch REINED WORK Entry | O9: Individual Ranch COW WORK Entry | P9: Division | Q9: RANCH RIDING | S9: RANCH TRAIL | U9: RANCH CUTTING | W9: RANCH REINED WORK | Y9: RANCH COW WORK
Q10: RR Score | R10: Major Penalty | S10: RT Score | T10: Major Penatly | U10: CT Score | V10: Major Penatly | W10: Rein Score | X10: Major Penalty | Y10: Cow Work Score | Z10: Major Penalty
A11: 1 | B11: 156 | C11: McClammy | D11: Christine | E11: Cattastrophe | K11: y | L11: y | N11: y | P11: WALK/TROT | Q11: 70.5 | S11: 68 | W11: 73
A12: 2 | B12: 154 | C12: Finlayson | D12: Megan | E12: Freckles | J12: y | P12: WALK/TROT | Q12: 56.5 | S12: 57 | U12: 69 | W12: 70.5 | X12: x | Y12: 72.5
A13: 3 | B13: 165 | C13: Little | D13: Laureen | E13: Smart Little Hemi | J13: y | P13: WALK/TROT | Q13: 61.5 | S13: 62 | U13: 72 | W13: 65 | X13: x | Y13: 73
A14: 4 | B14: 164 | C14: VanStaalduien | D14: Ian | E14: Meradas Truckin Chex | J14: y | P14: WALK/TROT | Q14: 67 | S14: 64 | U14: 66 | W14: 72.5 | Y14: 72
A15: 5 | B15: 157 | C15: Barthen | D15: Leigh | K15: y | L15: y | N15: y | P15: WALK/TROT | Q15: 61.5 | R15: x | W15: 67
A16: 6 | P16: WALK/TROT
A17: 7 | P17: WALK/TROT
A18: 8 | P18: WALK/TROT
A19: 9 | P19: WALK/TROT
A20: 10 | P20: WALK/TROT
A21: 11 | P21: WALK/TROT
A22: 12 | P22: WALK/TROT
A23: 13 | P23: WALK/TROT
A24: 14 | P24: WALK/TROT
A25: 15 | P25: WALK/TROT
A26: 16 | P26: WALK/TROT
A27: 17 | P27: WALK/TROT
A28: 18 | P28: WALK/TROT
A29: 19 | P29: WALK/TROT
A30: 20 | P30: WALK/TROT
A31: 21 | P31: WALK/TROT
A32: 22 | P32: WALK/TROT
A33: 23 | P33: WALK/TROT
A34: 24 | P34: WALK/TROT
A35: 25 | P35: WALK/TROT
A36: 26 | P36: WALK/TROT
A37: 27 | P37: WALK/TROT
A38: 28 | P38: WALK/TROT
A39: 29 | P39: WALK/TROT
A40: 30 | P40: WALK/TROT
A41: 1 | P41: LIMITED
A42: 2 | P42: LIMITED
A43: 3 | P43: LIMITED
A44: 4 | P44: LIMITED
A45: 5 | P45: LIMITED
A46: 6 | P46: LIMITED
A47: 7 | P47: LIMITED
A48: 8 | P48: LIMITED
A49: 9 | P49: LIMITED
A50: 10 | P50: LIMITED
A51: 11 | P51: LIMITED
A52: 12 | P52: LIMITED
A53: 13 | P53: LIMITED
A54: 14 | P54: LIMITED
A55: 15 | P55: LIMITED
A56: 16 | P56: LIMITED
A57: 17 | P57: LIMITED
A58: 18 | P58: LIMITED
A59: 19 | P59: LIMITED
A60: 20 | P60: LIMITED
A61: 21 | P61: LIMITED
A62: 22 | P62: LIMITED
A63: 23 | P63: LIMITED
A64: 24 | P64: LIMITED
A65: 25 | P65: LIMITED
A66: 26 | P66: LIMITED
A67: 27 | P67: LIMITED
A68: 28 | P68: LIMITED
A69: 29 | P69: LIMITED
A70: 30 | P70: LIMITED
A71: 1 | P71: INTERMEDIATE
A72: 2 | P72: INTERMEDIATE
A73: 3 | P73: INTERMEDIATE
A74: 4 | P74: INTERMEDIATE
A75: 5 | P75: INTERMEDIATE
A76: 6 | P76: INTERMEDIATE
A77: 7 | P77: INTERMEDIATE
A78: 8 | P78: INTERMEDIATE
A79: 9 | P79: INTERMEDIATE
A80: 10 | P80: INTERMEDIATE
A81: 11 | P81: INTERMEDIATE
A82: 12 | P82: INTERMEDIATE
A83: 13 | P83: INTERMEDIATE
A84: 14 | P84: INTERMEDIATE
A85: 15 | P85: INTERMEDIATE
A86: 16 | P86: INTERMEDIATE
A87: 17 | P87: INTERMEDIATE
A88: 18 | P88: INTERMEDIATE
A89: 19 | P89: INTERMEDIATE
A90: 20 | P90: INTERMEDIATE
A91: 21 | P91: INTERMEDIATE
A92: 22 | P92: INTERMEDIATE
A93: 23 | P93: INTERMEDIATE
A94: 24 | P94: INTERMEDIATE
A95: 25 | P95: INTERMEDIATE
A96: 26 | P96: INTERMEDIATE
A97: 27 | P97: INTERMEDIATE
A98: 28 | P98: INTERMEDIATE
A99: 29 | P99: INTERMEDIATE
A100: 30 | P100: INTERMEDIATE
A101: 1 | P101: ADVANCED
A102: 2 | P102: ADVANCED
A103: 3 | P103: ADVANCED
A104: 4 | P104: ADVANCED
A105: 5 | P105: ADVANCED
A106: 6 | P106: ADVANCED
A107: 7 | P107: ADVANCED
A108: 8 | P108: ADVANCED
A109: 9 | P109: ADVANCED
A110: 10 | P110: ADVANCED
A111: 11 | P111: ADVANCED
A112: 12 | P112: ADVANCED
A113: 13 | P113: ADVANCED
A114: 14 | P114: ADVANCED
A115: 15 | P115: ADVANCED
A116: 16 | P116: ADVANCED
A117: 17 | P117: ADVANCED
A118: 18 | P118: ADVANCED
A119: 19 | P119: ADVANCED
A120: 20 | P120: ADVANCED
A121: 21 | P121: ADVANCED
A122: 22 | P122: ADVANCED
A123: 23 | P123: ADVANCED
A124: 24 | P124: ADVANCED
A125: 25 | P125: ADVANCED
A126: 26 | P126: ADVANCED
A127: 27 | P127: ADVANCED
A128: 28 | P128: ADVANCED
A129: 29 | P129: ADVANCED
A130: 30 | P130: ADVANCED
A131: 1 | P131: OPEN
A132: 2 | P132: OPEN
A133: 3 | P133: OPEN
A134: 4 | P134: OPEN
A135: 5 | P135: OPEN
A136: 6 | P136: OPEN
A137: 7 | P137: OPEN
A138: 8 | P138: OPEN
A139: 9 | P139: OPEN
A140: 10 | P140: OPEN
A141: 11 | P141: OPEN
A142: 12 | P142: OPEN
A143: 13 | P143: OPEN
A144: 14 | P144: OPEN
A145: 15 | P145: OPEN
A146: 16 | P146: OPEN
A147: 17 | P147: OPEN
A148: 18 | P148: OPEN
A149: 19 | P149: OPEN
A150: 20 | P150: OPEN
A151: 21 | P151: OPEN
A152: 22 | P152: OPEN
A153: 23 | P153: OPEN
A154: 24 | P154: OPEN
A155: 25 | P155: OPEN
A156: 26 | P156: OPEN
A157: 27 | P157: OPEN
A158: 28 | P158: OPEN
A159: 29 | P159: OPEN
A160: 30 | P160: OPEN
A161: 1 | P161: YOUTH
A162: 2 | P162: YOUTH
A163: 3 | P163: YOUTH
A164: 4 | P164: YOUTH
A165: 5 | P165: YOUTH
A166: 6 | P166: YOUTH
A167: 7 | P167: YOUTH
A168: 8 | P168: YOUTH
A169: 9 | P169: YOUTH
A170: 10 | P170: YOUTH
A171: 11 | P171: YOUTH
A172: 12 | P172: YOUTH
A173: 13 | P173: YOUTH
A174: 14 | P174: YOUTH
A175: 15 | P175: YOUTH
A176: 16 | P176: YOUTH
A177: 17 | P177: YOUTH
A178: 18 | P178: YOUTH
A179: 19 | P179: YOUTH
A180: 20 | P180: YOUTH
A181: 21 | P181: YOUTH
A182: 22 | P182: YOUTH
A183: 23 | P183: YOUTH
A184: 24 | P184: YOUTH
A185: 25 | P185: YOUTH
A186: 26 | P186: YOUTH
A187: 27 | P187: YOUTH
A188: 28 | P188: YOUTH
A189: 29 | P189: YOUTH
A190: 30 | P190: YOUTH

Sheet _SUMMARY DATA (hidden)
A1: horses_____ Max of______ CH Points | E1: ='Entry Information'!#REF! -> 
E2: ='Entry Information'!#REF! -> 
C3: ='Entry Information'!#REF! ->  | D3: ='Entry Information'!#REF! -> 
C4: ='Entry Information'!#REF! ->  | D4: ='Entry Information'!#REF! -> 
A6: Count | B6: Div | C6: Last Name | D6: First Name | E6: Horses Name | F6: Total plc pts | G6: Total Score | H6: Assign Score | I6: RR Score | J6: RR Tie break | K6: RR CH_PTS | L6: WR Score | M6: WR Tie break | N6: WR CH_PTS | O6: CT Score | P6: CT Tie break | Q6: CT CH_PTS | R6: RT Score | S6: RT Tie break | T6: RT CH_PTS | U6: CN Score | V6: CN Tie break | W6: CN CH_PTS
A7: 1 | B7: ='WALK TROT RESULTS'!E11 -> WT | C7: ='WALK TROT RESULTS'!B11 -> McClammy | D7: ='WALK TROT RESULTS'!C11 -> Christine | E7: ='WALK TROT RESULTS'!D11 -> Cattastrophe | F7: ='WALK TROT RESULTS'!#REF! ->  | G7: =SUM(I7,L7,O7,R7,U7) ->  | H7: =SUM(I7,L7,O7,R7) -> 208 | I7: ='WALK TROT RESULTS'!F11 -> 70.5 | L7: ='WALK TROT RESULTS'!X11 -> 73 | O7: ='WALK TROT RESULTS'!R11 ->  | R7: ='WALK TROT RESULTS'!L11 -> 64.5 | U7: ='WALK TROT RESULTS'!#REF! -> 
A8: 2 | B8: ='WALK TROT RESULTS'!E12 -> WT | C8: ='WALK TROT RESULTS'!B12 -> Finlayson | D8: ='WALK TROT RESULTS'!C12 -> Megan | E8: ='WALK TROT RESULTS'!D12 -> Freckles | F8: ='WALK TROT RESULTS'!#REF! ->  | H8: 250 | I8: ='WALK TROT RESULTS'!F12 -> 56.5 | L8: ='WALK TROT RESULTS'!X12 -> 70.5 | O8: ='WALK TROT RESULTS'!R12 -> 69 | R8: ='WALK TROT RESULTS'!L12 -> 54 | U8: ='WALK TROT RESULTS'!#REF! -> 
A9: 3 | B9: ='WALK TROT RESULTS'!E13 -> WT | C9: ='WALK TROT RESULTS'!B13 -> Little | D9: ='WALK TROT RESULTS'!C13 -> Laureen | E9: ='WALK TROT RESULTS'!D13 -> Smart Little Hemi | F9: ='WALK TROT RESULTS'!#REF! ->  | H9: 252 | I9: ='WALK TROT RESULTS'!F13 -> 61.5 | L9: ='WALK TROT RESULTS'!X13 -> 65 | O9: ='WALK TROT RESULTS'!R13 -> 72 | R9: ='WALK TROT RESULTS'!L13 -> 53.5 | U9: ='WALK TROT RESULTS'!#REF! -> 
A10: 4 | B10: ='WALK TROT RESULTS'!E14 -> WT | C10: ='WALK TROT RESULTS'!B14 -> VanStaalduien | D10: ='WALK TROT RESULTS'!C14 -> Ian | E10: ='WALK TROT RESULTS'!D14 -> Meradas Truckin Chex | F10: ='WALK TROT RESULTS'!#REF! ->  | H10: 247 | I10: ='WALK TROT RESULTS'!F14 -> 67 | L10: ='WALK TROT RESULTS'!X14 -> 72.5 | O10: ='WALK TROT RESULTS'!R14 -> 66 | R10: ='WALK TROT RESULTS'!L14 -> 41.5 | U10: ='WALK TROT RESULTS'!#REF! -> 
A11: 5 | B11: ='WALK TROT RESULTS'!E15 -> WT | C11: ='WALK TROT RESULTS'!B15 -> Barthen | D11: ='WALK TROT RESULTS'!C15 -> Leigh | E11: ='WALK TROT RESULTS'!D15 ->  | F11: ='WALK TROT RESULTS'!#REF! ->  | H11: 188.5 | I11: ='WALK TROT RESULTS'!F15 -> 61.5 | L11: ='WALK TROT RESULTS'!X15 -> 67 | O11: ='WALK TROT RESULTS'!R15 ->  | R11: ='WALK TROT RESULTS'!L15 -> 60 | U11: ='WALK TROT RESULTS'!#REF! -> 
A12: 6 | B12: ='WALK TROT RESULTS'!E16 -> 0 | C12: ='WALK TROT RESULTS'!B16 ->  | D12: ='WALK TROT RESULTS'!C16 ->  | E12: ='WALK TROT RESULTS'!D16 ->  | F12: ='WALK TROT RESULTS'!#REF! ->  | H12: 0 | I12: ='WALK TROT RESULTS'!F16 ->  | L12: ='WALK TROT RESULTS'!X16 ->  | O12: ='WALK TROT RESULTS'!R16 ->  | R12: ='WALK TROT RESULTS'!L16 ->  | U12: ='WALK TROT RESULTS'!#REF! -> 
A13: 7 | B13: ='WALK TROT RESULTS'!E17 -> NOV | C13: ='WALK TROT RESULTS'!B17 ->  | D13: ='WALK TROT RESULTS'!C17 ->  | E13: ='WALK TROT RESULTS'!D17 ->  | F13: ='WALK TROT RESULTS'!#REF! ->  | H13: 0 | I13: ='WALK TROT RESULTS'!F17 ->  | L13: ='WALK TROT RESULTS'!X17 ->  | O13: ='WALK TROT RESULTS'!R17 ->  | R13: ='WALK TROT RESULTS'!L17 ->  | U13: ='WALK TROT RESULTS'!#REF! -> 
A14: 8 | B14: ='WALK TROT RESULTS'!E18 -> NOV | C14: ='WALK TROT RESULTS'!B18 ->  | D14: ='WALK TROT RESULTS'!C18 ->  | E14: ='WALK TROT RESULTS'!D18 ->  | F14: ='WALK TROT RESULTS'!#REF! ->  | H14: 0 | I14: ='WALK TROT RESULTS'!F18 ->  | L14: ='WALK TROT RESULTS'!X18 ->  | O14: ='WALK TROT RESULTS'!R18 ->  | R14: ='WALK TROT RESULTS'!L18 ->  | U14: ='WALK TROT RESULTS'!#REF! -> 
A15: 9 | B15: ='WALK TROT RESULTS'!E19 -> NOV | C15: ='WALK TROT RESULTS'!B19 ->  | D15: ='WALK TROT RESULTS'!C19 ->  | E15: ='WALK TROT RESULTS'!D19 ->  | F15: ='WALK TROT RESULTS'!#REF! ->  | H15: 0 | I15: ='WALK TROT RESULTS'!F19 ->  | L15: ='WALK TROT RESULTS'!X19 ->  | O15: ='WALK TROT RESULTS'!R19 ->  | R15: ='WALK TROT RESULTS'!L19 ->  | U15: ='WALK TROT RESULTS'!#REF! -> 
A16: 10 | B16: ='WALK TROT RESULTS'!E20 -> NOV | C16: ='WALK TROT RESULTS'!B20 ->  | D16: ='WALK TROT RESULTS'!C20 ->  | E16: ='WALK TROT RESULTS'!D20 ->  | F16: ='WALK TROT RESULTS'!#REF! ->  | H16: 0 | I16: ='WALK TROT RESULTS'!F20 ->  | L16: ='WALK TROT RESULTS'!X20 ->  | O16: ='WALK TROT RESULTS'!R20 ->  | R16: ='WALK TROT RESULTS'!L20 ->  | U16: ='WALK TROT RESULTS'!#REF! -> 
A17: 11 | B17: ='WALK TROT RESULTS'!E21 -> NOV | C17: ='WALK TROT RESULTS'!B21 ->  | D17: ='WALK TROT RESULTS'!C21 ->  | E17: ='WALK TROT RESULTS'!D21 ->  | F17: ='WALK TROT RESULTS'!#REF! ->  | H17: 0 | I17: ='WALK TROT RESULTS'!F21 ->  | L17: ='WALK TROT RESULTS'!X21 ->  | O17: ='WALK TROT RESULTS'!R21 ->  | R17: ='WALK TROT RESULTS'!L21 ->  | U17: ='WALK TROT RESULTS'!#REF! -> 
A18: 12 | B18: ='WALK TROT RESULTS'!E22 -> NOV | C18: ='WALK TROT RESULTS'!B22 ->  | D18: ='WALK TROT RESULTS'!C22 ->  | E18: ='WALK TROT RESULTS'!D22 ->  | F18: ='WALK TROT RESULTS'!#REF! ->  | H18: 0 | I18: ='WALK TROT RESULTS'!F22 ->  | L18: ='WALK TROT RESULTS'!X22 ->  | O18: ='WALK TROT RESULTS'!R22 ->  | R18: ='WALK TROT RESULTS'!L22 ->  | U18: ='WALK TROT RESULTS'!#REF! -> 
A19: 13 | B19: ='WALK TROT RESULTS'!E23 -> NOV | C19: ='WALK TROT RESULTS'!B23 ->  | D19: ='WALK TROT RESULTS'!C23 ->  | E19: ='WALK TROT RESULTS'!D23 ->  | F19: ='WALK TROT RESULTS'!#REF! ->  | H19: 0 | I19: ='WALK TROT RESULTS'!F23 ->  | L19: ='WALK TROT RESULTS'!X23 ->  | O19: ='WALK TROT RESULTS'!R23 ->  | R19: ='WALK TROT RESULTS'!L23 ->  | U19: ='WALK TROT RESULTS'!#REF! -> 
A20: 14 | B20: ='WALK TROT RESULTS'!E24 -> NOV | C20: ='WALK TROT RESULTS'!B24 ->  | D20: ='WALK TROT RESULTS'!C24 ->  | E20: ='WALK TROT RESULTS'!D24 ->  | F20: ='WALK TROT RESULTS'!#REF! ->  | H20: 0 | I20: ='WALK TROT RESULTS'!F24 ->  | L20: ='WALK TROT RESULTS'!X24 ->  | O20: ='WALK TROT RESULTS'!R24 ->  | R20: ='WALK TROT RESULTS'!L24 ->  | U20: ='WALK TROT RESULTS'!#REF! -> 
A21: 15 | B21: ='WALK TROT RESULTS'!E25 -> NOV | C21: ='WALK TROT RESULTS'!B25 ->  | D21: ='WALK TROT RESULTS'!C25 ->  | E21: ='WALK TROT RESULTS'!D25 ->  | F21: ='WALK TROT RESULTS'!#REF! ->  | H21: 0 | I21: ='WALK TROT RESULTS'!F25 ->  | L21: ='WALK TROT RESULTS'!X25 ->  | O21: ='WALK TROT RESULTS'!R25 ->  | R21: ='WALK TROT RESULTS'!L25 ->  | U21: ='WALK TROT RESULTS'!#REF! -> 
A22: 16 | B22: ='WALK TROT RESULTS'!E26 -> NOV | C22: ='WALK TROT RESULTS'!B26 ->  | D22: ='WALK TROT RESULTS'!C26 ->  | E22: ='WALK TROT RESULTS'!D26 ->  | F22: ='WALK TROT RESULTS'!#REF! ->  | H22: 0 | I22: ='WALK TROT RESULTS'!F26 ->  | L22: ='WALK TROT RESULTS'!X26 ->  | O22: ='WALK TROT RESULTS'!R26 ->  | R22: ='WALK TROT RESULTS'!L26 ->  | U22: ='WALK TROT RESULTS'!#REF! -> 
A23: 17 | B23: ='WALK TROT RESULTS'!E27 -> NOV | C23: ='WALK TROT RESULTS'!B27 ->  | D23: ='WALK TROT RESULTS'!C27 ->  | E23: ='WALK TROT RESULTS'!D27 ->  | F23: ='WALK TROT RESULTS'!#REF! ->  | H23: 0 | I23: ='WALK TROT RESULTS'!F27 ->  | L23: ='WALK TROT RESULTS'!X27 ->  | O23: ='WALK TROT RESULTS'!R27 ->  | R23: ='WALK TROT RESULTS'!L27 ->  | U23: ='WALK TROT RESULTS'!#REF! -> 
A24: 18 | B24: ='WALK TROT RESULTS'!E28 -> NOV | C24: ='WALK TROT RESULTS'!B28 ->  | D24: ='WALK TROT RESULTS'!C28 ->  | E24: ='WALK TROT RESULTS'!D28 ->  | F24: ='WALK TROT RESULTS'!#REF! ->  | H24: 0 | I24: ='WALK TROT RESULTS'!F28 ->  | L24: ='WALK TROT RESULTS'!X28 ->  | O24: ='WALK TROT RESULTS'!R28 ->  | R24: ='WALK TROT RESULTS'!L28 ->  | U24: ='WALK TROT RESULTS'!#REF! -> 
A25: 19 | B25: ='WALK TROT RESULTS'!E29 -> NOV | C25: ='WALK TROT RESULTS'!B29 ->  | D25: ='WALK TROT RESULTS'!C29 ->  | E25: ='WALK TROT RESULTS'!D29 ->  | F25: ='WALK TROT RESULTS'!#REF! ->  | H25: 0 | I25: ='WALK TROT RESULTS'!F29 ->  | L25: ='WALK TROT RESULTS'!X29 ->  | O25: ='WALK TROT RESULTS'!R29 ->  | R25: ='WALK TROT RESULTS'!L29 ->  | U25: ='WALK TROT RESULTS'!#REF! -> 
A26: 20 | B26: ='WALK TROT RESULTS'!E30 -> NOV | C26: ='WALK TROT RESULTS'!B30 ->  | D26: ='WALK TROT RESULTS'!C30 ->  | E26: ='WALK TROT RESULTS'!D30 ->  | F26: ='WALK TROT RESULTS'!#REF! ->  | H26: 0 | I26: ='WALK TROT RESULTS'!F30 ->  | L26: ='WALK TROT RESULTS'!X30 ->  | O26: ='WALK TROT RESULTS'!R30 ->  | R26: ='WALK TROT RESULTS'!L30 ->  | U26: ='WALK TROT RESULTS'!#REF! -> 
A27: 21 | B27: ='WALK TROT RESULTS'!E31 -> NOV | C27: ='WALK TROT RESULTS'!B31 ->  | D27: ='WALK TROT RESULTS'!C31 ->  | E27: ='WALK TROT RESULTS'!D31 ->  | F27: ='WALK TROT RESULTS'!#REF! ->  | H27: 0 | I27: ='WALK TROT RESULTS'!F31 ->  | L27: ='WALK TROT RESULTS'!X31 ->  | O27: ='WALK TROT RESULTS'!R31 ->  | R27: ='WALK TROT RESULTS'!L31 ->  | U27: ='WALK TROT RESULTS'!#REF! -> 
A28: 22 | B28: ='WALK TROT RESULTS'!E32 -> NOV | C28: ='WALK TROT RESULTS'!B32 ->  | D28: ='WALK TROT RESULTS'!C32 ->  | E28: ='WALK TROT RESULTS'!D32 ->  | F28: ='WALK TROT RESULTS'!#REF! ->  | H28: 0 | I28: ='WALK TROT RESULTS'!F32 ->  | L28: ='WALK TROT RESULTS'!X32 ->  | O28: ='WALK TROT RESULTS'!R32 ->  | R28: ='WALK TROT RESULTS'!L32 ->  | U28: ='WALK TROT RESULTS'!#REF! -> 
A29: 23 | B29: ='WALK TROT RESULTS'!E33 -> NOV | C29: ='WALK TROT RESULTS'!B33 ->  | D29: ='WALK TROT RESULTS'!C33 ->  | E29: ='WALK TROT RESULTS'!D33 ->  | F29: ='WALK TROT RESULTS'!#REF! ->  | H29: 0 | I29: ='WALK TROT RESULTS'!F33 ->  | L29: ='WALK TROT RESULTS'!X33 ->  | O29: ='WALK TROT RESULTS'!R33 ->  | R29: ='WALK TROT RESULTS'!L33 ->  | U29: ='WALK TROT RESULTS'!#REF! -> 
A30: 24 | B30: ='WALK TROT RESULTS'!E34 -> NOV | C30: ='WALK TROT RESULTS'!B34 ->  | D30: ='WALK TROT RESULTS'!C34 ->  | E30: ='WALK TROT RESULTS'!D34 ->  | F30: ='WALK TROT RESULTS'!#REF! ->  | H30: 0 | I30: ='WALK TROT RESULTS'!F34 ->  | L30: ='WALK TROT RESULTS'!X34 ->  | O30: ='WALK TROT RESULTS'!R34 ->  | R30: ='WALK TROT RESULTS'!L34 ->  | U30: ='WALK TROT RESULTS'!#REF! -> 
A31: 25 | B31: ='WALK TROT RESULTS'!E35 -> NOV | C31: ='WALK TROT RESULTS'!B35 ->  | D31: ='WALK TROT RESULTS'!C35 ->  | E31: ='WALK TROT RESULTS'!D35 ->  | F31: ='WALK TROT RESULTS'!#REF! ->  | H31: 0 | I31: ='WALK TROT RESULTS'!F35 ->  | L31: ='WALK TROT RESULTS'!X35 ->  | O31: ='WALK TROT RESULTS'!R35 ->  | R31: ='WALK TROT RESULTS'!L35 ->  | U31: ='WALK TROT RESULTS'!#REF! -> 
A32: 26 | B32: ='WALK TROT RESULTS'!E36 -> NOV | C32: ='WALK TROT RESULTS'!B36 ->  | D32: ='WALK TROT RESULTS'!C36 ->  | E32: ='WALK TROT RESULTS'!D36 ->  | F32: ='WALK TROT RESULTS'!#REF! ->  | H32: 0 | I32: ='WALK TROT RESULTS'!F36 ->  | L32: ='WALK TROT RESULTS'!X36 ->  | O32: ='WALK TROT RESULTS'!R36 ->  | R32: ='WALK TROT RESULTS'!L36 ->  | U32: ='WALK TROT RESULTS'!#REF! -> 
A33: 27 | B33: ='WALK TROT RESULTS'!E37 -> NOV | C33: ='WALK TROT RESULTS'!B37 ->  | D33: ='WALK TROT RESULTS'!C37 ->  | E33: ='WALK TROT RESULTS'!D37 ->  | F33: ='WALK TROT RESULTS'!#REF! ->  | H33: 0 | I33: ='WALK TROT RESULTS'!F37 ->  | L33: ='WALK TROT RESULTS'!X37 ->  | O33: ='WALK TROT RESULTS'!R37 ->  | R33: ='WALK TROT RESULTS'!L37 ->  | U33: ='WALK TROT RESULTS'!#REF! -> 
A34: 28 | B34: ='WALK TROT RESULTS'!E38 -> NOV | C34: ='WALK TROT RESULTS'!B38 ->  | D34: ='WALK TROT RESULTS'!C38 ->  | E34: ='WALK TROT RESULTS'!D38 ->  | F34: ='WALK TROT RESULTS'!#REF! ->  | H34: 0 | I34: ='WALK TROT RESULTS'!F38 ->  | L34: ='WALK TROT RESULTS'!X38 ->  | O34: ='WALK TROT RESULTS'!R38 ->  | R34: ='WALK TROT RESULTS'!L38 ->  | U34: ='WALK TROT RESULTS'!#REF! -> 
A35: 29 | B35: ='WALK TROT RESULTS'!E39 -> NOV | C35: ='WALK TROT RESULTS'!B39 ->  | D35: ='WALK TROT RESULTS'!C39 ->  | E35: ='WALK TROT RESULTS'!D39 ->  | F35: ='WALK TROT RESULTS'!#REF! ->  | H35: 0 | I35: ='WALK TROT RESULTS'!F39 ->  | L35: ='WALK TROT RESULTS'!X39 ->  | O35: ='WALK TROT RESULTS'!R39 ->  | R35: ='WALK TROT RESULTS'!L39 ->  | U35: ='WALK TROT RESULTS'!#REF! -> 
A36: 30 | B36: ='WALK TROT RESULTS'!E40 -> NOV | C36: ='WALK TROT RESULTS'!B40 ->  | D36: ='WALK TROT RESULTS'!C40 ->  | E36: ='WALK TROT RESULTS'!D40 ->  | F36: ='WALK TROT RESULTS'!#REF! ->  | H36: 0 | I36: ='WALK TROT RESULTS'!F40 ->  | L36: ='WALK TROT RESULTS'!X40 ->  | O36: ='WALK TROT RESULTS'!R40 ->  | R36: ='WALK TROT RESULTS'!L40 ->  | U36: ='WALK TROT RESULTS'!#REF! -> 
A37: 31 | B37: ='YOUTH RESULTS'!E11 -> YOUTH | C37: ='YOUTH RESULTS'!B11 ->  | D37: ='YOUTH RESULTS'!C11 ->  | E37: ='YOUTH RESULTS'!D11 ->  | F37: ='YOUTH RESULTS'!#REF! ->  | G37: =SUM(I37,L37,O37,R37,U37) ->  | H37: =SUM(I37,L37,O37,R37) -> 0 | I37: ='YOUTH RESULTS'!F11 ->  | L37: ='YOUTH RESULTS'!AD11 ->  | O37: ='YOUTH RESULTS'!R11 ->  | R37: ='YOUTH RESULTS'!L11 ->  | U37: ='YOUTH RESULTS'!#REF! -> 
A38: 32 | B38: ='YOUTH RESULTS'!E12 -> YOUTH | C38: ='YOUTH RESULTS'!B12 ->  | D38: ='YOUTH RESULTS'!C12 ->  | E38: ='YOUTH RESULTS'!D12 ->  | F38: ='YOUTH RESULTS'!#REF! ->  | H38: 0 | I38: ='YOUTH RESULTS'!F12 ->  | L38: ='YOUTH RESULTS'!AD12 ->  | O38: ='YOUTH RESULTS'!R12 ->  | R38: ='YOUTH RESULTS'!L12 ->  | U38: ='YOUTH RESULTS'!#REF! -> 
A39: 33 | B39: ='YOUTH RESULTS'!E13 -> YOUTH | C39: ='YOUTH RESULTS'!B13 ->  | D39: ='YOUTH RESULTS'!C13 ->  | E39: ='YOUTH RESULTS'!D13 ->  | F39: ='YOUTH RESULTS'!#REF! ->  | H39: 0 | I39: ='YOUTH RESULTS'!F13 ->  | L39: ='YOUTH RESULTS'!AD13 ->  | O39: ='YOUTH RESULTS'!R13 ->  | R39: ='YOUTH RESULTS'!L13 ->  | U39: ='YOUTH RESULTS'!#REF! -> 
A40: 34 | B40: ='YOUTH RESULTS'!E14 -> YOUTH | C40: ='YOUTH RESULTS'!B14 ->  | D40: ='YOUTH RESULTS'!C14 ->  | E40: ='YOUTH RESULTS'!D14 ->  | F40: ='YOUTH RESULTS'!#REF! ->  | H40: 0 | I40: ='YOUTH RESULTS'!F14 ->  | L40: ='YOUTH RESULTS'!AD14 ->  | O40: ='YOUTH RESULTS'!R14 ->  | R40: ='YOUTH RESULTS'!L14 ->  | U40: ='YOUTH RESULTS'!#REF! -> 
A41: 35 | B41: ='YOUTH RESULTS'!E15 -> YOUTH | C41: ='YOUTH RESULTS'!B15 ->  | D41: ='YOUTH RESULTS'!C15 ->  | E41: ='YOUTH RESULTS'!D15 ->  | F41: ='YOUTH RESULTS'!#REF! ->  | H41: 0 | I41: ='YOUTH RESULTS'!F15 ->  | L41: ='YOUTH RESULTS'!AD15 ->  | O41: ='YOUTH RESULTS'!R15 ->  | R41: ='YOUTH RESULTS'!L15 ->  | U41: ='YOUTH RESULTS'!#REF! -> 
A42: 36 | B42: ='YOUTH RESULTS'!E16 -> YOUTH | C42: ='YOUTH RESULTS'!B16 ->  | D42: ='YOUTH RESULTS'!C16 ->  | E42: ='YOUTH RESULTS'!D16 ->  | F42: ='YOUTH RESULTS'!#REF! ->  | H42: 0 | I42: ='YOUTH RESULTS'!F16 ->  | L42: ='YOUTH RESULTS'!AD16 ->  | O42: ='YOUTH RESULTS'!R16 ->  | R42: ='YOUTH RESULTS'!L16 ->  | U42: ='YOUTH RESULTS'!#REF! -> 
A43: 37 | B43: ='YOUTH RESULTS'!E17 -> YOUTH | C43: ='YOUTH RESULTS'!B17 ->  | D43: ='YOUTH RESULTS'!C17 ->  | E43: ='YOUTH RESULTS'!D17 ->  | F43: ='YOUTH RESULTS'!#REF! ->  | H43: 0 | I43: ='YOUTH RESULTS'!F17 ->  | L43: ='YOUTH RESULTS'!AD17 ->  | O43: ='YOUTH RESULTS'!R17 ->  | R43: ='YOUTH RESULTS'!L17 ->  | U43: ='YOUTH RESULTS'!#REF! -> 
A44: 38 | B44: ='YOUTH RESULTS'!E18 -> YOUTH | C44: ='YOUTH RESULTS'!B18 ->  | D44: ='YOUTH RESULTS'!C18 ->  | E44: ='YOUTH RESULTS'!D18 ->  | F44: ='YOUTH RESULTS'!#REF! ->  | H44: 0 | I44: ='YOUTH RESULTS'!F18 ->  | L44: ='YOUTH RESULTS'!AD18 ->  | O44: ='YOUTH RESULTS'!R18 ->  | R44: ='YOUTH RESULTS'!L18 ->  | U44: ='YOUTH RESULTS'!#REF! -> 
A45: 39 | B45: ='YOUTH RESULTS'!E19 -> YOUTH | C45: ='YOUTH RESULTS'!B19 ->  | D45: ='YOUTH RESULTS'!C19 ->  | E45: ='YOUTH RESULTS'!D19 ->  | F45: ='YOUTH RESULTS'!#REF! ->  | H45: 0 | I45: ='YOUTH RESULTS'!F19 ->  | L45: ='YOUTH RESULTS'!AD19 ->  | O45: ='YOUTH RESULTS'!R19 ->  | R45: ='YOUTH RESULTS'!L19 ->  | U45: ='YOUTH RESULTS'!#REF! -> 
A46: 40 | B46: ='YOUTH RESULTS'!E20 -> YOUTH | C46: ='YOUTH RESULTS'!B20 ->  | D46: ='YOUTH RESULTS'!C20 ->  | E46: ='YOUTH RESULTS'!D20 ->  | F46: ='YOUTH RESULTS'!#REF! ->  | H46: 0 | I46: ='YOUTH RESULTS'!F20 ->  | L46: ='YOUTH RESULTS'!AD20 ->  | O46: ='YOUTH RESULTS'!R20 ->  | R46: ='YOUTH RESULTS'!L20 ->  | U46: ='YOUTH RESULTS'!#REF! -> 
A47: 41 | B47: ='YOUTH RESULTS'!E21 -> YOUTH | C47: ='YOUTH RESULTS'!B21 ->  | D47: ='YOUTH RESULTS'!C21 ->  | E47: ='YOUTH RESULTS'!D21 ->  | F47: ='YOUTH RESULTS'!#REF! ->  | H47: 0 | I47: ='YOUTH RESULTS'!F21 ->  | L47: ='YOUTH RESULTS'!AD21 ->  | O47: ='YOUTH RESULTS'!R21 ->  | R47: ='YOUTH RESULTS'!L21 ->  | U47: ='YOUTH RESULTS'!#REF! -> 
A48: 42 | B48: ='YOUTH RESULTS'!E22 -> YOUTH | C48: ='YOUTH RESULTS'!B22 ->  | D48: ='YOUTH RESULTS'!C22 ->  | E48: ='YOUTH RESULTS'!D22 ->  | F48: ='YOUTH RESULTS'!#REF! ->  | H48: 0 | I48: ='YOUTH RESULTS'!F22 ->  | L48: ='YOUTH RESULTS'!AD22 ->  | O48: ='YOUTH RESULTS'!R22 ->  | R48: ='YOUTH RESULTS'!L22 ->  | U48: ='YOUTH RESULTS'!#REF! -> 
A49: 43 | B49: ='YOUTH RESULTS'!E23 -> YOUTH | C49: ='YOUTH RESULTS'!B23 ->  | D49: ='YOUTH RESULTS'!C23 ->  | E49: ='YOUTH RESULTS'!D23 ->  | F49: ='YOUTH RESULTS'!#REF! ->  | H49: 0 | I49: ='YOUTH RESULTS'!F23 ->  | L49: ='YOUTH RESULTS'!AD23 ->  | O49: ='YOUTH RESULTS'!R23 ->  | R49: ='YOUTH RESULTS'!L23 ->  | U49: ='YOUTH RESULTS'!#REF! -> 
A50: 44 | B50: ='YOUTH RESULTS'!E24 -> YOUTH | C50: ='YOUTH RESULTS'!B24 ->  | D50: ='YOUTH RESULTS'!C24 ->  | E50: ='YOUTH RESULTS'!D24 ->  | F50: ='YOUTH RESULTS'!#REF! ->  | H50: 0 | I50: ='YOUTH RESULTS'!F24 ->  | L50: ='YOUTH RESULTS'!AD24 ->  | O50: ='YOUTH RESULTS'!R24 ->  | R50: ='YOUTH RESULTS'!L24 ->  | U50: ='YOUTH RESULTS'!#REF! -> 
A51: 45 | B51: ='YOUTH RESULTS'!E25 -> YOUTH | C51: ='YOUTH RESULTS'!B25 ->  | D51: ='YOUTH RESULTS'!C25 ->  | E51: ='YOUTH RESULTS'!D25 ->  | F51: ='YOUTH RESULTS'!#REF! ->  | H51: 0 | I51: ='YOUTH RESULTS'!F25 ->  | L51: ='YOUTH RESULTS'!AD25 ->  | O51: ='YOUTH RESULTS'!R25 ->  | R51: ='YOUTH RESULTS'!L25 ->  | U51: ='YOUTH RESULTS'!#REF! -> 
A52: 46 | B52: ='LIMITED RESULTS'!#REF! ->  | C52: ='LIMITED RESULTS'!#REF! ->  | D52: ='LIMITED RESULTS'!#REF! ->  | E52: ='LIMITED RESULTS'!#REF! ->  | F52: ='LIMITED RESULTS'!#REF! ->  | I52: ='LIMITED RESULTS'!#REF! ->  | L52: ='LIMITED RESULTS'!#REF! ->  | O52: ='LIMITED RESULTS'!#REF! ->  | R52: ='LIMITED RESULTS'!#REF! ->  | U52: ='LIMITED RESULTS'!#REF! -> 
A53: 47 | B53: ='LIMITED RESULTS'!#REF! ->  | C53: ='LIMITED RESULTS'!#REF! ->  | D53: ='LIMITED RESULTS'!#REF! ->  | E53: ='LIMITED RESULTS'!#REF! ->  | F53: ='LIMITED RESULTS'!#REF! ->  | I53: ='LIMITED RESULTS'!#REF! ->  | L53: ='LIMITED RESULTS'!#REF! ->  | O53: ='LIMITED RESULTS'!#REF! ->  | R53: ='LIMITED RESULTS'!#REF! ->  | U53: ='LIMITED RESULTS'!#REF! -> 
A54: 48 | B54: ='LIMITED RESULTS'!#REF! ->  | C54: ='LIMITED RESULTS'!#REF! ->  | D54: ='LIMITED RESULTS'!#REF! ->  | E54: ='LIMITED RESULTS'!#REF! ->  | F54: ='LIMITED RESULTS'!#REF! ->  | I54: ='LIMITED RESULTS'!#REF! ->  | L54: ='LIMITED RESULTS'!#REF! ->  | O54: ='LIMITED RESULTS'!#REF! ->  | R54: ='LIMITED RESULTS'!#REF! ->  | U54: ='LIMITED RESULTS'!#REF! -> 
A55: 49 | B55: ='LIMITED RESULTS'!#REF! ->  | C55: ='LIMITED RESULTS'!#REF! ->  | D55: ='LIMITED RESULTS'!#REF! ->  | E55: ='LIMITED RESULTS'!#REF! ->  | F55: ='LIMITED RESULTS'!#REF! ->  | I55: ='LIMITED RESULTS'!#REF! ->  | L55: ='LIMITED RESULTS'!#REF! ->  | O55: ='LIMITED RESULTS'!#REF! ->  | R55: ='LIMITED RESULTS'!#REF! ->  | U55: ='LIMITED RESULTS'!#REF! -> 
A56: 50 | B56: ='LIMITED RESULTS'!#REF! ->  | C56: ='LIMITED RESULTS'!#REF! ->  | D56: ='LIMITED RESULTS'!#REF! ->  | E56: ='LIMITED RESULTS'!#REF! ->  | F56: ='LIMITED RESULTS'!#REF! ->  | I56: ='LIMITED RESULTS'!#REF! ->  | L56: ='LIMITED RESULTS'!#REF! ->  | O56: ='LIMITED RESULTS'!#REF! ->  | R56: ='LIMITED RESULTS'!#REF! ->  | U56: ='LIMITED RESULTS'!#REF! -> 
A57: 51 | B57: ='LIMITED RESULTS'!#REF! ->  | C57: ='LIMITED RESULTS'!#REF! ->  | D57: ='LIMITED RESULTS'!#REF! ->  | E57: ='LIMITED RESULTS'!#REF! ->  | F57: ='LIMITED RESULTS'!#REF! ->  | I57: ='LIMITED RESULTS'!#REF! ->  | L57: ='LIMITED RESULTS'!#REF! ->  | O57: ='LIMITED RESULTS'!#REF! ->  | R57: ='LIMITED RESULTS'!#REF! ->  | U57: ='LIMITED RESULTS'!#REF! -> 
A58: 52 | B58: ='LIMITED RESULTS'!#REF! ->  | C58: ='LIMITED RESULTS'!#REF! ->  | D58: ='LIMITED RESULTS'!#REF! ->  | E58: ='LIMITED RESULTS'!#REF! ->  | F58: ='LIMITED RESULTS'!#REF! ->  | I58: ='LIMITED RESULTS'!#REF! ->  | L58: ='LIMITED RESULTS'!#REF! ->  | O58: ='LIMITED RESULTS'!#REF! ->  | R58: ='LIMITED RESULTS'!#REF! ->  | U58: ='LIMITED RESULTS'!#REF! -> 
A59: 53 | B59: ='LIMITED RESULTS'!#REF! ->  | C59: ='LIMITED RESULTS'!#REF! ->  | D59: ='LIMITED RESULTS'!#REF! ->  | E59: ='LIMITED RESULTS'!#REF! ->  | F59: ='LIMITED RESULTS'!#REF! ->  | I59: ='LIMITED RESULTS'!#REF! ->  | L59: ='LIMITED RESULTS'!#REF! ->  | O59: ='LIMITED RESULTS'!#REF! ->  | R59: ='LIMITED RESULTS'!#REF! ->  | U59: ='LIMITED RESULTS'!#REF! -> 
A60: 54 | B60: ='LIMITED RESULTS'!#REF! ->  | C60: ='LIMITED RESULTS'!#REF! ->  | D60: ='LIMITED RESULTS'!#REF! ->  | E60: ='LIMITED RESULTS'!#REF! ->  | F60: ='LIMITED RESULTS'!#REF! ->  | I60: ='LIMITED RESULTS'!#REF! ->  | L60: ='LIMITED RESULTS'!#REF! ->  | O60: ='LIMITED RESULTS'!#REF! ->  | R60: ='LIMITED RESULTS'!#REF! ->  | U60: ='LIMITED RESULTS'!#REF! -> 
A61: 55 | B61: ='LIMITED RESULTS'!#REF! ->  | C61: ='LIMITED RESULTS'!#REF! ->  | D61: ='LIMITED RESULTS'!#REF! ->  | E61: ='LIMITED RESULTS'!#REF! ->  | F61: ='LIMITED RESULTS'!#REF! ->  | I61: ='LIMITED RESULTS'!#REF! ->  | L61: ='LIMITED RESULTS'!#REF! ->  | O61: ='LIMITED RESULTS'!#REF! ->  | R61: ='LIMITED RESULTS'!#REF! ->  | U61: ='LIMITED RESULTS'!#REF! -> 
A62: 56 | B62: ='LIMITED RESULTS'!#REF! ->  | C62: ='LIMITED RESULTS'!#REF! ->  | D62: ='LIMITED RESULTS'!#REF! ->  | E62: ='LIMITED RESULTS'!#REF! ->  | F62: ='LIMITED RESULTS'!#REF! ->  | I62: ='LIMITED RESULTS'!#REF! ->  | L62: ='LIMITED RESULTS'!#REF! ->  | O62: ='LIMITED RESULTS'!#REF! ->  | R62: ='LIMITED RESULTS'!#REF! ->  | U62: ='LIMITED RESULTS'!#REF! -> 
A63: 57 | B63: ='LIMITED RESULTS'!#REF! ->  | C63: ='LIMITED RESULTS'!#REF! ->  | D63: ='LIMITED RESULTS'!#REF! ->  | E63: ='LIMITED RESULTS'!#REF! ->  | F63: ='LIMITED RESULTS'!#REF! ->  | I63: ='LIMITED RESULTS'!#REF! ->  | L63: ='LIMITED RESULTS'!#REF! ->  | O63: ='LIMITED RESULTS'!#REF! ->  | R63: ='LIMITED RESULTS'!#REF! ->  | U63: ='LIMITED RESULTS'!#REF! -> 
A64: 58 | B64: ='LIMITED RESULTS'!#REF! ->  | C64: ='LIMITED RESULTS'!#REF! ->  | D64: ='LIMITED RESULTS'!#REF! ->  | E64: ='LIMITED RESULTS'!#REF! ->  | F64: ='LIMITED RESULTS'!#REF! ->  | I64: ='LIMITED RESULTS'!#REF! ->  | L64: ='LIMITED RESULTS'!#REF! ->  | O64: ='LIMITED RESULTS'!#REF! ->  | R64: ='LIMITED RESULTS'!#REF! ->  | U64: ='LIMITED RESULTS'!#REF! -> 
A65: 59 | B65: ='LIMITED RESULTS'!#REF! ->  | C65: ='LIMITED RESULTS'!#REF! ->  | D65: ='LIMITED RESULTS'!#REF! ->  | E65: ='LIMITED RESULTS'!#REF! ->  | F65: ='LIMITED RESULTS'!#REF! ->  | I65: ='LIMITED RESULTS'!#REF! ->  | L65: ='LIMITED RESULTS'!#REF! ->  | O65: ='LIMITED RESULTS'!#REF! ->  | R65: ='LIMITED RESULTS'!#REF! ->  | U65: ='LIMITED RESULTS'!#REF! -> 
A66: 60 | B66: ='LIMITED RESULTS'!#REF! ->  | C66: ='LIMITED RESULTS'!#REF! ->  | D66: ='LIMITED RESULTS'!#REF! ->  | E66: ='LIMITED RESULTS'!#REF! ->  | F66: ='LIMITED RESULTS'!#REF! ->  | I66: ='LIMITED RESULTS'!#REF! ->  | L66: ='LIMITED RESULTS'!#REF! ->  | O66: ='LIMITED RESULTS'!#REF! ->  | R66: ='LIMITED RESULTS'!#REF! ->  | U66: ='LIMITED RESULTS'!#REF! -> 
A67: 61 | B67: ='INTERMEDIATE RESULTS'!E11 -> INT | C67: ='INTERMEDIATE RESULTS'!B11 ->  | D67: ='INTERMEDIATE RESULTS'!C11 ->  | E67: ='INTERMEDIATE RESULTS'!D11 ->  | F67: ='INTERMEDIATE RESULTS'!#REF! ->  | H67: 0 | I67: ='INTERMEDIATE RESULTS'!F11 ->  | L67: ='INTERMEDIATE RESULTS'!AD11 ->  | O67: ='INTERMEDIATE RESULTS'!R11 ->  | R67: ='INTERMEDIATE RESULTS'!L11 ->  | U67: ='INTERMEDIATE RESULTS'!#REF! -> 
A68: 62 | B68: ='INTERMEDIATE RESULTS'!E12 -> INT | C68: ='INTERMEDIATE RESULTS'!B12 ->  | D68: ='INTERMEDIATE RESULTS'!C12 ->  | E68: ='INTERMEDIATE RESULTS'!D12 ->  | F68: ='INTERMEDIATE RESULTS'!#REF! ->  | H68: 0 | I68: ='INTERMEDIATE RESULTS'!F12 ->  | L68: ='INTERMEDIATE RESULTS'!AD12 ->  | O68: ='INTERMEDIATE RESULTS'!R12 ->  | R68: ='INTERMEDIATE RESULTS'!L12 ->  | U68: ='INTERMEDIATE RESULTS'!#REF! -> 
A69: 63 | B69: ='INTERMEDIATE RESULTS'!E13 -> INT | C69: ='INTERMEDIATE RESULTS'!B13 ->  | D69: ='INTERMEDIATE RESULTS'!C13 ->  | E69: ='INTERMEDIATE RESULTS'!D13 ->  | F69: ='INTERMEDIATE RESULTS'!#REF! ->  | G69: =SUM(I69,L69,O69,R69,U69) ->  | H69: =SUM(I69,L69,O69,R69) -> 0 | I69: ='INTERMEDIATE RESULTS'!F13 ->  | L69: ='INTERMEDIATE RESULTS'!AD13 ->  | O69: ='INTERMEDIATE RESULTS'!R13 ->  | R69: ='INTERMEDIATE RESULTS'!L13 ->  | U69: ='INTERMEDIATE RESULTS'!#REF! -> 
A70: 64 | B70: ='INTERMEDIATE RESULTS'!E14 -> INT | C70: ='INTERMEDIATE RESULTS'!B14 ->  | D70: ='INTERMEDIATE RESULTS'!C14 ->  | E70: ='INTERMEDIATE RESULTS'!D14 ->  | F70: ='INTERMEDIATE RESULTS'!#REF! ->  | H70: 0 | I70: ='INTERMEDIATE RESULTS'!F14 ->  | L70: ='INTERMEDIATE RESULTS'!AD14 ->  | O70: ='INTERMEDIATE RESULTS'!R14 ->  | R70: ='INTERMEDIATE RESULTS'!L14 ->  | U70: ='INTERMEDIATE RESULTS'!#REF! -> 
A71: 65 | B71: ='INTERMEDIATE RESULTS'!E15 -> INT | C71: ='INTERMEDIATE RESULTS'!B15 ->  | D71: ='INTERMEDIATE RESULTS'!C15 ->  | E71: ='INTERMEDIATE RESULTS'!D15 ->  | F71: ='INTERMEDIATE RESULTS'!#REF! ->  | H71: 0 | I71: ='INTERMEDIATE RESULTS'!F15 ->  | L71: ='INTERMEDIATE RESULTS'!AD15 ->  | O71: ='INTERMEDIATE RESULTS'!R15 ->  | R71: ='INTERMEDIATE RESULTS'!L15 ->  | U71: ='INTERMEDIATE RESULTS'!#REF! -> 
A72: 66 | B72: ='INTERMEDIATE RESULTS'!E16 -> INT | C72: ='INTERMEDIATE RESULTS'!B16 ->  | D72: ='INTERMEDIATE RESULTS'!C16 ->  | E72: ='INTERMEDIATE RESULTS'!D16 ->  | F72: ='INTERMEDIATE RESULTS'!#REF! ->  | H72: 0 | I72: ='INTERMEDIATE RESULTS'!F16 ->  | L72: ='INTERMEDIATE RESULTS'!AD16 ->  | O72: ='INTERMEDIATE RESULTS'!R16 ->  | R72: ='INTERMEDIATE RESULTS'!L16 ->  | U72: ='INTERMEDIATE RESULTS'!#REF! -> 
A73: 67 | B73: ='INTERMEDIATE RESULTS'!E17 -> INT | C73: ='INTERMEDIATE RESULTS'!B17 ->  | D73: ='INTERMEDIATE RESULTS'!C17 ->  | E73: ='INTERMEDIATE RESULTS'!D17 ->  | F73: ='INTERMEDIATE RESULTS'!#REF! ->  | H73: 0 | I73: ='INTERMEDIATE RESULTS'!F17 ->  | L73: ='INTERMEDIATE RESULTS'!AD17 ->  | O73: ='INTERMEDIATE RESULTS'!R17 ->  | R73: ='INTERMEDIATE RESULTS'!L17 ->  | U73: ='INTERMEDIATE RESULTS'!#REF! -> 
A74: 68 | B74: ='INTERMEDIATE RESULTS'!E18 -> INT | C74: ='INTERMEDIATE RESULTS'!B18 ->  | D74: ='INTERMEDIATE RESULTS'!C18 ->  | E74: ='INTERMEDIATE RESULTS'!D18 ->  | F74: ='INTERMEDIATE RESULTS'!#REF! ->  | H74: 0 | I74: ='INTERMEDIATE RESULTS'!F18 ->  | L74: ='INTERMEDIATE RESULTS'!AD18 ->  | O74: ='INTERMEDIATE RESULTS'!R18 ->  | R74: ='INTERMEDIATE RESULTS'!L18 ->  | U74: ='INTERMEDIATE RESULTS'!#REF! -> 
A75: 69 | B75: ='INTERMEDIATE RESULTS'!E19 -> INT | C75: ='INTERMEDIATE RESULTS'!B19 ->  | D75: ='INTERMEDIATE RESULTS'!C19 ->  | E75: ='INTERMEDIATE RESULTS'!D19 ->  | F75: ='INTERMEDIATE RESULTS'!#REF! ->  | H75: 0 | I75: ='INTERMEDIATE RESULTS'!F19 ->  | L75: ='INTERMEDIATE RESULTS'!AD19 ->  | O75: ='INTERMEDIATE RESULTS'!R19 ->  | R75: ='INTERMEDIATE RESULTS'!L19 ->  | U75: ='INTERMEDIATE RESULTS'!#REF! -> 
A76: 70 | B76: ='INTERMEDIATE RESULTS'!E20 -> INT | C76: ='INTERMEDIATE RESULTS'!B20 ->  | D76: ='INTERMEDIATE RESULTS'!C20 ->  | E76: ='INTERMEDIATE RESULTS'!D20 ->  | F76: ='INTERMEDIATE RESULTS'!#REF! ->  | H76: 0 | I76: ='INTERMEDIATE RESULTS'!F20 ->  | L76: ='INTERMEDIATE RESULTS'!AD20 ->  | O76: ='INTERMEDIATE RESULTS'!R20 ->  | R76: ='INTERMEDIATE RESULTS'!L20 ->  | U76: ='INTERMEDIATE RESULTS'!#REF! -> 
A77: 71 | B77: ='INTERMEDIATE RESULTS'!E21 -> INT | C77: ='INTERMEDIATE RESULTS'!B21 ->  | D77: ='INTERMEDIATE RESULTS'!C21 ->  | E77: ='INTERMEDIATE RESULTS'!D21 ->  | F77: ='INTERMEDIATE RESULTS'!#REF! ->  | H77: 0 | I77: ='INTERMEDIATE RESULTS'!F21 ->  | L77: ='INTERMEDIATE RESULTS'!AD21 ->  | O77: ='INTERMEDIATE RESULTS'!R21 ->  | R77: ='INTERMEDIATE RESULTS'!L21 ->  | U77: ='INTERMEDIATE RESULTS'!#REF! -> 
A78: 72 | B78: ='INTERMEDIATE RESULTS'!E22 -> INT | C78: ='INTERMEDIATE RESULTS'!B22 ->  | D78: ='INTERMEDIATE RESULTS'!C22 ->  | E78: ='INTERMEDIATE RESULTS'!D22 ->  | F78: ='INTERMEDIATE RESULTS'!#REF! ->  | H78: 0 | I78: ='INTERMEDIATE RESULTS'!F22 ->  | L78: ='INTERMEDIATE RESULTS'!AD22 ->  | O78: ='INTERMEDIATE RESULTS'!R22 ->  | R78: ='INTERMEDIATE RESULTS'!L22 ->  | U78: ='INTERMEDIATE RESULTS'!#REF! -> 
A79: 73 | B79: ='INTERMEDIATE RESULTS'!E23 -> INT | C79: ='INTERMEDIATE RESULTS'!B23 ->  | D79: ='INTERMEDIATE RESULTS'!C23 ->  | E79: ='INTERMEDIATE RESULTS'!D23 ->  | F79: ='INTERMEDIATE RESULTS'!#REF! ->  | H79: 0 | I79: ='INTERMEDIATE RESULTS'!F23 ->  | L79: ='INTERMEDIATE RESULTS'!AD23 ->  | O79: ='INTERMEDIATE RESULTS'!R23 ->  | R79: ='INTERMEDIATE RESULTS'!L23 ->  | U79: ='INTERMEDIATE RESULTS'!#REF! -> 
A80: 74 | B80: ='INTERMEDIATE RESULTS'!E24 -> INT | C80: ='INTERMEDIATE RESULTS'!B24 ->  | D80: ='INTERMEDIATE RESULTS'!C24 ->  | E80: ='INTERMEDIATE RESULTS'!D24 ->  | F80: ='INTERMEDIATE RESULTS'!#REF! ->  | H80: 0 | I80: ='INTERMEDIATE RESULTS'!F24 ->  | L80: ='INTERMEDIATE RESULTS'!AD24 ->  | O80: ='INTERMEDIATE RESULTS'!R24 ->  | R80: ='INTERMEDIATE RESULTS'!L24 ->  | U80: ='INTERMEDIATE RESULTS'!#REF! -> 
A81: 75 | B81: ='INTERMEDIATE RESULTS'!E25 -> INT | C81: ='INTERMEDIATE RESULTS'!B25 ->  | D81: ='INTERMEDIATE RESULTS'!C25 ->  | E81: ='INTERMEDIATE RESULTS'!D25 ->  | F81: ='INTERMEDIATE RESULTS'!#REF! ->  | H81: 0 | I81: ='INTERMEDIATE RESULTS'!F25 ->  | L81: ='INTERMEDIATE RESULTS'!AD25 ->  | O81: ='INTERMEDIATE RESULTS'!R25 ->  | R81: ='INTERMEDIATE RESULTS'!L25 ->  | U81: ='INTERMEDIATE RESULTS'!#REF! -> 
A82: 76 | B82: ='ADVANCED RESULTS'!E11 -> ADV | C82: ='ADVANCED RESULTS'!B11 ->  | D82: ='ADVANCED RESULTS'!C11 ->  | E82: ='ADVANCED RESULTS'!D11 ->  | F82: ='ADVANCED RESULTS'!#REF! ->  | H82: 0 | I82: ='ADVANCED RESULTS'!F11 ->  | L82: ='ADVANCED RESULTS'!AD11 ->  | O82: ='ADVANCED RESULTS'!R11 ->  | R82: ='ADVANCED RESULTS'!L11 ->  | U82: ='ADVANCED RESULTS'!#REF! -> 
A83: 77 | B83: ='ADVANCED RESULTS'!E12 -> ADV | C83: ='ADVANCED RESULTS'!B12 ->  | D83: ='ADVANCED RESULTS'!C12 ->  | E83: ='ADVANCED RESULTS'!D12 ->  | F83: ='ADVANCED RESULTS'!#REF! ->  | H83: 0 | I83: ='ADVANCED RESULTS'!F12 ->  | L83: ='ADVANCED RESULTS'!AD12 ->  | O83: ='ADVANCED RESULTS'!R12 ->  | R83: ='ADVANCED RESULTS'!L12 ->  | U83: ='ADVANCED RESULTS'!#REF! -> 
A84: 78 | B84: ='ADVANCED RESULTS'!E13 -> ADV | C84: ='ADVANCED RESULTS'!B13 ->  | D84: ='ADVANCED RESULTS'!C13 ->  | E84: ='ADVANCED RESULTS'!D13 ->  | F84: ='ADVANCED RESULTS'!#REF! ->  | H84: 0 | I84: ='ADVANCED RESULTS'!F13 ->  | L84: ='ADVANCED RESULTS'!AD13 ->  | O84: ='ADVANCED RESULTS'!R13 ->  | R84: ='ADVANCED RESULTS'!L13 ->  | U84: ='ADVANCED RESULTS'!#REF! -> 
A85: 79 | B85: ='ADVANCED RESULTS'!E14 -> ADV | C85: ='ADVANCED RESULTS'!B14 ->  | D85: ='ADVANCED RESULTS'!C14 ->  | E85: ='ADVANCED RESULTS'!D14 ->  | F85: ='ADVANCED RESULTS'!#REF! ->  | H85: 0 | I85: ='ADVANCED RESULTS'!F14 ->  | L85: ='ADVANCED RESULTS'!AD14 ->  | O85: ='ADVANCED RESULTS'!R14 ->  | R85: ='ADVANCED RESULTS'!L14 ->  | U85: ='ADVANCED RESULTS'!#REF! -> 
A86: 80 | B86: ='ADVANCED RESULTS'!E15 -> ADV | C86: ='ADVANCED RESULTS'!B15 ->  | D86: ='ADVANCED RESULTS'!C15 ->  | E86: ='ADVANCED RESULTS'!D15 ->  | F86: ='ADVANCED RESULTS'!#REF! ->  | H86: 0 | I86: ='ADVANCED RESULTS'!F15 ->  | L86: ='ADVANCED RESULTS'!AD15 ->  | O86: ='ADVANCED RESULTS'!R15 ->  | R86: ='ADVANCED RESULTS'!L15 ->  | U86: ='ADVANCED RESULTS'!#REF! -> 
A87: 81 | B87: ='ADVANCED RESULTS'!E16 -> ADV | C87: ='ADVANCED RESULTS'!B16 ->  | D87: ='ADVANCED RESULTS'!C16 ->  | E87: ='ADVANCED RESULTS'!D16 ->  | F87: ='ADVANCED RESULTS'!#REF! ->  | H87: 0 | I87: ='ADVANCED RESULTS'!F16 ->  | L87: ='ADVANCED RESULTS'!AD16 ->  | O87: ='ADVANCED RESULTS'!R16 ->  | R87: ='ADVANCED RESULTS'!L16 ->  | U87: ='ADVANCED RESULTS'!#REF! -> 
A88: 82 | B88: ='ADVANCED RESULTS'!E17 -> ADV | C88: ='ADVANCED RESULTS'!B17 ->  | D88: ='ADVANCED RESULTS'!C17 ->  | E88: ='ADVANCED RESULTS'!D17 ->  | F88: ='ADVANCED RESULTS'!#REF! ->  | H88: 0 | I88: ='ADVANCED RESULTS'!F17 ->  | L88: ='ADVANCED RESULTS'!AD17 ->  | O88: ='ADVANCED RESULTS'!R17 ->  | R88: ='ADVANCED RESULTS'!L17 ->  | U88: ='ADVANCED RESULTS'!#REF! -> 
A89: 83 | B89: ='ADVANCED RESULTS'!E18 -> ADV | C89: ='ADVANCED RESULTS'!B18 ->  | D89: ='ADVANCED RESULTS'!C18 ->  | E89: ='ADVANCED RESULTS'!D18 ->  | F89: ='ADVANCED RESULTS'!#REF! ->  | H89: 0 | I89: ='ADVANCED RESULTS'!F18 ->  | L89: ='ADVANCED RESULTS'!AD18 ->  | O89: ='ADVANCED RESULTS'!R18 ->  | R89: ='ADVANCED RESULTS'!L18 ->  | U89: ='ADVANCED RESULTS'!#REF! -> 
A90: 84 | B90: ='ADVANCED RESULTS'!E19 -> ADV | C90: ='ADVANCED RESULTS'!B19 ->  | D90: ='ADVANCED RESULTS'!C19 ->  | E90: ='ADVANCED RESULTS'!D19 ->  | F90: ='ADVANCED RESULTS'!#REF! ->  | H90: 0 | I90: ='ADVANCED RESULTS'!F19 ->  | L90: ='ADVANCED RESULTS'!AD19 ->  | O90: ='ADVANCED RESULTS'!R19 ->  | R90: ='ADVANCED RESULTS'!L19 ->  | U90: ='ADVANCED RESULTS'!#REF! -> 
A91: 85 | B91: ='ADVANCED RESULTS'!E20 -> ADV | C91: ='ADVANCED RESULTS'!B20 ->  | D91: ='ADVANCED RESULTS'!C20 ->  | E91: ='ADVANCED RESULTS'!D20 ->  | F91: ='ADVANCED RESULTS'!#REF! ->  | H91: 0 | I91: ='ADVANCED RESULTS'!F20 ->  | L91: ='ADVANCED RESULTS'!AD20 ->  | O91: ='ADVANCED RESULTS'!R20 ->  | R91: ='ADVANCED RESULTS'!L20 ->  | U91: ='ADVANCED RESULTS'!#REF! -> 
A92: 86 | B92: ='ADVANCED RESULTS'!E21 -> ADV | C92: ='ADVANCED RESULTS'!B21 ->  | D92: ='ADVANCED RESULTS'!C21 ->  | E92: ='ADVANCED RESULTS'!D21 ->  | F92: ='ADVANCED RESULTS'!#REF! ->  | H92: 0 | I92: ='ADVANCED RESULTS'!F21 ->  | L92: ='ADVANCED RESULTS'!AD21 ->  | O92: ='ADVANCED RESULTS'!R21 ->  | R92: ='ADVANCED RESULTS'!L21 ->  | U92: ='ADVANCED RESULTS'!#REF! -> 
A93: 87 | B93: ='ADVANCED RESULTS'!E22 -> ADV | C93: ='ADVANCED RESULTS'!B22 ->  | D93: ='ADVANCED RESULTS'!C22 ->  | E93: ='ADVANCED RESULTS'!D22 ->  | F93: ='ADVANCED RESULTS'!#REF! ->  | H93: 0 | I93: ='ADVANCED RESULTS'!F22 ->  | L93: ='ADVANCED RESULTS'!AD22 ->  | O93: ='ADVANCED RESULTS'!R22 ->  | R93: ='ADVANCED RESULTS'!L22 ->  | U93: ='ADVANCED RESULTS'!#REF! -> 
A94: 88 | B94: ='ADVANCED RESULTS'!E23 -> ADV | C94: ='ADVANCED RESULTS'!B23 ->  | D94: ='ADVANCED RESULTS'!C23 ->  | E94: ='ADVANCED RESULTS'!D23 ->  | F94: ='ADVANCED RESULTS'!#REF! ->  | H94: 0 | I94: ='ADVANCED RESULTS'!F23 ->  | L94: ='ADVANCED RESULTS'!AD23 ->  | O94: ='ADVANCED RESULTS'!R23 ->  | R94: ='ADVANCED RESULTS'!L23 ->  | U94: ='ADVANCED RESULTS'!#REF! -> 
A95: 89 | B95: ='ADVANCED RESULTS'!E24 -> ADV | C95: ='ADVANCED RESULTS'!B24 ->  | D95: ='ADVANCED RESULTS'!C24 ->  | E95: ='ADVANCED RESULTS'!D24 ->  | F95: ='ADVANCED RESULTS'!#REF! ->  | H95: 0 | I95: ='ADVANCED RESULTS'!F24 ->  | L95: ='ADVANCED RESULTS'!AD24 ->  | O95: ='ADVANCED RESULTS'!R24 ->  | R95: ='ADVANCED RESULTS'!L24 ->  | U95: ='ADVANCED RESULTS'!#REF! -> 
A96: 90 | B96: ='ADVANCED RESULTS'!E25 -> ADV | C96: ='ADVANCED RESULTS'!B25 ->  | D96: ='ADVANCED RESULTS'!C25 ->  | E96: ='ADVANCED RESULTS'!D25 ->  | F96: ='ADVANCED RESULTS'!#REF! ->  | H96: 0 | I96: ='ADVANCED RESULTS'!F25 ->  | L96: ='ADVANCED RESULTS'!AD25 ->  | O96: ='ADVANCED RESULTS'!R25 ->  | R96: ='ADVANCED RESULTS'!L25 ->  | U96: ='ADVANCED RESULTS'!#REF! -> 
B97: ='OPEN RESULTS'!E11 -> OPEN | C97: ='OPEN RESULTS'!B11 ->  | D97: ='OPEN RESULTS'!C11 ->  | E97: ='OPEN RESULTS'!D11 ->  | F97: ='OPEN RESULTS'!#REF! ->  | G97: ='OPEN RESULTS'!#REF! -> 
B98: ='OPEN RESULTS'!E12 -> OPEN | C98: ='OPEN RESULTS'!B12 ->  | D98: ='OPEN RESULTS'!C12 ->  | E98: ='OPEN RESULTS'!D12 ->  | F98: ='OPEN RESULTS'!#REF! ->  | G98: ='OPEN RESULTS'!#REF! -> 
B99: ='OPEN RESULTS'!E13 -> OPEN | C99: ='OPEN RESULTS'!B13 ->  | D99: ='OPEN RESULTS'!C13 ->  | E99: ='OPEN RESULTS'!D13 ->  | F99: ='OPEN RESULTS'!#REF! ->  | G99: ='OPEN RESULTS'!#REF! -> 
B100: ='OPEN RESULTS'!E14 -> OPEN | C100: ='OPEN RESULTS'!B14 ->  | D100: ='OPEN RESULTS'!C14 ->  | E100: ='OPEN RESULTS'!D14 ->  | F100: ='OPEN RESULTS'!#REF! ->  | G100: ='OPEN RESULTS'!#REF! -> 
B101: ='OPEN RESULTS'!E15 -> OPEN | C101: ='OPEN RESULTS'!B15 ->  | D101: ='OPEN RESULTS'!C15 ->  | E101: ='OPEN RESULTS'!D15 ->  | F101: ='OPEN RESULTS'!#REF! ->  | G101: ='OPEN RESULTS'!#REF! -> 
B102: ='OPEN RESULTS'!E16 -> OPEN | C102: ='OPEN RESULTS'!B16 ->  | D102: ='OPEN RESULTS'!C16 ->  | E102: ='OPEN RESULTS'!D16 ->  | F102: ='OPEN RESULTS'!#REF! ->  | G102: ='OPEN RESULTS'!#REF! -> 
B103: ='OPEN RESULTS'!E17 -> OPEN | C103: ='OPEN RESULTS'!B17 ->  | D103: ='OPEN RESULTS'!C17 ->  | E103: ='OPEN RESULTS'!D17 ->  | F103: ='OPEN RESULTS'!#REF! ->  | G103: ='OPEN RESULTS'!#REF! -> 
B104: ='OPEN RESULTS'!E18 -> OPEN | C104: ='OPEN RESULTS'!B18 ->  | D104: ='OPEN RESULTS'!C18 ->  | E104: ='OPEN RESULTS'!D18 ->  | F104: ='OPEN RESULTS'!#REF! ->  | G104: ='OPEN RESULTS'!#REF! -> 
B105: ='OPEN RESULTS'!E19 -> OPEN | C105: ='OPEN RESULTS'!B19 ->  | D105: ='OPEN RESULTS'!C19 ->  | E105: ='OPEN RESULTS'!D19 ->  | F105: ='OPEN RESULTS'!#REF! ->  | G105: ='OPEN RESULTS'!#REF! -> 
B106: ='OPEN RESULTS'!E20 -> OPEN | C106: ='OPEN RESULTS'!B20 ->  | D106: ='OPEN RESULTS'!C20 ->  | E106: ='OPEN RESULTS'!D20 ->  | F106: ='OPEN RESULTS'!#REF! ->  | G106: ='OPEN RESULTS'!#REF! -> 
B107: ='OPEN RESULTS'!E21 -> OPEN | C107: ='OPEN RESULTS'!B21 ->  | D107: ='OPEN RESULTS'!C21 ->  | E107: ='OPEN RESULTS'!D21 ->  | F107: ='OPEN RESULTS'!#REF! ->  | G107: ='OPEN RESULTS'!#REF! -> 
B108: ='OPEN RESULTS'!E22 -> OPEN | C108: ='OPEN RESULTS'!B22 ->  | D108: ='OPEN RESULTS'!C22 ->  | E108: ='OPEN RESULTS'!D22 ->  | F108: ='OPEN RESULTS'!#REF! ->  | G108: ='OPEN RESULTS'!#REF! -> 
B109: ='OPEN RESULTS'!E23 -> OPEN | C109: ='OPEN RESULTS'!B23 ->  | D109: ='OPEN RESULTS'!C23 ->  | E109: ='OPEN RESULTS'!D23 ->  | F109: ='OPEN RESULTS'!#REF! ->  | G109: ='OPEN RESULTS'!#REF! -> 
B110: ='OPEN RESULTS'!E24 -> OPEN | C110: ='OPEN RESULTS'!B24 ->  | D110: ='OPEN RESULTS'!C24 ->  | E110: ='OPEN RESULTS'!D24 ->  | F110: ='OPEN RESULTS'!#REF! ->  | G110: ='OPEN RESULTS'!#REF! -> 
B111: ='OPEN RESULTS'!E25 -> OPEN | C111: ='OPEN RESULTS'!B25 ->  | D111: ='OPEN RESULTS'!C25 ->  | E111: ='OPEN RESULTS'!D25 ->  | F111: ='OPEN RESULTS'!#REF! ->  | G111: ='OPEN RESULTS'!#REF! -> 
I113: 1 - Extended Trot | L113: 1 - Stop Cow | O113: 1 - Penning | R113: 1 - Drag log | U113: 1 - Working Ranch Score
I114: 2 - Transition down lope/walk/stop | L114: 2 - Box Cow | O114: 2 - Driving to Pen between marker & fence | R114: 2- Dismount, drop bridle, ground tie, pick up all 4 feet, remount | U114: 2 - Ranch Riding Score
I115: 3 - Transition to lope/lope | L115: 3 - Stop Back or Stop Rollback | O115: 3 - Set up for cutting | R115: 3 - Open, walk through, close gate | U115: 3 - Cutting Score
I116: 4 - Lope Departure and Lope | L116: 4 - First Lead Change or First Lope Circle and Lead Change | O116: 4 - Courage & Cow Sense | R116: 4 - Lope | U116: 4 - Overall Balance Score
I117: 5 - Trot Reverse | L117: 5 - First Turn | O117: 5 - Eye Appeal | R117: 5 - Trot | U117: 5 - Ranch Trail Score
I118: 6 - Stop and Back | L118: 6 - Rope Handling | O118: 6 - Working center of arena | R118: 6 - Walk | U118: 6 - Fitness & Condition

Sheet WALK TROT RESULTS
E2: Event Name: | J2: Sun Country Round UP | Y2: Judge #1 Name/Classes: | AD2: Jason Hershberger
A3: Division: | B3: WALK TROT | E3: Event Date: | J3: February 25, 208 | Y3: Judge #2 Name/Classes: | AD3: Debbie Cooper
F5: WALK TROT INDIVIDUAL CLASS RESULTS | AK5: WALK TROT ALL AROUND RESULTS
F6: RANCH | L6: RANCH | R6: RANCH | X6: RANCH | AD6: RANCH | AK6: TOTAL ALL AROUND PLACEMENT POINTS | AL6: Tie Breaker | AM6: Adjusted | AN6: EVENT ALL AROUND
F7: RIDING | L7: TRAIL | R7: CUTING | X7: REINED WORK | AD7: COW WORK | AM7: Placement
F8: Score | G8: Tie Breaker | H8: Adjusted Score for Ties | I8: Adjusted Score Major Penalty | J8: Place | K8: Placement Points | L8: Score | M8: Tie Breaker | N8: Adjusted Score for Ties | O8: Adjusted Score Major Penalty | P8: Place | Q8: Placement Points | R8: Score | S8: Tie Breaker | T8: Adjusted Score for Ties | U8: Adjusted Score Major Penalty | V8: Place | W8: Placement Points | X8: Score | Y8: Tie Breaker | Z8: Adjusted Score for Ties | AA8: Adjusted Score Major Penalty | AB8: Place | AC8: Placement Points | AD8: Score | AE8: Tie Breaker | AF8: Adjusted Score for Ties | AG8: Adjusted Score Major Penalty | AH8: Place | AI8: Placement Points | AM8: Points
A10: Back No. | B10: Last Name | C10: First Name | D10: Registered Horse Name | E10: Division
A11: =IF('Entry Information'!B11="","",'Entry Information'!B11) -> 156 | B11: =IF('Entry Information'!C11="","",'Entry Information'!C11) -> McClammy | C11: =IF('Entry Information'!D11="","",'Entry Information'!D11) -> Christine | D11: =IF('Entry Information'!E11="","",'Entry Information'!E11) -> Cattastrophe | E11: WT | F11: =IF('Entry Information'!Q11="","",'Entry Information'!Q11) -> 70.5 | H11: =IF(G11="",F11,(F11+(G11*0.001))) -> 70.5 | I11: =IF('Entry Information'!R11="",H11,H11-100) -> 70.5 | J11: =IF(I11="","",(RANK(I11,$I$11:$I$40,0))) -> 1 | K11: =IF($F11="","",(VLOOKUP($J$42,Worksheet!$A$11:$AE$41,J11+1,FALSE))) -> 5 | L11: 64.5 | N11: =IF(M11="",L11,(L11+(M11*0.001))) -> 64.5 | O11: =IF('Entry Information'!T11="",N11,N11-100) -> 64.5 | P11: =IF(O11="","",(RANK(O11,$O$11:$O$40,0))) -> 1 | Q11: =IF($L11="","",(VLOOKUP($P$42,Worksheet!$A$11:$AE$41,P11+1,FALSE))) -> 5 | R11: =IF('Entry Information'!U11="","",'Entry Information'!U11) ->  | T11: =IF(S11="",R11,(R11+(S11*0.001))) ->  | U11: =IF('Entry Information'!V11="",T11,T11-100) ->  | V11: =IF(U11="","",(RANK(U11,$U$11:$U$40,0))) ->  | W11: =IF($R11="","",(VLOOKUP($V$42,Worksheet!$A$11:$AE$41,V11+1,FALSE))) ->  | X11: =IF('Entry Information'!W11="","",'Entry Information'!W11) -> 73 | Z11: =IF(Y11="",X11,(X11+(Y11*0.001))) -> 73 | AA11: =IF('Entry Information'!X11="",Z11,Z11-100) -> 73 | AB11: =IF(AA11="","",(RANK(AA11,$AA$11:$AA$40,0))) -> 1 | AC11: =IF($X11="","",(VLOOKUP($AB$42,Worksheet!$A$11:$AE$41,AB11+1,FALSE))) -> 5 | AD11: =IF('Entry Information'!Y11="","",'Entry Information'!Y11) ->  | AF11: =IF(AE11="",AD11,(AD11+(AE11*0.001))) ->  | AG11: =IF('Entry Information'!Z11="",AF11,AF11-100) ->  | AH11: =IF(AG11="","",(RANK(AG11,$AG$11:$AG$40,0))) ->  | AI11: =IF($AD11="","",(VLOOKUP($AH$42,Worksheet!$A$11:$AE$41,AH11+1,FALSE))) ->  | AK11: =IF('NOVICE All-AROUND RESULTS'!A10="","",(SUM('NOVICE All-AROUND RESULTS'!$K10,'NOVICE All-AROUND RESULTS'!$AC10,'NOVICE All-AROUND RESULTS'!$AI10, 'NOVICE All-AROUND RESULTS'!$W10,'NOVICE All-AROUND RESULTS'!$Q10))) ->  | AM11: =IF(AL11="",AK11,(AK11+(AL11*0.001))) ->  | AN11: =IF(AM11="","",(RANK(AM11,$AM$11:$AM$40,0))) -> 
A12: =IF('Entry Information'!B12="","",'Entry Information'!B12) -> 154 | B12: =IF('Entry Information'!C12="","",'Entry Information'!C12) -> Finlayson | C12: =IF('Entry Information'!D12="","",'Entry Information'!D12) -> Megan | D12: =IF('Entry Information'!E12="","",'Entry Information'!E12) -> Freckles | E12: WT | F12: =IF('Entry Information'!Q12="","",'Entry Information'!Q12) -> 56.5 | H12: =IF(G12="",F12,(F12+(G12*0.001))) -> 56.5 | I12: =IF('Entry Information'!R12="",H12,H12-100) -> 56.5 | J12: =IF(I12="","",(RANK(I12,$I$11:$I$40,0))) -> 4 | K12: =IF($F12="","",(VLOOKUP($J$42,Worksheet!$A$11:$AE$41,J12+1,FALSE))) -> 2 | L12: 54 | N12: 54 | O12: =IF('Entry Information'!T12="",N12,N12-100) -> 54 | P12: =IF(O12="","",(RANK(O12,$O$11:$O$40,0))) -> 3 | Q12: =IF($L12="","",(VLOOKUP($P$42,Worksheet!$A$11:$AE$41,P12+1,FALSE))) -> 3 | R12: =IF('Entry Information'!U12="","",'Entry Information'!U12) -> 69 | T12: 69 | U12: =IF('Entry Information'!V12="",T12,T12-100) -> 69 | V12: =IF(U12="","",(RANK(U12,$U$11:$U$40,0))) -> 2 | W12: =IF($R12="","",(VLOOKUP($V$42,Worksheet!$A$11:$AE$41,V12+1,FALSE))) -> 2 | X12: =IF('Entry Information'!W12="","",'Entry Information'!W12) -> 70.5 | Z12: =IF(Y12="",X12,(X12+(Y12*0.001))) -> 70.5 | AA12: =IF('Entry Information'!X12="",Z12,Z12-100) -> -29.5 | AB12: =IF(AA12="","",(RANK(AA12,$AA$11:$AA$40,0))) -> 4 | AC12: =IF($X12="","",(VLOOKUP($AB$42,Worksheet!$A$11:$AE$41,AB12+1,FALSE))) -> 2 | AD12: =IF('Entry Information'!Y12="","",'Entry Information'!Y12) -> 72.5 | AF12: =IF(AE12="",AD12,(AD12+(AE12*0.001))) -> 72.5 | AG12: =IF('Entry Information'!Z12="",AF12,AF12-100) -> 72.5 | AH12: =IF(AG12="","",(RANK(AG12,$AG$11:$AG$40,0))) -> 2 | AI12: =IF($AD12="","",(VLOOKUP($AH$42,Worksheet!$A$11:$AE$41,AH12+1,FALSE))) -> 2 | AK12: =IF('NOVICE All-AROUND RESULTS'!A11="","",(SUM('NOVICE All-AROUND RESULTS'!$K11,'NOVICE All-AROUND RESULTS'!$AC11,'NOVICE All-AROUND RESULTS'!$AI11, 'NOVICE All-AROUND RESULTS'!$W11,'NOVICE All-AROUND RESULTS'!$Q11))) -> 10 | AM12: 10 | AN12: 2
A13: =IF('Entry Information'!B13="","",'Entry Information'!B13) -> 165 | B13: =IF('Entry Information'!C13="","",'Entry Information'!C13) -> Little | C13: =IF('Entry Information'!D13="","",'Entry Information'!D13) -> Laureen | D13: =IF('Entry Information'!E13="","",'Entry Information'!E13) -> Smart Little Hemi | E13: WT | F13: =IF('Entry Information'!Q13="","",'Entry Information'!Q13) -> 61.5 | H13: 61.5 | I13: =IF('Entry Information'!R13="",H13,H13-100) -> 61.5 | J13: 3 | K13: =IF($F13="","",(VLOOKUP($J$42,Worksheet!$A$11:$AE$41,J13+1,FALSE))) -> 3 | L13: 53.5 | N13: 53.5 | O13: =IF('Entry Information'!T13="",N13,N13-100) -> 53.5 | P13: 4 | Q13: =IF($L13="","",(VLOOKUP($P$42,Worksheet!$A$11:$AE$41,P13+1,FALSE))) -> 2 | R13: =IF('Entry Information'!U13="","",'Entry Information'!U13) -> 72 | T13: 72 | U13: =IF('Entry Information'!V13="",T13,T13-100) -> 72 | V13: 1 | W13: =IF($R13="","",(VLOOKUP($V$42,Worksheet!$A$11:$AE$41,V13+1,FALSE))) -> 3 | X13: =IF('Entry Information'!W13="","",'Entry Information'!W13) -> 65 | Z13: 65 | AA13: =IF('Entry Information'!X13="",Z13,Z13-100) -> -35 | AB13: 5 | AC13: =IF($X13="","",(VLOOKUP($AB$42,Worksheet!$A$11:$AE$41,AB13+1,FALSE))) -> 1 | AD13: =IF('Entry Information'!Y13="","",'Entry Information'!Y13) -> 73 | AF13: 73 | AG13: =IF('Entry Information'!Z13="",AF13,AF13-100) -> 73 | AH13: 1 | AI13: =IF($AD13="","",(VLOOKUP($AH$42,Worksheet!$A$11:$AE$41,AH13+1,FALSE))) -> 3 | AK13: =IF('NOVICE All-AROUND RESULTS'!A12="","",(SUM('NOVICE All-AROUND RESULTS'!$K12,'NOVICE All-AROUND RESULTS'!$AC12,'NOVICE All-AROUND RESULTS'!$AI12, 'NOVICE All-AROUND RESULTS'!$W12,'NOVICE All-AROUND RESULTS'!$Q12))) -> 11 | AM13: 11 | AN13: 1
A14: =IF('Entry Information'!B14="","",'Entry Information'!B14) -> 164 | B14: =IF('Entry Information'!C14="","",'Entry Information'!C14) -> VanStaalduien | C14: =IF('Entry Information'!D14="","",'Entry Information'!D14) -> Ian | D14: =IF('Entry Information'!E14="","",'Entry Information'!E14) -> Meradas Truckin Chex | E14: WT | F14: =IF('Entry Information'!Q14="","",'Entry Information'!Q14) -> 67 | H14: 67 | I14: =IF('Entry Information'!R14="",H14,H14-100) -> 67 | J14: 2 | K14: =IF($F14="","",(VLOOKUP($J$42,Worksheet!$A$11:$AE$41,J14+1,FALSE))) -> 4 | L14: 41.5 | N14: 41.5 | O14: =IF('Entry Information'!T14="",N14,N14-100) -> 41.5 | P14: 5 | Q14: =IF($L14="","",(VLOOKUP($P$42,Worksheet!$A$11:$AE$41,P14+1,FALSE))) -> 1 | R14: =IF('Entry Information'!U14="","",'Entry Information'!U14) -> 66 | T14: 66 | U14: =IF('Entry Information'!V14="",T14,T14-100) -> 66 | V14: 3 | W14: =IF($R14="","",(VLOOKUP($V$42,Worksheet!$A$11:$AE$41,V14+1,FALSE))) -> 1 | X14: =IF('Entry Information'!W14="","",'Entry Information'!W14) -> 72.5 | Z14: 72.5 | AA14: =IF('Entry Information'!X14="",Z14,Z14-100) -> 72.5 | AB14: 2 | AC14: =IF($X14="","",(VLOOKUP($AB$42,Worksheet!$A$11:$AE$41,AB14+1,FALSE))) -> 4 | AD14: =IF('Entry Information'!Y14="","",'Entry Information'!Y14) -> 72 | AF14: 72 | AG14: =IF('Entry Information'!Z14="",AF14,AF14-100) -> 72 | AH14: 3 | AI14: =IF($AD14="","",(VLOOKUP($AH$42,Worksheet!$A$11:$AE$41,AH14+1,FALSE))) -> 1 | AK14: =IF('NOVICE All-AROUND RESULTS'!A13="","",(SUM('NOVICE All-AROUND RESULTS'!$K13,'NOVICE All-AROUND RESULTS'!$AC13,'NOVICE All-AROUND RESULTS'!$AI13, 'NOVICE All-AROUND RESULTS'!$W13,'NOVICE All-AROUND RESULTS'!$Q13))) -> 9 | AM14: 9 | AN14: 3
A15: =IF('Entry Information'!B15="","",'Entry Information'!B15) -> 157 | B15: =IF('Entry Information'!C15="","",'Entry Information'!C15) -> Barthen | C15: =IF('Entry Information'!D15="","",'Entry Information'!D15) -> Leigh | D15: =IF('Entry Information'!E15="","",'Entry Information'!E15) ->  | E15: WT | F15: =IF('Entry Information'!Q15="","",'Entry Information'!Q15) -> 61.5 | H15: 61.5 | I15: =IF('Entry Information'!R15="",H15,H15-100) -> -38.5 | J15: 5 | K15: =IF($F15="","",(VLOOKUP($J$42,Worksheet!$A$11:$AE$41,J15+1,FALSE))) -> 1 | L15: 60 | N15: 60 | O15: =IF('Entry Information'!T15="",N15,N15-100) -> 60 | P15: 2 | Q15: =IF($L15="","",(VLOOKUP($P$42,Worksheet!$A$11:$AE$41,P15+1,FALSE))) -> 4 | R15: =IF('Entry Information'!U15="","",'Entry Information'!U15) ->  | U15: =IF('Entry Information'!V15="",T15,T15-100) ->  | W15: =IF($R15="","",(VLOOKUP($V$42,Worksheet!$A$11:$AE$41,V15+1,FALSE))) ->  | X15: =IF('Entry Information'!W15="","",'Entry Information'!W15) -> 67 | Z15: 67 | AA15: =IF('Entry Information'!X15="",Z15,Z15-100) -> 67 | AB15: 3 | AC15: =IF($X15="","",(VLOOKUP($AB$42,Worksheet!$A$11:$AE$41,AB15+1,FALSE))) -> 3 | AD15: =IF('Entry Information'!Y15="","",'Entry Information'!Y15) ->  | AG15: =IF('Entry Information'!Z15="",AF15,AF15-100) ->  | AI15: =IF($AD15="","",(VLOOKUP($AH$42,Worksheet!$A$11:$AE$41,AH15+1,FALSE))) ->  | AK15: =IF('NOVICE All-AROUND RESULTS'!A14="","",(SUM('NOVICE All-AROUND RESULTS'!$K14,'NOVICE All-AROUND RESULTS'!$AC14,'NOVICE All-AROUND RESULTS'!$AI14, 'NOVICE All-AROUND RESULTS'!$W14,'NOVICE All-AROUND RESULTS'!$Q14))) -> 
A16: =IF('Entry Information'!B16="","",'Entry Information'!B16) ->  | B16: =IF('Entry Information'!C16="","",'Entry Information'!C16) ->  | C16: =IF('Entry Information'!D16="","",'Entry Information'!D16) ->  | D16: =IF('Entry Information'!E16="","",'Entry Information'!E16) ->  | F16: =IF('Entry Information'!Q16="","",'Entry Information'!Q16) ->  | I16: =IF('Entry Information'!R16="",H16,H16-100) ->  | K16: =IF($F16="","",(VLOOKUP($J$42,Worksheet!$A$11:$AE$41,J16+1,FALSE))) ->  | L16: =IF('Entry Information'!S16="","",'Entry Information'!S16) ->  | O16: =IF('Entry Information'!T16="",N16,N16-100) ->  | Q16: =IF($L16="","",(VLOOKUP($P$42,Worksheet!$A$11:$AE$41,P16+1,FALSE))) ->  | R16: =IF('Entry Information'!U16="","",'Entry Information'!U16) ->  | U16: =IF('Entry Information'!V16="",T16,T16-100) ->  | W16: =IF($R16="","",(VLOOKUP($V$42,Worksheet!$A$11:$AE$41,V16+1,FALSE))) ->  | X16: =IF('Entry Information'!W16="","",'Entry Information'!W16) ->  | AA16: =IF('Entry Information'!X16="",Z16,Z16-100) ->  | AC16: =IF($X16="","",(VLOOKUP($AB$42,Worksheet!$A$11:$AE$41,AB16+1,FALSE))) ->  | AD16: =IF('Entry Information'!Y16="","",'Entry Information'!Y16) ->  | AG16: =IF('Entry Information'!Z16="",AF16,AF16-100) ->  | AI16: =IF($AD16="","",(VLOOKUP($AH$42,Worksheet!$A$11:$AE$41,AH16+1,FALSE))) ->  | AK16: =IF('NOVICE All-AROUND RESULTS'!A15="","",(SUM('NOVICE All-AROUND RESULTS'!$K15,'NOVICE All-AROUND RESULTS'!$AC15,'NOVICE All-AROUND RESULTS'!$AI15, 'NOVICE All-AROUND RESULTS'!$W15,'NOVICE All-AROUND RESULTS'!$Q15))) -> 
A17: =IF('Entry Information'!B17="","",'Entry Information'!B17) ->  | B17: =IF('Entry Information'!C17="","",'Entry Information'!C17) ->  | C17: =IF('Entry Information'!D17="","",'Entry Information'!D17) ->  | D17: =IF('Entry Information'!E17="","",'Entry Information'!E17) ->  | E17: NOV | F17: =IF('Entry Information'!Q17="","",'Entry Information'!Q17) ->  | I17: =IF('Entry Information'!R17="",H17,H17-100) ->  | K17: =IF($F17="","",(VLOOKUP($J$42,Worksheet!$A$11:$AE$41,J17+1,FALSE))) ->  | L17: =IF('Entry Information'!S17="","",'Entry Information'!S17) ->  | O17: =IF('Entry Information'!T17="",N17,N17-100) ->  | Q17: =IF($L17="","",(VLOOKUP($P$42,Worksheet!$A$11:$AE$41,P17+1,FALSE))) ->  | R17: =IF('Entry Information'!U17="","",'Entry Information'!U17) ->  | U17: =IF('Entry Information'!V17="",T17,T17-100) ->  | W17: =IF($R17="","",(VLOOKUP($V$42,Worksheet!$A$11:$AE$41,V17+1,FALSE))) ->  | X17: =IF('Entry Information'!W17="","",'Entry Information'!W17) ->  | AA17: =IF('Entry Information'!X17="",Z17,Z17-100) ->  | AC17: =IF($X17="","",(VLOOKUP($AB$42,Worksheet!$A$11:$AE$41,AB17+1,FALSE))) ->  | AD17: =IF('Entry Information'!Y17="","",'Entry Information'!Y17) ->  | AG17: =IF('Entry Information'!Z17="",AF17,AF17-100) ->  | AI17: =IF($AD17="","",(VLOOKUP($AH$42,Worksheet!$A$11:$AE$41,AH17+1,FALSE))) ->  | AK17: =IF('NOVICE All-AROUND RESULTS'!A16="","",(SUM('NOVICE All-AROUND RESULTS'!$K16,'NOVICE All-AROUND RESULTS'!$AC16,'NOVICE All-AROUND RESULTS'!$AI16, 'NOVICE All-AROUND RESULTS'!$W16,'NOVICE All-AROUND RESULTS'!$Q16))) -> 
A18: =IF('Entry Information'!B18="","",'Entry Information'!B18) ->  | B18: =IF('Entry Information'!C18="","",'Entry Information'!C18) ->  | C18: =IF('Entry Information'!D18="","",'Entry Information'!D18) ->  | D18: =IF('Entry Information'!E18="","",'Entry Information'!E18) ->  | E18: NOV | F18: =IF('Entry Information'!Q18="","",'Entry Information'!Q18) ->  | I18: =IF('Entry Information'!R18="",H18,H18-100) ->  | K18: =IF($F18="","",(VLOOKUP($J$42,Worksheet!$A$11:$AE$41,J18+1,FALSE))) ->  | L18: =IF('Entry Information'!S18="","",'Entry Information'!S18) ->  | O18: =IF('Entry Information'!T18="",N18,N18-100) ->  | Q18: =IF($L18="","",(VLOOKUP($P$42,Worksheet!$A$11:$AE$41,P18+1,FALSE))) ->  | R18: =IF('Entry Information'!U18="","",'Entry Information'!U18) ->  | U18: =IF('Entry Information'!V18="",T18,T18-100) ->  | W18: =IF($R18="","",(VLOOKUP($V$42,Worksheet!$A$11:$AE$41,V18+1,FALSE))) ->  | X18: =IF('Entry Information'!W18="","",'Entry Information'!W18) ->  | AA18: =IF('Entry Information'!X18="",Z18,Z18-100) ->  | AC18: =IF($X18="","",(VLOOKUP($AB$42,Worksheet!$A$11:$AE$41,AB18+1,FALSE))) ->  | AD18: =IF('Entry Information'!Y18="","",'Entry Information'!Y18) ->  | AG18: =IF('Entry Information'!Z18="",AF18,AF18-100) ->  | AI18: =IF($AD18="","",(VLOOKUP($AH$42,Worksheet!$A$11:$AE$41,AH18+1,FALSE))) ->  | AK18: =IF('NOVICE All-AROUND RESULTS'!A17="","",(SUM('NOVICE All-AROUND RESULTS'!$K17,'NOVICE All-AROUND RESULTS'!$AC17,'NOVICE All-AROUND RESULTS'!$AI17, 'NOVICE All-AROUND RESULTS'!$W17,'NOVICE All-AROUND RESULTS'!$Q17))) -> 
A19: =IF('Entry Information'!B19="","",'Entry Information'!B19) ->  | B19: =IF('Entry Information'!C19="","",'Entry Information'!C19) ->  | C19: =IF('Entry Information'!D19="","",'Entry Information'!D19) ->  | D19: =IF('Entry Information'!E19="","",'Entry Information'!E19) ->  | E19: NOV | F19: =IF('Entry Information'!Q19="","",'Entry Information'!Q19) ->  | I19: =IF('Entry Information'!R19="",H19,H19-100) ->  | K19: =IF($F19="","",(VLOOKUP($J$42,Worksheet!$A$11:$AE$41,J19+1,FALSE))) ->  | L19: =IF('Entry Information'!S19="","",'Entry Information'!S19) ->  | O19: =IF('Entry Information'!T19="",N19,N19-100) ->  | Q19: =IF($L19="","",(VLOOKUP($P$42,Worksheet!$A$11:$AE$41,P19+1,FALSE))) ->  | R19: =IF('Entry Information'!U19="","",'Entry Information'!U19) ->  | U19: =IF('Entry Information'!V19="",T19,T19-100) ->  | W19: =IF($R19="","",(VLOOKUP($V$42,Worksheet!$A$11:$AE$41,V19+1,FALSE))) ->  | X19: =IF('Entry Information'!W19="","",'Entry Information'!W19) ->  | AA19: =IF('Entry Information'!X19="",Z19,Z19-100) ->  | AC19: =IF($X19="","",(VLOOKUP($AB$42,Worksheet!$A$11:$AE$41,AB19+1,FALSE))) ->  | AD19: =IF('Entry Information'!Y19="","",'Entry Information'!Y19) ->  | AG19: =IF('Entry Information'!Z19="",AF19,AF19-100) ->  | AI19: =IF($AD19="","",(VLOOKUP($AH$42,Worksheet!$A$11:$AE$41,AH19+1,FALSE))) ->  | AK19: =IF('NOVICE All-AROUND RESULTS'!A18="","",(SUM('NOVICE All-AROUND RESULTS'!$K18,'NOVICE All-AROUND RESULTS'!$AC18,'NOVICE All-AROUND RESULTS'!$AI18, 'NOVICE All-AROUND RESULTS'!$W18,'NOVICE All-AROUND RESULTS'!$Q18))) -> 
A20: =IF('Entry Information'!B20="","",'Entry Information'!B20) ->  | B20: =IF('Entry Information'!C20="","",'Entry Information'!C20) ->  | C20: =IF('Entry Information'!D20="","",'Entry Information'!D20) ->  | D20: =IF('Entry Information'!E20="","",'Entry Information'!E20) ->  | E20: NOV | F20: =IF('Entry Information'!Q20="","",'Entry Information'!Q20) ->  | I20: =IF('Entry Information'!R20="",H20,H20-100) ->  | K20: =IF($F20="","",(VLOOKUP($J$42,Worksheet!$A$11:$AE$41,J20+1,FALSE))) ->  | L20: =IF('Entry Information'!S20="","",'Entry Information'!S20) ->  | O20: =IF('Entry Information'!T20="",N20,N20-100) ->  | Q20: =IF($L20="","",(VLOOKUP($P$42,Worksheet!$A$11:$AE$41,P20+1,FALSE))) ->  | R20: =IF('Entry Information'!U20="","",'Entry Information'!U20) ->  | U20: =IF('Entry Information'!V20="",T20,T20-100) ->  | W20: =IF($R20="","",(VLOOKUP($V$42,Worksheet!$A$11:$AE$41,V20+1,FALSE))) ->  | X20: =IF('Entry Information'!W20="","",'Entry Information'!W20) ->  | AA20: =IF('Entry Information'!X20="",Z20,Z20-100) ->  | AC20: =IF($X20="","",(VLOOKUP($AB$42,Worksheet!$A$11:$AE$41,AB20+1,FALSE))) ->  | AD20: =IF('Entry Information'!Y20="","",'Entry Information'!Y20) ->  | AG20: =IF('Entry Information'!Z20="",AF20,AF20-100) ->  | AI20: =IF($AD20="","",(VLOOKUP($AH$42,Worksheet!$A$11:$AE$41,AH20+1,FALSE))) ->  | AK20: =IF('NOVICE All-AROUND RESULTS'!A19="","",(SUM('NOVICE All-AROUND RESULTS'!$K19,'NOVICE All-AROUND RESULTS'!$AC19,'NOVICE All-AROUND RESULTS'!$AI19, 'NOVICE All-AROUND RESULTS'!$W19,'NOVICE All-AROUND RESULTS'!$Q19))) -> 
A21: =IF('Entry Information'!B21="","",'Entry Information'!B21) ->  | B21: =IF('Entry Information'!C21="","",'Entry Information'!C21) ->  | C21: =IF('Entry Information'!D21="","",'Entry Information'!D21) ->  | D21: =IF('Entry Information'!E21="","",'Entry Information'!E21) ->  | E21: NOV | F21: =IF('Entry Information'!Q21="","",'Entry Information'!Q21) ->  | I21: =IF('Entry Information'!R21="",H21,H21-100) ->  | K21: =IF($F21="","",(VLOOKUP($J$42,Worksheet!$A$11:$AE$41,J21+1,FALSE))) ->  | L21: =IF('Entry Information'!S21="","",'Entry Information'!S21) ->  | O21: =IF('Entry Information'!T21="",N21,N21-100) ->  | Q21: =IF($L21="","",(VLOOKUP($P$42,Worksheet!$A$11:$AE$41,P21+1,FALSE))) ->  | R21: =IF('Entry Information'!U21="","",'Entry Information'!U21) ->  | U21: =IF('Entry Information'!V21="",T21,T21-100) ->  | W21: =IF($R21="","",(VLOOKUP($V$42,Worksheet!$A$11:$AE$41,V21+1,FALSE))) ->  | X21: =IF('Entry Information'!W21="","",'Entry Information'!W21) ->  | AA21: =IF('Entry Information'!X21="",Z21,Z21-100) ->  | AC21: =IF($X21="","",(VLOOKUP($AB$42,Worksheet!$A$11:$AE$41,AB21+1,FALSE))) ->  | AD21: =IF('Entry Information'!Y21="","",'Entry Information'!Y21) ->  | AG21: =IF('Entry Information'!Z21="",AF21,AF21-100) ->  | AI21: =IF($AD21="","",(VLOOKUP($AH$42,Worksheet!$A$11:$AE$41,AH21+1,FALSE))) ->  | AK21: =IF('NOVICE All-AROUND RESULTS'!A20="","",(SUM('NOVICE All-AROUND RESULTS'!$K20,'NOVICE All-AROUND RESULTS'!$AC20,'NOVICE All-AROUND RESULTS'!$AI20, 'NOVICE All-AROUND RESULTS'!$W20,'NOVICE All-AROUND RESULTS'!$Q20))) -> 
A22: =IF('Entry Information'!B22="","",'Entry Information'!B22) ->  | B22: =IF('Entry Information'!C22="","",'Entry Information'!C22) ->  | C22: =IF('Entry Information'!D22="","",'Entry Information'!D22) ->  | D22: =IF('Entry Information'!E22="","",'Entry Information'!E22) ->  | E22: NOV | F22: =IF('Entry Information'!Q22="","",'Entry Information'!Q22) ->  | I22: =IF('Entry Information'!R22="",H22,H22-100) ->  | K22: =IF($F22="","",(VLOOKUP($J$42,Worksheet!$A$11:$AE$41,J22+1,FALSE))) ->  | L22: =IF('Entry Information'!S22="","",'Entry Information'!S22) ->  | O22: =IF('Entry Information'!T22="",N22,N22-100) ->  | Q22: =IF($L22="","",(VLOOKUP($P$42,Worksheet!$A$11:$AE$41,P22+1,FALSE))) ->  | R22: =IF('Entry Information'!U22="","",'Entry Information'!U22) ->  | U22: =IF('Entry Information'!V22="",T22,T22-100) ->  | W22: =IF($R22="","",(VLOOKUP($V$42,Worksheet!$A$11:$AE$41,V22+1,FALSE))) ->  | X22: =IF('Entry Information'!W22="","",'Entry Information'!W22) ->  | AA22: =IF('Entry Information'!X22="",Z22,Z22-100) ->  | AC22: =IF($X22="","",(VLOOKUP($AB$42,Worksheet!$A$11:$AE$41,AB22+1,FALSE))) ->  | AD22: =IF('Entry Information'!Y22="","",'Entry Information'!Y22) ->  | AG22: =IF('Entry Information'!Z22="",AF22,AF22-100) ->  | AI22: =IF($AD22="","",(VLOOKUP($AH$42,Worksheet!$A$11:$AE$41,AH22+1,FALSE))) ->  | AK22: =IF('NOVICE All-AROUND RESULTS'!A21="","",(SUM('NOVICE All-AROUND RESULTS'!$K21,'NOVICE All-AROUND RESULTS'!$AC21,'NOVICE All-AROUND RESULTS'!$AI21, 'NOVICE All-AROUND RESULTS'!$W21,'NOVICE All-AROUND RESULTS'!$Q21))) -> 
A23: =IF('Entry Information'!B23="","",'Entry Information'!B23) ->  | B23: =IF('Entry Information'!C23="","",'Entry Information'!C23) ->  | C23: =IF('Entry Information'!D23="","",'Entry Information'!D23) ->  | D23: =IF('Entry Information'!E23="","",'Entry Information'!E23) ->  | E23: NOV | F23: =IF('Entry Information'!Q23="","",'Entry Information'!Q23) ->  | I23: =IF('Entry Information'!R23="",H23,H23-100) ->  | K23: =IF($F23="","",(VLOOKUP($J$42,Worksheet!$A$11:$AE$41,J23+1,FALSE))) ->  | L23: =IF('Entry Information'!S23="","",'Entry Information'!S23) ->  | O23: =IF('Entry Information'!T23="",N23,N23-100) ->  | Q23: =IF($L23="","",(VLOOKUP($P$42,Worksheet!$A$11:$AE$41,P23+1,FALSE))) ->  | R23: =IF('Entry Information'!U23="","",'Entry Information'!U23) ->  | U23: =IF('Entry Information'!V23="",T23,T23-100) ->  | W23: =IF($R23="","",(VLOOKUP($V$42,Worksheet!$A$11:$AE$41,V23+1,FALSE))) ->  | X23: =IF('Entry Information'!W23="","",'Entry Information'!W23) ->  | AA23: =IF('Entry Information'!X23="",Z23,Z23-100) ->  | AC23: =IF($X23="","",(VLOOKUP($AB$42,Worksheet!$A$11:$AE$41,AB23+1,FALSE))) ->  | AD23: =IF('Entry Information'!Y23="","",'Entry Information'!Y23) ->  | AG23: =IF('Entry Information'!Z23="",AF23,AF23-100) ->  | AI23: =IF($AD23="","",(VLOOKUP($AH$42,Worksheet!$A$11:$AE$41,AH23+1,FALSE))) ->  | AK23: =IF('NOVICE All-AROUND RESULTS'!A22="","",(SUM('NOVICE All-AROUND RESULTS'!$K22,'NOVICE All-AROUND RESULTS'!$AC22,'NOVICE All-AROUND RESULTS'!$AI22, 'NOVICE All-AROUND RESULTS'!$W22,'NOVICE All-AROUND RESULTS'!$Q22))) -> 
A24: =IF('Entry Information'!B24="","",'Entry Information'!B24) ->  | B24: =IF('Entry Information'!C24="","",'Entry Information'!C24) ->  | C24: =IF('Entry Information'!D24="","",'Entry Information'!D24) ->  | D24: =IF('Entry Information'!E24="","",'Entry Information'!E24) ->  | E24: NOV | F24: =IF('Entry Information'!Q24="","",'Entry Information'!Q24) ->  | I24: =IF('Entry Information'!R24="",H24,H24-100) ->  | K24: =IF($F24="","",(VLOOKUP($J$42,Worksheet!$A$11:$AE$41,J24+1,FALSE))) ->  | L24: =IF('Entry Information'!S24="","",'Entry Information'!S24) ->  | O24: =IF('Entry Information'!T24="",N24,N24-100) ->  | Q24: =IF($L24="","",(VLOOKUP($P$42,Worksheet!$A$11:$AE$41,P24+1,FALSE))) ->  | R24: =IF('Entry Information'!U24="","",'Entry Information'!U24) ->  | U24: =IF('Entry Information'!V24="",T24,T24-100) ->  | W24: =IF($R24="","",(VLOOKUP($V$42,Worksheet!$A$11:$AE$41,V24+1,FALSE))) ->  | X24: =IF('Entry Information'!W24="","",'Entry Information'!W24) ->  | AA24: =IF('Entry Information'!X24="",Z24,Z24-100) ->  | AC24: =IF($X24="","",(VLOOKUP($AB$42,Worksheet!$A$11:$AE$41,AB24+1,FALSE))) ->  | AD24: =IF('Entry Information'!Y24="","",'Entry Information'!Y24) ->  | AG24: =IF('Entry Information'!Z24="",AF24,AF24-100) ->  | AI24: =IF($AD24="","",(VLOOKUP($AH$42,Worksheet!$A$11:$AE$41,AH24+1,FALSE))) ->  | AK24: =IF('NOVICE All-AROUND RESULTS'!A23="","",(SUM('NOVICE All-AROUND RESULTS'!$K23,'NOVICE All-AROUND RESULTS'!$AC23,'NOVICE All-AROUND RESULTS'!$AI23, 'NOVICE All-AROUND RESULTS'!$W23,'NOVICE All-AROUND RESULTS'!$Q23))) -> 
A25: =IF('Entry Information'!B25="","",'Entry Information'!B25) ->  | B25: =IF('Entry Information'!C25="","",'Entry Information'!C25) ->  | C25: =IF('Entry Information'!D25="","",'Entry Information'!D25) ->  | D25: =IF('Entry Information'!E25="","",'Entry Information'!E25) ->  | E25: NOV | F25: =IF('Entry Information'!Q25="","",'Entry Information'!Q25) ->  | I25: =IF('Entry Information'!R25="",H25,H25-100) ->  | K25: =IF($F25="","",(VLOOKUP($J$42,Worksheet!$A$11:$AE$41,J25+1,FALSE))) ->  | L25: =IF('Entry Information'!S25="","",'Entry Information'!S25) ->  | O25: =IF('Entry Information'!T25="",N25,N25-100) ->  | Q25: =IF($L25="","",(VLOOKUP($P$42,Worksheet!$A$11:$AE$41,P25+1,FALSE))) ->  | R25: =IF('Entry Information'!U25="","",'Entry Information'!U25) ->  | U25: =IF('Entry Information'!V25="",T25,T25-100) ->  | W25: =IF($R25="","",(VLOOKUP($V$42,Worksheet!$A$11:$AE$41,V25+1,FALSE))) ->  | X25: =IF('Entry Information'!W25="","",'Entry Information'!W25) ->  | AA25: =IF('Entry Information'!X25="",Z25,Z25-100) ->  | AC25: =IF($X25="","",(VLOOKUP($AB$42,Worksheet!$A$11:$AE$41,AB25+1,FALSE))) ->  | AD25: =IF('Entry Information'!Y25="","",'Entry Information'!Y25) ->  | AG25: =IF('Entry Information'!Z25="",AF25,AF25-100) ->  | AI25: =IF($AD25="","",(VLOOKUP($AH$42,Worksheet!$A$11:$AE$41,AH25+1,FALSE))) ->  | AK25: =IF('NOVICE All-AROUND RESULTS'!A24="","",(SUM('NOVICE All-AROUND RESULTS'!$K24,'NOVICE All-AROUND RESULTS'!$AC24,'NOVICE All-AROUND RESULTS'!$AI24, 'NOVICE All-AROUND RESULTS'!$W24,'NOVICE All-AROUND RESULTS'!$Q24))) -> 
A26: =IF('Entry Information'!B26="","",'Entry Information'!B26) ->  | B26: =IF('Entry Information'!C26="","",'Entry Information'!C26) ->  | C26: =IF('Entry Information'!D26="","",'Entry Information'!D26) ->  | D26: =IF('Entry Information'!E26="","",'Entry Information'!E26) ->  | E26: NOV | F26: =IF('Entry Information'!Q26="","",'Entry Information'!Q26) ->  | I26: =IF('Entry Information'!R26="",H26,H26-100) ->  | K26: =IF($F26="","",(VLOOKUP($J$42,Worksheet!$A$11:$AE$41,J26+1,FALSE))) ->  | L26: =IF('Entry Information'!S26="","",'Entry Information'!S26) ->  | O26: =IF('Entry Information'!T26="",N26,N26-100) ->  | Q26: =IF($L26="","",(VLOOKUP($P$42,Worksheet!$A$11:$AE$41,P26+1,FALSE))) ->  | R26: =IF('Entry Information'!U26="","",'Entry Information'!U26) ->  | U26: =IF('Entry Information'!V26="",T26,T26-100) ->  | W26: =IF($R26="","",(VLOOKUP($V$42,Worksheet!$A$11:$AE$41,V26+1,FALSE))) ->  | X26: =IF('Entry Information'!W26="","",'Entry Information'!W26) ->  | AA26: =IF('Entry Information'!X26="",Z26,Z26-100) ->  | AC26: =IF($X26="","",(VLOOKUP($AB$42,Worksheet!$A$11:$AE$41,AB26+1,FALSE))) ->  | AD26: =IF('Entry Information'!Y26="","",'Entry Information'!Y26) ->  | AG26: =IF('Entry Information'!Z26="",AF26,AF26-100) ->  | AI26: =IF($AD26="","",(VLOOKUP($AH$42,Worksheet!$A$11:$AE$41,AH26+1,FALSE))) ->  | AK26: =IF('NOVICE All-AROUND RESULTS'!A25="","",(SUM('NOVICE All-AROUND RESULTS'!$K25,'NOVICE All-AROUND RESULTS'!$AC25,'NOVICE All-AROUND RESULTS'!$AI25, 'NOVICE All-AROUND RESULTS'!$W25,'NOVICE All-AROUND RESULTS'!$Q25))) -> 
A27: =IF('Entry Information'!B27="","",'Entry Information'!B27) ->  | B27: =IF('Entry Information'!C27="","",'Entry Information'!C27) ->  | C27: =IF('Entry Information'!D27="","",'Entry Information'!D27) ->  | D27: =IF('Entry Information'!E27="","",'Entry Information'!E27) ->  | E27: NOV | F27: =IF('Entry Information'!Q27="","",'Entry Information'!Q27) ->  | I27: =IF('Entry Information'!R27="",H27,H27-100) ->  | K27: =IF($F27="","",(VLOOKUP($J$42,Worksheet!$A$11:$AE$41,J27+1,FALSE))) ->  | L27: =IF('Entry Information'!S27="","",'Entry Information'!S27) ->  | O27: =IF('Entry Information'!T27="",N27,N27-100) ->  | Q27: =IF($L27="","",(VLOOKUP($P$42,Worksheet!$A$11:$AE$41,P27+1,FALSE))) ->  | R27: =IF('Entry Information'!U27="","",'Entry Information'!U27) ->  | U27: =IF('Entry Information'!V27="",T27,T27-100) ->  | W27: =IF($R27="","",(VLOOKUP($V$42,Worksheet!$A$11:$AE$41,V27+1,FALSE))) ->  | X27: =IF('Entry Information'!W27="","",'Entry Information'!W27) ->  | AA27: =IF('Entry Information'!X27="",Z27,Z27-100) ->  | AC27: =IF($X27="","",(VLOOKUP($AB$42,Worksheet!$A$11:$AE$41,AB27+1,FALSE))) ->  | AD27: =IF('Entry Information'!Y27="","",'Entry Information'!Y27) ->  | AG27: =IF('Entry Information'!Z27="",AF27,AF27-100) ->  | AI27: =IF($AD27="","",(VLOOKUP($AH$42,Worksheet!$A$11:$AE$41,AH27+1,FALSE))) ->  | AK27: =IF('NOVICE All-AROUND RESULTS'!A26="","",(SUM('NOVICE All-AROUND RESULTS'!$K26,'NOVICE All-AROUND RESULTS'!$AC26,'NOVICE All-AROUND RESULTS'!$AI26, 'NOVICE All-AROUND RESULTS'!$W26,'NOVICE All-AROUND RESULTS'!$Q26))) -> 
A28: =IF('Entry Information'!B28="","",'Entry Information'!B28) ->  | B28: =IF('Entry Information'!C28="","",'Entry Information'!C28) ->  | C28: =IF('Entry Information'!D28="","",'Entry Information'!D28) ->  | D28: =IF('Entry Information'!E28="","",'Entry Information'!E28) ->  | E28: NOV | F28: =IF('Entry Information'!Q28="","",'Entry Information'!Q28) ->  | I28: =IF('Entry Information'!R28="",H28,H28-100) ->  | K28: =IF($F28="","",(VLOOKUP($J$42,Worksheet!$A$11:$AE$41,J28+1,FALSE))) ->  | L28: =IF('Entry Information'!S28="","",'Entry Information'!S28) ->  | O28: =IF('Entry Information'!T28="",N28,N28-100) ->  | Q28: =IF($L28="","",(VLOOKUP($P$42,Worksheet!$A$11:$AE$41,P28+1,FALSE))) ->  | R28: =IF('Entry Information'!U28="","",'Entry Information'!U28) ->  | U28: =IF('Entry Information'!V28="",T28,T28-100) ->  | W28: =IF($R28="","",(VLOOKUP($V$42,Worksheet!$A$11:$AE$41,V28+1,FALSE))) ->  | X28: =IF('Entry Information'!W28="","",'Entry Information'!W28) ->  | AA28: =IF('Entry Information'!X28="",Z28,Z28-100) ->  | AC28: =IF($X28="","",(VLOOKUP($AB$42,Worksheet!$A$11:$AE$41,AB28+1,FALSE))) ->  | AD28: =IF('Entry Information'!Y28="","",'Entry Information'!Y28) ->  | AG28: =IF('Entry Information'!Z28="",AF28,AF28-100) ->  | AI28: =IF($AD28="","",(VLOOKUP($AH$42,Worksheet!$A$11:$AE$41,AH28+1,FALSE))) ->  | AK28: =IF('NOVICE All-AROUND RESULTS'!A27="","",(SUM('NOVICE All-AROUND RESULTS'!$K27,'NOVICE All-AROUND RESULTS'!$AC27,'NOVICE All-AROUND RESULTS'!$AI27, 'NOVICE All-AROUND RESULTS'!$W27,'NOVICE All-AROUND RESULTS'!$Q27))) -> 
A29: =IF('Entry Information'!B29="","",'Entry Information'!B29) ->  | B29: =IF('Entry Information'!C29="","",'Entry Information'!C29) ->  | C29: =IF('Entry Information'!D29="","",'Entry Information'!D29) ->  | D29: =IF('Entry Information'!E29="","",'Entry Information'!E29) ->  | E29: NOV | F29: =IF('Entry Information'!Q29="","",'Entry Information'!Q29) ->  | I29: =IF('Entry Information'!R29="",H29,H29-100) ->  | K29: =IF($F29="","",(VLOOKUP($J$42,Worksheet!$A$11:$AE$41,J29+1,FALSE))) ->  | L29: =IF('Entry Information'!S29="","",'Entry Information'!S29) ->  | O29: =IF('Entry Information'!T29="",N29,N29-100) ->  | Q29: =IF($L29="","",(VLOOKUP($P$42,Worksheet!$A$11:$AE$41,P29+1,FALSE))) ->  | R29: =IF('Entry Information'!U29="","",'Entry Information'!U29) ->  | U29: =IF('Entry Information'!V29="",T29,T29-100) ->  | W29: =IF($R29="","",(VLOOKUP($V$42,Worksheet!$A$11:$AE$41,V29+1,FALSE))) ->  | X29: =IF('Entry Information'!W29="","",'Entry Information'!W29) ->  | AA29: =IF('Entry Information'!X29="",Z29,Z29-100) ->  | AC29: =IF($X29="","",(VLOOKUP($AB$42,Worksheet!$A$11:$AE$41,AB29+1,FALSE))) ->  | AD29: =IF('Entry Information'!Y29="","",'Entry Information'!Y29) ->  | AG29: =IF('Entry Information'!Z29="",AF29,AF29-100) ->  | AI29: =IF($AD29="","",(VLOOKUP($AH$42,Worksheet!$A$11:$AE$41,AH29+1,FALSE))) ->  | AK29: =IF('NOVICE All-AROUND RESULTS'!A28="","",(SUM('NOVICE All-AROUND RESULTS'!$K28,'NOVICE All-AROUND RESULTS'!$AC28,'NOVICE All-AROUND RESULTS'!$AI28, 'NOVICE All-AROUND RESULTS'!$W28,'NOVICE All-AROUND RESULTS'!$Q28))) -> 
A30: =IF('Entry Information'!B30="","",'Entry Information'!B30) ->  | B30: =IF('Entry Information'!C30="","",'Entry Information'!C30) ->  | C30: =IF('Entry Information'!D30="","",'Entry Information'!D30) ->  | D30: =IF('Entry Information'!E30="","",'Entry Information'!E30) ->  | E30: NOV | F30: =IF('Entry Information'!Q30="","",'Entry Information'!Q30) ->  | I30: =IF('Entry Information'!R30="",H30,H30-100) ->  | K30: =IF($F30="","",(VLOOKUP($J$42,Worksheet!$A$11:$AE$41,J30+1,FALSE))) ->  | L30: =IF('Entry Information'!S30="","",'Entry Information'!S30) ->  | O30: =IF('Entry Information'!T30="",N30,N30-100) ->  | Q30: =IF($L30="","",(VLOOKUP($P$42,Worksheet!$A$11:$AE$41,P30+1,FALSE))) ->  | R30: =IF('Entry Information'!U30="","",'Entry Information'!U30) ->  | U30: =IF('Entry Information'!V30="",T30,T30-100) ->  | W30: =IF($R30="","",(VLOOKUP($V$42,Worksheet!$A$11:$AE$41,V30+1,FALSE))) ->  | X30: =IF('Entry Information'!W30="","",'Entry Information'!W30) ->  | AA30: =IF('Entry Information'!X30="",Z30,Z30-100) ->  | AC30: =IF($X30="","",(VLOOKUP($AB$42,Worksheet!$A$11:$AE$41,AB30+1,FALSE))) ->  | AD30: =IF('Entry Information'!Y30="","",'Entry Information'!Y30) ->  | AG30: =IF('Entry Information'!Z30="",AF30,AF30-100) ->  | AI30: =IF($AD30="","",(VLOOKUP($AH$42,Worksheet!$A$11:$AE$41,AH30+1,FALSE))) ->  | AK30: =IF('NOVICE All-AROUND RESULTS'!A29="","",(SUM('NOVICE All-AROUND RESULTS'!$K29,'NOVICE All-AROUND RESULTS'!$AC29,'NOVICE All-AROUND RESULTS'!$AI29, 'NOVICE All-AROUND RESULTS'!$W29,'NOVICE All-AROUND RESULTS'!$Q29))) -> 
A31: =IF('Entry Information'!B31="","",'Entry Information'!B31) ->  | B31: =IF('Entry Information'!C31="","",'Entry Information'!C31) ->  | C31: =IF('Entry Information'!D31="","",'Entry Information'!D31) ->  | D31: =IF('Entry Information'!E31="","",'Entry Information'!E31) ->  | E31: NOV | F31: =IF('Entry Information'!Q31="","",'Entry Information'!Q31) ->  | I31: =IF('Entry Information'!R31="",H31,H31-100) ->  | K31: =IF($F31="","",(VLOOKUP($J$42,Worksheet!$A$11:$AE$41,J31+1,FALSE))) ->  | L31: =IF('Entry Information'!S31="","",'Entry Information'!S31) ->  | O31: =IF('Entry Information'!T31="",N31,N31-100) ->  | Q31: =IF($L31="","",(VLOOKUP($P$42,Worksheet!$A$11:$AE$41,P31+1,FALSE))) ->  | R31: =IF('Entry Information'!U31="","",'Entry Information'!U31) ->  | U31: =IF('Entry Information'!V31="",T31,T31-100) ->  | W31: =IF($R31="","",(VLOOKUP($V$42,Worksheet!$A$11:$AE$41,V31+1,FALSE))) ->  | X31: =IF('Entry Information'!W31="","",'Entry Information'!W31) ->  | AA31: =IF('Entry Information'!X31="",Z31,Z31-100) ->  | AC31: =IF($X31="","",(VLOOKUP($AB$42,Worksheet!$A$11:$AE$41,AB31+1,FALSE))) ->  | AD31: =IF('Entry Information'!Y31="","",'Entry Information'!Y31) ->  | AG31: =IF('Entry Information'!Z31="",AF31,AF31-100) ->  | AI31: =IF($AD31="","",(VLOOKUP($AH$42,Worksheet!$A$11:$AE$41,AH31+1,FALSE))) ->  | AK31: =IF('NOVICE All-AROUND RESULTS'!A30="","",(SUM('NOVICE All-AROUND RESULTS'!$K30,'NOVICE All-AROUND RESULTS'!$AC30,'NOVICE All-AROUND RESULTS'!$AI30, 'NOVICE All-AROUND RESULTS'!$W30,'NOVICE All-AROUND RESULTS'!$Q30))) -> 
A32: =IF('Entry Information'!B32="","",'Entry Information'!B32) ->  | B32: =IF('Entry Information'!C32="","",'Entry Information'!C32) ->  | C32: =IF('Entry Information'!D32="","",'Entry Information'!D32) ->  | D32: =IF('Entry Information'!E32="","",'Entry Information'!E32) ->  | E32: NOV | F32: =IF('Entry Information'!Q32="","",'Entry Information'!Q32) ->  | I32: =IF('Entry Information'!R32="",H32,H32-100) ->  | K32: =IF($F32="","",(VLOOKUP($J$42,Worksheet!$A$11:$AE$41,J32+1,FALSE))) ->  | L32: =IF('Entry Information'!S32="","",'Entry Information'!S32) ->  | O32: =IF('Entry Information'!T32="",N32,N32-100) ->  | Q32: =IF($L32="","",(VLOOKUP($P$42,Worksheet!$A$11:$AE$41,P32+1,FALSE))) ->  | R32: =IF('Entry Information'!U32="","",'Entry Information'!U32) ->  | U32: =IF('Entry Information'!V32="",T32,T32-100) ->  | W32: =IF($R32="","",(VLOOKUP($V$42,Worksheet!$A$11:$AE$41,V32+1,FALSE))) ->  | X32: =IF('Entry Information'!W32="","",'Entry Information'!W32) ->  | AA32: =IF('Entry Information'!X32="",Z32,Z32-100) ->  | AC32: =IF($X32="","",(VLOOKUP($AB$42,Worksheet!$A$11:$AE$41,AB32+1,FALSE))) ->  | AD32: =IF('Entry Information'!Y32="","",'Entry Information'!Y32) ->  | AG32: =IF('Entry Information'!Z32="",AF32,AF32-100) ->  | AI32: =IF($AD32="","",(VLOOKUP($AH$42,Worksheet!$A$11:$AE$41,AH32+1,FALSE))) ->  | AK32: =IF('NOVICE All-AROUND RESULTS'!A31="","",(SUM('NOVICE All-AROUND RESULTS'!$K31,'NOVICE All-AROUND RESULTS'!$AC31,'NOVICE All-AROUND RESULTS'!$AI31, 'NOVICE All-AROUND RESULTS'!$W31,'NOVICE All-AROUND RESULTS'!$Q31))) -> 
A33: =IF('Entry Information'!B33="","",'Entry Information'!B33) ->  | B33: =IF('Entry Information'!C33="","",'Entry Information'!C33) ->  | C33: =IF('Entry Information'!D33="","",'Entry Information'!D33) ->  | D33: =IF('Entry Information'!E33="","",'Entry Information'!E33) ->  | E33: NOV | F33: =IF('Entry Information'!Q33="","",'Entry Information'!Q33) ->  | I33: =IF('Entry Information'!R33="",H33,H33-100) ->  | K33: =IF($F33="","",(VLOOKUP($J$42,Worksheet!$A$11:$AE$41,J33+1,FALSE))) ->  | L33: =IF('Entry Information'!S33="","",'Entry Information'!S33) ->  | O33: =IF('Entry Information'!T33="",N33,N33-100) ->  | Q33: =IF($L33="","",(VLOOKUP($P$42,Worksheet!$A$11:$AE$41,P33+1,FALSE))) ->  | R33: =IF('Entry Information'!U33="","",'Entry Information'!U33) ->  | U33: =IF('Entry Information'!V33="",T33,T33-100) ->  | W33: =IF($R33="","",(VLOOKUP($V$42,Worksheet!$A$11:$AE$41,V33+1,FALSE))) ->  | X33: =IF('Entry Information'!W33="","",'Entry Information'!W33) ->  | AA33: =IF('Entry Information'!X33="",Z33,Z33-100) ->  | AC33: =IF($X33="","",(VLOOKUP($AB$42,Worksheet!$A$11:$AE$41,AB33+1,FALSE))) ->  | AD33: =IF('Entry Information'!Y33="","",'Entry Information'!Y33) ->  | AG33: =IF('Entry Information'!Z33="",AF33,AF33-100) ->  | AI33: =IF($AD33="","",(VLOOKUP($AH$42,Worksheet!$A$11:$AE$41,AH33+1,FALSE))) ->  | AK33: =IF('NOVICE All-AROUND RESULTS'!A32="","",(SUM('NOVICE All-AROUND RESULTS'!$K32,'NOVICE All-AROUND RESULTS'!$AC32,'NOVICE All-AROUND RESULTS'!$AI32, 'NOVICE All-AROUND RESULTS'!$W32,'NOVICE All-AROUND RESULTS'!$Q32))) -> 
A34: =IF('Entry Information'!B34="","",'Entry Information'!B34) ->  | B34: =IF('Entry Information'!C34="","",'Entry Information'!C34) ->  | C34: =IF('Entry Information'!D34="","",'Entry Information'!D34) ->  | D34: =IF('Entry Information'!E34="","",'Entry Information'!E34) ->  | E34: NOV | F34: =IF('Entry Information'!Q34="","",'Entry Information'!Q34) ->  | I34: =IF('Entry Information'!R34="",H34,H34-100) ->  | K34: =IF($F34="","",(VLOOKUP($J$42,Worksheet!$A$11:$AE$41,J34+1,FALSE))) ->  | L34: =IF('Entry Information'!S34="","",'Entry Information'!S34) ->  | O34: =IF('Entry Information'!T34="",N34,N34-100) ->  | Q34: =IF($L34="","",(VLOOKUP($P$42,Worksheet!$A$11:$AE$41,P34+1,FALSE))) ->  | R34: =IF('Entry Information'!U34="","",'Entry Information'!U34) ->  | U34: =IF('Entry Information'!V34="",T34,T34-100) ->  | W34: =IF($R34="","",(VLOOKUP($V$42,Worksheet!$A$11:$AE$41,V34+1,FALSE))) ->  | X34: =IF('Entry Information'!W34="","",'Entry Information'!W34) ->  | AA34: =IF('Entry Information'!X34="",Z34,Z34-100) ->  | AC34: =IF($X34="","",(VLOOKUP($AB$42,Worksheet!$A$11:$AE$41,AB34+1,FALSE))) ->  | AD34: =IF('Entry Information'!Y34="","",'Entry Information'!Y34) ->  | AG34: =IF('Entry Information'!Z34="",AF34,AF34-100) ->  | AI34: =IF($AD34="","",(VLOOKUP($AH$42,Worksheet!$A$11:$AE$41,AH34+1,FALSE))) ->  | AK34: =IF('NOVICE All-AROUND RESULTS'!A33="","",(SUM('NOVICE All-AROUND RESULTS'!$K33,'NOVICE All-AROUND RESULTS'!$AC33,'NOVICE All-AROUND RESULTS'!$AI33, 'NOVICE All-AROUND RESULTS'!$W33,'NOVICE All-AROUND RESULTS'!$Q33))) -> 
A35: =IF('Entry Information'!B35="","",'Entry Information'!B35) ->  | B35: =IF('Entry Information'!C35="","",'Entry Information'!C35) ->  | C35: =IF('Entry Information'!D35="","",'Entry Information'!D35) ->  | D35: =IF('Entry Information'!E35="","",'Entry Information'!E35) ->  | E35: NOV | F35: =IF('Entry Information'!Q35="","",'Entry Information'!Q35) ->  | I35: =IF('Entry Information'!R35="",H35,H35-100) ->  | K35: =IF($F35="","",(VLOOKUP($J$42,Worksheet!$A$11:$AE$41,J35+1,FALSE))) ->  | L35: =IF('Entry Information'!S35="","",'Entry Information'!S35) ->  | O35: =IF('Entry Information'!T35="",N35,N35-100) ->  | Q35: =IF($L35="","",(VLOOKUP($P$42,Worksheet!$A$11:$AE$41,P35+1,FALSE))) ->  | R35: =IF('Entry Information'!U35="","",'Entry Information'!U35) ->  | U35: =IF('Entry Information'!V35="",T35,T35-100) ->  | W35: =IF($R35="","",(VLOOKUP($V$42,Worksheet!$A$11:$AE$41,V35+1,FALSE))) ->  | X35: =IF('Entry Information'!W35="","",'Entry Information'!W35) ->  | AA35: =IF('Entry Information'!X35="",Z35,Z35-100) ->  | AC35: =IF($X35="","",(VLOOKUP($AB$42,Worksheet!$A$11:$AE$41,AB35+1,FALSE))) ->  | AD35: =IF('Entry Information'!Y35="","",'Entry Information'!Y35) ->  | AG35: =IF('Entry Information'!Z35="",AF35,AF35-100) ->  | AI35: =IF($AD35="","",(VLOOKUP($AH$42,Worksheet!$A$11:$AE$41,AH35+1,FALSE))) ->  | AK35: =IF('NOVICE All-AROUND RESULTS'!A34="","",(SUM('NOVICE All-AROUND RESULTS'!$K34,'NOVICE All-AROUND RESULTS'!$AC34,'NOVICE All-AROUND RESULTS'!$AI34, 'NOVICE All-AROUND RESULTS'!$W34,'NOVICE All-AROUND RESULTS'!$Q34))) -> 
A36: =IF('Entry Information'!B36="","",'Entry Information'!B36) ->  | B36: =IF('Entry Information'!C36="","",'Entry Information'!C36) ->  | C36: =IF('Entry Information'!D36="","",'Entry Information'!D36) ->  | D36: =IF('Entry Information'!E36="","",'Entry Information'!E36) ->  | E36: NOV | F36: =IF('Entry Information'!Q36="","",'Entry Information'!Q36) ->  | I36: =IF('Entry Information'!R36="",H36,H36-100) ->  | K36: =IF($F36="","",(VLOOKUP($J$42,Worksheet!$A$11:$AE$41,J36+1,FALSE))) ->  | L36: =IF('Entry Information'!S36="","",'Entry Information'!S36) ->  | O36: =IF('Entry Information'!T36="",N36,N36-100) ->  | Q36: =IF($L36="","",(VLOOKUP($P$42,Worksheet!$A$11:$AE$41,P36+1,FALSE))) ->  | R36: =IF('Entry Information'!U36="","",'Entry Information'!U36) ->  | U36: =IF('Entry Information'!V36="",T36,T36-100) ->  | W36: =IF($R36="","",(VLOOKUP($V$42,Worksheet!$A$11:$AE$41,V36+1,FALSE))) ->  | X36: =IF('Entry Information'!W36="","",'Entry Information'!W36) ->  | AA36: =IF('Entry Information'!X36="",Z36,Z36-100) ->  | AC36: =IF($X36="","",(VLOOKUP($AB$42,Worksheet!$A$11:$AE$41,AB36+1,FALSE))) ->  | AD36: =IF('Entry Information'!Y36="","",'Entry Information'!Y36) ->  | AG36: =IF('Entry Information'!Z36="",AF36,AF36-100) ->  | AI36: =IF($AD36="","",(VLOOKUP($AH$42,Worksheet!$A$11:$AE$41,AH36+1,FALSE))) ->  | AK36: =IF('NOVICE All-AROUND RESULTS'!A35="","",(SUM('NOVICE All-AROUND RESULTS'!$K35,'NOVICE All-AROUND RESULTS'!$AC35,'NOVICE All-AROUND RESULTS'!$AI35, 'NOVICE All-AROUND RESULTS'!$W35,'NOVICE All-AROUND RESULTS'!$Q35))) -> 
A37: =IF('Entry Information'!B37="","",'Entry Information'!B37) ->  | B37: =IF('Entry Information'!C37="","",'Entry Information'!C37) ->  | C37: =IF('Entry Information'!D37="","",'Entry Information'!D37) ->  | D37: =IF('Entry Information'!E37="","",'Entry Information'!E37) ->  | E37: NOV | F37: =IF('Entry Information'!Q37="","",'Entry Information'!Q37) ->  | I37: =IF('Entry Information'!R37="",H37,H37-100) ->  | K37: =IF($F37="","",(VLOOKUP($J$42,Worksheet!$A$11:$AE$41,J37+1,FALSE))) ->  | L37: =IF('Entry Information'!S37="","",'Entry Information'!S37) ->  | O37: =IF('Entry Information'!T37="",N37,N37-100) ->  | Q37: =IF($L37="","",(VLOOKUP($P$42,Worksheet!$A$11:$AE$41,P37+1,FALSE))) ->  | R37: =IF('Entry Information'!U37="","",'Entry Information'!U37) ->  | U37: =IF('Entry Information'!V37="",T37,T37-100) ->  | W37: =IF($R37="","",(VLOOKUP($V$42,Worksheet!$A$11:$AE$41,V37+1,FALSE))) ->  | X37: =IF('Entry Information'!W37="","",'Entry Information'!W37) ->  | AA37: =IF('Entry Information'!X37="",Z37,Z37-100) ->  | AC37: =IF($X37="","",(VLOOKUP($AB$42,Worksheet!$A$11:$AE$41,AB37+1,FALSE))) ->  | AD37: =IF('Entry Information'!Y37="","",'Entry Information'!Y37) ->  | AG37: =IF('Entry Information'!Z37="",AF37,AF37-100) ->  | AI37: =IF($AD37="","",(VLOOKUP($AH$42,Worksheet!$A$11:$AE$41,AH37+1,FALSE))) ->  | AK37: =IF('NOVICE All-AROUND RESULTS'!A36="","",(SUM('NOVICE All-AROUND RESULTS'!$K36,'NOVICE All-AROUND RESULTS'!$AC36,'NOVICE All-AROUND RESULTS'!$AI36, 'NOVICE All-AROUND RESULTS'!$W36,'NOVICE All-AROUND RESULTS'!$Q36))) -> 
A38: =IF('Entry Information'!B38="","",'Entry Information'!B38) ->  | B38: =IF('Entry Information'!C38="","",'Entry Information'!C38) ->  | C38: =IF('Entry Information'!D38="","",'Entry Information'!D38) ->  | D38: =IF('Entry Information'!E38="","",'Entry Information'!E38) ->  | E38: NOV | F38: =IF('Entry Information'!Q38="","",'Entry Information'!Q38) ->  | I38: =IF('Entry Information'!R38="",H38,H38-100) ->  | K38: =IF($F38="","",(VLOOKUP($J$42,Worksheet!$A$11:$AE$41,J38+1,FALSE))) ->  | L38: =IF('Entry Information'!S38="","",'Entry Information'!S38) ->  | O38: =IF('Entry Information'!T38="",N38,N38-100) ->  | Q38: =IF($L38="","",(VLOOKUP($P$42,Worksheet!$A$11:$AE$41,P38+1,FALSE))) ->  | R38: =IF('Entry Information'!U38="","",'Entry Information'!U38) ->  | U38: =IF('Entry Information'!V38="",T38,T38-100) ->  | W38: =IF($R38="","",(VLOOKUP($V$42,Worksheet!$A$11:$AE$41,V38+1,FALSE))) ->  | X38: =IF('Entry Information'!W38="","",'Entry Information'!W38) ->  | AA38: =IF('Entry Information'!X38="",Z38,Z38-100) ->  | AC38: =IF($X38="","",(VLOOKUP($AB$42,Worksheet!$A$11:$AE$41,AB38+1,FALSE))) ->  | AD38: =IF('Entry Information'!Y38="","",'Entry Information'!Y38) ->  | AG38: =IF('Entry Information'!Z38="",AF38,AF38-100) ->  | AI38: =IF($AD38="","",(VLOOKUP($AH$42,Worksheet!$A$11:$AE$41,AH38+1,FALSE))) ->  | AK38: =IF('NOVICE All-AROUND RESULTS'!A37="","",(SUM('NOVICE All-AROUND RESULTS'!$K37,'NOVICE All-AROUND RESULTS'!$AC37,'NOVICE All-AROUND RESULTS'!$AI37, 'NOVICE All-AROUND RESULTS'!$W37,'NOVICE All-AROUND RESULTS'!$Q37))) -> 
A39: =IF('Entry Information'!B39="","",'Entry Information'!B39) ->  | B39: =IF('Entry Information'!C39="","",'Entry Information'!C39) ->  | C39: =IF('Entry Information'!D39="","",'Entry Information'!D39) ->  | D39: =IF('Entry Information'!E39="","",'Entry Information'!E39) ->  | E39: NOV | F39: =IF('Entry Information'!Q39="","",'Entry Information'!Q39) ->  | I39: =IF('Entry Information'!R39="",H39,H39-100) ->  | K39: =IF($F39="","",(VLOOKUP($J$42,Worksheet!$A$11:$AE$41,J39+1,FALSE))) ->  | L39: =IF('Entry Information'!S39="","",'Entry Information'!S39) ->  | O39: =IF('Entry Information'!T39="",N39,N39-100) ->  | Q39: =IF($L39="","",(VLOOKUP($P$42,Worksheet!$A$11:$AE$41,P39+1,FALSE))) ->  | R39: =IF('Entry Information'!U39="","",'Entry Information'!U39) ->  | U39: =IF('Entry Information'!V39="",T39,T39-100) ->  | W39: =IF($R39="","",(VLOOKUP($V$42,Worksheet!$A$11:$AE$41,V39+1,FALSE))) ->  | X39: =IF('Entry Information'!W39="","",'Entry Information'!W39) ->  | AA39: =IF('Entry Information'!X39="",Z39,Z39-100) ->  | AC39: =IF($X39="","",(VLOOKUP($AB$42,Worksheet!$A$11:$AE$41,AB39+1,FALSE))) ->  | AD39: =IF('Entry Information'!Y39="","",'Entry Information'!Y39) ->  | AG39: =IF('Entry Information'!Z39="",AF39,AF39-100) ->  | AI39: =IF($AD39="","",(VLOOKUP($AH$42,Worksheet!$A$11:$AE$41,AH39+1,FALSE))) ->  | AK39: =IF('NOVICE All-AROUND RESULTS'!A38="","",(SUM('NOVICE All-AROUND RESULTS'!$K38,'NOVICE All-AROUND RESULTS'!$AC38,'NOVICE All-AROUND RESULTS'!$AI38, 'NOVICE All-AROUND RESULTS'!$W38,'NOVICE All-AROUND RESULTS'!$Q38))) -> 
A40: =IF('Entry Information'!B40="","",'Entry Information'!B40) ->  | B40: =IF('Entry Information'!C40="","",'Entry Information'!C40) ->  | C40: =IF('Entry Information'!D40="","",'Entry Information'!D40) ->  | D40: =IF('Entry Information'!E40="","",'Entry Information'!E40) ->  | E40: NOV | F40: =IF('Entry Information'!Q40="","",'Entry Information'!Q40) ->  | I40: =IF('Entry Information'!R40="",H40,H40-100) ->  | K40: =IF($F40="","",(VLOOKUP($J$42,Worksheet!$A$11:$AE$41,J40+1,FALSE))) ->  | L40: =IF('Entry Information'!S40="","",'Entry Information'!S40) ->  | O40: =IF('Entry Information'!T40="",N40,N40-100) ->  | Q40: =IF($L40="","",(VLOOKUP($P$42,Worksheet!$A$11:$AE$41,P40+1,FALSE))) ->  | R40: =IF('Entry Information'!U40="","",'Entry Information'!U40) ->  | U40: =IF('Entry Information'!V40="",T40,T40-100) ->  | W40: =IF($R40="","",(VLOOKUP($V$42,Worksheet!$A$11:$AE$41,V40+1,FALSE))) ->  | X40: =IF('Entry Information'!W40="","",'Entry Information'!W40) ->  | AA40: =IF('Entry Information'!X40="",Z40,Z40-100) ->  | AC40: =IF($X40="","",(VLOOKUP($AB$42,Worksheet!$A$11:$AE$41,AB40+1,FALSE))) ->  | AD40: =IF('Entry Information'!Y40="","",'Entry Information'!Y40) ->  | AG40: =IF('Entry Information'!Z40="",AF40,AF40-100) ->  | AI40: =IF($AD40="","",(VLOOKUP($AH$42,Worksheet!$A$11:$AE$41,AH40+1,FALSE))) ->  | AK40: =IF('NOVICE All-AROUND RESULTS'!A39="","",(SUM('NOVICE All-AROUND RESULTS'!$K39,'NOVICE All-AROUND RESULTS'!$AC39,'NOVICE All-AROUND RESULTS'!$AI39, 'NOVICE All-AROUND RESULTS'!$W39,'NOVICE All-AROUND RESULTS'!$Q39))) -> 
J42: =COUNTIF(J11:J40,">=0") -> 5 | P42: =COUNTIF(P11:P40,">=0") -> 5 | V42: =COUNTIF(V11:V40,">=0") -> 3 | AB42: =COUNTIF(AB11:AB40,">=0") -> 5 | AH42: =COUNTIF(AH11:AH40,">=0") -> 3
F43: 1 - Total Penalty Points | L43: 1 - Total Penalty Points | R43: 1 - Total Penalty Points | X43: 1 - Total Penalty Points | AD43: 1 - Total Penalty Points | AK43: Working Ranch Score
F44: 2 - Extended Trot | L44: 2 - Rope Handling | R44: 2 - Working Center of Arena | X44: 2 - First Lead Change | AD44: 2 - Box Cow | AK44: and then use WR Tie-Breakers
F45: 3 - Transition down lope/walk/stop | L45: 3 - Log Drag | R45: 3 - First Cut From the Herd | X45: 3 -Spin | AD45: 3 -Degree of Difficulty
F46: 4 - Transition to lope/lope | L46: 4 - Gate | R46: 4 - Second Cut From the Herd | X46: 4 -First Stop | AD46: 4 -Time Worked
A49: Scores in RED are ties - enter a 1 in the Tie Breaker Column of the winner to break tie. If multiple ties enter a 1 for the second place and a 2 for winner.
A52: Places highlighted have a major penatly.

Sheet NOVICE All-AROUND RESULTS (hidden)
E2: Event Name: | J2: ='Entry Information'!C4 -> Ranch Horse Challenge | Y2: Judge #1 Name/Classes: | AD2: ='Entry Information'!F4 -> Mike Lund
A3: Division: | B3: NOVICE | E3: Event Date: | J3: ='Entry Information'!C5 -> 2018-03-25 | Y3: Judge #2 Name/Classes: | AD3: ='Entry Information'!F5 -> Karen Arlin
F5: RANCH | L5: RANCH | R5: RANCH | X5: RANCH | AD5: RANCH
F6: RIDING | L6: TRAIL | R6: CUTING | X6: REINED WORK | AD6: COW WORK
F7: Score | G7: Tie Breaker | H7: Adjusted Score for Ties | I7: Adjusted Score Major Penalty | J7: Place | K7: Placement Points | L7: Score | M7: Tie Breaker | N7: Adjusted Score for Ties | O7: Adjusted Score Major Penalty | P7: Place | Q7: Placement Points | R7: Score | S7: Tie Breaker | T7: Adjusted Score for Ties | U7: Adjusted Score Major Penalty | V7: Place | W7: Placement Points | X7: Score | Y7: Tie Breaker | Z7: Adjusted Score for Ties | AA7: Adjusted Score Major Penalty | AB7: Place | AC7: Placement Points | AD7: Score | AE7: Tie Breaker | AF7: Adjusted Score for Ties | AG7: Adjusted Score Major Penalty | AH7: Place | AI7: Placement Points
A9: Back No. | B9: Last Name | C9: First Name | D9: Registered Horse Name | E9: Division
A10: =IF('Entry Information'!J11="","",'Entry Information'!B11) ->  | B10: =IF('Entry Information'!J11="","",'Entry Information'!C11) ->  | C10: =IF('Entry Information'!J11="","",'Entry Information'!D11) ->  | D10: =IF('Entry Information'!J11="","",'Entry Information'!E11) ->  | E10: NOV | F10: =IF('Entry Information'!J11="","",'WALK TROT RESULTS'!F11) ->  | G10: =IF('Entry Information'!$J11="","",IF('WALK TROT RESULTS'!G11="","",'WALK TROT RESULTS'!G11)) ->  | H10: =IF(G10="",F10,(F10+(G10*0.001))) ->  | I10: =IF('Entry Information'!$J11="","",IF('Entry Information'!R11="",H10,H10-100)) ->  | J10: =IF(I10="","",(RANK(I10,$I$10:$I$39,0))) ->  | K10: =IF($F10="","",(VLOOKUP($J$41,Worksheet!$A$11:$AE$41,J10+1,FALSE))) ->  | L10: =IF('Entry Information'!J11="","",'WALK TROT RESULTS'!L11) ->  | M10: =IF('Entry Information'!$J11="","",IF('WALK TROT RESULTS'!M11="","",'WALK TROT RESULTS'!M11)) ->  | N10: =IF(M10="",L10,(L10+(M10*0.001))) ->  | O10: =IF('Entry Information'!$J11="","",IF('Entry Information'!T11="",N10,N10-100)) ->  | P10: =IF(O10="","",(RANK(O10,$O$10:$O$39,0))) ->  | Q10: =IF($L10="","",(VLOOKUP($P$41,Worksheet!$A$11:$AE$41,P10+1,FALSE))) ->  | R10: =IF('Entry Information'!J11="","",'WALK TROT RESULTS'!R11) ->  | S10: =IF('Entry Information'!$J11="","",IF('WALK TROT RESULTS'!S11="","",'WALK TROT RESULTS'!S11)) ->  | T10: =IF(S10="",R10,(R10+(S10*0.001))) ->  | U10: =IF('Entry Information'!$J11="","",IF('Entry Information'!V11="",T10,T10-100)) ->  | V10: =IF(U10="","",(RANK(U10,$U$10:$U$39,0))) ->  | W10: =IF($R10="","",(VLOOKUP($V$41,Worksheet!$A$11:$AE$41,V10+1,FALSE))) ->  | X10: =IF('Entry Information'!$J11="","",'WALK TROT RESULTS'!X11) ->  | Y10: =IF('Entry Information'!$J11="","",IF('WALK TROT RESULTS'!Y11="","",'WALK TROT RESULTS'!Y11)) ->  | Z10: =IF(Y10="",X10,(X10+(Y10*0.001))) ->  | AA10: =IF('Entry Information'!$J11="","",IF('Entry Information'!X11="",Z10,Z10-100)) ->  | AB10: =IF(AA10="","",(RANK(AA10,$AA$10:$AA$39,0))) ->  | AC10: =IF($X10="","",(VLOOKUP($AB$41,Worksheet!$A$11:$AE$41,AB10+1,FALSE))) ->  | AD10: =IF('Entry Information'!$J11="","",'WALK TROT RESULTS'!AD11) ->  | AE10: =IF('Entry Information'!$J11="","",IF('WALK TROT RESULTS'!AE11="","",'WALK TROT RESULTS'!AE11)) ->  | AF10: =IF(AE10="",AD10,(AD10+(AE10*0.001))) ->  | AG10: =IF('Entry Information'!$J11="","",IF('Entry Information'!Z11="",AF10,AF10-100)) ->  | AH10: =IF(AG10="","",(RANK(AG10,$AG$10:$AG$39,0))) ->  | AI10: =IF($AD10="","",(VLOOKUP($AH$41,Worksheet!$A$11:$AE$41,AH10+1,FALSE))) -> 
A11: =IF('Entry Information'!J12="","",'Entry Information'!B12) -> 154 | B11: =IF('Entry Information'!J12="","",'Entry Information'!C12) -> Finlayson | C11: =IF('Entry Information'!J12="","",'Entry Information'!D12) -> Megan | D11: =IF('Entry Information'!J12="","",'Entry Information'!E12) -> Freckles | E11: NOV | F11: =IF('Entry Information'!J12="","",'WALK TROT RESULTS'!F12) -> 56.5 | G11: =IF('Entry Information'!$J12="","",IF('WALK TROT RESULTS'!G12="","",'WALK TROT RESULTS'!G12)) ->  | H11: =IF(G11="",F11,(F11+(G11*0.001))) -> 56.5 | I11: =IF('Entry Information'!$J12="","",IF('Entry Information'!R12="",H11,H11-100)) -> 56.5 | J11: =IF(I11="","",(RANK(I11,$I$10:$I$39,0))) -> 3 | K11: =IF($F11="","",(VLOOKUP($J$41,Worksheet!$A$11:$AE$41,J11+1,FALSE))) -> 1 | L11: =IF('Entry Information'!J12="","",'WALK TROT RESULTS'!L12) -> 54 | M11: =IF('Entry Information'!$J12="","",IF('WALK TROT RESULTS'!M12="","",'WALK TROT RESULTS'!M12)) ->  | N11: 54 | O11: =IF('Entry Information'!$J12="","",IF('Entry Information'!T12="",N11,N11-100)) -> 54 | P11: =IF(O11="","",(RANK(O11,$O$10:$O$39,0))) -> 1 | Q11: =IF($L11="","",(VLOOKUP($P$41,Worksheet!$A$11:$AE$41,P11+1,FALSE))) -> 3 | R11: =IF('Entry Information'!J12="","",'WALK TROT RESULTS'!R12) -> 69 | S11: =IF('Entry Information'!$J12="","",IF('WALK TROT RESULTS'!S12="","",'WALK TROT RESULTS'!S12)) ->  | T11: 69 | U11: =IF('Entry Information'!V12="",T11,T11-100) -> 69 | V11: =IF(U11="","",(RANK(U11,$U$10:$U$39,0))) -> 2 | W11: =IF($R11="","",(VLOOKUP($V$41,Worksheet!$A$11:$AE$41,V11+1,FALSE))) -> 2 | X11: =IF('Entry Information'!$J12="","",'WALK TROT RESULTS'!X12) -> 70.5 | Y11: =IF('Entry Information'!$J12="","",IF('WALK TROT RESULTS'!Y12="","",'WALK TROT RESULTS'!Y12)) ->  | Z11: =IF(Y11="",X11,(X11+(Y11*0.001))) -> 70.5 | AA11: =IF('Entry Information'!$J12="","",IF('Entry Information'!X12="",Z11,Z11-100)) -> -29.5 | AB11: =IF(AA11="","",(RANK(AA11,$AA$10:$AA$39,0))) -> 2 | AC11: =IF($X11="","",(VLOOKUP($AB$41,Worksheet!$A$11:$AE$41,AB11+1,FALSE))) -> 2 | AD11: =IF('Entry Information'!$J12="","",'WALK TROT RESULTS'!AD12) -> 72.5 | AE11: =IF('Entry Information'!$J12="","",IF('WALK TROT RESULTS'!AE12="","",'WALK TROT RESULTS'!AE12)) ->  | AF11: =IF(AE11="",AD11,(AD11+(AE11*0.001))) -> 72.5 | AG11: =IF('Entry Information'!$J12="","",IF('Entry Information'!Z12="",AF11,AF11-100)) -> 72.5 | AH11: =IF(AG11="","",(RANK(AG11,$AG$10:$AG$39,0))) -> 2 | AI11: =IF($AD11="","",(VLOOKUP($AH$41,Worksheet!$A$11:$AE$41,AH11+1,FALSE))) -> 2
A12: =IF('Entry Information'!J13="","",'Entry Information'!B13) -> 165 | B12: =IF('Entry Information'!J13="","",'Entry Information'!C13) -> Little | C12: =IF('Entry Information'!J13="","",'Entry Information'!D13) -> Laureen | D12: =IF('Entry Information'!J13="","",'Entry Information'!E13) -> Smart Little Hemi | E12: NOV | F12: =IF('Entry Information'!J13="","",'WALK TROT RESULTS'!F13) -> 61.5 | G12: =IF('Entry Information'!$J13="","",IF('WALK TROT RESULTS'!G13="","",'WALK TROT RESULTS'!G13)) ->  | H12: 61.5 | I12: =IF('Entry Information'!$J13="","",IF('Entry Information'!R13="",H12,H12-100)) -> 61.5 | J12: 2 | K12: =IF($F12="","",(VLOOKUP($J$41,Worksheet!$A$11:$AE$41,J12+1,FALSE))) -> 2 | L12: =IF('Entry Information'!J13="","",'WALK TROT RESULTS'!L13) -> 53.5 | M12: =IF('Entry Information'!$J13="","",IF('WALK TROT RESULTS'!M13="","",'WALK TROT RESULTS'!M13)) ->  | N12: 53.5 | O12: =IF('Entry Information'!$J13="","",IF('Entry Information'!T13="",N12,N12-100)) -> 53.5 | P12: 2 | Q12: =IF($L12="","",(VLOOKUP($P$41,Worksheet!$A$11:$AE$41,P12+1,FALSE))) -> 2 | R12: =IF('Entry Information'!J13="","",'WALK TROT RESULTS'!R13) -> 72 | S12: =IF('Entry Information'!$J13="","",IF('WALK TROT RESULTS'!S13="","",'WALK TROT RESULTS'!S13)) ->  | T12: 72 | U12: =IF('Entry Information'!$J13="","",IF('Entry Information'!V13="",T12,T12-100)) -> 72 | V12: 1 | W12: =IF($R12="","",(VLOOKUP($V$41,Worksheet!$A$11:$AE$41,V12+1,FALSE))) -> 3 | X12: =IF('Entry Information'!$J13="","",'WALK TROT RESULTS'!X13) -> 65 | Y12: =IF('Entry Information'!$J13="","",IF('WALK TROT RESULTS'!Y13="","",'WALK TROT RESULTS'!Y13)) ->  | Z12: 65 | AA12: =IF('Entry Information'!$J13="","",IF('Entry Information'!X13="",Z12,Z12-100)) -> -35 | AB12: 3 | AC12: =IF($X12="","",(VLOOKUP($AB$41,Worksheet!$A$11:$AE$41,AB12+1,FALSE))) -> 1 | AD12: =IF('Entry Information'!$J13="","",'WALK TROT RESULTS'!AD13) -> 73 | AE12: =IF('Entry Information'!$J13="","",IF('WALK TROT RESULTS'!AE13="","",'WALK TROT RESULTS'!AE13)) ->  | AF12: 73 | AG12: =IF('Entry Information'!$J13="","",IF('Entry Information'!Z13="",AF12,AF12-100)) -> 73 | AH12: 1 | AI12: =IF($AD12="","",(VLOOKUP($AH$41,Worksheet!$A$11:$AE$41,AH12+1,FALSE))) -> 3
A13: =IF('Entry Information'!J14="","",'Entry Information'!B14) -> 164 | B13: =IF('Entry Information'!J14="","",'Entry Information'!C14) -> VanStaalduien | C13: =IF('Entry Information'!J14="","",'Entry Information'!D14) -> Ian | D13: =IF('Entry Information'!J14="","",'Entry Information'!E14) -> Meradas Truckin Chex | E13: NOV | F13: =IF('Entry Information'!J14="","",'WALK TROT RESULTS'!F14) -> 67 | G13: =IF('Entry Information'!$J14="","",IF('WALK TROT RESULTS'!G14="","",'WALK TROT RESULTS'!G14)) ->  | H13: 67 | I13: =IF('Entry Information'!$J14="","",IF('Entry Information'!R14="",H13,H13-100)) -> 67 | J13: 1 | K13: =IF($F13="","",(VLOOKUP($J$41,Worksheet!$A$11:$AE$41,J13+1,FALSE))) -> 3 | L13: =IF('Entry Information'!J14="","",'WALK TROT RESULTS'!L14) -> 41.5 | M13: =IF('Entry Information'!$J14="","",IF('WALK TROT RESULTS'!M14="","",'WALK TROT RESULTS'!M14)) ->  | N13: 41.5 | O13: =IF('Entry Information'!$J14="","",IF('Entry Information'!T14="",N13,N13-100)) -> 41.5 | P13: 3 | Q13: =IF($L13="","",(VLOOKUP($P$41,Worksheet!$A$11:$AE$41,P13+1,FALSE))) -> 1 | R13: =IF('Entry Information'!J14="","",'WALK TROT RESULTS'!R14) -> 66 | S13: =IF('Entry Information'!$J14="","",IF('WALK TROT RESULTS'!S14="","",'WALK TROT RESULTS'!S14)) ->  | T13: 66 | U13: =IF('Entry Information'!$J14="","",IF('Entry Information'!V14="",T13,T13-100)) -> 66 | V13: 3 | W13: =IF($R13="","",(VLOOKUP($V$41,Worksheet!$A$11:$AE$41,V13+1,FALSE))) -> 1 | X13: =IF('Entry Information'!$J14="","",'WALK TROT RESULTS'!X14) -> 72.5 | Y13: =IF('Entry Information'!$J14="","",IF('WALK TROT RESULTS'!Y14="","",'WALK TROT RESULTS'!Y14)) ->  | Z13: 72.5 | AA13: =IF('Entry Information'!$J14="","",IF('Entry Information'!X14="",Z13,Z13-100)) -> 72.5 | AB13: 1 | AC13: =IF($X13="","",(VLOOKUP($AB$41,Worksheet!$A$11:$AE$41,AB13+1,FALSE))) -> 3 | AD13: =IF('Entry Information'!$J14="","",'WALK TROT RESULTS'!AD14) -> 72 | AE13: =IF('Entry Information'!$J14="","",IF('WALK TROT RESULTS'!AE14="","",'WALK TROT RESULTS'!AE14)) ->  | AF13: 72 | AG13: =IF('Entry Information'!$J14="","",IF('Entry Information'!Z14="",AF13,AF13-100)) -> 72 | AH13: 3 | AI13: =IF($AD13="","",(VLOOKUP($AH$41,Worksheet!$A$11:$AE$41,AH13+1,FALSE))) -> 1
A14: =IF('Entry Information'!J15="","",'Entry Information'!B15) ->  | B14: =IF('Entry Information'!J15="","",'Entry Information'!C15) ->  | C14: =IF('Entry Information'!J15="","",'Entry Information'!D15) ->  | D14: =IF('Entry Information'!J15="","",'Entry Information'!E15) ->  | E14: NOV | F14: =IF('Entry Information'!J15="","",'WALK TROT RESULTS'!F15) ->  | G14: =IF('Entry Information'!$J15="","",IF('WALK TROT RESULTS'!G15="","",'WALK TROT RESULTS'!G15)) ->  | I14: =IF('Entry Information'!$J15="","",IF('Entry Information'!R15="",H14,H14-100)) ->  | K14: =IF($F14="","",(VLOOKUP($J$41,Worksheet!$A$11:$AE$41,J14+1,FALSE))) ->  | L14: =IF('Entry Information'!J15="","",'WALK TROT RESULTS'!L15) ->  | M14: =IF('Entry Information'!$J15="","",IF('WALK TROT RESULTS'!M15="","",'WALK TROT RESULTS'!M15)) ->  | O14: =IF('Entry Information'!$J15="","",IF('Entry Information'!T15="",N14,N14-100)) ->  | Q14: =IF($L14="","",(VLOOKUP($P$41,Worksheet!$A$11:$AE$41,P14+1,FALSE))) ->  | R14: =IF('Entry Information'!J15="","",'WALK TROT RESULTS'!R15) ->  | S14: =IF('Entry Information'!$J15="","",IF('WALK TROT RESULTS'!S15="","",'WALK TROT RESULTS'!S15)) ->  | U14: =IF('Entry Information'!$J15="","",IF('Entry Information'!V15="",T14,T14-100)) ->  | W14: =IF($R14="","",(VLOOKUP($V$41,Worksheet!$A$11:$AE$41,V14+1,FALSE))) ->  | X14: =IF('Entry Information'!$J15="","",'WALK TROT RESULTS'!X15) ->  | Y14: =IF('Entry Information'!$J15="","",IF('WALK TROT RESULTS'!Y15="","",'WALK TROT RESULTS'!Y15)) ->  | AA14: =IF('Entry Information'!$J15="","",IF('Entry Information'!X15="",Z14,Z14-100)) ->  | AC14: =IF($X14="","",(VLOOKUP($AB$41,Worksheet!$A$11:$AE$41,AB14+1,FALSE))) ->  | AD14: =IF('Entry Information'!$J15="","",'WALK TROT RESULTS'!AD15) ->  | AE14: =IF('Entry Information'!$J15="","",IF('WALK TROT RESULTS'!AE15="","",'WALK TROT RESULTS'!AE15)) ->  | AG14: =IF('Entry Information'!$J15="","",IF('Entry Information'!Z15="",AF14,AF14-100)) ->  | AI14: =IF($AD14="","",(VLOOKUP($AH$41,Worksheet!$A$11:$AE$41,AH14+1,FALSE))) -> 
A15: =IF('Entry Information'!J16="","",'Entry Information'!B16) ->  | B15: =IF('Entry Information'!J16="","",'Entry Information'!C16) ->  | C15: =IF('Entry Information'!J16="","",'Entry Information'!D16) ->  | D15: =IF('Entry Information'!J16="","",'Entry Information'!E16) ->  | E15: NOV | F15: =IF('Entry Information'!J16="","",'WALK TROT RESULTS'!F16) ->  | G15: =IF('Entry Information'!$J16="","",IF('WALK TROT RESULTS'!G16="","",'WALK TROT RESULTS'!G16)) ->  | I15: =IF('Entry Information'!$J16="","",IF('Entry Information'!R16="",H15,H15-100)) ->  | K15: =IF($F15="","",(VLOOKUP($J$41,Worksheet!$A$11:$AE$41,J15+1,FALSE))) ->  | L15: =IF('Entry Information'!J16="","",'WALK TROT RESULTS'!L16) ->  | M15: =IF('Entry Information'!$J16="","",IF('WALK TROT RESULTS'!M16="","",'WALK TROT RESULTS'!M16)) ->  | O15: =IF('Entry Information'!$J16="","",IF('Entry Information'!T16="",N15,N15-100)) ->  | Q15: =IF($L15="","",(VLOOKUP($P$41,Worksheet!$A$11:$AE$41,P15+1,FALSE))) ->  | R15: =IF('Entry Information'!J16="","",'WALK TROT RESULTS'!R16) ->  | S15: =IF('Entry Information'!$J16="","",IF('WALK TROT RESULTS'!S16="","",'WALK TROT RESULTS'!S16)) ->  | U15: =IF('Entry Information'!$J16="","",IF('Entry Information'!V16="",T15,T15-100)) ->  | W15: =IF($R15="","",(VLOOKUP($V$41,Worksheet!$A$11:$AE$41,V15+1,FALSE))) ->  | X15: =IF('Entry Information'!$J16="","",'WALK TROT RESULTS'!X16) ->  | Y15: =IF('Entry Information'!$J16="","",IF('WALK TROT RESULTS'!Y16="","",'WALK TROT RESULTS'!Y16)) ->  | AA15: =IF('Entry Information'!$J16="","",IF('Entry Information'!X16="",Z15,Z15-100)) ->  | AC15: =IF($X15="","",(VLOOKUP($AB$41,Worksheet!$A$11:$AE$41,AB15+1,FALSE))) ->  | AD15: =IF('Entry Information'!$J16="","",'WALK TROT RESULTS'!AD16) ->  | AE15: =IF('Entry Information'!$J16="","",IF('WALK TROT RESULTS'!AE16="","",'WALK TROT RESULTS'!AE16)) ->  | AG15: =IF('Entry Information'!$J16="","",IF('Entry Information'!Z16="",AF15,AF15-100)) ->  | AI15: =IF($AD15="","",(VLOOKUP($AH$41,Worksheet!$A$11:$AE$41,AH15+1,FALSE))) -> 
A16: =IF('Entry Information'!J17="","",'Entry Information'!B17) ->  | B16: =IF('Entry Information'!J17="","",'Entry Information'!C17) ->  | C16: =IF('Entry Information'!J17="","",'Entry Information'!D17) ->  | D16: =IF('Entry Information'!J17="","",'Entry Information'!E17) ->  | E16: NOV | F16: =IF('Entry Information'!J17="","",'WALK TROT RESULTS'!F17) ->  | G16: =IF('Entry Information'!$J17="","",IF('WALK TROT RESULTS'!G17="","",'WALK TROT RESULTS'!G17)) ->  | I16: =IF('Entry Information'!$J17="","",IF('Entry Information'!R17="",H16,H16-100)) ->  | K16: =IF($F16="","",(VLOOKUP($J$41,Worksheet!$A$11:$AE$41,J16+1,FALSE))) ->  | L16: =IF('Entry Information'!J17="","",'WALK TROT RESULTS'!L17) ->  | M16: =IF('Entry Information'!$J17="","",IF('WALK TROT RESULTS'!M17="","",'WALK TROT RESULTS'!M17)) ->  | O16: =IF('Entry Information'!$J17="","",IF('Entry Information'!T17="",N16,N16-100)) ->  | Q16: =IF($L16="","",(VLOOKUP($P$41,Worksheet!$A$11:$AE$41,P16+1,FALSE))) ->  | R16: =IF('Entry Information'!J17="","",'WALK TROT RESULTS'!R17) ->  | S16: =IF('Entry Information'!$J17="","",IF('WALK TROT RESULTS'!S17="","",'WALK TROT RESULTS'!S17)) ->  | U16: =IF('Entry Information'!$J17="","",IF('Entry Information'!V17="",T16,T16-100)) ->  | W16: =IF($R16="","",(VLOOKUP($V$41,Worksheet!$A$11:$AE$41,V16+1,FALSE))) ->  | X16: =IF('Entry Information'!$J17="","",'WALK TROT RESULTS'!X17) ->  | Y16: =IF('Entry Information'!$J17="","",IF('WALK TROT RESULTS'!Y17="","",'WALK TROT RESULTS'!Y17)) ->  | AA16: =IF('Entry Information'!$J17="","",IF('Entry Information'!X17="",Z16,Z16-100)) ->  | AC16: =IF($X16="","",(VLOOKUP($AB$41,Worksheet!$A$11:$AE$41,AB16+1,FALSE))) ->  | AD16: =IF('Entry Information'!$J17="","",'WALK TROT RESULTS'!AD17) ->  | AE16: =IF('Entry Information'!$J17="","",IF('WALK TROT RESULTS'!AE17="","",'WALK TROT RESULTS'!AE17)) ->  | AG16: =IF('Entry Information'!$J17="","",IF('Entry Information'!Z17="",AF16,AF16-100)) ->  | AI16: =IF($AD16="","",(VLOOKUP($AH$41,Worksheet!$A$11:$AE$41,AH16+1,FALSE))) -> 
A17: =IF('Entry Information'!J18="","",'Entry Information'!B18) ->  | B17: =IF('Entry Information'!J18="","",'Entry Information'!C18) ->  | C17: =IF('Entry Information'!J18="","",'Entry Information'!D18) ->  | D17: =IF('Entry Information'!J18="","",'Entry Information'!E18) ->  | E17: NOV | F17: =IF('Entry Information'!J18="","",'WALK TROT RESULTS'!F18) ->  | G17: =IF('Entry Information'!$J18="","",IF('WALK TROT RESULTS'!G18="","",'WALK TROT RESULTS'!G18)) ->  | I17: =IF('Entry Information'!$J18="","",IF('Entry Information'!R18="",H17,H17-100)) ->  | K17: =IF($F17="","",(VLOOKUP($J$41,Worksheet!$A$11:$AE$41,J17+1,FALSE))) ->  | L17: =IF('Entry Information'!J18="","",'WALK TROT RESULTS'!L18) ->  | M17: =IF('Entry Information'!$J18="","",IF('WALK TROT RESULTS'!M18="","",'WALK TROT RESULTS'!M18)) ->  | O17: =IF('Entry Information'!$J18="","",IF('Entry Information'!T18="",N17,N17-100)) ->  | Q17: =IF($L17="","",(VLOOKUP($P$41,Worksheet!$A$11:$AE$41,P17+1,FALSE))) ->  | R17: =IF('Entry Information'!J18="","",'WALK TROT RESULTS'!R18) ->  | S17: =IF('Entry Information'!$J18="","",IF('WALK TROT RESULTS'!S18="","",'WALK TROT RESULTS'!S18)) ->  | U17: =IF('Entry Information'!$J18="","",IF('Entry Information'!V18="",T17,T17-100)) ->  | W17: =IF($R17="","",(VLOOKUP($V$41,Worksheet!$A$11:$AE$41,V17+1,FALSE))) ->  | X17: =IF('Entry Information'!$J18="","",'WALK TROT RESULTS'!X18) ->  | Y17: =IF('Entry Information'!$J18="","",IF('WALK TROT RESULTS'!Y18="","",'WALK TROT RESULTS'!Y18)) ->  | AA17: =IF('Entry Information'!$J18="","",IF('Entry Information'!X18="",Z17,Z17-100)) ->  | AC17: =IF($X17="","",(VLOOKUP($AB$41,Worksheet!$A$11:$AE$41,AB17+1,FALSE))) ->  | AD17: =IF('Entry Information'!$J18="","",'WALK TROT RESULTS'!AD18) ->  | AE17: =IF('Entry Information'!$J18="","",IF('WALK TROT RESULTS'!AE18="","",'WALK TROT RESULTS'!AE18)) ->  | AG17: =IF('Entry Information'!$J18="","",IF('Entry Information'!Z18="",AF17,AF17-100)) ->  | AI17: =IF($AD17="","",(VLOOKUP($AH$41,Worksheet!$A$11:$AE$41,AH17+1,FALSE))) -> 
A18: =IF('Entry Information'!J19="","",'Entry Information'!B19) ->  | B18: =IF('Entry Information'!J19="","",'Entry Information'!C19) ->  | C18: =IF('Entry Information'!J19="","",'Entry Information'!D19) ->  | D18: =IF('Entry Information'!J19="","",'Entry Information'!E19) ->  | E18: NOV | F18: =IF('Entry Information'!J19="","",'WALK TROT RESULTS'!F19) ->  | G18: =IF('Entry Information'!$J19="","",IF('WALK TROT RESULTS'!G19="","",'WALK TROT RESULTS'!G19)) ->  | I18: =IF('Entry Information'!$J19="","",IF('Entry Information'!R19="",H18,H18-100)) ->  | K18: =IF($F18="","",(VLOOKUP($J$41,Worksheet!$A$11:$AE$41,J18+1,FALSE))) ->  | L18: =IF('Entry Information'!J19="","",'WALK TROT RESULTS'!L19) ->  | M18: =IF('Entry Information'!$J19="","",IF('WALK TROT RESULTS'!M19="","",'WALK TROT RESULTS'!M19)) ->  | O18: =IF('Entry Information'!$J19="","",IF('Entry Information'!T19="",N18,N18-100)) ->  | Q18: =IF($L18="","",(VLOOKUP($P$41,Worksheet!$A$11:$AE$41,P18+1,FALSE))) ->  | R18: =IF('Entry Information'!J19="","",'WALK TROT RESULTS'!R19) ->  | S18: =IF('Entry Information'!$J19="","",IF('WALK TROT RESULTS'!S19="","",'WALK TROT RESULTS'!S19)) ->  | U18: =IF('Entry Information'!$J19="","",IF('Entry Information'!V19="",T18,T18-100)) ->  | W18: =IF($R18="","",(VLOOKUP($V$41,Worksheet!$A$11:$AE$41,V18+1,FALSE))) ->  | X18: =IF('Entry Information'!$J19="","",'WALK TROT RESULTS'!X19) ->  | Y18: =IF('Entry Information'!$J19="","",IF('WALK TROT RESULTS'!Y19="","",'WALK TROT RESULTS'!Y19)) ->  | AA18: =IF('Entry Information'!$J19="","",IF('Entry Information'!X19="",Z18,Z18-100)) ->  | AC18: =IF($X18="","",(VLOOKUP($AB$41,Worksheet!$A$11:$AE$41,AB18+1,FALSE))) ->  | AD18: =IF('Entry Information'!$J19="","",'WALK TROT RESULTS'!AD19) ->  | AE18: =IF('Entry Information'!$J19="","",IF('WALK TROT RESULTS'!AE19="","",'WALK TROT RESULTS'!AE19)) ->  | AG18: =IF('Entry Information'!$J19="","",IF('Entry Information'!Z19="",AF18,AF18-100)) ->  | AI18: =IF($AD18="","",(VLOOKUP($AH$41,Worksheet!$A$11:$AE$41,AH18+1,FALSE))) -> 
A19: =IF('Entry Information'!J20="","",'Entry Information'!B20) ->  | B19: =IF('Entry Information'!J20="","",'Entry Information'!C20) ->  | C19: =IF('Entry Information'!J20="","",'Entry Information'!D20) ->  | D19: =IF('Entry Information'!J20="","",'Entry Information'!E20) ->  | E19: NOV | F19: =IF('Entry Information'!J20="","",'WALK TROT RESULTS'!F20) ->  | G19: =IF('Entry Information'!$J20="","",IF('WALK TROT RESULTS'!G20="","",'WALK TROT RESULTS'!G20)) ->  | I19: =IF('Entry Information'!$J20="","",IF('Entry Information'!R20="",H19,H19-100)) ->  | K19: =IF($F19="","",(VLOOKUP($J$41,Worksheet!$A$11:$AE$41,J19+1,FALSE))) ->  | L19: =IF('Entry Information'!J20="","",'WALK TROT RESULTS'!L20) ->  | M19: =IF('Entry Information'!$J20="","",IF('WALK TROT RESULTS'!M20="","",'WALK TROT RESULTS'!M20)) ->  | O19: =IF('Entry Information'!$J20="","",IF('Entry Information'!T20="",N19,N19-100)) ->  | Q19: =IF($L19="","",(VLOOKUP($P$41,Worksheet!$A$11:$AE$41,P19+1,FALSE))) ->  | R19: =IF('Entry Information'!J20="","",'WALK TROT RESULTS'!R20) ->  | S19: =IF('Entry Information'!$J20="","",IF('WALK TROT RESULTS'!S20="","",'WALK TROT RESULTS'!S20)) ->  | U19: =IF('Entry Information'!$J20="","",IF('Entry Information'!V20="",T19,T19-100)) ->  | W19: =IF($R19="","",(VLOOKUP($V$41,Worksheet!$A$11:$AE$41,V19+1,FALSE))) ->  | X19: =IF('Entry Information'!$J20="","",'WALK TROT RESULTS'!X20) ->  | Y19: =IF('Entry Information'!$J20="","",IF('WALK TROT RESULTS'!Y20="","",'WALK TROT RESULTS'!Y20)) ->  | AA19: =IF('Entry Information'!$J20="","",IF('Entry Information'!X20="",Z19,Z19-100)) ->  | AC19: =IF($X19="","",(VLOOKUP($AB$41,Worksheet!$A$11:$AE$41,AB19+1,FALSE))) ->  | AD19: =IF('Entry Information'!$J20="","",'WALK TROT RESULTS'!AD20) ->  | AE19: =IF('Entry Information'!$J20="","",IF('WALK TROT RESULTS'!AE20="","",'WALK TROT RESULTS'!AE20)) ->  | AG19: =IF('Entry Information'!$J20="","",IF('Entry Information'!Z20="",AF19,AF19-100)) ->  | AI19: =IF($AD19="","",(VLOOKUP($AH$41,Worksheet!$A$11:$AE$41,AH19+1,FALSE))) -> 
A20: =IF('Entry Information'!J21="","",'Entry Information'!B21) ->  | B20: =IF('Entry Information'!J21="","",'Entry Information'!C21) ->  | C20: =IF('Entry Information'!J21="","",'Entry Information'!D21) ->  | D20: =IF('Entry Information'!J21="","",'Entry Information'!E21) ->  | E20: NOV | F20: =IF('Entry Information'!J21="","",'WALK TROT RESULTS'!F21) ->  | G20: =IF('Entry Information'!$J21="","",IF('WALK TROT RESULTS'!G21="","",'WALK TROT RESULTS'!G21)) ->  | I20: =IF('Entry Information'!$J21="","",IF('Entry Information'!R21="",H20,H20-100)) ->  | K20: =IF($F20="","",(VLOOKUP($J$41,Worksheet!$A$11:$AE$41,J20+1,FALSE))) ->  | L20: =IF('Entry Information'!J21="","",'WALK TROT RESULTS'!L21) ->  | M20: =IF('Entry Information'!$J21="","",IF('WALK TROT RESULTS'!M21="","",'WALK TROT RESULTS'!M21)) ->  | O20: =IF('Entry Information'!$J21="","",IF('Entry Information'!T21="",N20,N20-100)) ->  | Q20: =IF($L20="","",(VLOOKUP($P$41,Worksheet!$A$11:$AE$41,P20+1,FALSE))) ->  | R20: =IF('Entry Information'!J21="","",'WALK TROT RESULTS'!R21) ->  | S20: =IF('Entry Information'!$J21="","",IF('WALK TROT RESULTS'!S21="","",'WALK TROT RESULTS'!S21)) ->  | U20: =IF('Entry Information'!$J21="","",IF('Entry Information'!V21="",T20,T20-100)) ->  | W20: =IF($R20="","",(VLOOKUP($V$41,Worksheet!$A$11:$AE$41,V20+1,FALSE))) ->  | X20: =IF('Entry Information'!$J21="","",'WALK TROT RESULTS'!X21) ->  | Y20: =IF('Entry Information'!$J21="","",IF('WALK TROT RESULTS'!Y21="","",'WALK TROT RESULTS'!Y21)) ->  | AA20: =IF('Entry Information'!$J21="","",IF('Entry Information'!X21="",Z20,Z20-100)) ->  | AC20: =IF($X20="","",(VLOOKUP($AB$41,Worksheet!$A$11:$AE$41,AB20+1,FALSE))) ->  | AD20: =IF('Entry Information'!$J21="","",'WALK TROT RESULTS'!AD21) ->  | AE20: =IF('Entry Information'!$J21="","",IF('WALK TROT RESULTS'!AE21="","",'WALK TROT RESULTS'!AE21)) ->  | AG20: =IF('Entry Information'!$J21="","",IF('Entry Information'!Z21="",AF20,AF20-100)) ->  | AI20: =IF($AD20="","",(VLOOKUP($AH$41,Worksheet!$A$11:$AE$41,AH20+1,FALSE))) -> 
A21: =IF('Entry Information'!J22="","",'Entry Information'!B22) ->  | B21: =IF('Entry Information'!J22="","",'Entry Information'!C22) ->  | C21: =IF('Entry Information'!J22="","",'Entry Information'!D22) ->  | D21: =IF('Entry Information'!J22="","",'Entry Information'!E22) ->  | E21: NOV | F21: =IF('Entry Information'!J22="","",'WALK TROT RESULTS'!F22) ->  | G21: =IF('Entry Information'!$J22="","",IF('WALK TROT RESULTS'!G22="","",'WALK TROT RESULTS'!G22)) ->  | I21: =IF('Entry Information'!$J22="","",IF('Entry Information'!R22="",H21,H21-100)) ->  | K21: =IF($F21="","",(VLOOKUP($J$41,Worksheet!$A$11:$AE$41,J21+1,FALSE))) ->  | L21: =IF('Entry Information'!J22="","",'WALK TROT RESULTS'!L22) ->  | M21: =IF('Entry Information'!$J22="","",IF('WALK TROT RESULTS'!M22="","",'WALK TROT RESULTS'!M22)) ->  | O21: =IF('Entry Information'!$J22="","",IF('Entry Information'!T22="",N21,N21-100)) ->  | Q21: =IF($L21="","",(VLOOKUP($P$41,Worksheet!$A$11:$AE$41,P21+1,FALSE))) ->  | R21: =IF('Entry Information'!J22="","",'WALK TROT RESULTS'!R22) ->  | S21: =IF('Entry Information'!$J22="","",IF('WALK TROT RESULTS'!S22="","",'WALK TROT RESULTS'!S22)) ->  | U21: =IF('Entry Information'!$J22="","",IF('Entry Information'!V22="",T21,T21-100)) ->  | W21: =IF($R21="","",(VLOOKUP($V$41,Worksheet!$A$11:$AE$41,V21+1,FALSE))) ->  | X21: =IF('Entry Information'!$J22="","",'WALK TROT RESULTS'!X22) ->  | Y21: =IF('Entry Information'!$J22="","",IF('WALK TROT RESULTS'!Y22="","",'WALK TROT RESULTS'!Y22)) ->  | AA21: =IF('Entry Information'!$J22="","",IF('Entry Information'!X22="",Z21,Z21-100)) ->  | AC21: =IF($X21="","",(VLOOKUP($AB$41,Worksheet!$A$11:$AE$41,AB21+1,FALSE))) ->  | AD21: =IF('Entry Information'!$J22="","",'WALK TROT RESULTS'!AD22) ->  | AE21: =IF('Entry Information'!$J22="","",IF('WALK TROT RESULTS'!AE22="","",'WALK TROT RESULTS'!AE22)) ->  | AG21: =IF('Entry Information'!$J22="","",IF('Entry Information'!Z22="",AF21,AF21-100)) ->  | AI21: =IF($AD21="","",(VLOOKUP($AH$41,Worksheet!$A$11:$AE$41,AH21+1,FALSE))) -> 
A22: =IF('Entry Information'!J23="","",'Entry Information'!B23) ->  | B22: =IF('Entry Information'!J23="","",'Entry Information'!C23) ->  | C22: =IF('Entry Information'!J23="","",'Entry Information'!D23) ->  | D22: =IF('Entry Information'!J23="","",'Entry Information'!E23) ->  | E22: NOV | F22: =IF('Entry Information'!J23="","",'WALK TROT RESULTS'!F23) ->  | G22: =IF('Entry Information'!$J23="","",IF('WALK TROT RESULTS'!G23="","",'WALK TROT RESULTS'!G23)) ->  | I22: =IF('Entry Information'!$J23="","",IF('Entry Information'!R23="",H22,H22-100)) ->  | K22: =IF($F22="","",(VLOOKUP($J$41,Worksheet!$A$11:$AE$41,J22+1,FALSE))) ->  | L22: =IF('Entry Information'!J23="","",'WALK TROT RESULTS'!L23) ->  | M22: =IF('Entry Information'!$J23="","",IF('WALK TROT RESULTS'!M23="","",'WALK TROT RESULTS'!M23)) ->  | O22: =IF('Entry Information'!$J23="","",IF('Entry Information'!T23="",N22,N22-100)) ->  | Q22: =IF($L22="","",(VLOOKUP($P$41,Worksheet!$A$11:$AE$41,P22+1,FALSE))) ->  | R22: =IF('Entry Information'!J23="","",'WALK TROT RESULTS'!R23) ->  | S22: =IF('Entry Information'!$J23="","",IF('WALK TROT RESULTS'!S23="","",'WALK TROT RESULTS'!S23)) ->  | U22: =IF('Entry Information'!$J23="","",IF('Entry Information'!V23="",T22,T22-100)) ->  | W22: =IF($R22="","",(VLOOKUP($V$41,Worksheet!$A$11:$AE$41,V22+1,FALSE))) ->  | X22: =IF('Entry Information'!$J23="","",'WALK TROT RESULTS'!X23) ->  | Y22: =IF('Entry Information'!$J23="","",IF('WALK TROT RESULTS'!Y23="","",'WALK TROT RESULTS'!Y23)) ->  | AA22: =IF('Entry Information'!$J23="","",IF('Entry Information'!X23="",Z22,Z22-100)) ->  | AC22: =IF($X22="","",(VLOOKUP($AB$41,Worksheet!$A$11:$AE$41,AB22+1,FALSE))) ->  | AD22: =IF('Entry Information'!$J23="","",'WALK TROT RESULTS'!AD23) ->  | AE22: =IF('Entry Information'!$J23="","",IF('WALK TROT RESULTS'!AE23="","",'WALK TROT RESULTS'!AE23)) ->  | AG22: =IF('Entry Information'!$J23="","",IF('Entry Information'!Z23="",AF22,AF22-100)) ->  | AI22: =IF($AD22="","",(VLOOKUP($AH$41,Worksheet!$A$11:$AE$41,AH22+1,FALSE))) -> 
A23: =IF('Entry Information'!J24="","",'Entry Information'!B24) ->  | B23: =IF('Entry Information'!J24="","",'Entry Information'!C24) ->  | C23: =IF('Entry Information'!J24="","",'Entry Information'!D24) ->  | D23: =IF('Entry Information'!J24="","",'Entry Information'!E24) ->  | E23: NOV | F23: =IF('Entry Information'!J24="","",'WALK TROT RESULTS'!F24) ->  | G23: =IF('Entry Information'!$J24="","",IF('WALK TROT RESULTS'!G24="","",'WALK TROT RESULTS'!G24)) ->  | I23: =IF('Entry Information'!$J24="","",IF('Entry Information'!R24="",H23,H23-100)) ->  | K23: =IF($F23="","",(VLOOKUP($J$41,Worksheet!$A$11:$AE$41,J23+1,FALSE))) ->  | L23: =IF('Entry Information'!J24="","",'WALK TROT RESULTS'!L24) ->  | M23: =IF('Entry Information'!$J24="","",IF('WALK TROT RESULTS'!M24="","",'WALK TROT RESULTS'!M24)) ->  | O23: =IF('Entry Information'!$J24="","",IF('Entry Information'!T24="",N23,N23-100)) ->  | Q23: =IF($L23="","",(VLOOKUP($P$41,Worksheet!$A$11:$AE$41,P23+1,FALSE))) ->  | R23: =IF('Entry Information'!J24="","",'WALK TROT RESULTS'!R24) ->  | S23: =IF('Entry Information'!$J24="","",IF('WALK TROT RESULTS'!S24="","",'WALK TROT RESULTS'!S24)) ->  | U23: =IF('Entry Information'!$J24="","",IF('Entry Information'!V24="",T23,T23-100)) ->  | W23: =IF($R23="","",(VLOOKUP($V$41,Worksheet!$A$11:$AE$41,V23+1,FALSE))) ->  | X23: =IF('Entry Information'!$J24="","",'WALK TROT RESULTS'!X24) ->  | Y23: =IF('Entry Information'!$J24="","",IF('WALK TROT RESULTS'!Y24="","",'WALK TROT RESULTS'!Y24)) ->  | AA23: =IF('Entry Information'!$J24="","",IF('Entry Information'!X24="",Z23,Z23-100)) ->  | AC23: =IF($X23="","",(VLOOKUP($AB$41,Worksheet!$A$11:$AE$41,AB23+1,FALSE))) ->  | AD23: =IF('Entry Information'!$J24="","",'WALK TROT RESULTS'!AD24) ->  | AE23: =IF('Entry Information'!$J24="","",IF('WALK TROT RESULTS'!AE24="","",'WALK TROT RESULTS'!AE24)) ->  | AG23: =IF('Entry Information'!$J24="","",IF('Entry Information'!Z24="",AF23,AF23-100)) ->  | AI23: =IF($AD23="","",(VLOOKUP($AH$41,Worksheet!$A$11:$AE$41,AH23+1,FALSE))) -> 
A24: =IF('Entry Information'!J25="","",'Entry Information'!B25) ->  | B24: =IF('Entry Information'!J25="","",'Entry Information'!C25) ->  | C24: =IF('Entry Information'!J25="","",'Entry Information'!D25) ->  | D24: =IF('Entry Information'!J25="","",'Entry Information'!E25) ->  | E24: NOV | F24: =IF('Entry Information'!J25="","",'WALK TROT RESULTS'!F25) ->  | G24: =IF('Entry Information'!$J25="","",IF('WALK TROT RESULTS'!G25="","",'WALK TROT RESULTS'!G25)) ->  | I24: =IF('Entry Information'!$J25="","",IF('Entry Information'!R25="",H24,H24-100)) ->  | K24: =IF($F24="","",(VLOOKUP($J$41,Worksheet!$A$11:$AE$41,J24+1,FALSE))) ->  | L24: =IF('Entry Information'!J25="","",'WALK TROT RESULTS'!L25) ->  | M24: =IF('Entry Information'!$J25="","",IF('WALK TROT RESULTS'!M25="","",'WALK TROT RESULTS'!M25)) ->  | O24: =IF('Entry Information'!$J25="","",IF('Entry Information'!T25="",N24,N24-100)) ->  | Q24: =IF($L24="","",(VLOOKUP($P$41,Worksheet!$A$11:$AE$41,P24+1,FALSE))) ->  | R24: =IF('Entry Information'!J25="","",'WALK TROT RESULTS'!R25) ->  | S24: =IF('Entry Information'!$J25="","",IF('WALK TROT RESULTS'!S25="","",'WALK TROT RESULTS'!S25)) ->  | U24: =IF('Entry Information'!$J25="","",IF('Entry Information'!V25="",T24,T24-100)) ->  | W24: =IF($R24="","",(VLOOKUP($V$41,Worksheet!$A$11:$AE$41,V24+1,FALSE))) ->  | X24: =IF('Entry Information'!$J25="","",'WALK TROT RESULTS'!X25) ->  | Y24: =IF('Entry Information'!$J25="","",IF('WALK TROT RESULTS'!Y25="","",'WALK TROT RESULTS'!Y25)) ->  | AA24: =IF('Entry Information'!$J25="","",IF('Entry Information'!X25="",Z24,Z24-100)) ->  | AC24: =IF($X24="","",(VLOOKUP($AB$41,Worksheet!$A$11:$AE$41,AB24+1,FALSE))) ->  | AD24: =IF('Entry Information'!$J25="","",'WALK TROT RESULTS'!AD25) ->  | AE24: =IF('Entry Information'!$J25="","",IF('WALK TROT RESULTS'!AE25="","",'WALK TROT RESULTS'!AE25)) ->  | AG24: =IF('Entry Information'!$J25="","",IF('Entry Information'!Z25="",AF24,AF24-100)) ->  | AI24: =IF($AD24="","",(VLOOKUP($AH$41,Worksheet!$A$11:$AE$41,AH24+1,FALSE))) -> 
A25: =IF('Entry Information'!J26="","",'Entry Information'!B26) ->  | B25: =IF('Entry Information'!J26="","",'Entry Information'!C26) ->  | C25: =IF('Entry Information'!J26="","",'Entry Information'!D26) ->  | D25: =IF('Entry Information'!J26="","",'Entry Information'!E26) ->  | E25: NOV | F25: =IF('Entry Information'!J26="","",'WALK TROT RESULTS'!F26) ->  | G25: =IF('Entry Information'!$J26="","",IF('WALK TROT RESULTS'!G26="","",'WALK TROT RESULTS'!G26)) ->  | I25: =IF('Entry Information'!$J26="","",IF('Entry Information'!R26="",H25,H25-100)) ->  | K25: =IF($F25="","",(VLOOKUP($J$41,Worksheet!$A$11:$AE$41,J25+1,FALSE))) ->  | L25: =IF('Entry Information'!J26="","",'WALK TROT RESULTS'!L26) ->  | M25: =IF('Entry Information'!$J26="","",IF('WALK TROT RESULTS'!M26="","",'WALK TROT RESULTS'!M26)) ->  | O25: =IF('Entry Information'!$J26="","",IF('Entry Information'!T26="",N25,N25-100)) ->  | Q25: =IF($L25="","",(VLOOKUP($P$41,Worksheet!$A$11:$AE$41,P25+1,FALSE))) ->  | R25: =IF('Entry Information'!J26="","",'WALK TROT RESULTS'!R26) ->  | S25: =IF('Entry Information'!$J26="","",IF('WALK TROT RESULTS'!S26="","",'WALK TROT RESULTS'!S26)) ->  | U25: =IF('Entry Information'!$J26="","",IF('Entry Information'!V26="",T25,T25-100)) ->  | W25: =IF($R25="","",(VLOOKUP($V$41,Worksheet!$A$11:$AE$41,V25+1,FALSE))) ->  | X25: =IF('Entry Information'!$J26="","",'WALK TROT RESULTS'!X26) ->  | Y25: =IF('Entry Information'!$J26="","",IF('WALK TROT RESULTS'!Y26="","",'WALK TROT RESULTS'!Y26)) ->  | AA25: =IF('Entry Information'!$J26="","",IF('Entry Information'!X26="",Z25,Z25-100)) ->  | AC25: =IF($X25="","",(VLOOKUP($AB$41,Worksheet!$A$11:$AE$41,AB25+1,FALSE))) ->  | AD25: =IF('Entry Information'!$J26="","",'WALK TROT RESULTS'!AD26) ->  | AE25: =IF('Entry Information'!$J26="","",IF('WALK TROT RESULTS'!AE26="","",'WALK TROT RESULTS'!AE26)) ->  | AG25: =IF('Entry Information'!$J26="","",IF('Entry Information'!Z26="",AF25,AF25-100)) ->  | AI25: =IF($AD25="","",(VLOOKUP($AH$41,Worksheet!$A$11:$AE$41,AH25+1,FALSE))) -> 
A26: =IF('Entry Information'!J27="","",'Entry Information'!B27) ->  | B26: =IF('Entry Information'!J27="","",'Entry Information'!C27) ->  | C26: =IF('Entry Information'!J27="","",'Entry Information'!D27) ->  | D26: =IF('Entry Information'!J27="","",'Entry Information'!E27) ->  | E26: NOV | F26: =IF('Entry Information'!J27="","",'WALK TROT RESULTS'!F27) ->  | G26: =IF('Entry Information'!$J27="","",IF('WALK TROT RESULTS'!G27="","",'WALK TROT RESULTS'!G27)) ->  | I26: =IF('Entry Information'!$J27="","",IF('Entry Information'!R27="",H26,H26-100)) ->  | K26: =IF($F26="","",(VLOOKUP($J$41,Worksheet!$A$11:$AE$41,J26+1,FALSE))) ->  | L26: =IF('Entry Information'!J27="","",'WALK TROT RESULTS'!L27) ->  | M26: =IF('Entry Information'!$J27="","",IF('WALK TROT RESULTS'!M27="","",'WALK TROT RESULTS'!M27)) ->  | O26: =IF('Entry Information'!$J27="","",IF('Entry Information'!T27="",N26,N26-100)) ->  | Q26: =IF($L26="","",(VLOOKUP($P$41,Worksheet!$A$11:$AE$41,P26+1,FALSE))) ->  | R26: =IF('Entry Information'!J27="","",'WALK TROT RESULTS'!R27) ->  | S26: =IF('Entry Information'!$J27="","",IF('WALK TROT RESULTS'!S27="","",'WALK TROT RESULTS'!S27)) ->  | U26: =IF('Entry Information'!$J27="","",IF('Entry Information'!V27="",T26,T26-100)) ->  | W26: =IF($R26="","",(VLOOKUP($V$41,Worksheet!$A$11:$AE$41,V26+1,FALSE))) ->  | X26: =IF('Entry Information'!$J27="","",'WALK TROT RESULTS'!X27) ->  | Y26: =IF('Entry Information'!$J27="","",IF('WALK TROT RESULTS'!Y27="","",'WALK TROT RESULTS'!Y27)) ->  | AA26: =IF('Entry Information'!$J27="","",IF('Entry Information'!X27="",Z26,Z26-100)) ->  | AC26: =IF($X26="","",(VLOOKUP($AB$41,Worksheet!$A$11:$AE$41,AB26+1,FALSE))) ->  | AD26: =IF('Entry Information'!$J27="","",'WALK TROT RESULTS'!AD27) ->  | AE26: =IF('Entry Information'!$J27="","",IF('WALK TROT RESULTS'!AE27="","",'WALK TROT RESULTS'!AE27)) ->  | AG26: =IF('Entry Information'!$J27="","",IF('Entry Information'!Z27="",AF26,AF26-100)) ->  | AI26: =IF($AD26="","",(VLOOKUP($AH$41,Worksheet!$A$11:$AE$41,AH26+1,FALSE))) -> 
A27: =IF('Entry Information'!J28="","",'Entry Information'!B28) ->  | B27: =IF('Entry Information'!J28="","",'Entry Information'!C28) ->  | C27: =IF('Entry Information'!J28="","",'Entry Information'!D28) ->  | D27: =IF('Entry Information'!J28="","",'Entry Information'!E28) ->  | E27: NOV | F27: =IF('Entry Information'!J28="","",'WALK TROT RESULTS'!F28) ->  | G27: =IF('Entry Information'!$J28="","",IF('WALK TROT RESULTS'!G28="","",'WALK TROT RESULTS'!G28)) ->  | I27: =IF('Entry Information'!$J28="","",IF('Entry Information'!R28="",H27,H27-100)) ->  | K27: =IF($F27="","",(VLOOKUP($J$41,Worksheet!$A$11:$AE$41,J27+1,FALSE))) ->  | L27: =IF('Entry Information'!J28="","",'WALK TROT RESULTS'!L28) ->  | M27: =IF('Entry Information'!$J28="","",IF('WALK TROT RESULTS'!M28="","",'WALK TROT RESULTS'!M28)) ->  | O27: =IF('Entry Information'!$J28="","",IF('Entry Information'!T28="",N27,N27-100)) ->  | Q27: =IF($L27="","",(VLOOKUP($P$41,Worksheet!$A$11:$AE$41,P27+1,FALSE))) ->  | R27: =IF('Entry Information'!J28="","",'WALK TROT RESULTS'!R28) ->  | S27: =IF('Entry Information'!$J28="","",IF('WALK TROT RESULTS'!S28="","",'WALK TROT RESULTS'!S28)) ->  | U27: =IF('Entry Information'!$J28="","",IF('Entry Information'!V28="",T27,T27-100)) ->  | W27: =IF($R27="","",(VLOOKUP($V$41,Worksheet!$A$11:$AE$41,V27+1,FALSE))) ->  | X27: =IF('Entry Information'!$J28="","",'WALK TROT RESULTS'!X28) ->  | Y27: =IF('Entry Information'!$J28="","",IF('WALK TROT RESULTS'!Y28="","",'WALK TROT RESULTS'!Y28)) ->  | AA27: =IF('Entry Information'!$J28="","",IF('Entry Information'!X28="",Z27,Z27-100)) ->  | AC27: =IF($X27="","",(VLOOKUP($AB$41,Worksheet!$A$11:$AE$41,AB27+1,FALSE))) ->  | AD27: =IF('Entry Information'!$J28="","",'WALK TROT RESULTS'!AD28) ->  | AE27: =IF('Entry Information'!$J28="","",IF('WALK TROT RESULTS'!AE28="","",'WALK TROT RESULTS'!AE28)) ->  | AG27: =IF('Entry Information'!$J28="","",IF('Entry Information'!Z28="",AF27,AF27-100)) ->  | AI27: =IF($AD27="","",(VLOOKUP($AH$41,Worksheet!$A$11:$AE$41,AH27+1,FALSE))) -> 
A28: =IF('Entry Information'!J29="","",'Entry Information'!B29) ->  | B28: =IF('Entry Information'!J29="","",'Entry Information'!C29) ->  | C28: =IF('Entry Information'!J29="","",'Entry Information'!D29) ->  | D28: =IF('Entry Information'!J29="","",'Entry Information'!E29) ->  | E28: NOV | F28: =IF('Entry Information'!J29="","",'WALK TROT RESULTS'!F29) ->  | G28: =IF('Entry Information'!$J29="","",IF('WALK TROT RESULTS'!G29="","",'WALK TROT RESULTS'!G29)) ->  | I28: =IF('Entry Information'!$J29="","",IF('Entry Information'!R29="",H28,H28-100)) ->  | K28: =IF($F28="","",(VLOOKUP($J$41,Worksheet!$A$11:$AE$41,J28+1,FALSE))) ->  | L28: =IF('Entry Information'!J29="","",'WALK TROT RESULTS'!L29) ->  | M28: =IF('Entry Information'!$J29="","",IF('WALK TROT RESULTS'!M29="","",'WALK TROT RESULTS'!M29)) ->  | O28: =IF('Entry Information'!$J29="","",IF('Entry Information'!T29="",N28,N28-100)) ->  | Q28: =IF($L28="","",(VLOOKUP($P$41,Worksheet!$A$11:$AE$41,P28+1,FALSE))) ->  | R28: =IF('Entry Information'!J29="","",'WALK TROT RESULTS'!R29) ->  | S28: =IF('Entry Information'!$J29="","",IF('WALK TROT RESULTS'!S29="","",'WALK TROT RESULTS'!S29)) ->  | U28: =IF('Entry Information'!$J29="","",IF('Entry Information'!V29="",T28,T28-100)) ->  | W28: =IF($R28="","",(VLOOKUP($V$41,Worksheet!$A$11:$AE$41,V28+1,FALSE))) ->  | X28: =IF('Entry Information'!$J29="","",'WALK TROT RESULTS'!X29) ->  | Y28: =IF('Entry Information'!$J29="","",IF('WALK TROT RESULTS'!Y29="","",'WALK TROT RESULTS'!Y29)) ->  | AA28: =IF('Entry Information'!$J29="","",IF('Entry Information'!X29="",Z28,Z28-100)) ->  | AC28: =IF($X28="","",(VLOOKUP($AB$41,Worksheet!$A$11:$AE$41,AB28+1,FALSE))) ->  | AD28: =IF('Entry Information'!$J29="","",'WALK TROT RESULTS'!AD29) ->  | AE28: =IF('Entry Information'!$J29="","",IF('WALK TROT RESULTS'!AE29="","",'WALK TROT RESULTS'!AE29)) ->  | AG28: =IF('Entry Information'!$J29="","",IF('Entry Information'!Z29="",AF28,AF28-100)) ->  | AI28: =IF($AD28="","",(VLOOKUP($AH$41,Worksheet!$A$11:$AE$41,AH28+1,FALSE))) -> 
A29: =IF('Entry Information'!J30="","",'Entry Information'!B30) ->  | B29: =IF('Entry Information'!J30="","",'Entry Information'!C30) ->  | C29: =IF('Entry Information'!J30="","",'Entry Information'!D30) ->  | D29: =IF('Entry Information'!J30="","",'Entry Information'!E30) ->  | E29: NOV | F29: =IF('Entry Information'!J30="","",'WALK TROT RESULTS'!F30) ->  | G29: =IF('Entry Information'!$J30="","",IF('WALK TROT RESULTS'!G30="","",'WALK TROT RESULTS'!G30)) ->  | I29: =IF('Entry Information'!$J30="","",IF('Entry Information'!R30="",H29,H29-100)) ->  | K29: =IF($F29="","",(VLOOKUP($J$41,Worksheet!$A$11:$AE$41,J29+1,FALSE))) ->  | L29: =IF('Entry Information'!J30="","",'WALK TROT RESULTS'!L30) ->  | M29: =IF('Entry Information'!$J30="","",IF('WALK TROT RESULTS'!M30="","",'WALK TROT RESULTS'!M30)) ->  | O29: =IF('Entry Information'!$J30="","",IF('Entry Information'!T30="",N29,N29-100)) ->  | Q29: =IF($L29="","",(VLOOKUP($P$41,Worksheet!$A$11:$AE$41,P29+1,FALSE))) ->  | R29: =IF('Entry Information'!J30="","",'WALK TROT RESULTS'!R30) ->  | S29: =IF('Entry Information'!$J30="","",IF('WALK TROT RESULTS'!S30="","",'WALK TROT RESULTS'!S30)) ->  | U29: =IF('Entry Information'!$J30="","",IF('Entry Information'!V30="",T29,T29-100)) ->  | W29: =IF($R29="","",(VLOOKUP($V$41,Worksheet!$A$11:$AE$41,V29+1,FALSE))) ->  | X29: =IF('Entry Information'!$J30="","",'WALK TROT RESULTS'!X30) ->  | Y29: =IF('Entry Information'!$J30="","",IF('WALK TROT RESULTS'!Y30="","",'WALK TROT RESULTS'!Y30)) ->  | AA29: =IF('Entry Information'!$J30="","",IF('Entry Information'!X30="",Z29,Z29-100)) ->  | AC29: =IF($X29="","",(VLOOKUP($AB$41,Worksheet!$A$11:$AE$41,AB29+1,FALSE))) ->  | AD29: =IF('Entry Information'!$J30="","",'WALK TROT RESULTS'!AD30) ->  | AE29: =IF('Entry Information'!$J30="","",IF('WALK TROT RESULTS'!AE30="","",'WALK TROT RESULTS'!AE30)) ->  | AG29: =IF('Entry Information'!$J30="","",IF('Entry Information'!Z30="",AF29,AF29-100)) ->  | AI29: =IF($AD29="","",(VLOOKUP($AH$41,Worksheet!$A$11:$AE$41,AH29+1,FALSE))) -> 
A30: =IF('Entry Information'!J31="","",'Entry Information'!B31) ->  | B30: =IF('Entry Information'!J31="","",'Entry Information'!C31) ->  | C30: =IF('Entry Information'!J31="","",'Entry Information'!D31) ->  | D30: =IF('Entry Information'!J31="","",'Entry Information'!E31) ->  | E30: NOV | F30: =IF('Entry Information'!J31="","",'WALK TROT RESULTS'!F31) ->  | G30: =IF('Entry Information'!$J31="","",IF('WALK TROT RESULTS'!G31="","",'WALK TROT RESULTS'!G31)) ->  | I30: =IF('Entry Information'!$J31="","",IF('Entry Information'!R31="",H30,H30-100)) ->  | K30: =IF($F30="","",(VLOOKUP($J$41,Worksheet!$A$11:$AE$41,J30+1,FALSE))) ->  | L30: =IF('Entry Information'!J31="","",'WALK TROT RESULTS'!L31) ->  | M30: =IF('Entry Information'!$J31="","",IF('WALK TROT RESULTS'!M31="","",'WALK TROT RESULTS'!M31)) ->  | O30: =IF('Entry Information'!$J31="","",IF('Entry Information'!T31="",N30,N30-100)) ->  | Q30: =IF($L30="","",(VLOOKUP($P$41,Worksheet!$A$11:$AE$41,P30+1,FALSE))) ->  | R30: =IF('Entry Information'!J31="","",'WALK TROT RESULTS'!R31) ->  | S30: =IF('Entry Information'!$J31="","",IF('WALK TROT RESULTS'!S31="","",'WALK TROT RESULTS'!S31)) ->  | U30: =IF('Entry Information'!$J31="","",IF('Entry Information'!V31="",T30,T30-100)) ->  | W30: =IF($R30="","",(VLOOKUP($V$41,Worksheet!$A$11:$AE$41,V30+1,FALSE))) ->  | X30: =IF('Entry Information'!$J31="","",'WALK TROT RESULTS'!X31) ->  | Y30: =IF('Entry Information'!$J31="","",IF('WALK TROT RESULTS'!Y31="","",'WALK TROT RESULTS'!Y31)) ->  | AA30: =IF('Entry Information'!$J31="","",IF('Entry Information'!X31="",Z30,Z30-100)) ->  | AC30: =IF($X30="","",(VLOOKUP($AB$41,Worksheet!$A$11:$AE$41,AB30+1,FALSE))) ->  | AD30: =IF('Entry Information'!$J31="","",'WALK TROT RESULTS'!AD31) ->  | AE30: =IF('Entry Information'!$J31="","",IF('WALK TROT RESULTS'!AE31="","",'WALK TROT RESULTS'!AE31)) ->  | AG30: =IF('Entry Information'!$J31="","",IF('Entry Information'!Z31="",AF30,AF30-100)) ->  | AI30: =IF($AD30="","",(VLOOKUP($AH$41,Worksheet!$A$11:$AE$41,AH30+1,FALSE))) -> 
A31: =IF('Entry Information'!J32="","",'Entry Information'!B32) ->  | B31: =IF('Entry Information'!J32="","",'Entry Information'!C32) ->  | C31: =IF('Entry Information'!J32="","",'Entry Information'!D32) ->  | D31: =IF('Entry Information'!J32="","",'Entry Information'!E32) ->  | E31: NOV | F31: =IF('Entry Information'!J32="","",'WALK TROT RESULTS'!F32) ->  | G31: =IF('Entry Information'!$J32="","",IF('WALK TROT RESULTS'!G32="","",'WALK TROT RESULTS'!G32)) ->  | I31: =IF('Entry Information'!$J32="","",IF('Entry Information'!R32="",H31,H31-100)) ->  | K31: =IF($F31="","",(VLOOKUP($J$41,Worksheet!$A$11:$AE$41,J31+1,FALSE))) ->  | L31: =IF('Entry Information'!J32="","",'WALK TROT RESULTS'!L32) ->  | M31: =IF('Entry Information'!$J32="","",IF('WALK TROT RESULTS'!M32="","",'WALK TROT RESULTS'!M32)) ->  | O31: =IF('Entry Information'!$J32="","",IF('Entry Information'!T32="",N31,N31-100)) ->  | Q31: =IF($L31="","",(VLOOKUP($P$41,Worksheet!$A$11:$AE$41,P31+1,FALSE))) ->  | R31: =IF('Entry Information'!J32="","",'WALK TROT RESULTS'!R32) ->  | S31: =IF('Entry Information'!$J32="","",IF('WALK TROT RESULTS'!S32="","",'WALK TROT RESULTS'!S32)) ->  | U31: =IF('Entry Information'!$J32="","",IF('Entry Information'!V32="",T31,T31-100)) ->  | W31: =IF($R31="","",(VLOOKUP($V$41,Worksheet!$A$11:$AE$41,V31+1,FALSE))) ->  | X31: =IF('Entry Information'!$J32="","",'WALK TROT RESULTS'!X32) ->  | Y31: =IF('Entry Information'!$J32="","",IF('WALK TROT RESULTS'!Y32="","",'WALK TROT RESULTS'!Y32)) ->  | AA31: =IF('Entry Information'!$J32="","",IF('Entry Information'!X32="",Z31,Z31-100)) ->  | AC31: =IF($X31="","",(VLOOKUP($AB$41,Worksheet!$A$11:$AE$41,AB31+1,FALSE))) ->  | AD31: =IF('Entry Information'!$J32="","",'WALK TROT RESULTS'!AD32) ->  | AE31: =IF('Entry Information'!$J32="","",IF('WALK TROT RESULTS'!AE32="","",'WALK TROT RESULTS'!AE32)) ->  | AG31: =IF('Entry Information'!$J32="","",IF('Entry Information'!Z32="",AF31,AF31-100)) ->  | AI31: =IF($AD31="","",(VLOOKUP($AH$41,Worksheet!$A$11:$AE$41,AH31+1,FALSE))) -> 
A32: =IF('Entry Information'!J33="","",'Entry Information'!B33) ->  | B32: =IF('Entry Information'!J33="","",'Entry Information'!C33) ->  | C32: =IF('Entry Information'!J33="","",'Entry Information'!D33) ->  | D32: =IF('Entry Information'!J33="","",'Entry Information'!E33) ->  | E32: NOV | F32: =IF('Entry Information'!J33="","",'WALK TROT RESULTS'!F33) ->  | G32: =IF('Entry Information'!$J33="","",IF('WALK TROT RESULTS'!G33="","",'WALK TROT RESULTS'!G33)) ->  | I32: =IF('Entry Information'!$J33="","",IF('Entry Information'!R33="",H32,H32-100)) ->  | K32: =IF($F32="","",(VLOOKUP($J$41,Worksheet!$A$11:$AE$41,J32+1,FALSE))) ->  | L32: =IF('Entry Information'!J33="","",'WALK TROT RESULTS'!L33) ->  | M32: =IF('Entry Information'!$J33="","",IF('WALK TROT RESULTS'!M33="","",'WALK TROT RESULTS'!M33)) ->  | O32: =IF('Entry Information'!$J33="","",IF('Entry Information'!T33="",N32,N32-100)) ->  | Q32: =IF($L32="","",(VLOOKUP($P$41,Worksheet!$A$11:$AE$41,P32+1,FALSE))) ->  | R32: =IF('Entry Information'!J33="","",'WALK TROT RESULTS'!R33) ->  | S32: =IF('Entry Information'!$J33="","",IF('WALK TROT RESULTS'!S33="","",'WALK TROT RESULTS'!S33)) ->  | U32: =IF('Entry Information'!$J33="","",IF('Entry Information'!V33="",T32,T32-100)) ->  | W32: =IF($R32="","",(VLOOKUP($V$41,Worksheet!$A$11:$AE$41,V32+1,FALSE))) ->  | X32: =IF('Entry Information'!$J33="","",'WALK TROT RESULTS'!X33) ->  | Y32: =IF('Entry Information'!$J33="","",IF('WALK TROT RESULTS'!Y33="","",'WALK TROT RESULTS'!Y33)) ->  | AA32: =IF('Entry Information'!$J33="","",IF('Entry Information'!X33="",Z32,Z32-100)) ->  | AC32: =IF($X32="","",(VLOOKUP($AB$41,Worksheet!$A$11:$AE$41,AB32+1,FALSE))) ->  | AD32: =IF('Entry Information'!$J33="","",'WALK TROT RESULTS'!AD33) ->  | AE32: =IF('Entry Information'!$J33="","",IF('WALK TROT RESULTS'!AE33="","",'WALK TROT RESULTS'!AE33)) ->  | AG32: =IF('Entry Information'!$J33="","",IF('Entry Information'!Z33="",AF32,AF32-100)) ->  | AI32: =IF($AD32="","",(VLOOKUP($AH$41,Worksheet!$A$11:$AE$41,AH32+1,FALSE))) -> 
A33: =IF('Entry Information'!J34="","",'Entry Information'!B34) ->  | B33: =IF('Entry Information'!J34="","",'Entry Information'!C34) ->  | C33: =IF('Entry Information'!J34="","",'Entry Information'!D34) ->  | D33: =IF('Entry Information'!J34="","",'Entry Information'!E34) ->  | E33: NOV | F33: =IF('Entry Information'!J34="","",'WALK TROT RESULTS'!F34) ->  | G33: =IF('Entry Information'!$J34="","",IF('WALK TROT RESULTS'!G34="","",'WALK TROT RESULTS'!G34)) ->  | I33: =IF('Entry Information'!$J34="","",IF('Entry Information'!R34="",H33,H33-100)) ->  | K33: =IF($F33="","",(VLOOKUP($J$41,Worksheet!$A$11:$AE$41,J33+1,FALSE))) ->  | L33: =IF('Entry Information'!J34="","",'WALK TROT RESULTS'!L34) ->  | M33: =IF('Entry Information'!$J34="","",IF('WALK TROT RESULTS'!M34="","",'WALK TROT RESULTS'!M34)) ->  | O33: =IF('Entry Information'!$J34="","",IF('Entry Information'!T34="",N33,N33-100)) ->  | Q33: =IF($L33="","",(VLOOKUP($P$41,Worksheet!$A$11:$AE$41,P33+1,FALSE))) ->  | R33: =IF('Entry Information'!J34="","",'WALK TROT RESULTS'!R34) ->  | S33: =IF('Entry Information'!$J34="","",IF('WALK TROT RESULTS'!S34="","",'WALK TROT RESULTS'!S34)) ->  | U33: =IF('Entry Information'!$J34="","",IF('Entry Information'!V34="",T33,T33-100)) ->  | W33: =IF($R33="","",(VLOOKUP($V$41,Worksheet!$A$11:$AE$41,V33+1,FALSE))) ->  | X33: =IF('Entry Information'!$J34="","",'WALK TROT RESULTS'!X34) ->  | Y33: =IF('Entry Information'!$J34="","",IF('WALK TROT RESULTS'!Y34="","",'WALK TROT RESULTS'!Y34)) ->  | AA33: =IF('Entry Information'!$J34="","",IF('Entry Information'!X34="",Z33,Z33-100)) ->  | AC33: =IF($X33="","",(VLOOKUP($AB$41,Worksheet!$A$11:$AE$41,AB33+1,FALSE))) ->  | AD33: =IF('Entry Information'!$J34="","",'WALK TROT RESULTS'!AD34) ->  | AE33: =IF('Entry Information'!$J34="","",IF('WALK TROT RESULTS'!AE34="","",'WALK TROT RESULTS'!AE34)) ->  | AG33: =IF('Entry Information'!$J34="","",IF('Entry Information'!Z34="",AF33,AF33-100)) ->  | AI33: =IF($AD33="","",(VLOOKUP($AH$41,Worksheet!$A$11:$AE$41,AH33+1,FALSE))) -> 
A34: =IF('Entry Information'!J35="","",'Entry Information'!B35) ->  | B34: =IF('Entry Information'!J35="","",'Entry Information'!C35) ->  | C34: =IF('Entry Information'!J35="","",'Entry Information'!D35) ->  | D34: =IF('Entry Information'!J35="","",'Entry Information'!E35) ->  | E34: NOV | F34: =IF('Entry Information'!J35="","",'WALK TROT RESULTS'!F35) ->  | G34: =IF('Entry Information'!$J35="","",IF('WALK TROT RESULTS'!G35="","",'WALK TROT RESULTS'!G35)) ->  | I34: =IF('Entry Information'!$J35="","",IF('Entry Information'!R35="",H34,H34-100)) ->  | K34: =IF($F34="","",(VLOOKUP($J$41,Worksheet!$A$11:$AE$41,J34+1,FALSE))) ->  | L34: =IF('Entry Information'!J35="","",'WALK TROT RESULTS'!L35) ->  | M34: =IF('Entry Information'!$J35="","",IF('WALK TROT RESULTS'!M35="","",'WALK TROT RESULTS'!M35)) ->  | O34: =IF('Entry Information'!$J35="","",IF('Entry Information'!T35="",N34,N34-100)) ->  | Q34: =IF($L34="","",(VLOOKUP($P$41,Worksheet!$A$11:$AE$41,P34+1,FALSE))) ->  | R34: =IF('Entry Information'!J35="","",'WALK TROT RESULTS'!R35) ->  | S34: =IF('Entry Information'!$J35="","",IF('WALK TROT RESULTS'!S35="","",'WALK TROT RESULTS'!S35)) ->  | U34: =IF('Entry Information'!$J35="","",IF('Entry Information'!V35="",T34,T34-100)) ->  | W34: =IF($R34="","",(VLOOKUP($V$41,Worksheet!$A$11:$AE$41,V34+1,FALSE))) ->  | X34: =IF('Entry Information'!$J35="","",'WALK TROT RESULTS'!X35) ->  | Y34: =IF('Entry Information'!$J35="","",IF('WALK TROT RESULTS'!Y35="","",'WALK TROT RESULTS'!Y35)) ->  | AA34: =IF('Entry Information'!$J35="","",IF('Entry Information'!X35="",Z34,Z34-100)) ->  | AC34: =IF($X34="","",(VLOOKUP($AB$41,Worksheet!$A$11:$AE$41,AB34+1,FALSE))) ->  | AD34: =IF('Entry Information'!$J35="","",'WALK TROT RESULTS'!AD35) ->  | AE34: =IF('Entry Information'!$J35="","",IF('WALK TROT RESULTS'!AE35="","",'WALK TROT RESULTS'!AE35)) ->  | AG34: =IF('Entry Information'!$J35="","",IF('Entry Information'!Z35="",AF34,AF34-100)) ->  | AI34: =IF($AD34="","",(VLOOKUP($AH$41,Worksheet!$A$11:$AE$41,AH34+1,FALSE))) -> 
A35: =IF('Entry Information'!J36="","",'Entry Information'!B36) ->  | B35: =IF('Entry Information'!J36="","",'Entry Information'!C36) ->  | C35: =IF('Entry Information'!J36="","",'Entry Information'!D36) ->  | D35: =IF('Entry Information'!J36="","",'Entry Information'!E36) ->  | E35: NOV | F35: =IF('Entry Information'!J36="","",'WALK TROT RESULTS'!F36) ->  | G35: =IF('Entry Information'!$J36="","",IF('WALK TROT RESULTS'!G36="","",'WALK TROT RESULTS'!G36)) ->  | I35: =IF('Entry Information'!$J36="","",IF('Entry Information'!R36="",H35,H35-100)) ->  | K35: =IF($F35="","",(VLOOKUP($J$41,Worksheet!$A$11:$AE$41,J35+1,FALSE))) ->  | L35: =IF('Entry Information'!J36="","",'WALK TROT RESULTS'!L36) ->  | M35: =IF('Entry Information'!$J36="","",IF('WALK TROT RESULTS'!M36="","",'WALK TROT RESULTS'!M36)) ->  | O35: =IF('Entry Information'!$J36="","",IF('Entry Information'!T36="",N35,N35-100)) ->  | Q35: =IF($L35="","",(VLOOKUP($P$41,Worksheet!$A$11:$AE$41,P35+1,FALSE))) ->  | R35: =IF('Entry Information'!J36="","",'WALK TROT RESULTS'!R36) ->  | S35: =IF('Entry Information'!$J36="","",IF('WALK TROT RESULTS'!S36="","",'WALK TROT RESULTS'!S36)) ->  | U35: =IF('Entry Information'!$J36="","",IF('Entry Information'!V36="",T35,T35-100)) ->  | W35: =IF($R35="","",(VLOOKUP($V$41,Worksheet!$A$11:$AE$41,V35+1,FALSE))) ->  | X35: =IF('Entry Information'!$J36="","",'WALK TROT RESULTS'!X36) ->  | Y35: =IF('Entry Information'!$J36="","",IF('WALK TROT RESULTS'!Y36="","",'WALK TROT RESULTS'!Y36)) ->  | AA35: =IF('Entry Information'!$J36="","",IF('Entry Information'!X36="",Z35,Z35-100)) ->  | AC35: =IF($X35="","",(VLOOKUP($AB$41,Worksheet!$A$11:$AE$41,AB35+1,FALSE))) ->  | AD35: =IF('Entry Information'!$J36="","",'WALK TROT RESULTS'!AD36) ->  | AE35: =IF('Entry Information'!$J36="","",IF('WALK TROT RESULTS'!AE36="","",'WALK TROT RESULTS'!AE36)) ->  | AG35: =IF('Entry Information'!$J36="","",IF('Entry Information'!Z36="",AF35,AF35-100)) ->  | AI35: =IF($AD35="","",(VLOOKUP($AH$41,Worksheet!$A$11:$AE$41,AH35+1,FALSE))) -> 
A36: =IF('Entry Information'!J37="","",'Entry Information'!B37) ->  | B36: =IF('Entry Information'!J37="","",'Entry Information'!C37) ->  | C36: =IF('Entry Information'!J37="","",'Entry Information'!D37) ->  | D36: =IF('Entry Information'!J37="","",'Entry Information'!E37) ->  | E36: NOV | F36: =IF('Entry Information'!J37="","",'WALK TROT RESULTS'!F37) ->  | G36: =IF('Entry Information'!$J37="","",IF('WALK TROT RESULTS'!G37="","",'WALK TROT RESULTS'!G37)) ->  | I36: =IF('Entry Information'!$J37="","",IF('Entry Information'!R37="",H36,H36-100)) ->  | K36: =IF($F36="","",(VLOOKUP($J$41,Worksheet!$A$11:$AE$41,J36+1,FALSE))) ->  | L36: =IF('Entry Information'!J37="","",'WALK TROT RESULTS'!L37) ->  | M36: =IF('Entry Information'!$J37="","",IF('WALK TROT RESULTS'!M37="","",'WALK TROT RESULTS'!M37)) ->  | O36: =IF('Entry Information'!$J37="","",IF('Entry Information'!T37="",N36,N36-100)) ->  | Q36: =IF($L36="","",(VLOOKUP($P$41,Worksheet!$A$11:$AE$41,P36+1,FALSE))) ->  | R36: =IF('Entry Information'!J37="","",'WALK TROT RESULTS'!R37) ->  | S36: =IF('Entry Information'!$J37="","",IF('WALK TROT RESULTS'!S37="","",'WALK TROT RESULTS'!S37)) ->  | U36: =IF('Entry Information'!$J37="","",IF('Entry Information'!V37="",T36,T36-100)) ->  | W36: =IF($R36="","",(VLOOKUP($V$41,Worksheet!$A$11:$AE$41,V36+1,FALSE))) ->  | X36: =IF('Entry Information'!$J37="","",'WALK TROT RESULTS'!X37) ->  | Y36: =IF('Entry Information'!$J37="","",IF('WALK TROT RESULTS'!Y37="","",'WALK TROT RESULTS'!Y37)) ->  | AA36: =IF('Entry Information'!$J37="","",IF('Entry Information'!X37="",Z36,Z36-100)) ->  | AC36: =IF($X36="","",(VLOOKUP($AB$41,Worksheet!$A$11:$AE$41,AB36+1,FALSE))) ->  | AD36: =IF('Entry Information'!$J37="","",'WALK TROT RESULTS'!AD37) ->  | AE36: =IF('Entry Information'!$J37="","",IF('WALK TROT RESULTS'!AE37="","",'WALK TROT RESULTS'!AE37)) ->  | AG36: =IF('Entry Information'!$J37="","",IF('Entry Information'!Z37="",AF36,AF36-100)) ->  | AI36: =IF($AD36="","",(VLOOKUP($AH$41,Worksheet!$A$11:$AE$41,AH36+1,FALSE))) -> 
A37: =IF('Entry Information'!J38="","",'Entry Information'!B38) ->  | B37: =IF('Entry Information'!J38="","",'Entry Information'!C38) ->  | C37: =IF('Entry Information'!J38="","",'Entry Information'!D38) ->  | D37: =IF('Entry Information'!J38="","",'Entry Information'!E38) ->  | E37: NOV | F37: =IF('Entry Information'!J38="","",'WALK TROT RESULTS'!F38) ->  | G37: =IF('Entry Information'!$J38="","",IF('WALK TROT RESULTS'!G38="","",'WALK TROT RESULTS'!G38)) ->  | I37: =IF('Entry Information'!$J38="","",IF('Entry Information'!R38="",H37,H37-100)) ->  | K37: =IF($F37="","",(VLOOKUP($J$41,Worksheet!$A$11:$AE$41,J37+1,FALSE))) ->  | L37: =IF('Entry Information'!J38="","",'WALK TROT RESULTS'!L38) ->  | M37: =IF('Entry Information'!$J38="","",IF('WALK TROT RESULTS'!M38="","",'WALK TROT RESULTS'!M38)) ->  | O37: =IF('Entry Information'!$J38="","",IF('Entry Information'!T38="",N37,N37-100)) ->  | Q37: =IF($L37="","",(VLOOKUP($P$41,Worksheet!$A$11:$AE$41,P37+1,FALSE))) ->  | R37: =IF('Entry Information'!J38="","",'WALK TROT RESULTS'!R38) ->  | S37: =IF('Entry Information'!$J38="","",IF('WALK TROT RESULTS'!S38="","",'WALK TROT RESULTS'!S38)) ->  | U37: =IF('Entry Information'!$J38="","",IF('Entry Information'!V38="",T37,T37-100)) ->  | W37: =IF($R37="","",(VLOOKUP($V$41,Worksheet!$A$11:$AE$41,V37+1,FALSE))) ->  | X37: =IF('Entry Information'!$J38="","",'WALK TROT RESULTS'!X38) ->  | Y37: =IF('Entry Information'!$J38="","",IF('WALK TROT RESULTS'!Y38="","",'WALK TROT RESULTS'!Y38)) ->  | AA37: =IF('Entry Information'!$J38="","",IF('Entry Information'!X38="",Z37,Z37-100)) ->  | AC37: =IF($X37="","",(VLOOKUP($AB$41,Worksheet!$A$11:$AE$41,AB37+1,FALSE))) ->  | AD37: =IF('Entry Information'!$J38="","",'WALK TROT RESULTS'!AD38) ->  | AE37: =IF('Entry Information'!$J38="","",IF('WALK TROT RESULTS'!AE38="","",'WALK TROT RESULTS'!AE38)) ->  | AG37: =IF('Entry Information'!$J38="","",IF('Entry Information'!Z38="",AF37,AF37-100)) ->  | AI37: =IF($AD37="","",(VLOOKUP($AH$41,Worksheet!$A$11:$AE$41,AH37+1,FALSE))) -> 
A38: =IF('Entry Information'!J39="","",'Entry Information'!B39) ->  | B38: =IF('Entry Information'!J39="","",'Entry Information'!C39) ->  | C38: =IF('Entry Information'!J39="","",'Entry Information'!D39) ->  | D38: =IF('Entry Information'!J39="","",'Entry Information'!E39) ->  | E38: NOV | F38: =IF('Entry Information'!J39="","",'WALK TROT RESULTS'!F39) ->  | G38: =IF('Entry Information'!$J39="","",IF('WALK TROT RESULTS'!G39="","",'WALK TROT RESULTS'!G39)) ->  | I38: =IF('Entry Information'!$J39="","",IF('Entry Information'!R39="",H38,H38-100)) ->  | K38: =IF($F38="","",(VLOOKUP($J$41,Worksheet!$A$11:$AE$41,J38+1,FALSE))) ->  | L38: =IF('Entry Information'!J39="","",'WALK TROT RESULTS'!L39) ->  | M38: =IF('Entry Information'!$J39="","",IF('WALK TROT RESULTS'!M39="","",'WALK TROT RESULTS'!M39)) ->  | O38: =IF('Entry Information'!$J39="","",IF('Entry Information'!T39="",N38,N38-100)) ->  | Q38: =IF($L38="","",(VLOOKUP($P$41,Worksheet!$A$11:$AE$41,P38+1,FALSE))) ->  | R38: =IF('Entry Information'!J39="","",'WALK TROT RESULTS'!R39) ->  | S38: =IF('Entry Information'!$J39="","",IF('WALK TROT RESULTS'!S39="","",'WALK TROT RESULTS'!S39)) ->  | U38: =IF('Entry Information'!$J39="","",IF('Entry Information'!V39="",T38,T38-100)) ->  | W38: =IF($R38="","",(VLOOKUP($V$41,Worksheet!$A$11:$AE$41,V38+1,FALSE))) ->  | X38: =IF('Entry Information'!$J39="","",'WALK TROT RESULTS'!X39) ->  | Y38: =IF('Entry Information'!$J39="","",IF('WALK TROT RESULTS'!Y39="","",'WALK TROT RESULTS'!Y39)) ->  | AA38: =IF('Entry Information'!$J39="","",IF('Entry Information'!X39="",Z38,Z38-100)) ->  | AC38: =IF($X38="","",(VLOOKUP($AB$41,Worksheet!$A$11:$AE$41,AB38+1,FALSE))) ->  | AD38: =IF('Entry Information'!$J39="","",'WALK TROT RESULTS'!AD39) ->  | AE38: =IF('Entry Information'!$J39="","",IF('WALK TROT RESULTS'!AE39="","",'WALK TROT RESULTS'!AE39)) ->  | AG38: =IF('Entry Information'!$J39="","",IF('Entry Information'!Z39="",AF38,AF38-100)) ->  | AI38: =IF($AD38="","",(VLOOKUP($AH$41,Worksheet!$A$11:$AE$41,AH38+1,FALSE))) -> 
A39: =IF('Entry Information'!J40="","",'Entry Information'!B40) ->  | B39: =IF('Entry Information'!J40="","",'Entry Information'!C40) ->  | C39: =IF('Entry Information'!J40="","",'Entry Information'!D40) ->  | D39: =IF('Entry Information'!J40="","",'Entry Information'!E40) ->  | E39: NOV | F39: =IF('Entry Information'!J40="","",'WALK TROT RESULTS'!F40) ->  | G39: =IF('Entry Information'!$J40="","",IF('WALK TROT RESULTS'!G40="","",'WALK TROT RESULTS'!G40)) ->  | I39: =IF('Entry Information'!$J40="","",IF('Entry Information'!R40="",H39,H39-100)) ->  | K39: =IF($F39="","",(VLOOKUP($J$41,Worksheet!$A$11:$AE$41,J39+1,FALSE))) ->  | L39: =IF('Entry Information'!J40="","",'WALK TROT RESULTS'!L40) ->  | M39: =IF('Entry Information'!$J40="","",IF('WALK TROT RESULTS'!M40="","",'WALK TROT RESULTS'!M40)) ->  | O39: =IF('Entry Information'!$J40="","",IF('Entry Information'!T40="",N39,N39-100)) ->  | Q39: =IF($L39="","",(VLOOKUP($P$41,Worksheet!$A$11:$AE$41,P39+1,FALSE))) ->  | R39: =IF('Entry Information'!J40="","",'WALK TROT RESULTS'!R40) ->  | S39: =IF('Entry Information'!$J40="","",IF('WALK TROT RESULTS'!S40="","",'WALK TROT RESULTS'!S40)) ->  | U39: =IF('Entry Information'!$J40="","",IF('Entry Information'!V40="",T39,T39-100)) ->  | W39: =IF($R39="","",(VLOOKUP($V$41,Worksheet!$A$11:$AE$41,V39+1,FALSE))) ->  | X39: =IF('Entry Information'!$J40="","",'WALK TROT RESULTS'!X40) ->  | Y39: =IF('Entry Information'!$J40="","",IF('WALK TROT RESULTS'!Y40="","",'WALK TROT RESULTS'!Y40)) ->  | AA39: =IF('Entry Information'!$J40="","",IF('Entry Information'!X40="",Z39,Z39-100)) ->  | AC39: =IF($X39="","",(VLOOKUP($AB$41,Worksheet!$A$11:$AE$41,AB39+1,FALSE))) ->  | AD39: =IF('Entry Information'!$J40="","",'WALK TROT RESULTS'!AD40) ->  | AE39: =IF('Entry Information'!$J40="","",IF('WALK TROT RESULTS'!AE40="","",'WALK TROT RESULTS'!AE40)) ->  | AG39: =IF('Entry Information'!$J40="","",IF('Entry Information'!Z40="",AF39,AF39-100)) ->  | AI39: =IF($AD39="","",(VLOOKUP($AH$41,Worksheet!$A$11:$AE$41,AH39+1,FALSE))) -> 
J41: =COUNTIF(J10:J39,">=0") -> 3 | P41: =COUNTIF(P10:P39,">=0") -> 3 | V41: =COUNTIF(V10:V39,">=0") -> 3 | AB41: =COUNTIF(AB10:AB39,">=0") -> 3 | AH41: =COUNTIF(AH10:AH39,">=0") -> 3
F42: 1 - Total Penalty Points | L42: 1 - Total Penalty Points | R42: 1 - Total Penalty Points | X42: 1 - Total Penalty Points | AD42: 1 - Total Penalty Points
F43: 2 - Extended Trot | L43: 2 - Drag Log | R43: 2 - Penning | X43: 2 - Box Cow | AD43: 2 - Box Cow
F44: 3 - Transition down lope/walk/stop | L44: 3 - Ground tie/bridle/pick-up legs | R44: 3 - Working Center of arena | X44: 3 -First Lead Change | AD44: 3 -First Lead Change
F45: 4 - Transition to lope/lope | L45: 4 - Gate | R45: 4 - Cut from Herd | X45: 4 -Spin | AD45: 4 -Spin
A48: Scores in RED are ties - enter a 1 in the Tie Breaker Column of the winner to break tie. If multiple ties enter a 1 for the second place and a 2 for winner.
A51: Places highlighted have a major penatly.

Sheet NOVICE SELECT RESULTS (hidden)
E2: Event Name: | J2: ='Entry Information'!C4 -> Ranch Horse Challenge | Y2: Judge #1 Name/Classes: | AD2: ='Entry Information'!F4 -> Mike Lund
A3: Division: | B3: NOVICE | E3: Event Date: | J3: ='Entry Information'!C5 -> 2018-03-25 | Y3: Judge #2 Name/Classes: | AD3: ='Entry Information'!F5 -> Karen Arlin
F5: RANCH | L5: RANCH | R5: RANCH | X5: RANCH | AD5: RANCH
F6: RIDING | L6: TRAIL | R6: CUTING | X6: REINED WORK | AD6: COW WORK
F7: Score | G7: Tie Breaker | H7: Adjusted Score for Ties | I7: Adjusted Score Major Penalty | J7: Place | K7: Placement Points | L7: Score | M7: Tie Breaker | N7: Adjusted Score for Ties | O7: Adjusted Score Major Penalty | P7: Place | Q7: Placement Points | R7: Score | S7: Tie Breaker | T7: Adjusted Score for Ties | U7: Adjusted Score Major Penalty | V7: Place | W7: Placement Points | X7: Score | Y7: Tie Breaker | Z7: Adjusted Score for Ties | AA7: Adjusted Score Major Penalty | AB7: Place | AC7: Placement Points | AD7: Score | AE7: Tie Breaker | AF7: Adjusted Score for Ties | AG7: Adjusted Score Major Penalty | AH7: Place | AI7: Placement Points
A9: Back No. | B9: Last Name | C9: First Name | D9: Registered Horse Name | E9: Division
A10: =IF('Entry Information'!H11="","",'Entry Information'!B11) ->  | B10: =IF('Entry Information'!H11="","",'Entry Information'!C11) ->  | C10: =IF('Entry Information'!H11="","",'Entry Information'!D11) ->  | D10: =IF('Entry Information'!H11="","",'Entry Information'!E11) ->  | E10: NOV | F10: =IF('Entry Information'!H11="","",'WALK TROT RESULTS'!F11) ->  | G10: =IF('Entry Information'!$H11="","",IF('WALK TROT RESULTS'!G11="","",'WALK TROT RESULTS'!G11)) ->  | H10: =IF(G10="",F10,(F10+(G10*0.001))) ->  | I10: =IF('Entry Information'!$H11="","",IF('Entry Information'!R11="",H10,H10-100)) ->  | J10: =IF(I10="","",(RANK(I10,$I$10:$I$39,0))) ->  | K10: =IF($F10="","",(VLOOKUP($J$41,Worksheet!$A$11:$AE$41,J10+1,FALSE))) ->  | L10: =IF('Entry Information'!H11="","",'WALK TROT RESULTS'!L11) ->  | M10: =IF('Entry Information'!$H11="","",IF('WALK TROT RESULTS'!M11="","",'WALK TROT RESULTS'!M11)) ->  | N10: =IF(M10="",L10,(L10+(M10*0.001))) ->  | O10: =IF('Entry Information'!$H11="","",IF('Entry Information'!T11="",N10,N10-100)) ->  | P10: =IF(O10="","",(RANK(O10,$O$10:$O$39,0))) ->  | Q10: =IF($L10="","",(VLOOKUP($P$41,Worksheet!$A$11:$AE$41,P10+1,FALSE))) ->  | R10: =IF('Entry Information'!H11="","",'WALK TROT RESULTS'!R11) ->  | S10: =IF('Entry Information'!$H11="","",IF('WALK TROT RESULTS'!S11="","",'WALK TROT RESULTS'!S11)) ->  | T10: =IF(S10="",R10,(R10+(S10*0.001))) ->  | U10: =IF('Entry Information'!$H11="","",IF('Entry Information'!V11="",T10,T10-100)) ->  | V10: =IF(U10="","",(RANK(U10,$U$10:$U$39,0))) ->  | W10: =IF($R10="","",(VLOOKUP($V$41,Worksheet!$A$11:$AE$41,V10+1,FALSE))) ->  | X10: =IF('Entry Information'!$H11="","",'WALK TROT RESULTS'!X11) ->  | Y10: =IF('Entry Information'!$H11="","",IF('WALK TROT RESULTS'!Y11="","",'WALK TROT RESULTS'!Y11)) ->  | Z10: =IF(Y10="",X10,(X10+(Y10*0.001))) ->  | AA10: =IF('Entry Information'!$H11="","",IF('Entry Information'!X11="",Z10,Z10-100)) ->  | AB10: =IF(AA10="","",(RANK(AA10,$AA$10:$AA$39,0))) ->  | AC10: =IF($X10="","",(VLOOKUP($AB$41,Worksheet!$A$11:$AE$41,AB10+1,FALSE))) ->  | AD10: =IF('Entry Information'!$H11="","",'WALK TROT RESULTS'!AD11) ->  | AE10: =IF('Entry Information'!$H11="","",IF('WALK TROT RESULTS'!AE11="","",'WALK TROT RESULTS'!AE11)) ->  | AF10: =IF(AE10="",AD10,(AD10+(AE10*0.001))) ->  | AG10: =IF('Entry Information'!$H11="","",IF('Entry Information'!Z11="",AF10,AF10-100)) ->  | AH10: =IF(AG10="","",(RANK(AG10,$AG$10:$AG$39,0))) ->  | AI10: =IF($AD10="","",(VLOOKUP($AH$41,Worksheet!$A$11:$AE$41,AH10+1,FALSE))) -> 
A11: =IF('Entry Information'!H12="","",'Entry Information'!B12) ->  | B11: =IF('Entry Information'!H12="","",'Entry Information'!C12) ->  | C11: =IF('Entry Information'!H12="","",'Entry Information'!D12) ->  | D11: =IF('Entry Information'!H12="","",'Entry Information'!E12) ->  | E11: NOV | F11: =IF('Entry Information'!H12="","",'WALK TROT RESULTS'!F12) ->  | G11: =IF('Entry Information'!$H12="","",IF('WALK TROT RESULTS'!G12="","",'WALK TROT RESULTS'!G12)) ->  | H11: =IF(G11="",F11,(F11+(G11*0.001))) ->  | I11: =IF('Entry Information'!$H12="","",IF('Entry Information'!R12="",H11,H11-100)) ->  | J11: =IF(I11="","",(RANK(I11,$I$10:$I$39,0))) ->  | K11: =IF($F11="","",(VLOOKUP($J$41,Worksheet!$A$11:$AE$41,J11+1,FALSE))) ->  | L11: =IF('Entry Information'!H12="","",'WALK TROT RESULTS'!L12) ->  | M11: =IF('Entry Information'!$H12="","",IF('WALK TROT RESULTS'!M12="","",'WALK TROT RESULTS'!M12)) ->  | O11: =IF('Entry Information'!$H12="","",IF('Entry Information'!T12="",N11,N11-100)) ->  | P11: =IF(O11="","",(RANK(O11,$O$10:$O$39,0))) ->  | Q11: =IF($L11="","",(VLOOKUP($P$41,Worksheet!$A$11:$AE$41,P11+1,FALSE))) ->  | R11: =IF('Entry Information'!H12="","",'WALK TROT RESULTS'!R12) ->  | S11: =IF('Entry Information'!$H12="","",IF('WALK TROT RESULTS'!S12="","",'WALK TROT RESULTS'!S12)) ->  | U11: =IF('Entry Information'!$H12="","",IF('Entry Information'!V12="",T11,T11-100)) ->  | V11: =IF(U11="","",(RANK(U11,$U$10:$U$39,0))) ->  | W11: =IF($R11="","",(VLOOKUP($V$41,Worksheet!$A$11:$AE$41,V11+1,FALSE))) ->  | X11: =IF('Entry Information'!$H12="","",'WALK TROT RESULTS'!X12) ->  | Y11: =IF('Entry Information'!$H12="","",IF('WALK TROT RESULTS'!Y12="","",'WALK TROT RESULTS'!Y12)) ->  | Z11: =IF(Y11="",X11,(X11+(Y11*0.001))) ->  | AA11: =IF('Entry Information'!$H12="","",IF('Entry Information'!X12="",Z11,Z11-100)) ->  | AB11: =IF(AA11="","",(RANK(AA11,$AA$10:$AA$39,0))) ->  | AC11: =IF($X11="","",(VLOOKUP($AB$41,Worksheet!$A$11:$AE$41,AB11+1,FALSE))) ->  | AD11: =IF('Entry Information'!$H12="","",'WALK TROT RESULTS'!AD12) ->  | AE11: =IF('Entry Information'!$H12="","",IF('WALK TROT RESULTS'!AE12="","",'WALK TROT RESULTS'!AE12)) ->  | AF11: =IF(AE11="",AD11,(AD11+(AE11*0.001))) ->  | AG11: =IF('Entry Information'!$H12="","",IF('Entry Information'!Z12="",AF11,AF11-100)) ->  | AH11: =IF(AG11="","",(RANK(AG11,$AG$10:$AG$39,0))) ->  | AI11: =IF($AD11="","",(VLOOKUP($AH$41,Worksheet!$A$11:$AE$41,AH11+1,FALSE))) -> 
A12: =IF('Entry Information'!H13="","",'Entry Information'!B13) ->  | B12: =IF('Entry Information'!H13="","",'Entry Information'!C13) ->  | C12: =IF('Entry Information'!H13="","",'Entry Information'!D13) ->  | D12: =IF('Entry Information'!H13="","",'Entry Information'!E13) ->  | E12: NOV | F12: =IF('Entry Information'!H13="","",'WALK TROT RESULTS'!F13) ->  | G12: =IF('Entry Information'!$H13="","",IF('WALK TROT RESULTS'!G13="","",'WALK TROT RESULTS'!G13)) ->  | I12: =IF('Entry Information'!$H13="","",IF('Entry Information'!R13="",H12,H12-100)) ->  | K12: =IF($F12="","",(VLOOKUP($J$41,Worksheet!$A$11:$AE$41,J12+1,FALSE))) ->  | L12: =IF('Entry Information'!H13="","",'WALK TROT RESULTS'!L13) ->  | M12: =IF('Entry Information'!$H13="","",IF('WALK TROT RESULTS'!M13="","",'WALK TROT RESULTS'!M13)) ->  | O12: =IF('Entry Information'!$H13="","",IF('Entry Information'!T13="",N12,N12-100)) ->  | Q12: =IF($L12="","",(VLOOKUP($P$41,Worksheet!$A$11:$AE$41,P12+1,FALSE))) ->  | R12: =IF('Entry Information'!H13="","",'WALK TROT RESULTS'!R13) ->  | S12: =IF('Entry Information'!$H13="","",IF('WALK TROT RESULTS'!S13="","",'WALK TROT RESULTS'!S13)) ->  | U12: =IF('Entry Information'!$H13="","",IF('Entry Information'!V13="",T12,T12-100)) ->  | W12: =IF($R12="","",(VLOOKUP($V$41,Worksheet!$A$11:$AE$41,V12+1,FALSE))) ->  | X12: =IF('Entry Information'!$H13="","",'WALK TROT RESULTS'!X13) ->  | Y12: =IF('Entry Information'!$H13="","",IF('WALK TROT RESULTS'!Y13="","",'WALK TROT RESULTS'!Y13)) ->  | AA12: =IF('Entry Information'!$H13="","",IF('Entry Information'!X13="",Z12,Z12-100)) ->  | AC12: =IF($X12="","",(VLOOKUP($AB$41,Worksheet!$A$11:$AE$41,AB12+1,FALSE))) ->  | AD12: =IF('Entry Information'!$H13="","",'WALK TROT RESULTS'!AD13) ->  | AE12: =IF('Entry Information'!$H13="","",IF('WALK TROT RESULTS'!AE13="","",'WALK TROT RESULTS'!AE13)) ->  | AG12: =IF('Entry Information'!$H13="","",IF('Entry Information'!Z13="",AF12,AF12-100)) ->  | AI12: =IF($AD12="","",(VLOOKUP($AH$41,Worksheet!$A$11:$AE$41,AH12+1,FALSE))) -> 
A13: =IF('Entry Information'!H14="","",'Entry Information'!B14) ->  | B13: =IF('Entry Information'!H14="","",'Entry Information'!C14) ->  | C13: =IF('Entry Information'!H14="","",'Entry Information'!D14) ->  | D13: =IF('Entry Information'!H14="","",'Entry Information'!E14) ->  | E13: NOV | F13: =IF('Entry Information'!H14="","",'WALK TROT RESULTS'!F14) ->  | G13: =IF('Entry Information'!$H14="","",IF('WALK TROT RESULTS'!G14="","",'WALK TROT RESULTS'!G14)) ->  | I13: =IF('Entry Information'!$H14="","",IF('Entry Information'!R14="",H13,H13-100)) ->  | K13: =IF($F13="","",(VLOOKUP($J$41,Worksheet!$A$11:$AE$41,J13+1,FALSE))) ->  | L13: =IF('Entry Information'!H14="","",'WALK TROT RESULTS'!L14) ->  | M13: =IF('Entry Information'!$H14="","",IF('WALK TROT RESULTS'!M14="","",'WALK TROT RESULTS'!M14)) ->  | O13: =IF('Entry Information'!$H14="","",IF('Entry Information'!T14="",N13,N13-100)) ->  | Q13: =IF($L13="","",(VLOOKUP($P$41,Worksheet!$A$11:$AE$41,P13+1,FALSE))) ->  | R13: =IF('Entry Information'!H14="","",'WALK TROT RESULTS'!R14) ->  | S13: =IF('Entry Information'!$H14="","",IF('WALK TROT RESULTS'!S14="","",'WALK TROT RESULTS'!S14)) ->  | U13: =IF('Entry Information'!$H14="","",IF('Entry Information'!V14="",T13,T13-100)) ->  | W13: =IF($R13="","",(VLOOKUP($V$41,Worksheet!$A$11:$AE$41,V13+1,FALSE))) ->  | X13: =IF('Entry Information'!$H14="","",'WALK TROT RESULTS'!X14) ->  | Y13: =IF('Entry Information'!$H14="","",IF('WALK TROT RESULTS'!Y14="","",'WALK TROT RESULTS'!Y14)) ->  | AA13: =IF('Entry Information'!$H14="","",IF('Entry Information'!X14="",Z13,Z13-100)) ->  | AC13: =IF($X13="","",(VLOOKUP($AB$41,Worksheet!$A$11:$AE$41,AB13+1,FALSE))) ->  | AD13: =IF('Entry Information'!$H14="","",'WALK TROT RESULTS'!AD14) ->  | AE13: =IF('Entry Information'!$H14="","",IF('WALK TROT RESULTS'!AE14="","",'WALK TROT RESULTS'!AE14)) ->  | AG13: =IF('Entry Information'!$H14="","",IF('Entry Information'!Z14="",AF13,AF13-100)) ->  | AI13: =IF($AD13="","",(VLOOKUP($AH$41,Worksheet!$A$11:$AE$41,AH13+1,FALSE))) -> 
A14: =IF('Entry Information'!H15="","",'Entry Information'!B15) ->  | B14: =IF('Entry Information'!H15="","",'Entry Information'!C15) ->  | C14: =IF('Entry Information'!H15="","",'Entry Information'!D15) ->  | D14: =IF('Entry Information'!H15="","",'Entry Information'!E15) ->  | E14: NOV | F14: =IF('Entry Information'!H15="","",'WALK TROT RESULTS'!F15) ->  | G14: =IF('Entry Information'!$H15="","",IF('WALK TROT RESULTS'!G15="","",'WALK TROT RESULTS'!G15)) ->  | I14: =IF('Entry Information'!$H15="","",IF('Entry Information'!R15="",H14,H14-100)) ->  | K14: =IF($F14="","",(VLOOKUP($J$41,Worksheet!$A$11:$AE$41,J14+1,FALSE))) ->  | L14: =IF('Entry Information'!H15="","",'WALK TROT RESULTS'!L15) ->  | M14: =IF('Entry Information'!$H15="","",IF('WALK TROT RESULTS'!M15="","",'WALK TROT RESULTS'!M15)) ->  | O14: =IF('Entry Information'!$H15="","",IF('Entry Information'!T15="",N14,N14-100)) ->  | Q14: =IF($L14="","",(VLOOKUP($P$41,Worksheet!$A$11:$AE$41,P14+1,FALSE))) ->  | R14: =IF('Entry Information'!H15="","",'WALK TROT RESULTS'!R15) ->  | S14: =IF('Entry Information'!$H15="","",IF('WALK TROT RESULTS'!S15="","",'WALK TROT RESULTS'!S15)) ->  | U14: =IF('Entry Information'!$H15="","",IF('Entry Information'!V15="",T14,T14-100)) ->  | W14: =IF($R14="","",(VLOOKUP($V$41,Worksheet!$A$11:$AE$41,V14+1,FALSE))) ->  | X14: =IF('Entry Information'!$H15="","",'WALK TROT RESULTS'!X15) ->  | Y14: =IF('Entry Information'!$H15="","",IF('WALK TROT RESULTS'!Y15="","",'WALK TROT RESULTS'!Y15)) ->  | AA14: =IF('Entry Information'!$H15="","",IF('Entry Information'!X15="",Z14,Z14-100)) ->  | AC14: =IF($X14="","",(VLOOKUP($AB$41,Worksheet!$A$11:$AE$41,AB14+1,FALSE))) ->  | AD14: =IF('Entry Information'!$H15="","",'WALK TROT RESULTS'!AD15) ->  | AE14: =IF('Entry Information'!$H15="","",IF('WALK TROT RESULTS'!AE15="","",'WALK TROT RESULTS'!AE15)) ->  | AG14: =IF('Entry Information'!$H15="","",IF('Entry Information'!Z15="",AF14,AF14-100)) ->  | AI14: =IF($AD14="","",(VLOOKUP($AH$41,Worksheet!$A$11:$AE$41,AH14+1,FALSE))) -> 
A15: =IF('Entry Information'!H16="","",'Entry Information'!B16) ->  | B15: =IF('Entry Information'!H16="","",'Entry Information'!C16) ->  | C15: =IF('Entry Information'!H16="","",'Entry Information'!D16) ->  | D15: =IF('Entry Information'!H16="","",'Entry Information'!E16) ->  | E15: NOV | F15: =IF('Entry Information'!H16="","",'WALK TROT RESULTS'!F16) ->  | G15: =IF('Entry Information'!$H16="","",IF('WALK TROT RESULTS'!G16="","",'WALK TROT RESULTS'!G16)) ->  | I15: =IF('Entry Information'!$H16="","",IF('Entry Information'!R16="",H15,H15-100)) ->  | K15: =IF($F15="","",(VLOOKUP($J$41,Worksheet!$A$11:$AE$41,J15+1,FALSE))) ->  | L15: =IF('Entry Information'!H16="","",'WALK TROT RESULTS'!L16) ->  | M15: =IF('Entry Information'!$H16="","",IF('WALK TROT RESULTS'!M16="","",'WALK TROT RESULTS'!M16)) ->  | O15: =IF('Entry Information'!$H16="","",IF('Entry Information'!T16="",N15,N15-100)) ->  | Q15: =IF($L15="","",(VLOOKUP($P$41,Worksheet!$A$11:$AE$41,P15+1,FALSE))) ->  | R15: =IF('Entry Information'!H16="","",'WALK TROT RESULTS'!R16) ->  | S15: =IF('Entry Information'!$H16="","",IF('WALK TROT RESULTS'!S16="","",'WALK TROT RESULTS'!S16)) ->  | U15: =IF('Entry Information'!$H16="","",IF('Entry Information'!V16="",T15,T15-100)) ->  | W15: =IF($R15="","",(VLOOKUP($V$41,Worksheet!$A$11:$AE$41,V15+1,FALSE))) ->  | X15: =IF('Entry Information'!$H16="","",'WALK TROT RESULTS'!X16) ->  | Y15: =IF('Entry Information'!$H16="","",IF('WALK TROT RESULTS'!Y16="","",'WALK TROT RESULTS'!Y16)) ->  | AA15: =IF('Entry Information'!$H16="","",IF('Entry Information'!X16="",Z15,Z15-100)) ->  | AC15: =IF($X15="","",(VLOOKUP($AB$41,Worksheet!$A$11:$AE$41,AB15+1,FALSE))) ->  | AD15: =IF('Entry Information'!$H16="","",'WALK TROT RESULTS'!AD16) ->  | AE15: =IF('Entry Information'!$H16="","",IF('WALK TROT RESULTS'!AE16="","",'WALK TROT RESULTS'!AE16)) ->  | AG15: =IF('Entry Information'!$H16="","",IF('Entry Information'!Z16="",AF15,AF15-100)) ->  | AI15: =IF($AD15="","",(VLOOKUP($AH$41,Worksheet!$A$11:$AE$41,AH15+1,FALSE))) -> 
A16: =IF('Entry Information'!H17="","",'Entry Information'!B17) ->  | B16: =IF('Entry Information'!H17="","",'Entry Information'!C17) ->  | C16: =IF('Entry Information'!H17="","",'Entry Information'!D17) ->  | D16: =IF('Entry Information'!H17="","",'Entry Information'!E17) ->  | E16: NOV | F16: =IF('Entry Information'!H17="","",'WALK TROT RESULTS'!F17) ->  | G16: =IF('Entry Information'!$H17="","",IF('WALK TROT RESULTS'!G17="","",'WALK TROT RESULTS'!G17)) ->  | I16: =IF('Entry Information'!$H17="","",IF('Entry Information'!R17="",H16,H16-100)) ->  | K16: =IF($F16="","",(VLOOKUP($J$41,Worksheet!$A$11:$AE$41,J16+1,FALSE))) ->  | L16: =IF('Entry Information'!H17="","",'WALK TROT RESULTS'!L17) ->  | M16: =IF('Entry Information'!$H17="","",IF('WALK TROT RESULTS'!M17="","",'WALK TROT RESULTS'!M17)) ->  | O16: =IF('Entry Information'!$H17="","",IF('Entry Information'!T17="",N16,N16-100)) ->  | Q16: =IF($L16="","",(VLOOKUP($P$41,Worksheet!$A$11:$AE$41,P16+1,FALSE))) ->  | R16: =IF('Entry Information'!H17="","",'WALK TROT RESULTS'!R17) ->  | S16: =IF('Entry Information'!$H17="","",IF('WALK TROT RESULTS'!S17="","",'WALK TROT RESULTS'!S17)) ->  | U16: =IF('Entry Information'!$H17="","",IF('Entry Information'!V17="",T16,T16-100)) ->  | W16: =IF($R16="","",(VLOOKUP($V$41,Worksheet!$A$11:$AE$41,V16+1,FALSE))) ->  | X16: =IF('Entry Information'!$H17="","",'WALK TROT RESULTS'!X17) ->  | Y16: =IF('Entry Information'!$H17="","",IF('WALK TROT RESULTS'!Y17="","",'WALK TROT RESULTS'!Y17)) ->  | AA16: =IF('Entry Information'!$H17="","",IF('Entry Information'!X17="",Z16,Z16-100)) ->  | AC16: =IF($X16="","",(VLOOKUP($AB$41,Worksheet!$A$11:$AE$41,AB16+1,FALSE))) ->  | AD16: =IF('Entry Information'!$H17="","",'WALK TROT RESULTS'!AD17) ->  | AE16: =IF('Entry Information'!$H17="","",IF('WALK TROT RESULTS'!AE17="","",'WALK TROT RESULTS'!AE17)) ->  | AG16: =IF('Entry Information'!$H17="","",IF('Entry Information'!Z17="",AF16,AF16-100)) ->  | AI16: =IF($AD16="","",(VLOOKUP($AH$41,Worksheet!$A$11:$AE$41,AH16+1,FALSE))) -> 
A17: =IF('Entry Information'!H18="","",'Entry Information'!B18) ->  | B17: =IF('Entry Information'!H18="","",'Entry Information'!C18) ->  | C17: =IF('Entry Information'!H18="","",'Entry Information'!D18) ->  | D17: =IF('Entry Information'!H18="","",'Entry Information'!E18) ->  | E17: NOV | F17: =IF('Entry Information'!H18="","",'WALK TROT RESULTS'!F18) ->  | G17: =IF('Entry Information'!$H18="","",IF('WALK TROT RESULTS'!G18="","",'WALK TROT RESULTS'!G18)) ->  | I17: =IF('Entry Information'!$H18="","",IF('Entry Information'!R18="",H17,H17-100)) ->  | K17: =IF($F17="","",(VLOOKUP($J$41,Worksheet!$A$11:$AE$41,J17+1,FALSE))) ->  | L17: =IF('Entry Information'!H18="","",'WALK TROT RESULTS'!L18) ->  | M17: =IF('Entry Information'!$H18="","",IF('WALK TROT RESULTS'!M18="","",'WALK TROT RESULTS'!M18)) ->  | O17: =IF('Entry Information'!$H18="","",IF('Entry Information'!T18="",N17,N17-100)) ->  | Q17: =IF($L17="","",(VLOOKUP($P$41,Worksheet!$A$11:$AE$41,P17+1,FALSE))) ->  | R17: =IF('Entry Information'!H18="","",'WALK TROT RESULTS'!R18) ->  | S17: =IF('Entry Information'!$H18="","",IF('WALK TROT RESULTS'!S18="","",'WALK TROT RESULTS'!S18)) ->  | U17: =IF('Entry Information'!$H18="","",IF('Entry Information'!V18="",T17,T17-100)) ->  | W17: =IF($R17="","",(VLOOKUP($V$41,Worksheet!$A$11:$AE$41,V17+1,FALSE))) ->  | X17: =IF('Entry Information'!$H18="","",'WALK TROT RESULTS'!X18) ->  | Y17: =IF('Entry Information'!$H18="","",IF('WALK TROT RESULTS'!Y18="","",'WALK TROT RESULTS'!Y18)) ->  | AA17: =IF('Entry Information'!$H18="","",IF('Entry Information'!X18="",Z17,Z17-100)) ->  | AC17: =IF($X17="","",(VLOOKUP($AB$41,Worksheet!$A$11:$AE$41,AB17+1,FALSE))) ->  | AD17: =IF('Entry Information'!$H18="","",'WALK TROT RESULTS'!AD18) ->  | AE17: =IF('Entry Information'!$H18="","",IF('WALK TROT RESULTS'!AE18="","",'WALK TROT RESULTS'!AE18)) ->  | AG17: =IF('Entry Information'!$H18="","",IF('Entry Information'!Z18="",AF17,AF17-100)) ->  | AI17: =IF($AD17="","",(VLOOKUP($AH$41,Worksheet!$A$11:$AE$41,AH17+1,FALSE))) -> 
A18: =IF('Entry Information'!H19="","",'Entry Information'!B19) ->  | B18: =IF('Entry Information'!H19="","",'Entry Information'!C19) ->  | C18: =IF('Entry Information'!H19="","",'Entry Information'!D19) ->  | D18: =IF('Entry Information'!H19="","",'Entry Information'!E19) ->  | E18: NOV | F18: =IF('Entry Information'!H19="","",'WALK TROT RESULTS'!F19) ->  | G18: =IF('Entry Information'!$H19="","",IF('WALK TROT RESULTS'!G19="","",'WALK TROT RESULTS'!G19)) ->  | I18: =IF('Entry Information'!$H19="","",IF('Entry Information'!R19="",H18,H18-100)) ->  | K18: =IF($F18="","",(VLOOKUP($J$41,Worksheet!$A$11:$AE$41,J18+1,FALSE))) ->  | L18: =IF('Entry Information'!H19="","",'WALK TROT RESULTS'!L19) ->  | M18: =IF('Entry Information'!$H19="","",IF('WALK TROT RESULTS'!M19="","",'WALK TROT RESULTS'!M19)) ->  | O18: =IF('Entry Information'!$H19="","",IF('Entry Information'!T19="",N18,N18-100)) ->  | Q18: =IF($L18="","",(VLOOKUP($P$41,Worksheet!$A$11:$AE$41,P18+1,FALSE))) ->  | R18: =IF('Entry Information'!H19="","",'WALK TROT RESULTS'!R19) ->  | S18: =IF('Entry Information'!$H19="","",IF('WALK TROT RESULTS'!S19="","",'WALK TROT RESULTS'!S19)) ->  | U18: =IF('Entry Information'!$H19="","",IF('Entry Information'!V19="",T18,T18-100)) ->  | W18: =IF($R18="","",(VLOOKUP($V$41,Worksheet!$A$11:$AE$41,V18+1,FALSE))) ->  | X18: =IF('Entry Information'!$H19="","",'WALK TROT RESULTS'!X19) ->  | Y18: =IF('Entry Information'!$H19="","",IF('WALK TROT RESULTS'!Y19="","",'WALK TROT RESULTS'!Y19)) ->  | AA18: =IF('Entry Information'!$H19="","",IF('Entry Information'!X19="",Z18,Z18-100)) ->  | AC18: =IF($X18="","",(VLOOKUP($AB$41,Worksheet!$A$11:$AE$41,AB18+1,FALSE))) ->  | AD18: =IF('Entry Information'!$H19="","",'WALK TROT RESULTS'!AD19) ->  | AE18: =IF('Entry Information'!$H19="","",IF('WALK TROT RESULTS'!AE19="","",'WALK TROT RESULTS'!AE19)) ->  | AG18: =IF('Entry Information'!$H19="","",IF('Entry Information'!Z19="",AF18,AF18-100)) ->  | AI18: =IF($AD18="","",(VLOOKUP($AH$41,Worksheet!$A$11:$AE$41,AH18+1,FALSE))) -> 
A19: =IF('Entry Information'!H20="","",'Entry Information'!B20) ->  | B19: =IF('Entry Information'!H20="","",'Entry Information'!C20) ->  | C19: =IF('Entry Information'!H20="","",'Entry Information'!D20) ->  | D19: =IF('Entry Information'!H20="","",'Entry Information'!E20) ->  | E19: NOV | F19: =IF('Entry Information'!H20="","",'WALK TROT RESULTS'!F20) ->  | G19: =IF('Entry Information'!$H20="","",IF('WALK TROT RESULTS'!G20="","",'WALK TROT RESULTS'!G20)) ->  | I19: =IF('Entry Information'!$H20="","",IF('Entry Information'!R20="",H19,H19-100)) ->  | K19: =IF($F19="","",(VLOOKUP($J$41,Worksheet!$A$11:$AE$41,J19+1,FALSE))) ->  | L19: =IF('Entry Information'!H20="","",'WALK TROT RESULTS'!L20) ->  | M19: =IF('Entry Information'!$H20="","",IF('WALK TROT RESULTS'!M20="","",'WALK TROT RESULTS'!M20)) ->  | O19: =IF('Entry Information'!$H20="","",IF('Entry Information'!T20="",N19,N19-100)) ->  | Q19: =IF($L19="","",(VLOOKUP($P$41,Worksheet!$A$11:$AE$41,P19+1,FALSE))) ->  | R19: =IF('Entry Information'!H20="","",'WALK TROT RESULTS'!R20) ->  | S19: =IF('Entry Information'!$H20="","",IF('WALK TROT RESULTS'!S20="","",'WALK TROT RESULTS'!S20)) ->  | U19: =IF('Entry Information'!$H20="","",IF('Entry Information'!V20="",T19,T19-100)) ->  | W19: =IF($R19="","",(VLOOKUP($V$41,Worksheet!$A$11:$AE$41,V19+1,FALSE))) ->  | X19: =IF('Entry Information'!$H20="","",'WALK TROT RESULTS'!X20) ->  | Y19: =IF('Entry Information'!$H20="","",IF('WALK TROT RESULTS'!Y20="","",'WALK TROT RESULTS'!Y20)) ->  | AA19: =IF('Entry Information'!$H20="","",IF('Entry Information'!X20="",Z19,Z19-100)) ->  | AC19: =IF($X19="","",(VLOOKUP($AB$41,Worksheet!$A$11:$AE$41,AB19+1,FALSE))) ->  | AD19: =IF('Entry Information'!$H20="","",'WALK TROT RESULTS'!AD20) ->  | AE19: =IF('Entry Information'!$H20="","",IF('WALK TROT RESULTS'!AE20="","",'WALK TROT RESULTS'!AE20)) ->  | AG19: =IF('Entry Information'!$H20="","",IF('Entry Information'!Z20="",AF19,AF19-100)) ->  | AI19: =IF($AD19="","",(VLOOKUP($AH$41,Worksheet!$A$11:$AE$41,AH19+1,FALSE))) -> 
A20: =IF('Entry Information'!H21="","",'Entry Information'!B21) ->  | B20: =IF('Entry Information'!H21="","",'Entry Information'!C21) ->  | C20: =IF('Entry Information'!H21="","",'Entry Information'!D21) ->  | D20: =IF('Entry Information'!H21="","",'Entry Information'!E21) ->  | E20: NOV | F20: =IF('Entry Information'!H21="","",'WALK TROT RESULTS'!F21) ->  | G20: =IF('Entry Information'!$H21="","",IF('WALK TROT RESULTS'!G21="","",'WALK TROT RESULTS'!G21)) ->  | I20: =IF('Entry Information'!$H21="","",IF('Entry Information'!R21="",H20,H20-100)) ->  | K20: =IF($F20="","",(VLOOKUP($J$41,Worksheet!$A$11:$AE$41,J20+1,FALSE))) ->  | L20: =IF('Entry Information'!H21="","",'WALK TROT RESULTS'!L21) ->  | M20: =IF('Entry Information'!$H21="","",IF('WALK TROT RESULTS'!M21="","",'WALK TROT RESULTS'!M21)) ->  | O20: =IF('Entry Information'!$H21="","",IF('Entry Information'!T21="",N20,N20-100)) ->  | Q20: =IF($L20="","",(VLOOKUP($P$41,Worksheet!$A$11:$AE$41,P20+1,FALSE))) ->  | R20: =IF('Entry Information'!H21="","",'WALK TROT RESULTS'!R21) ->  | S20: =IF('Entry Information'!$H21="","",IF('WALK TROT RESULTS'!S21="","",'WALK TROT RESULTS'!S21)) ->  | U20: =IF('Entry Information'!$H21="","",IF('Entry Information'!V21="",T20,T20-100)) ->  | W20: =IF($R20="","",(VLOOKUP($V$41,Worksheet!$A$11:$AE$41,V20+1,FALSE))) ->  | X20: =IF('Entry Information'!$H21="","",'WALK TROT RESULTS'!X21) ->  | Y20: =IF('Entry Information'!$H21="","",IF('WALK TROT RESULTS'!Y21="","",'WALK TROT RESULTS'!Y21)) ->  | AA20: =IF('Entry Information'!$H21="","",IF('Entry Information'!X21="",Z20,Z20-100)) ->  | AC20: =IF($X20="","",(VLOOKUP($AB$41,Worksheet!$A$11:$AE$41,AB20+1,FALSE))) ->  | AD20: =IF('Entry Information'!$H21="","",'WALK TROT RESULTS'!AD21) ->  | AE20: =IF('Entry Information'!$H21="","",IF('WALK TROT RESULTS'!AE21="","",'WALK TROT RESULTS'!AE21)) ->  | AG20: =IF('Entry Information'!$H21="","",IF('Entry Information'!Z21="",AF20,AF20-100)) ->  | AI20: =IF($AD20="","",(VLOOKUP($AH$41,Worksheet!$A$11:$AE$41,AH20+1,FALSE))) -> 
A21: =IF('Entry Information'!H22="","",'Entry Information'!B22) ->  | B21: =IF('Entry Information'!H22="","",'Entry Information'!C22) ->  | C21: =IF('Entry Information'!H22="","",'Entry Information'!D22) ->  | D21: =IF('Entry Information'!H22="","",'Entry Information'!E22) ->  | E21: NOV | F21: =IF('Entry Information'!H22="","",'WALK TROT RESULTS'!F22) ->  | G21: =IF('Entry Information'!$H22="","",IF('WALK TROT RESULTS'!G22="","",'WALK TROT RESULTS'!G22)) ->  | I21: =IF('Entry Information'!$H22="","",IF('Entry Information'!R22="",H21,H21-100)) ->  | K21: =IF($F21="","",(VLOOKUP($J$41,Worksheet!$A$11:$AE$41,J21+1,FALSE))) ->  | L21: =IF('Entry Information'!H22="","",'WALK TROT RESULTS'!L22) ->  | M21: =IF('Entry Information'!$H22="","",IF('WALK TROT RESULTS'!M22="","",'WALK TROT RESULTS'!M22)) ->  | O21: =IF('Entry Information'!$H22="","",IF('Entry Information'!T22="",N21,N21-100)) ->  | Q21: =IF($L21="","",(VLOOKUP($P$41,Worksheet!$A$11:$AE$41,P21+1,FALSE))) ->  | R21: =IF('Entry Information'!H22="","",'WALK TROT RESULTS'!R22) ->  | S21: =IF('Entry Information'!$H22="","",IF('WALK TROT RESULTS'!S22="","",'WALK TROT RESULTS'!S22)) ->  | U21: =IF('Entry Information'!$H22="","",IF('Entry Information'!V22="",T21,T21-100)) ->  | W21: =IF($R21="","",(VLOOKUP($V$41,Worksheet!$A$11:$AE$41,V21+1,FALSE))) ->  | X21: =IF('Entry Information'!$H22="","",'WALK TROT RESULTS'!X22) ->  | Y21: =IF('Entry Information'!$H22="","",IF('WALK TROT RESULTS'!Y22="","",'WALK TROT RESULTS'!Y22)) ->  | AA21: =IF('Entry Information'!$H22="","",IF('Entry Information'!X22="",Z21,Z21-100)) ->  | AC21: =IF($X21="","",(VLOOKUP($AB$41,Worksheet!$A$11:$AE$41,AB21+1,FALSE))) ->  | AD21: =IF('Entry Information'!$H22="","",'WALK TROT RESULTS'!AD22) ->  | AE21: =IF('Entry Information'!$H22="","",IF('WALK TROT RESULTS'!AE22="","",'WALK TROT RESULTS'!AE22)) ->  | AG21: =IF('Entry Information'!$H22="","",IF('Entry Information'!Z22="",AF21,AF21-100)) ->  | AI21: =IF($AD21="","",(VLOOKUP($AH$41,Worksheet!$A$11:$AE$41,AH21+1,FALSE))) -> 
A22: =IF('Entry Information'!H23="","",'Entry Information'!B23) ->  | B22: =IF('Entry Information'!H23="","",'Entry Information'!C23) ->  | C22: =IF('Entry Information'!H23="","",'Entry Information'!D23) ->  | D22: =IF('Entry Information'!H23="","",'Entry Information'!E23) ->  | E22: NOV | F22: =IF('Entry Information'!H23="","",'WALK TROT RESULTS'!F23) ->  | G22: =IF('Entry Information'!$H23="","",IF('WALK TROT RESULTS'!G23="","",'WALK TROT RESULTS'!G23)) ->  | I22: =IF('Entry Information'!$H23="","",IF('Entry Information'!R23="",H22,H22-100)) ->  | K22: =IF($F22="","",(VLOOKUP($J$41,Worksheet!$A$11:$AE$41,J22+1,FALSE))) ->  | L22: =IF('Entry Information'!H23="","",'WALK TROT RESULTS'!L23) ->  | M22: =IF('Entry Information'!$H23="","",IF('WALK TROT RESULTS'!M23="","",'WALK TROT RESULTS'!M23)) ->  | O22: =IF('Entry Information'!$H23="","",IF('Entry Information'!T23="",N22,N22-100)) ->  | Q22: =IF($L22="","",(VLOOKUP($P$41,Worksheet!$A$11:$AE$41,P22+1,FALSE))) ->  | R22: =IF('Entry Information'!H23="","",'WALK TROT RESULTS'!R23) ->  | S22: =IF('Entry Information'!$H23="","",IF('WALK TROT RESULTS'!S23="","",'WALK TROT RESULTS'!S23)) ->  | U22: =IF('Entry Information'!$H23="","",IF('Entry Information'!V23="",T22,T22-100)) ->  | W22: =IF($R22="","",(VLOOKUP($V$41,Worksheet!$A$11:$AE$41,V22+1,FALSE))) ->  | X22: =IF('Entry Information'!$H23="","",'WALK TROT RESULTS'!X23) ->  | Y22: =IF('Entry Information'!$H23="","",IF('WALK TROT RESULTS'!Y23="","",'WALK TROT RESULTS'!Y23)) ->  | AA22: =IF('Entry Information'!$H23="","",IF('Entry Information'!X23="",Z22,Z22-100)) ->  | AC22: =IF($X22="","",(VLOOKUP($AB$41,Worksheet!$A$11:$AE$41,AB22+1,FALSE))) ->  | AD22: =IF('Entry Information'!$H23="","",'WALK TROT RESULTS'!AD23) ->  | AE22: =IF('Entry Information'!$H23="","",IF('WALK TROT RESULTS'!AE23="","",'WALK TROT RESULTS'!AE23)) ->  | AG22: =IF('Entry Information'!$H23="","",IF('Entry Information'!Z23="",AF22,AF22-100)) ->  | AI22: =IF($AD22="","",(VLOOKUP($AH$41,Worksheet!$A$11:$AE$41,AH22+1,FALSE))) -> 
A23: =IF('Entry Information'!H24="","",'Entry Information'!B24) ->  | B23: =IF('Entry Information'!H24="","",'Entry Information'!C24) ->  | C23: =IF('Entry Information'!H24="","",'Entry Information'!D24) ->  | D23: =IF('Entry Information'!H24="","",'Entry Information'!E24) ->  | E23: NOV | F23: =IF('Entry Information'!H24="","",'WALK TROT RESULTS'!F24) ->  | G23: =IF('Entry Information'!$H24="","",IF('WALK TROT RESULTS'!G24="","",'WALK TROT RESULTS'!G24)) ->  | I23: =IF('Entry Information'!$H24="","",IF('Entry Information'!R24="",H23,H23-100)) ->  | K23: =IF($F23="","",(VLOOKUP($J$41,Worksheet!$A$11:$AE$41,J23+1,FALSE))) ->  | L23: =IF('Entry Information'!H24="","",'WALK TROT RESULTS'!L24) ->  | M23: =IF('Entry Information'!$H24="","",IF('WALK TROT RESULTS'!M24="","",'WALK TROT RESULTS'!M24)) ->  | O23: =IF('Entry Information'!$H24="","",IF('Entry Information'!T24="",N23,N23-100)) ->  | Q23: =IF($L23="","",(VLOOKUP($P$41,Worksheet!$A$11:$AE$41,P23+1,FALSE))) ->  | R23: =IF('Entry Information'!H24="","",'WALK TROT RESULTS'!R24) ->  | S23: =IF('Entry Information'!$H24="","",IF('WALK TROT RESULTS'!S24="","",'WALK TROT RESULTS'!S24)) ->  | U23: =IF('Entry Information'!$H24="","",IF('Entry Information'!V24="",T23,T23-100)) ->  | W23: =IF($R23="","",(VLOOKUP($V$41,Worksheet!$A$11:$AE$41,V23+1,FALSE))) ->  | X23: =IF('Entry Information'!$H24="","",'WALK TROT RESULTS'!X24) ->  | Y23: =IF('Entry Information'!$H24="","",IF('WALK TROT RESULTS'!Y24="","",'WALK TROT RESULTS'!Y24)) ->  | AA23: =IF('Entry Information'!$H24="","",IF('Entry Information'!X24="",Z23,Z23-100)) ->  | AC23: =IF($X23="","",(VLOOKUP($AB$41,Worksheet!$A$11:$AE$41,AB23+1,FALSE))) ->  | AD23: =IF('Entry Information'!$H24="","",'WALK TROT RESULTS'!AD24) ->  | AE23: =IF('Entry Information'!$H24="","",IF('WALK TROT RESULTS'!AE24="","",'WALK TROT RESULTS'!AE24)) ->  | AG23: =IF('Entry Information'!$H24="","",IF('Entry Information'!Z24="",AF23,AF23-100)) ->  | AI23: =IF($AD23="","",(VLOOKUP($AH$41,Worksheet!$A$11:$AE$41,AH23+1,FALSE))) -> 
A24: =IF('Entry Information'!H25="","",'Entry Information'!B25) ->  | B24: =IF('Entry Information'!H25="","",'Entry Information'!C25) ->  | C24: =IF('Entry Information'!H25="","",'Entry Information'!D25) ->  | D24: =IF('Entry Information'!H25="","",'Entry Information'!E25) ->  | E24: NOV | F24: =IF('Entry Information'!H25="","",'WALK TROT RESULTS'!F25) ->  | G24: =IF('Entry Information'!$H25="","",IF('WALK TROT RESULTS'!G25="","",'WALK TROT RESULTS'!G25)) ->  | I24: =IF('Entry Information'!$H25="","",IF('Entry Information'!R25="",H24,H24-100)) ->  | K24: =IF($F24="","",(VLOOKUP($J$41,Worksheet!$A$11:$AE$41,J24+1,FALSE))) ->  | L24: =IF('Entry Information'!H25="","",'WALK TROT RESULTS'!L25) ->  | M24: =IF('Entry Information'!$H25="","",IF('WALK TROT RESULTS'!M25="","",'WALK TROT RESULTS'!M25)) ->  | O24: =IF('Entry Information'!$H25="","",IF('Entry Information'!T25="",N24,N24-100)) ->  | Q24: =IF($L24="","",(VLOOKUP($P$41,Worksheet!$A$11:$AE$41,P24+1,FALSE))) ->  | R24: =IF('Entry Information'!H25="","",'WALK TROT RESULTS'!R25) ->  | S24: =IF('Entry Information'!$H25="","",IF('WALK TROT RESULTS'!S25="","",'WALK TROT RESULTS'!S25)) ->  | U24: =IF('Entry Information'!$H25="","",IF('Entry Information'!V25="",T24,T24-100)) ->  | W24: =IF($R24="","",(VLOOKUP($V$41,Worksheet!$A$11:$AE$41,V24+1,FALSE))) ->  | X24: =IF('Entry Information'!$H25="","",'WALK TROT RESULTS'!X25) ->  | Y24: =IF('Entry Information'!$H25="","",IF('WALK TROT RESULTS'!Y25="","",'WALK TROT RESULTS'!Y25)) ->  | AA24: =IF('Entry Information'!$H25="","",IF('Entry Information'!X25="",Z24,Z24-100)) ->  | AC24: =IF($X24="","",(VLOOKUP($AB$41,Worksheet!$A$11:$AE$41,AB24+1,FALSE))) ->  | AD24: =IF('Entry Information'!$H25="","",'WALK TROT RESULTS'!AD25) ->  | AE24: =IF('Entry Information'!$H25="","",IF('WALK TROT RESULTS'!AE25="","",'WALK TROT RESULTS'!AE25)) ->  | AG24: =IF('Entry Information'!$H25="","",IF('Entry Information'!Z25="",AF24,AF24-100)) ->  | AI24: =IF($AD24="","",(VLOOKUP($AH$41,Worksheet!$A$11:$AE$41,AH24+1,FALSE))) -> 
A25: =IF('Entry Information'!H26="","",'Entry Information'!B26) ->  | B25: =IF('Entry Information'!H26="","",'Entry Information'!C26) ->  | C25: =IF('Entry Information'!H26="","",'Entry Information'!D26) ->  | D25: =IF('Entry Information'!H26="","",'Entry Information'!E26) ->  | E25: NOV | F25: =IF('Entry Information'!H26="","",'WALK TROT RESULTS'!F26) ->  | G25: =IF('Entry Information'!$H26="","",IF('WALK TROT RESULTS'!G26="","",'WALK TROT RESULTS'!G26)) ->  | I25: =IF('Entry Information'!$H26="","",IF('Entry Information'!R26="",H25,H25-100)) ->  | K25: =IF($F25="","",(VLOOKUP($J$41,Worksheet!$A$11:$AE$41,J25+1,FALSE))) ->  | L25: =IF('Entry Information'!H26="","",'WALK TROT RESULTS'!L26) ->  | M25: =IF('Entry Information'!$H26="","",IF('WALK TROT RESULTS'!M26="","",'WALK TROT RESULTS'!M26)) ->  | O25: =IF('Entry Information'!$H26="","",IF('Entry Information'!T26="",N25,N25-100)) ->  | Q25: =IF($L25="","",(VLOOKUP($P$41,Worksheet!$A$11:$AE$41,P25+1,FALSE))) ->  | R25: =IF('Entry Information'!H26="","",'WALK TROT RESULTS'!R26) ->  | S25: =IF('Entry Information'!$H26="","",IF('WALK TROT RESULTS'!S26="","",'WALK TROT RESULTS'!S26)) ->  | U25: =IF('Entry Information'!$H26="","",IF('Entry Information'!V26="",T25,T25-100)) ->  | W25: =IF($R25="","",(VLOOKUP($V$41,Worksheet!$A$11:$AE$41,V25+1,FALSE))) ->  | X25: =IF('Entry Information'!$H26="","",'WALK TROT RESULTS'!X26) ->  | Y25: =IF('Entry Information'!$H26="","",IF('WALK TROT RESULTS'!Y26="","",'WALK TROT RESULTS'!Y26)) ->  | AA25: =IF('Entry Information'!$H26="","",IF('Entry Information'!X26="",Z25,Z25-100)) ->  | AC25: =IF($X25="","",(VLOOKUP($AB$41,Worksheet!$A$11:$AE$41,AB25+1,FALSE))) ->  | AD25: =IF('Entry Information'!$H26="","",'WALK TROT RESULTS'!AD26) ->  | AE25: =IF('Entry Information'!$H26="","",IF('WALK TROT RESULTS'!AE26="","",'WALK TROT RESULTS'!AE26)) ->  | AG25: =IF('Entry Information'!$H26="","",IF('Entry Information'!Z26="",AF25,AF25-100)) ->  | AI25: =IF($AD25="","",(VLOOKUP($AH$41,Worksheet!$A$11:$AE$41,AH25+1,FALSE))) -> 
A26: =IF('Entry Information'!H27="","",'Entry Information'!B27) ->  | B26: =IF('Entry Information'!H27="","",'Entry Information'!C27) ->  | C26: =IF('Entry Information'!H27="","",'Entry Information'!D27) ->  | D26: =IF('Entry Information'!H27="","",'Entry Information'!E27) ->  | E26: NOV | F26: =IF('Entry Information'!H27="","",'WALK TROT RESULTS'!F27) ->  | G26: =IF('Entry Information'!$H27="","",IF('WALK TROT RESULTS'!G27="","",'WALK TROT RESULTS'!G27)) ->  | I26: =IF('Entry Information'!$H27="","",IF('Entry Information'!R27="",H26,H26-100)) ->  | K26: =IF($F26="","",(VLOOKUP($J$41,Worksheet!$A$11:$AE$41,J26+1,FALSE))) ->  | L26: =IF('Entry Information'!H27="","",'WALK TROT RESULTS'!L27) ->  | M26: =IF('Entry Information'!$H27="","",IF('WALK TROT RESULTS'!M27="","",'WALK TROT RESULTS'!M27)) ->  | O26: =IF('Entry Information'!$H27="","",IF('Entry Information'!T27="",N26,N26-100)) ->  | Q26: =IF($L26="","",(VLOOKUP($P$41,Worksheet!$A$11:$AE$41,P26+1,FALSE))) ->  | R26: =IF('Entry Information'!H27="","",'WALK TROT RESULTS'!R27) ->  | S26: =IF('Entry Information'!$H27="","",IF('WALK TROT RESULTS'!S27="","",'WALK TROT RESULTS'!S27)) ->  | U26: =IF('Entry Information'!$H27="","",IF('Entry Information'!V27="",T26,T26-100)) ->  | W26: =IF($R26="","",(VLOOKUP($V$41,Worksheet!$A$11:$AE$41,V26+1,FALSE))) ->  | X26: =IF('Entry Information'!$H27="","",'WALK TROT RESULTS'!X27) ->  | Y26: =IF('Entry Information'!$H27="","",IF('WALK TROT RESULTS'!Y27="","",'WALK TROT RESULTS'!Y27)) ->  | AA26: =IF('Entry Information'!$H27="","",IF('Entry Information'!X27="",Z26,Z26-100)) ->  | AC26: =IF($X26="","",(VLOOKUP($AB$41,Worksheet!$A$11:$AE$41,AB26+1,FALSE))) ->  | AD26: =IF('Entry Information'!$H27="","",'WALK TROT RESULTS'!AD27) ->  | AE26: =IF('Entry Information'!$H27="","",IF('WALK TROT RESULTS'!AE27="","",'WALK TROT RESULTS'!AE27)) ->  | AG26: =IF('Entry Information'!$H27="","",IF('Entry Information'!Z27="",AF26,AF26-100)) ->  | AI26: =IF($AD26="","",(VLOOKUP($AH$41,Worksheet!$A$11:$AE$41,AH26+1,FALSE))) -> 
A27: =IF('Entry Information'!H28="","",'Entry Information'!B28) ->  | B27: =IF('Entry Information'!H28="","",'Entry Information'!C28) ->  | C27: =IF('Entry Information'!H28="","",'Entry Information'!D28) ->  | D27: =IF('Entry Information'!H28="","",'Entry Information'!E28) ->  | E27: NOV | F27: =IF('Entry Information'!H28="","",'WALK TROT RESULTS'!F28) ->  | G27: =IF('Entry Information'!$H28="","",IF('WALK TROT RESULTS'!G28="","",'WALK TROT RESULTS'!G28)) ->  | I27: =IF('Entry Information'!$H28="","",IF('Entry Information'!R28="",H27,H27-100)) ->  | K27: =IF($F27="","",(VLOOKUP($J$41,Worksheet!$A$11:$AE$41,J27+1,FALSE))) ->  | L27: =IF('Entry Information'!H28="","",'WALK TROT RESULTS'!L28) ->  | M27: =IF('Entry Information'!$H28="","",IF('WALK TROT RESULTS'!M28="","",'WALK TROT RESULTS'!M28)) ->  | O27: =IF('Entry Information'!$H28="","",IF('Entry Information'!T28="",N27,N27-100)) ->  | Q27: =IF($L27="","",(VLOOKUP($P$41,Worksheet!$A$11:$AE$41,P27+1,FALSE))) ->  | R27: =IF('Entry Information'!H28="","",'WALK TROT RESULTS'!R28) ->  | S27: =IF('Entry Information'!$H28="","",IF('WALK TROT RESULTS'!S28="","",'WALK TROT RESULTS'!S28)) ->  | U27: =IF('Entry Information'!$H28="","",IF('Entry Information'!V28="",T27,T27-100)) ->  | W27: =IF($R27="","",(VLOOKUP($V$41,Worksheet!$A$11:$AE$41,V27+1,FALSE))) ->  | X27: =IF('Entry Information'!$H28="","",'WALK TROT RESULTS'!X28) ->  | Y27: =IF('Entry Information'!$H28="","",IF('WALK TROT RESULTS'!Y28="","",'WALK TROT RESULTS'!Y28)) ->  | AA27: =IF('Entry Information'!$H28="","",IF('Entry Information'!X28="",Z27,Z27-100)) ->  | AC27: =IF($X27="","",(VLOOKUP($AB$41,Worksheet!$A$11:$AE$41,AB27+1,FALSE))) ->  | AD27: =IF('Entry Information'!$H28="","",'WALK TROT RESULTS'!AD28) ->  | AE27: =IF('Entry Information'!$H28="","",IF('WALK TROT RESULTS'!AE28="","",'WALK TROT RESULTS'!AE28)) ->  | AG27: =IF('Entry Information'!$H28="","",IF('Entry Information'!Z28="",AF27,AF27-100)) ->  | AI27: =IF($AD27="","",(VLOOKUP($AH$41,Worksheet!$A$11:$AE$41,AH27+1,FALSE))) -> 
A28: =IF('Entry Information'!H29="","",'Entry Information'!B29) ->  | B28: =IF('Entry Information'!H29="","",'Entry Information'!C29) ->  | C28: =IF('Entry Information'!H29="","",'Entry Information'!D29) ->  | D28: =IF('Entry Information'!H29="","",'Entry Information'!E29) ->  | E28: NOV | F28: =IF('Entry Information'!H29="","",'WALK TROT RESULTS'!F29) ->  | G28: =IF('Entry Information'!$H29="","",IF('WALK TROT RESULTS'!G29="","",'WALK TROT RESULTS'!G29)) ->  | I28: =IF('Entry Information'!$H29="","",IF('Entry Information'!R29="",H28,H28-100)) ->  | K28: =IF($F28="","",(VLOOKUP($J$41,Worksheet!$A$11:$AE$41,J28+1,FALSE))) ->  | L28: =IF('Entry Information'!H29="","",'WALK TROT RESULTS'!L29) ->  | M28: =IF('Entry Information'!$H29="","",IF('WALK TROT RESULTS'!M29="","",'WALK TROT RESULTS'!M29)) ->  | O28: =IF('Entry Information'!$H29="","",IF('Entry Information'!T29="",N28,N28-100)) ->  | Q28: =IF($L28="","",(VLOOKUP($P$41,Worksheet!$A$11:$AE$41,P28+1,FALSE))) ->  | R28: =IF('Entry Information'!H29="","",'WALK TROT RESULTS'!R29) ->  | S28: =IF('Entry Information'!$H29="","",IF('WALK TROT RESULTS'!S29="","",'WALK TROT RESULTS'!S29)) ->  | U28: =IF('Entry Information'!$H29="","",IF('Entry Information'!V29="",T28,T28-100)) ->  | W28: =IF($R28="","",(VLOOKUP($V$41,Worksheet!$A$11:$AE$41,V28+1,FALSE))) ->  | X28: =IF('Entry Information'!$H29="","",'WALK TROT RESULTS'!X29) ->  | Y28: =IF('Entry Information'!$H29="","",IF('WALK TROT RESULTS'!Y29="","",'WALK TROT RESULTS'!Y29)) ->  | AA28: =IF('Entry Information'!$H29="","",IF('Entry Information'!X29="",Z28,Z28-100)) ->  | AC28: =IF($X28="","",(VLOOKUP($AB$41,Worksheet!$A$11:$AE$41,AB28+1,FALSE))) ->  | AD28: =IF('Entry Information'!$H29="","",'WALK TROT RESULTS'!AD29) ->  | AE28: =IF('Entry Information'!$H29="","",IF('WALK TROT RESULTS'!AE29="","",'WALK TROT RESULTS'!AE29)) ->  | AG28: =IF('Entry Information'!$H29="","",IF('Entry Information'!Z29="",AF28,AF28-100)) ->  | AI28: =IF($AD28="","",(VLOOKUP($AH$41,Worksheet!$A$11:$AE$41,AH28+1,FALSE))) -> 
A29: =IF('Entry Information'!H30="","",'Entry Information'!B30) ->  | B29: =IF('Entry Information'!H30="","",'Entry Information'!C30) ->  | C29: =IF('Entry Information'!H30="","",'Entry Information'!D30) ->  | D29: =IF('Entry Information'!H30="","",'Entry Information'!E30) ->  | E29: NOV | F29: =IF('Entry Information'!H30="","",'WALK TROT RESULTS'!F30) ->  | G29: =IF('Entry Information'!$H30="","",IF('WALK TROT RESULTS'!G30="","",'WALK TROT RESULTS'!G30)) ->  | I29: =IF('Entry Information'!$H30="","",IF('Entry Information'!R30="",H29,H29-100)) ->  | K29: =IF($F29="","",(VLOOKUP($J$41,Worksheet!$A$11:$AE$41,J29+1,FALSE))) ->  | L29: =IF('Entry Information'!H30="","",'WALK TROT RESULTS'!L30) ->  | M29: =IF('Entry Information'!$H30="","",IF('WALK TROT RESULTS'!M30="","",'WALK TROT RESULTS'!M30)) ->  | O29: =IF('Entry Information'!$H30="","",IF('Entry Information'!T30="",N29,N29-100)) ->  | Q29: =IF($L29="","",(VLOOKUP($P$41,Worksheet!$A$11:$AE$41,P29+1,FALSE))) ->  | R29: =IF('Entry Information'!H30="","",'WALK TROT RESULTS'!R30) ->  | S29: =IF('Entry Information'!$H30="","",IF('WALK TROT RESULTS'!S30="","",'WALK TROT RESULTS'!S30)) ->  | U29: =IF('Entry Information'!$H30="","",IF('Entry Information'!V30="",T29,T29-100)) ->  | W29: =IF($R29="","",(VLOOKUP($V$41,Worksheet!$A$11:$AE$41,V29+1,FALSE))) ->  | X29: =IF('Entry Information'!$H30="","",'WALK TROT RESULTS'!X30) ->  | Y29: =IF('Entry Information'!$H30="","",IF('WALK TROT RESULTS'!Y30="","",'WALK TROT RESULTS'!Y30)) ->  | AA29: =IF('Entry Information'!$H30="","",IF('Entry Information'!X30="",Z29,Z29-100)) ->  | AC29: =IF($X29="","",(VLOOKUP($AB$41,Worksheet!$A$11:$AE$41,AB29+1,FALSE))) ->  | AD29: =IF('Entry Information'!$H30="","",'WALK TROT RESULTS'!AD30) ->  | AE29: =IF('Entry Information'!$H30="","",IF('WALK TROT RESULTS'!AE30="","",'WALK TROT RESULTS'!AE30)) ->  | AG29: =IF('Entry Information'!$H30="","",IF('Entry Information'!Z30="",AF29,AF29-100)) ->  | AI29: =IF($AD29="","",(VLOOKUP($AH$41,Worksheet!$A$11:$AE$41,AH29+1,FALSE))) -> 
A30: =IF('Entry Information'!H31="","",'Entry Information'!B31) ->  | B30: =IF('Entry Information'!H31="","",'Entry Information'!C31) ->  | C30: =IF('Entry Information'!H31="","",'Entry Information'!D31) ->  | D30: =IF('Entry Information'!H31="","",'Entry Information'!E31) ->  | E30: NOV | F30: =IF('Entry Information'!H31="","",'WALK TROT RESULTS'!F31) ->  | G30: =IF('Entry Information'!$H31="","",IF('WALK TROT RESULTS'!G31="","",'WALK TROT RESULTS'!G31)) ->  | I30: =IF('Entry Information'!$H31="","",IF('Entry Information'!R31="",H30,H30-100)) ->  | K30: =IF($F30="","",(VLOOKUP($J$41,Worksheet!$A$11:$AE$41,J30+1,FALSE))) ->  | L30: =IF('Entry Information'!H31="","",'WALK TROT RESULTS'!L31) ->  | M30: =IF('Entry Information'!$H31="","",IF('WALK TROT RESULTS'!M31="","",'WALK TROT RESULTS'!M31)) ->  | O30: =IF('Entry Information'!$H31="","",IF('Entry Information'!T31="",N30,N30-100)) ->  | Q30: =IF($L30="","",(VLOOKUP($P$41,Worksheet!$A$11:$AE$41,P30+1,FALSE))) ->  | R30: =IF('Entry Information'!H31="","",'WALK TROT RESULTS'!R31) ->  | S30: =IF('Entry Information'!$H31="","",IF('WALK TROT RESULTS'!S31="","",'WALK TROT RESULTS'!S31)) ->  | U30: =IF('Entry Information'!$H31="","",IF('Entry Information'!V31="",T30,T30-100)) ->  | W30: =IF($R30="","",(VLOOKUP($V$41,Worksheet!$A$11:$AE$41,V30+1,FALSE))) ->  | X30: =IF('Entry Information'!$H31="","",'WALK TROT RESULTS'!X31) ->  | Y30: =IF('Entry Information'!$H31="","",IF('WALK TROT RESULTS'!Y31="","",'WALK TROT RESULTS'!Y31)) ->  | AA30: =IF('Entry Information'!$H31="","",IF('Entry Information'!X31="",Z30,Z30-100)) ->  | AC30: =IF($X30="","",(VLOOKUP($AB$41,Worksheet!$A$11:$AE$41,AB30+1,FALSE))) ->  | AD30: =IF('Entry Information'!$H31="","",'WALK TROT RESULTS'!AD31) ->  | AE30: =IF('Entry Information'!$H31="","",IF('WALK TROT RESULTS'!AE31="","",'WALK TROT RESULTS'!AE31)) ->  | AG30: =IF('Entry Information'!$H31="","",IF('Entry Information'!Z31="",AF30,AF30-100)) ->  | AI30: =IF($AD30="","",(VLOOKUP($AH$41,Worksheet!$A$11:$AE$41,AH30+1,FALSE))) -> 
A31: =IF('Entry Information'!H32="","",'Entry Information'!B32) ->  | B31: =IF('Entry Information'!H32="","",'Entry Information'!C32) ->  | C31: =IF('Entry Information'!H32="","",'Entry Information'!D32) ->  | D31: =IF('Entry Information'!H32="","",'Entry Information'!E32) ->  | E31: NOV | F31: =IF('Entry Information'!H32="","",'WALK TROT RESULTS'!F32) ->  | G31: =IF('Entry Information'!$H32="","",IF('WALK TROT RESULTS'!G32="","",'WALK TROT RESULTS'!G32)) ->  | I31: =IF('Entry Information'!$H32="","",IF('Entry Information'!R32="",H31,H31-100)) ->  | K31: =IF($F31="","",(VLOOKUP($J$41,Worksheet!$A$11:$AE$41,J31+1,FALSE))) ->  | L31: =IF('Entry Information'!H32="","",'WALK TROT RESULTS'!L32) ->  | M31: =IF('Entry Information'!$H32="","",IF('WALK TROT RESULTS'!M32="","",'WALK TROT RESULTS'!M32)) ->  | O31: =IF('Entry Information'!$H32="","",IF('Entry Information'!T32="",N31,N31-100)) ->  | Q31: =IF($L31="","",(VLOOKUP($P$41,Worksheet!$A$11:$AE$41,P31+1,FALSE))) ->  | R31: =IF('Entry Information'!H32="","",'WALK TROT RESULTS'!R32) ->  | S31: =IF('Entry Information'!$H32="","",IF('WALK TROT RESULTS'!S32="","",'WALK TROT RESULTS'!S32)) ->  | U31: =IF('Entry Information'!$H32="","",IF('Entry Information'!V32="",T31,T31-100)) ->  | W31: =IF($R31="","",(VLOOKUP($V$41,Worksheet!$A$11:$AE$41,V31+1,FALSE))) ->  | X31: =IF('Entry Information'!$H32="","",'WALK TROT RESULTS'!X32) ->  | Y31: =IF('Entry Information'!$H32="","",IF('WALK TROT RESULTS'!Y32="","",'WALK TROT RESULTS'!Y32)) ->  | AA31: =IF('Entry Information'!$H32="","",IF('Entry Information'!X32="",Z31,Z31-100)) ->  | AC31: =IF($X31="","",(VLOOKUP($AB$41,Worksheet!$A$11:$AE$41,AB31+1,FALSE))) ->  | AD31: =IF('Entry Information'!$H32="","",'WALK TROT RESULTS'!AD32) ->  | AE31: =IF('Entry Information'!$H32="","",IF('WALK TROT RESULTS'!AE32="","",'WALK TROT RESULTS'!AE32)) ->  | AG31: =IF('Entry Information'!$H32="","",IF('Entry Information'!Z32="",AF31,AF31-100)) ->  | AI31: =IF($AD31="","",(VLOOKUP($AH$41,Worksheet!$A$11:$AE$41,AH31+1,FALSE))) -> 
A32: =IF('Entry Information'!H33="","",'Entry Information'!B33) ->  | B32: =IF('Entry Information'!H33="","",'Entry Information'!C33) ->  | C32: =IF('Entry Information'!H33="","",'Entry Information'!D33) ->  | D32: =IF('Entry Information'!H33="","",'Entry Information'!E33) ->  | E32: NOV | F32: =IF('Entry Information'!H33="","",'WALK TROT RESULTS'!F33) ->  | G32: =IF('Entry Information'!$H33="","",IF('WALK TROT RESULTS'!G33="","",'WALK TROT RESULTS'!G33)) ->  | I32: =IF('Entry Information'!$H33="","",IF('Entry Information'!R33="",H32,H32-100)) ->  | K32: =IF($F32="","",(VLOOKUP($J$41,Worksheet!$A$11:$AE$41,J32+1,FALSE))) ->  | L32: =IF('Entry Information'!H33="","",'WALK TROT RESULTS'!L33) ->  | M32: =IF('Entry Information'!$H33="","",IF('WALK TROT RESULTS'!M33="","",'WALK TROT RESULTS'!M33)) ->  | O32: =IF('Entry Information'!$H33="","",IF('Entry Information'!T33="",N32,N32-100)) ->  | Q32: =IF($L32="","",(VLOOKUP($P$41,Worksheet!$A$11:$AE$41,P32+1,FALSE))) ->  | R32: =IF('Entry Information'!H33="","",'WALK TROT RESULTS'!R33) ->  | S32: =IF('Entry Information'!$H33="","",IF('WALK TROT RESULTS'!S33="","",'WALK TROT RESULTS'!S33)) ->  | U32: =IF('Entry Information'!$H33="","",IF('Entry Information'!V33="",T32,T32-100)) ->  | W32: =IF($R32="","",(VLOOKUP($V$41,Worksheet!$A$11:$AE$41,V32+1,FALSE))) ->  | X32: =IF('Entry Information'!$H33="","",'WALK TROT RESULTS'!X33) ->  | Y32: =IF('Entry Information'!$H33="","",IF('WALK TROT RESULTS'!Y33="","",'WALK TROT RESULTS'!Y33)) ->  | AA32: =IF('Entry Information'!$H33="","",IF('Entry Information'!X33="",Z32,Z32-100)) ->  | AC32: =IF($X32="","",(VLOOKUP($AB$41,Worksheet!$A$11:$AE$41,AB32+1,FALSE))) ->  | AD32: =IF('Entry Information'!$H33="","",'WALK TROT RESULTS'!AD33) ->  | AE32: =IF('Entry Information'!$H33="","",IF('WALK TROT RESULTS'!AE33="","",'WALK TROT RESULTS'!AE33)) ->  | AG32: =IF('Entry Information'!$H33="","",IF('Entry Information'!Z33="",AF32,AF32-100)) ->  | AI32: =IF($AD32="","",(VLOOKUP($AH$41,Worksheet!$A$11:$AE$41,AH32+1,FALSE))) -> 
A33: =IF('Entry Information'!H34="","",'Entry Information'!B34) ->  | B33: =IF('Entry Information'!H34="","",'Entry Information'!C34) ->  | C33: =IF('Entry Information'!H34="","",'Entry Information'!D34) ->  | D33: =IF('Entry Information'!H34="","",'Entry Information'!E34) ->  | E33: NOV | F33: =IF('Entry Information'!H34="","",'WALK TROT RESULTS'!F34) ->  | G33: =IF('Entry Information'!$H34="","",IF('WALK TROT RESULTS'!G34="","",'WALK TROT RESULTS'!G34)) ->  | I33: =IF('Entry Information'!$H34="","",IF('Entry Information'!R34="",H33,H33-100)) ->  | K33: =IF($F33="","",(VLOOKUP($J$41,Worksheet!$A$11:$AE$41,J33+1,FALSE))) ->  | L33: =IF('Entry Information'!H34="","",'WALK TROT RESULTS'!L34) ->  | M33: =IF('Entry Information'!$H34="","",IF('WALK TROT RESULTS'!M34="","",'WALK TROT RESULTS'!M34)) ->  | O33: =IF('Entry Information'!$H34="","",IF('Entry Information'!T34="",N33,N33-100)) ->  | Q33: =IF($L33="","",(VLOOKUP($P$41,Worksheet!$A$11:$AE$41,P33+1,FALSE))) ->  | R33: =IF('Entry Information'!H34="","",'WALK TROT RESULTS'!R34) ->  | S33: =IF('Entry Information'!$H34="","",IF('WALK TROT RESULTS'!S34="","",'WALK TROT RESULTS'!S34)) ->  | U33: =IF('Entry Information'!$H34="","",IF('Entry Information'!V34="",T33,T33-100)) ->  | W33: =IF($R33="","",(VLOOKUP($V$41,Worksheet!$A$11:$AE$41,V33+1,FALSE))) ->  | X33: =IF('Entry Information'!$H34="","",'WALK TROT RESULTS'!X34) ->  | Y33: =IF('Entry Information'!$H34="","",IF('WALK TROT RESULTS'!Y34="","",'WALK TROT RESULTS'!Y34)) ->  | AA33: =IF('Entry Information'!$H34="","",IF('Entry Information'!X34="",Z33,Z33-100)) ->  | AC33: =IF($X33="","",(VLOOKUP($AB$41,Worksheet!$A$11:$AE$41,AB33+1,FALSE))) ->  | AD33: =IF('Entry Information'!$H34="","",'WALK TROT RESULTS'!AD34) ->  | AE33: =IF('Entry Information'!$H34="","",IF('WALK TROT RESULTS'!AE34="","",'WALK TROT RESULTS'!AE34)) ->  | AG33: =IF('Entry Information'!$H34="","",IF('Entry Information'!Z34="",AF33,AF33-100)) ->  | AI33: =IF($AD33="","",(VLOOKUP($AH$41,Worksheet!$A$11:$AE$41,AH33+1,FALSE))) -> 
A34: =IF('Entry Information'!H35="","",'Entry Information'!B35) ->  | B34: =IF('Entry Information'!H35="","",'Entry Information'!C35) ->  | C34: =IF('Entry Information'!H35="","",'Entry Information'!D35) ->  | D34: =IF('Entry Information'!H35="","",'Entry Information'!E35) ->  | E34: NOV | F34: =IF('Entry Information'!H35="","",'WALK TROT RESULTS'!F35) ->  | G34: =IF('Entry Information'!$H35="","",IF('WALK TROT RESULTS'!G35="","",'WALK TROT RESULTS'!G35)) ->  | I34: =IF('Entry Information'!$H35="","",IF('Entry Information'!R35="",H34,H34-100)) ->  | K34: =IF($F34="","",(VLOOKUP($J$41,Worksheet!$A$11:$AE$41,J34+1,FALSE))) ->  | L34: =IF('Entry Information'!H35="","",'WALK TROT RESULTS'!L35) ->  | M34: =IF('Entry Information'!$H35="","",IF('WALK TROT RESULTS'!M35="","",'WALK TROT RESULTS'!M35)) ->  | O34: =IF('Entry Information'!$H35="","",IF('Entry Information'!T35="",N34,N34-100)) ->  | Q34: =IF($L34="","",(VLOOKUP($P$41,Worksheet!$A$11:$AE$41,P34+1,FALSE))) ->  | R34: =IF('Entry Information'!H35="","",'WALK TROT RESULTS'!R35) ->  | S34: =IF('Entry Information'!$H35="","",IF('WALK TROT RESULTS'!S35="","",'WALK TROT RESULTS'!S35)) ->  | U34: =IF('Entry Information'!$H35="","",IF('Entry Information'!V35="",T34,T34-100)) ->  | W34: =IF($R34="","",(VLOOKUP($V$41,Worksheet!$A$11:$AE$41,V34+1,FALSE))) ->  | X34: =IF('Entry Information'!$H35="","",'WALK TROT RESULTS'!X35) ->  | Y34: =IF('Entry Information'!$H35="","",IF('WALK TROT RESULTS'!Y35="","",'WALK TROT RESULTS'!Y35)) ->  | AA34: =IF('Entry Information'!$H35="","",IF('Entry Information'!X35="",Z34,Z34-100)) ->  | AC34: =IF($X34="","",(VLOOKUP($AB$41,Worksheet!$A$11:$AE$41,AB34+1,FALSE))) ->  | AD34: =IF('Entry Information'!$H35="","",'WALK TROT RESULTS'!AD35) ->  | AE34: =IF('Entry Information'!$H35="","",IF('WALK TROT RESULTS'!AE35="","",'WALK TROT RESULTS'!AE35)) ->  | AG34: =IF('Entry Information'!$H35="","",IF('Entry Information'!Z35="",AF34,AF34-100)) ->  | AI34: =IF($AD34="","",(VLOOKUP($AH$41,Worksheet!$A$11:$AE$41,AH34+1,FALSE))) -> 
A35: =IF('Entry Information'!H36="","",'Entry Information'!B36) ->  | B35: =IF('Entry Information'!H36="","",'Entry Information'!C36) ->  | C35: =IF('Entry Information'!H36="","",'Entry Information'!D36) ->  | D35: =IF('Entry Information'!H36="","",'Entry Information'!E36) ->  | E35: NOV | F35: =IF('Entry Information'!H36="","",'WALK TROT RESULTS'!F36) ->  | G35: =IF('Entry Information'!$H36="","",IF('WALK TROT RESULTS'!G36="","",'WALK TROT RESULTS'!G36)) ->  | I35: =IF('Entry Information'!$H36="","",IF('Entry Information'!R36="",H35,H35-100)) ->  | K35: =IF($F35="","",(VLOOKUP($J$41,Worksheet!$A$11:$AE$41,J35+1,FALSE))) ->  | L35: =IF('Entry Information'!H36="","",'WALK TROT RESULTS'!L36) ->  | M35: =IF('Entry Information'!$H36="","",IF('WALK TROT RESULTS'!M36="","",'WALK TROT RESULTS'!M36)) ->  | O35: =IF('Entry Information'!$H36="","",IF('Entry Information'!T36="",N35,N35-100)) ->  | Q35: =IF($L35="","",(VLOOKUP($P$41,Worksheet!$A$11:$AE$41,P35+1,FALSE))) ->  | R35: =IF('Entry Information'!H36="","",'WALK TROT RESULTS'!R36) ->  | S35: =IF('Entry Information'!$H36="","",IF('WALK TROT RESULTS'!S36="","",'WALK TROT RESULTS'!S36)) ->  | U35: =IF('Entry Information'!$H36="","",IF('Entry Information'!V36="",T35,T35-100)) ->  | W35: =IF($R35="","",(VLOOKUP($V$41,Worksheet!$A$11:$AE$41,V35+1,FALSE))) ->  | X35: =IF('Entry Information'!$H36="","",'WALK TROT RESULTS'!X36) ->  | Y35: =IF('Entry Information'!$H36="","",IF('WALK TROT RESULTS'!Y36="","",'WALK TROT RESULTS'!Y36)) ->  | AA35: =IF('Entry Information'!$H36="","",IF('Entry Information'!X36="",Z35,Z35-100)) ->  | AC35: =IF($X35="","",(VLOOKUP($AB$41,Worksheet!$A$11:$AE$41,AB35+1,FALSE))) ->  | AD35: =IF('Entry Information'!$H36="","",'WALK TROT RESULTS'!AD36) ->  | AE35: =IF('Entry Information'!$H36="","",IF('WALK TROT RESULTS'!AE36="","",'WALK TROT RESULTS'!AE36)) ->  | AG35: =IF('Entry Information'!$H36="","",IF('Entry Information'!Z36="",AF35,AF35-100)) ->  | AI35: =IF($AD35="","",(VLOOKUP($AH$41,Worksheet!$A$11:$AE$41,AH35+1,FALSE))) -> 
A36: =IF('Entry Information'!H37="","",'Entry Information'!B37) ->  | B36: =IF('Entry Information'!H37="","",'Entry Information'!C37) ->  | C36: =IF('Entry Information'!H37="","",'Entry Information'!D37) ->  | D36: =IF('Entry Information'!H37="","",'Entry Information'!E37) ->  | E36: NOV | F36: =IF('Entry Information'!H37="","",'WALK TROT RESULTS'!F37) ->  | G36: =IF('Entry Information'!$H37="","",IF('WALK TROT RESULTS'!G37="","",'WALK TROT RESULTS'!G37)) ->  | I36: =IF('Entry Information'!$H37="","",IF('Entry Information'!R37="",H36,H36-100)) ->  | K36: =IF($F36="","",(VLOOKUP($J$41,Worksheet!$A$11:$AE$41,J36+1,FALSE))) ->  | L36: =IF('Entry Information'!H37="","",'WALK TROT RESULTS'!L37) ->  | M36: =IF('Entry Information'!$H37="","",IF('WALK TROT RESULTS'!M37="","",'WALK TROT RESULTS'!M37)) ->  | O36: =IF('Entry Information'!$H37="","",IF('Entry Information'!T37="",N36,N36-100)) ->  | Q36: =IF($L36="","",(VLOOKUP($P$41,Worksheet!$A$11:$AE$41,P36+1,FALSE))) ->  | R36: =IF('Entry Information'!H37="","",'WALK TROT RESULTS'!R37) ->  | S36: =IF('Entry Information'!$H37="","",IF('WALK TROT RESULTS'!S37="","",'WALK TROT RESULTS'!S37)) ->  | U36: =IF('Entry Information'!$H37="","",IF('Entry Information'!V37="",T36,T36-100)) ->  | W36: =IF($R36="","",(VLOOKUP($V$41,Worksheet!$A$11:$AE$41,V36+1,FALSE))) ->  | X36: =IF('Entry Information'!$H37="","",'WALK TROT RESULTS'!X37) ->  | Y36: =IF('Entry Information'!$H37="","",IF('WALK TROT RESULTS'!Y37="","",'WALK TROT RESULTS'!Y37)) ->  | AA36: =IF('Entry Information'!$H37="","",IF('Entry Information'!X37="",Z36,Z36-100)) ->  | AC36: =IF($X36="","",(VLOOKUP($AB$41,Worksheet!$A$11:$AE$41,AB36+1,FALSE))) ->  | AD36: =IF('Entry Information'!$H37="","",'WALK TROT RESULTS'!AD37) ->  | AE36: =IF('Entry Information'!$H37="","",IF('WALK TROT RESULTS'!AE37="","",'WALK TROT RESULTS'!AE37)) ->  | AG36: =IF('Entry Information'!$H37="","",IF('Entry Information'!Z37="",AF36,AF36-100)) ->  | AI36: =IF($AD36="","",(VLOOKUP($AH$41,Worksheet!$A$11:$AE$41,AH36+1,FALSE))) -> 
A37: =IF('Entry Information'!H38="","",'Entry Information'!B38) ->  | B37: =IF('Entry Information'!H38="","",'Entry Information'!C38) ->  | C37: =IF('Entry Information'!H38="","",'Entry Information'!D38) ->  | D37: =IF('Entry Information'!H38="","",'Entry Information'!E38) ->  | E37: NOV | F37: =IF('Entry Information'!H38="","",'WALK TROT RESULTS'!F38) ->  | G37: =IF('Entry Information'!$H38="","",IF('WALK TROT RESULTS'!G38="","",'WALK TROT RESULTS'!G38)) ->  | I37: =IF('Entry Information'!$H38="","",IF('Entry Information'!R38="",H37,H37-100)) ->  | K37: =IF($F37="","",(VLOOKUP($J$41,Worksheet!$A$11:$AE$41,J37+1,FALSE))) ->  | L37: =IF('Entry Information'!H38="","",'WALK TROT RESULTS'!L38) ->  | M37: =IF('Entry Information'!$H38="","",IF('WALK TROT RESULTS'!M38="","",'WALK TROT RESULTS'!M38)) ->  | O37: =IF('Entry Information'!$H38="","",IF('Entry Information'!T38="",N37,N37-100)) ->  | Q37: =IF($L37="","",(VLOOKUP($P$41,Worksheet!$A$11:$AE$41,P37+1,FALSE))) ->  | R37: =IF('Entry Information'!H38="","",'WALK TROT RESULTS'!R38) ->  | S37: =IF('Entry Information'!$H38="","",IF('WALK TROT RESULTS'!S38="","",'WALK TROT RESULTS'!S38)) ->  | U37: =IF('Entry Information'!$H38="","",IF('Entry Information'!V38="",T37,T37-100)) ->  | W37: =IF($R37="","",(VLOOKUP($V$41,Worksheet!$A$11:$AE$41,V37+1,FALSE))) ->  | X37: =IF('Entry Information'!$H38="","",'WALK TROT RESULTS'!X38) ->  | Y37: =IF('Entry Information'!$H38="","",IF('WALK TROT RESULTS'!Y38="","",'WALK TROT RESULTS'!Y38)) ->  | AA37: =IF('Entry Information'!$H38="","",IF('Entry Information'!X38="",Z37,Z37-100)) ->  | AC37: =IF($X37="","",(VLOOKUP($AB$41,Worksheet!$A$11:$AE$41,AB37+1,FALSE))) ->  | AD37: =IF('Entry Information'!$H38="","",'WALK TROT RESULTS'!AD38) ->  | AE37: =IF('Entry Information'!$H38="","",IF('WALK TROT RESULTS'!AE38="","",'WALK TROT RESULTS'!AE38)) ->  | AG37: =IF('Entry Information'!$H38="","",IF('Entry Information'!Z38="",AF37,AF37-100)) ->  | AI37: =IF($AD37="","",(VLOOKUP($AH$41,Worksheet!$A$11:$AE$41,AH37+1,FALSE))) -> 
A38: =IF('Entry Information'!H39="","",'Entry Information'!B39) ->  | B38: =IF('Entry Information'!H39="","",'Entry Information'!C39) ->  | C38: =IF('Entry Information'!H39="","",'Entry Information'!D39) ->  | D38: =IF('Entry Information'!H39="","",'Entry Information'!E39) ->  | E38: NOV | F38: =IF('Entry Information'!H39="","",'WALK TROT RESULTS'!F39) ->  | G38: =IF('Entry Information'!$H39="","",IF('WALK TROT RESULTS'!G39="","",'WALK TROT RESULTS'!G39)) ->  | I38: =IF('Entry Information'!$H39="","",IF('Entry Information'!R39="",H38,H38-100)) ->  | K38: =IF($F38="","",(VLOOKUP($J$41,Worksheet!$A$11:$AE$41,J38+1,FALSE))) ->  | L38: =IF('Entry Information'!H39="","",'WALK TROT RESULTS'!L39) ->  | M38: =IF('Entry Information'!$H39="","",IF('WALK TROT RESULTS'!M39="","",'WALK TROT RESULTS'!M39)) ->  | O38: =IF('Entry Information'!$H39="","",IF('Entry Information'!T39="",N38,N38-100)) ->  | Q38: =IF($L38="","",(VLOOKUP($P$41,Worksheet!$A$11:$AE$41,P38+1,FALSE))) ->  | R38: =IF('Entry Information'!H39="","",'WALK TROT RESULTS'!R39) ->  | S38: =IF('Entry Information'!$H39="","",IF('WALK TROT RESULTS'!S39="","",'WALK TROT RESULTS'!S39)) ->  | U38: =IF('Entry Information'!$H39="","",IF('Entry Information'!V39="",T38,T38-100)) ->  | W38: =IF($R38="","",(VLOOKUP($V$41,Worksheet!$A$11:$AE$41,V38+1,FALSE))) ->  | X38: =IF('Entry Information'!$H39="","",'WALK TROT RESULTS'!X39) ->  | Y38: =IF('Entry Information'!$H39="","",IF('WALK TROT RESULTS'!Y39="","",'WALK TROT RESULTS'!Y39)) ->  | AA38: =IF('Entry Information'!$H39="","",IF('Entry Information'!X39="",Z38,Z38-100)) ->  | AC38: =IF($X38="","",(VLOOKUP($AB$41,Worksheet!$A$11:$AE$41,AB38+1,FALSE))) ->  | AD38: =IF('Entry Information'!$H39="","",'WALK TROT RESULTS'!AD39) ->  | AE38: =IF('Entry Information'!$H39="","",IF('WALK TROT RESULTS'!AE39="","",'WALK TROT RESULTS'!AE39)) ->  | AG38: =IF('Entry Information'!$H39="","",IF('Entry Information'!Z39="",AF38,AF38-100)) ->  | AI38: =IF($AD38="","",(VLOOKUP($AH$41,Worksheet!$A$11:$AE$41,AH38+1,FALSE))) -> 
A39: =IF('Entry Information'!H40="","",'Entry Information'!B40) ->  | B39: =IF('Entry Information'!H40="","",'Entry Information'!C40) ->  | C39: =IF('Entry Information'!H40="","",'Entry Information'!D40) ->  | D39: =IF('Entry Information'!H40="","",'Entry Information'!E40) ->  | E39: NOV | F39: =IF('Entry Information'!H40="","",'WALK TROT RESULTS'!F40) ->  | G39: =IF('Entry Information'!$H40="","",IF('WALK TROT RESULTS'!G40="","",'WALK TROT RESULTS'!G40)) ->  | I39: =IF('Entry Information'!$H40="","",IF('Entry Information'!R40="",H39,H39-100)) ->  | K39: =IF($F39="","",(VLOOKUP($J$41,Worksheet!$A$11:$AE$41,J39+1,FALSE))) ->  | L39: =IF('Entry Information'!H40="","",'WALK TROT RESULTS'!L40) ->  | M39: =IF('Entry Information'!$H40="","",IF('WALK TROT RESULTS'!M40="","",'WALK TROT RESULTS'!M40)) ->  | O39: =IF('Entry Information'!$H40="","",IF('Entry Information'!T40="",N39,N39-100)) ->  | Q39: =IF($L39="","",(VLOOKUP($P$41,Worksheet!$A$11:$AE$41,P39+1,FALSE))) ->  | R39: =IF('Entry Information'!H40="","",'WALK TROT RESULTS'!R40) ->  | S39: =IF('Entry Information'!$H40="","",IF('WALK TROT RESULTS'!S40="","",'WALK TROT RESULTS'!S40)) ->  | U39: =IF('Entry Information'!$H40="","",IF('Entry Information'!V40="",T39,T39-100)) ->  | W39: =IF($R39="","",(VLOOKUP($V$41,Worksheet!$A$11:$AE$41,V39+1,FALSE))) ->  | X39: =IF('Entry Information'!$H40="","",'WALK TROT RESULTS'!X40) ->  | Y39: =IF('Entry Information'!$H40="","",IF('WALK TROT RESULTS'!Y40="","",'WALK TROT RESULTS'!Y40)) ->  | AA39: =IF('Entry Information'!$H40="","",IF('Entry Information'!X40="",Z39,Z39-100)) ->  | AC39: =IF($X39="","",(VLOOKUP($AB$41,Worksheet!$A$11:$AE$41,AB39+1,FALSE))) ->  | AD39: =IF('Entry Information'!$H40="","",'WALK TROT RESULTS'!AD40) ->  | AE39: =IF('Entry Information'!$H40="","",IF('WALK TROT RESULTS'!AE40="","",'WALK TROT RESULTS'!AE40)) ->  | AG39: =IF('Entry Information'!$H40="","",IF('Entry Information'!Z40="",AF39,AF39-100)) ->  | AI39: =IF($AD39="","",(VLOOKUP($AH$41,Worksheet!$A$11:$AE$41,AH39+1,FALSE))) -> 
J41: =COUNTIF(J10:J39,">=0") -> 0 | P41: =COUNTIF(P10:P39,">=0") -> 0 | V41: =COUNTIF(V10:V39,">=0") -> 0 | AB41: =COUNTIF(AB10:AB39,">=0") -> 0 | AH41: =COUNTIF(AH10:AH39,">=0") -> 0
F42: 1 - Total Penalty Points | L42: 1 - Total Penalty Points | R42: 1 - Total Penalty Points | X42: 1 - Total Penalty Points | AD42: 1 - Total Penalty Points
F43: 2 - Extended Trot | L43: 2 - Drag Log | R43: 2 - Penning | X43: 2 - Box Cow | AD43: 2 - Box Cow
F44: 3 - Transition down lope/walk/stop | L44: 3 - Ground tie/bridle/pick-up legs | R44: 3 - Working Center of arena | X44: 3 -First Lead Change | AD44: 3 -First Lead Change
F45: 4 - Transition to lope/lope | L45: 4 - Gate | R45: 4 - Cut from Herd | X45: 4 -Spin | AD45: 4 -Spin
A48: Scores in RED are ties - enter a 1 in the Tie Breaker Column of the winner to break tie. If multiple ties enter a 1 for the second place and a 2 for winner.
A51: Places highlighted have a major penatly.

Sheet NOVICE JR HORSE RESULTS (hidden)
E2: Event Name: | J2: ='Entry Information'!C4 -> Ranch Horse Challenge | Y2: Judge #1 Name/Classes: | AD2: ='Entry Information'!F4 -> Mike Lund
A3: Division: | B3: NOVICE | E3: Event Date: | J3: ='Entry Information'!C5 -> 2018-03-25 | Y3: Judge #2 Name/Classes: | AD3: ='Entry Information'!F5 -> Karen Arlin
F5: RANCH | L5: RANCH | R5: RANCH | X5: RANCH | AD5: RANCH
F6: RIDING | L6: TRAIL | R6: CUTING | X6: REINED WORK | AD6: COW WORK
F7: Score | G7: Tie Breaker | H7: Adjusted Score for Ties | I7: Adjusted Score Major Penalty | J7: Place | K7: Placement Points | L7: Score | M7: Tie Breaker | N7: Adjusted Score for Ties | O7: Adjusted Score Major Penalty | P7: Place | Q7: Placement Points | R7: Score | S7: Tie Breaker | T7: Adjusted Score for Ties | U7: Adjusted Score Major Penalty | V7: Place | W7: Placement Points | X7: Score | Y7: Tie Breaker | Z7: Adjusted Score for Ties | AA7: Adjusted Score Major Penalty | AB7: Place | AC7: Placement Points | AD7: Score | AE7: Tie Breaker | AF7: Adjusted Score for Ties | AG7: Adjusted Score Major Penalty | AH7: Place | AI7: Placement Points
A9: Back No. | B9: Last Name | C9: First Name | D9: Registered Horse Name | E9: Division
A10: =IF('Entry Information'!I11="","",'Entry Information'!B11) ->  | B10: =IF('Entry Information'!I11="","",'Entry Information'!C11) ->  | C10: =IF('Entry Information'!I11="","",'Entry Information'!D11) ->  | D10: =IF('Entry Information'!I11="","",'Entry Information'!E11) ->  | E10: NOV | F10: =IF('Entry Information'!I11="","",'WALK TROT RESULTS'!F11) ->  | G10: =IF('Entry Information'!$I11="","",IF('WALK TROT RESULTS'!G11="","",'WALK TROT RESULTS'!G11)) ->  | H10: =IF(G10="",F10,(F10+(G10*0.001))) ->  | I10: =IF('Entry Information'!$I11="","",IF('Entry Information'!R11="",H10,H10-100)) ->  | J10: =IF(I10="","",(RANK(I10,$I$10:$I$39,0))) ->  | K10: =IF($F10="","",(VLOOKUP($J$41,Worksheet!$A$11:$AE$41,J10+1,FALSE))) ->  | L10: =IF('Entry Information'!I11="","",'WALK TROT RESULTS'!L11) ->  | M10: =IF('Entry Information'!$I11="","",IF('WALK TROT RESULTS'!M11="","",'WALK TROT RESULTS'!M11)) ->  | N10: =IF(M10="",L10,(L10+(M10*0.001))) ->  | O10: =IF('Entry Information'!$I11="","",IF('Entry Information'!T11="",N10,N10-100)) ->  | P10: =IF(O10="","",(RANK(O10,$O$10:$O$39,0))) ->  | Q10: =IF($L10="","",(VLOOKUP($P$41,Worksheet!$A$11:$AE$41,P10+1,FALSE))) ->  | R10: =IF('Entry Information'!I11="","",'WALK TROT RESULTS'!R11) ->  | S10: =IF('Entry Information'!$I11="","",IF('WALK TROT RESULTS'!S11="","",'WALK TROT RESULTS'!S11)) ->  | T10: =IF(S10="",R10,(R10+(S10*0.001))) ->  | U10: =IF('Entry Information'!$I11="","",IF('Entry Information'!V11="",T10,T10-100)) ->  | V10: =IF(U10="","",(RANK(U10,$U$10:$U$39,0))) ->  | W10: =IF($R10="","",(VLOOKUP($V$41,Worksheet!$A$11:$AE$41,V10+1,FALSE))) ->  | X10: =IF('Entry Information'!$I11="","",'WALK TROT RESULTS'!X11) ->  | Z10: =IF(Y10="",X10,(X10+(Y10*0.001))) ->  | AA10: =IF('Entry Information'!$I11="","",IF('Entry Information'!X11="",Z10,Z10-100)) ->  | AB10: =IF(AA10="","",(RANK(AA10,$AA$10:$AA$39,0))) ->  | AC10: =IF($X10="","",(VLOOKUP($AB$41,Worksheet!$A$11:$AE$41,AB10+1,FALSE))) ->  | AD10: =IF('Entry Information'!$I11="","",'WALK TROT RESULTS'!AD11) ->  | AF10: =IF(AE10="",AD10,(AD10+(AE10*0.001))) ->  | AG10: =IF('Entry Information'!$I11="","",IF('Entry Information'!Z11="",AF10,AF10-100)) ->  | AH10: =IF(AG10="","",(RANK(AG10,$AG$10:$AG$39,0))) ->  | AI10: =IF($AD10="","",(VLOOKUP($AH$41,Worksheet!$A$11:$AE$41,AH10+1,FALSE))) -> 
A11: =IF('Entry Information'!I12="","",'Entry Information'!B12) ->  | B11: =IF('Entry Information'!I12="","",'Entry Information'!C12) ->  | C11: =IF('Entry Information'!I12="","",'Entry Information'!D12) ->  | D11: =IF('Entry Information'!I12="","",'Entry Information'!E12) ->  | E11: NOV | F11: =IF('Entry Information'!I12="","",'WALK TROT RESULTS'!F12) ->  | G11: =IF('Entry Information'!$I12="","",IF('WALK TROT RESULTS'!G12="","",'WALK TROT RESULTS'!G12)) ->  | H11: =IF(G11="",F11,(F11+(G11*0.001))) ->  | I11: =IF('Entry Information'!$I12="","",IF('Entry Information'!R12="",H11,H11-100)) ->  | J11: =IF(I11="","",(RANK(I11,$I$10:$I$39,0))) ->  | K11: =IF($F11="","",(VLOOKUP($J$41,Worksheet!$A$11:$AE$41,J11+1,FALSE))) ->  | L11: =IF('Entry Information'!I12="","",'WALK TROT RESULTS'!L12) ->  | M11: =IF('Entry Information'!$I12="","",IF('WALK TROT RESULTS'!M12="","",'WALK TROT RESULTS'!M12)) ->  | O11: =IF('Entry Information'!$I12="","",IF('Entry Information'!T12="",N11,N11-100)) ->  | P11: =IF(O11="","",(RANK(O11,$O$10:$O$39,0))) ->  | Q11: =IF($L11="","",(VLOOKUP($P$41,Worksheet!$A$11:$AE$41,P11+1,FALSE))) ->  | R11: =IF('Entry Information'!I12="","",'WALK TROT RESULTS'!R12) ->  | S11: =IF('Entry Information'!$I12="","",IF('WALK TROT RESULTS'!S12="","",'WALK TROT RESULTS'!S12)) ->  | U11: =IF('Entry Information'!$I12="","",IF('Entry Information'!V12="",T11,T11-100)) ->  | V11: =IF(U11="","",(RANK(U11,$U$10:$U$39,0))) ->  | W11: =IF($R11="","",(VLOOKUP($V$41,Worksheet!$A$11:$AE$41,V11+1,FALSE))) ->  | X11: =IF('Entry Information'!$I12="","",'WALK TROT RESULTS'!X12) ->  | Z11: =IF(Y11="",X11,(X11+(Y11*0.001))) ->  | AA11: =IF('Entry Information'!$I12="","",IF('Entry Information'!X12="",Z11,Z11-100)) ->  | AB11: =IF(AA11="","",(RANK(AA11,$AA$10:$AA$39,0))) ->  | AC11: =IF($X11="","",(VLOOKUP($AB$41,Worksheet!$A$11:$AE$41,AB11+1,FALSE))) ->  | AD11: =IF('Entry Information'!$I12="","",'WALK TROT RESULTS'!AD12) ->  | AF11: =IF(AE11="",AD11,(AD11+(AE11*0.001))) ->  | AG11: =IF('Entry Information'!$I12="","",IF('Entry Information'!Z12="",AF11,AF11-100)) ->  | AH11: =IF(AG11="","",(RANK(AG11,$AG$10:$AG$39,0))) ->  | AI11: =IF($AD11="","",(VLOOKUP($AH$41,Worksheet!$A$11:$AE$41,AH11+1,FALSE))) -> 
A12: =IF('Entry Information'!I13="","",'Entry Information'!B13) ->  | B12: =IF('Entry Information'!I13="","",'Entry Information'!C13) ->  | C12: =IF('Entry Information'!I13="","",'Entry Information'!D13) ->  | D12: =IF('Entry Information'!I13="","",'Entry Information'!E13) ->  | E12: NOV | F12: =IF('Entry Information'!I13="","",'WALK TROT RESULTS'!F13) ->  | G12: =IF('Entry Information'!$I13="","",IF('WALK TROT RESULTS'!G13="","",'WALK TROT RESULTS'!G13)) ->  | I12: =IF('Entry Information'!$I13="","",IF('Entry Information'!R13="",H12,H12-100)) ->  | K12: =IF($F12="","",(VLOOKUP($J$41,Worksheet!$A$11:$AE$41,J12+1,FALSE))) ->  | L12: =IF('Entry Information'!I13="","",'WALK TROT RESULTS'!L13) ->  | M12: =IF('Entry Information'!$I13="","",IF('WALK TROT RESULTS'!M13="","",'WALK TROT RESULTS'!M13)) ->  | O12: =IF('Entry Information'!$I13="","",IF('Entry Information'!T13="",N12,N12-100)) ->  | Q12: =IF($L12="","",(VLOOKUP($P$41,Worksheet!$A$11:$AE$41,P12+1,FALSE))) ->  | R12: =IF('Entry Information'!I13="","",'WALK TROT RESULTS'!R13) ->  | S12: =IF('Entry Information'!$I13="","",IF('WALK TROT RESULTS'!S13="","",'WALK TROT RESULTS'!S13)) ->  | U12: =IF('Entry Information'!$I13="","",IF('Entry Information'!V13="",T12,T12-100)) ->  | W12: =IF($R12="","",(VLOOKUP($V$41,Worksheet!$A$11:$AE$41,V12+1,FALSE))) ->  | X12: =IF('Entry Information'!$I13="","",'WALK TROT RESULTS'!X13) ->  | AA12: =IF('Entry Information'!$I13="","",IF('Entry Information'!X13="",Z12,Z12-100)) ->  | AC12: =IF($X12="","",(VLOOKUP($AB$41,Worksheet!$A$11:$AE$41,AB12+1,FALSE))) ->  | AD12: =IF('Entry Information'!$I13="","",'WALK TROT RESULTS'!AD13) ->  | AG12: =IF('Entry Information'!$I13="","",IF('Entry Information'!Z13="",AF12,AF12-100)) ->  | AI12: =IF($AD12="","",(VLOOKUP($AH$41,Worksheet!$A$11:$AE$41,AH12+1,FALSE))) -> 
A13: =IF('Entry Information'!I14="","",'Entry Information'!B14) ->  | B13: =IF('Entry Information'!I14="","",'Entry Information'!C14) ->  | C13: =IF('Entry Information'!I14="","",'Entry Information'!D14) ->  | D13: =IF('Entry Information'!I14="","",'Entry Information'!E14) ->  | E13: NOV | F13: =IF('Entry Information'!I14="","",'WALK TROT RESULTS'!F14) ->  | G13: =IF('Entry Information'!$I14="","",IF('WALK TROT RESULTS'!G14="","",'WALK TROT RESULTS'!G14)) ->  | I13: =IF('Entry Information'!$I14="","",IF('Entry Information'!R14="",H13,H13-100)) ->  | K13: =IF($F13="","",(VLOOKUP($J$41,Worksheet!$A$11:$AE$41,J13+1,FALSE))) ->  | L13: =IF('Entry Information'!I14="","",'WALK TROT RESULTS'!L14) ->  | M13: =IF('Entry Information'!$I14="","",IF('WALK TROT RESULTS'!M14="","",'WALK TROT RESULTS'!M14)) ->  | O13: =IF('Entry Information'!$I14="","",IF('Entry Information'!T14="",N13,N13-100)) ->  | Q13: =IF($L13="","",(VLOOKUP($P$41,Worksheet!$A$11:$AE$41,P13+1,FALSE))) ->  | R13: =IF('Entry Information'!I14="","",'WALK TROT RESULTS'!R14) ->  | S13: =IF('Entry Information'!$I14="","",IF('WALK TROT RESULTS'!S14="","",'WALK TROT RESULTS'!S14)) ->  | U13: =IF('Entry Information'!$I14="","",IF('Entry Information'!V14="",T13,T13-100)) ->  | W13: =IF($R13="","",(VLOOKUP($V$41,Worksheet!$A$11:$AE$41,V13+1,FALSE))) ->  | X13: =IF('Entry Information'!$I14="","",'WALK TROT RESULTS'!X14) ->  | AA13: =IF('Entry Information'!$I14="","",IF('Entry Information'!X14="",Z13,Z13-100)) ->  | AC13: =IF($X13="","",(VLOOKUP($AB$41,Worksheet!$A$11:$AE$41,AB13+1,FALSE))) ->  | AD13: =IF('Entry Information'!$I14="","",'WALK TROT RESULTS'!AD14) ->  | AG13: =IF('Entry Information'!$I14="","",IF('Entry Information'!Z14="",AF13,AF13-100)) ->  | AI13: =IF($AD13="","",(VLOOKUP($AH$41,Worksheet!$A$11:$AE$41,AH13+1,FALSE))) -> 
A14: =IF('Entry Information'!I15="","",'Entry Information'!B15) ->  | B14: =IF('Entry Information'!I15="","",'Entry Information'!C15) ->  | C14: =IF('Entry Information'!I15="","",'Entry Information'!D15) ->  | D14: =IF('Entry Information'!I15="","",'Entry Information'!E15) ->  | E14: NOV | F14: =IF('Entry Information'!I15="","",'WALK TROT RESULTS'!F15) ->  | G14: =IF('Entry Information'!$I15="","",IF('WALK TROT RESULTS'!G15="","",'WALK TROT RESULTS'!G15)) ->  | I14: =IF('Entry Information'!$I15="","",IF('Entry Information'!R15="",H14,H14-100)) ->  | K14: =IF($F14="","",(VLOOKUP($J$41,Worksheet!$A$11:$AE$41,J14+1,FALSE))) ->  | L14: =IF('Entry Information'!I15="","",'WALK TROT RESULTS'!L15) ->  | M14: =IF('Entry Information'!$I15="","",IF('WALK TROT RESULTS'!M15="","",'WALK TROT RESULTS'!M15)) ->  | O14: =IF('Entry Information'!$I15="","",IF('Entry Information'!T15="",N14,N14-100)) ->  | Q14: =IF($L14="","",(VLOOKUP($P$41,Worksheet!$A$11:$AE$41,P14+1,FALSE))) ->  | R14: =IF('Entry Information'!I15="","",'WALK TROT RESULTS'!R15) ->  | S14: =IF('Entry Information'!$I15="","",IF('WALK TROT RESULTS'!S15="","",'WALK TROT RESULTS'!S15)) ->  | U14: =IF('Entry Information'!$I15="","",IF('Entry Information'!V15="",T14,T14-100)) ->  | W14: =IF($R14="","",(VLOOKUP($V$41,Worksheet!$A$11:$AE$41,V14+1,FALSE))) ->  | X14: =IF('Entry Information'!$I15="","",'WALK TROT RESULTS'!X15) ->  | AA14: =IF('Entry Information'!$I15="","",IF('Entry Information'!X15="",Z14,Z14-100)) ->  | AC14: =IF($X14="","",(VLOOKUP($AB$41,Worksheet!$A$11:$AE$41,AB14+1,FALSE))) ->  | AD14: =IF('Entry Information'!$I15="","",'WALK TROT RESULTS'!AD15) ->  | AG14: =IF('Entry Information'!$I15="","",IF('Entry Information'!Z15="",AF14,AF14-100)) ->  | AI14: =IF($AD14="","",(VLOOKUP($AH$41,Worksheet!$A$11:$AE$41,AH14+1,FALSE))) -> 
A15: =IF('Entry Information'!I16="","",'Entry Information'!B16) ->  | B15: =IF('Entry Information'!I16="","",'Entry Information'!C16) ->  | C15: =IF('Entry Information'!I16="","",'Entry Information'!D16) ->  | D15: =IF('Entry Information'!I16="","",'Entry Information'!E16) ->  | E15: NOV | F15: =IF('Entry Information'!I16="","",'WALK TROT RESULTS'!F16) ->  | G15: =IF('Entry Information'!$I16="","",IF('WALK TROT RESULTS'!G16="","",'WALK TROT RESULTS'!G16)) ->  | I15: =IF('Entry Information'!$I16="","",IF('Entry Information'!R16="",H15,H15-100)) ->  | K15: =IF($F15="","",(VLOOKUP($J$41,Worksheet!$A$11:$AE$41,J15+1,FALSE))) ->  | L15: =IF('Entry Information'!I16="","",'WALK TROT RESULTS'!L16) ->  | M15: =IF('Entry Information'!$I16="","",IF('WALK TROT RESULTS'!M16="","",'WALK TROT RESULTS'!M16)) ->  | O15: =IF('Entry Information'!$I16="","",IF('Entry Information'!T16="",N15,N15-100)) ->  | Q15: =IF($L15="","",(VLOOKUP($P$41,Worksheet!$A$11:$AE$41,P15+1,FALSE))) ->  | R15: =IF('Entry Information'!I16="","",'WALK TROT RESULTS'!R16) ->  | S15: =IF('Entry Information'!$I16="","",IF('WALK TROT RESULTS'!S16="","",'WALK TROT RESULTS'!S16)) ->  | U15: =IF('Entry Information'!$I16="","",IF('Entry Information'!V16="",T15,T15-100)) ->  | W15: =IF($R15="","",(VLOOKUP($V$41,Worksheet!$A$11:$AE$41,V15+1,FALSE))) ->  | X15: =IF('Entry Information'!$I16="","",'WALK TROT RESULTS'!X16) ->  | AA15: =IF('Entry Information'!$I16="","",IF('Entry Information'!X16="",Z15,Z15-100)) ->  | AC15: =IF($X15="","",(VLOOKUP($AB$41,Worksheet!$A$11:$AE$41,AB15+1,FALSE))) ->  | AD15: =IF('Entry Information'!$I16="","",'WALK TROT RESULTS'!AD16) ->  | AG15: =IF('Entry Information'!$I16="","",IF('Entry Information'!Z16="",AF15,AF15-100)) ->  | AI15: =IF($AD15="","",(VLOOKUP($AH$41,Worksheet!$A$11:$AE$41,AH15+1,FALSE))) -> 
A16: =IF('Entry Information'!I17="","",'Entry Information'!B17) ->  | B16: =IF('Entry Information'!I17="","",'Entry Information'!C17) ->  | C16: =IF('Entry Information'!I17="","",'Entry Information'!D17) ->  | D16: =IF('Entry Information'!I17="","",'Entry Information'!E17) ->  | E16: NOV | F16: =IF('Entry Information'!I17="","",'WALK TROT RESULTS'!F17) ->  | G16: =IF('Entry Information'!$I17="","",IF('WALK TROT RESULTS'!G17="","",'WALK TROT RESULTS'!G17)) ->  | I16: =IF('Entry Information'!$I17="","",IF('Entry Information'!R17="",H16,H16-100)) ->  | K16: =IF($F16="","",(VLOOKUP($J$41,Worksheet!$A$11:$AE$41,J16+1,FALSE))) ->  | L16: =IF('Entry Information'!I17="","",'WALK TROT RESULTS'!L17) ->  | M16: =IF('Entry Information'!$I17="","",IF('WALK TROT RESULTS'!M17="","",'WALK TROT RESULTS'!M17)) ->  | O16: =IF('Entry Information'!$I17="","",IF('Entry Information'!T17="",N16,N16-100)) ->  | Q16: =IF($L16="","",(VLOOKUP($P$41,Worksheet!$A$11:$AE$41,P16+1,FALSE))) ->  | R16: =IF('Entry Information'!I17="","",'WALK TROT RESULTS'!R17) ->  | S16: =IF('Entry Information'!$I17="","",IF('WALK TROT RESULTS'!S17="","",'WALK TROT RESULTS'!S17)) ->  | U16: =IF('Entry Information'!$I17="","",IF('Entry Information'!V17="",T16,T16-100)) ->  | W16: =IF($R16="","",(VLOOKUP($V$41,Worksheet!$A$11:$AE$41,V16+1,FALSE))) ->  | X16: =IF('Entry Information'!$I17="","",'WALK TROT RESULTS'!X17) ->  | AA16: =IF('Entry Information'!$I17="","",IF('Entry Information'!X17="",Z16,Z16-100)) ->  | AC16: =IF($X16="","",(VLOOKUP($AB$41,Worksheet!$A$11:$AE$41,AB16+1,FALSE))) ->  | AD16: =IF('Entry Information'!$I17="","",'WALK TROT RESULTS'!AD17) ->  | AG16: =IF('Entry Information'!$I17="","",IF('Entry Information'!Z17="",AF16,AF16-100)) ->  | AI16: =IF($AD16="","",(VLOOKUP($AH$41,Worksheet!$A$11:$AE$41,AH16+1,FALSE))) -> 
A17: =IF('Entry Information'!I18="","",'Entry Information'!B18) ->  | B17: =IF('Entry Information'!I18="","",'Entry Information'!C18) ->  | C17: =IF('Entry Information'!I18="","",'Entry Information'!D18) ->  | D17: =IF('Entry Information'!I18="","",'Entry Information'!E18) ->  | E17: NOV | F17: =IF('Entry Information'!I18="","",'WALK TROT RESULTS'!F18) ->  | G17: =IF('Entry Information'!$I18="","",IF('WALK TROT RESULTS'!G18="","",'WALK TROT RESULTS'!G18)) ->  | I17: =IF('Entry Information'!$I18="","",IF('Entry Information'!R18="",H17,H17-100)) ->  | K17: =IF($F17="","",(VLOOKUP($J$41,Worksheet!$A$11:$AE$41,J17+1,FALSE))) ->  | L17: =IF('Entry Information'!I18="","",'WALK TROT RESULTS'!L18) ->  | M17: =IF('Entry Information'!$I18="","",IF('WALK TROT RESULTS'!M18="","",'WALK TROT RESULTS'!M18)) ->  | O17: =IF('Entry Information'!$I18="","",IF('Entry Information'!T18="",N17,N17-100)) ->  | Q17: =IF($L17="","",(VLOOKUP($P$41,Worksheet!$A$11:$AE$41,P17+1,FALSE))) ->  | R17: =IF('Entry Information'!I18="","",'WALK TROT RESULTS'!R18) ->  | S17: =IF('Entry Information'!$I18="","",IF('WALK TROT RESULTS'!S18="","",'WALK TROT RESULTS'!S18)) ->  | U17: =IF('Entry Information'!$I18="","",IF('Entry Information'!V18="",T17,T17-100)) ->  | W17: =IF($R17="","",(VLOOKUP($V$41,Worksheet!$A$11:$AE$41,V17+1,FALSE))) ->  | X17: =IF('Entry Information'!$I18="","",'WALK TROT RESULTS'!X18) ->  | AA17: =IF('Entry Information'!$I18="","",IF('Entry Information'!X18="",Z17,Z17-100)) ->  | AC17: =IF($X17="","",(VLOOKUP($AB$41,Worksheet!$A$11:$AE$41,AB17+1,FALSE))) ->  | AD17: =IF('Entry Information'!$I18="","",'WALK TROT RESULTS'!AD18) ->  | AG17: =IF('Entry Information'!$I18="","",IF('Entry Information'!Z18="",AF17,AF17-100)) ->  | AI17: =IF($AD17="","",(VLOOKUP($AH$41,Worksheet!$A$11:$AE$41,AH17+1,FALSE))) -> 
A18: =IF('Entry Information'!I19="","",'Entry Information'!B19) ->  | B18: =IF('Entry Information'!I19="","",'Entry Information'!C19) ->  | C18: =IF('Entry Information'!I19="","",'Entry Information'!D19) ->  | D18: =IF('Entry Information'!I19="","",'Entry Information'!E19) ->  | E18: NOV | F18: =IF('Entry Information'!I19="","",'WALK TROT RESULTS'!F19) ->  | G18: =IF('Entry Information'!$I19="","",IF('WALK TROT RESULTS'!G19="","",'WALK TROT RESULTS'!G19)) ->  | I18: =IF('Entry Information'!$I19="","",IF('Entry Information'!R19="",H18,H18-100)) ->  | K18: =IF($F18="","",(VLOOKUP($J$41,Worksheet!$A$11:$AE$41,J18+1,FALSE))) ->  | L18: =IF('Entry Information'!I19="","",'WALK TROT RESULTS'!L19) ->  | M18: =IF('Entry Information'!$I19="","",IF('WALK TROT RESULTS'!M19="","",'WALK TROT RESULTS'!M19)) ->  | O18: =IF('Entry Information'!$I19="","",IF('Entry Information'!T19="",N18,N18-100)) ->  | Q18: =IF($L18="","",(VLOOKUP($P$41,Worksheet!$A$11:$AE$41,P18+1,FALSE))) ->  | R18: =IF('Entry Information'!I19="","",'WALK TROT RESULTS'!R19) ->  | S18: =IF('Entry Information'!$I19="","",IF('WALK TROT RESULTS'!S19="","",'WALK TROT RESULTS'!S19)) ->  | U18: =IF('Entry Information'!$I19="","",IF('Entry Information'!V19="",T18,T18-100)) ->  | W18: =IF($R18="","",(VLOOKUP($V$41,Worksheet!$A$11:$AE$41,V18+1,FALSE))) ->  | X18: =IF('Entry Information'!$I19="","",'WALK TROT RESULTS'!X19) ->  | AA18: =IF('Entry Information'!$I19="","",IF('Entry Information'!X19="",Z18,Z18-100)) ->  | AC18: =IF($X18="","",(VLOOKUP($AB$41,Worksheet!$A$11:$AE$41,AB18+1,FALSE))) ->  | AD18: =IF('Entry Information'!$I19="","",'WALK TROT RESULTS'!AD19) ->  | AG18: =IF('Entry Information'!$I19="","",IF('Entry Information'!Z19="",AF18,AF18-100)) ->  | AI18: =IF($AD18="","",(VLOOKUP($AH$41,Worksheet!$A$11:$AE$41,AH18+1,FALSE))) -> 
A19: =IF('Entry Information'!I20="","",'Entry Information'!B20) ->  | B19: =IF('Entry Information'!I20="","",'Entry Information'!C20) ->  | C19: =IF('Entry Information'!I20="","",'Entry Information'!D20) ->  | D19: =IF('Entry Information'!I20="","",'Entry Information'!E20) ->  | E19: NOV | F19: =IF('Entry Information'!I20="","",'WALK TROT RESULTS'!F20) ->  | G19: =IF('Entry Information'!$I20="","",IF('WALK TROT RESULTS'!G20="","",'WALK TROT RESULTS'!G20)) ->  | I19: =IF('Entry Information'!$I20="","",IF('Entry Information'!R20="",H19,H19-100)) ->  | K19: =IF($F19="","",(VLOOKUP($J$41,Worksheet!$A$11:$AE$41,J19+1,FALSE))) ->  | L19: =IF('Entry Information'!I20="","",'WALK TROT RESULTS'!L20) ->  | M19: =IF('Entry Information'!$I20="","",IF('WALK TROT RESULTS'!M20="","",'WALK TROT RESULTS'!M20)) ->  | O19: =IF('Entry Information'!$I20="","",IF('Entry Information'!T20="",N19,N19-100)) ->  | Q19: =IF($L19="","",(VLOOKUP($P$41,Worksheet!$A$11:$AE$41,P19+1,FALSE))) ->  | R19: =IF('Entry Information'!I20="","",'WALK TROT RESULTS'!R20) ->  | S19: =IF('Entry Information'!$I20="","",IF('WALK TROT RESULTS'!S20="","",'WALK TROT RESULTS'!S20)) ->  | U19: =IF('Entry Information'!$I20="","",IF('Entry Information'!V20="",T19,T19-100)) ->  | W19: =IF($R19="","",(VLOOKUP($V$41,Worksheet!$A$11:$AE$41,V19+1,FALSE))) ->  | X19: =IF('Entry Information'!$I20="","",'WALK TROT RESULTS'!X20) ->  | AA19: =IF('Entry Information'!$I20="","",IF('Entry Information'!X20="",Z19,Z19-100)) ->  | AC19: =IF($X19="","",(VLOOKUP($AB$41,Worksheet!$A$11:$AE$41,AB19+1,FALSE))) ->  | AD19: =IF('Entry Information'!$I20="","",'WALK TROT RESULTS'!AD20) ->  | AG19: =IF('Entry Information'!$I20="","",IF('Entry Information'!Z20="",AF19,AF19-100)) ->  | AI19: =IF($AD19="","",(VLOOKUP($AH$41,Worksheet!$A$11:$AE$41,AH19+1,FALSE))) -> 
A20: =IF('Entry Information'!I21="","",'Entry Information'!B21) ->  | B20: =IF('Entry Information'!I21="","",'Entry Information'!C21) ->  | C20: =IF('Entry Information'!I21="","",'Entry Information'!D21) ->  | D20: =IF('Entry Information'!I21="","",'Entry Information'!E21) ->  | E20: NOV | F20: =IF('Entry Information'!I21="","",'WALK TROT RESULTS'!F21) ->  | G20: =IF('Entry Information'!$I21="","",IF('WALK TROT RESULTS'!G21="","",'WALK TROT RESULTS'!G21)) ->  | I20: =IF('Entry Information'!$I21="","",IF('Entry Information'!R21="",H20,H20-100)) ->  | K20: =IF($F20="","",(VLOOKUP($J$41,Worksheet!$A$11:$AE$41,J20+1,FALSE))) ->  | L20: =IF('Entry Information'!I21="","",'WALK TROT RESULTS'!L21) ->  | M20: =IF('Entry Information'!$I21="","",IF('WALK TROT RESULTS'!M21="","",'WALK TROT RESULTS'!M21)) ->  | O20: =IF('Entry Information'!$I21="","",IF('Entry Information'!T21="",N20,N20-100)) ->  | Q20: =IF($L20="","",(VLOOKUP($P$41,Worksheet!$A$11:$AE$41,P20+1,FALSE))) ->  | R20: =IF('Entry Information'!I21="","",'WALK TROT RESULTS'!R21) ->  | S20: =IF('Entry Information'!$I21="","",IF('WALK TROT RESULTS'!S21="","",'WALK TROT RESULTS'!S21)) ->  | U20: =IF('Entry Information'!$I21="","",IF('Entry Information'!V21="",T20,T20-100)) ->  | W20: =IF($R20="","",(VLOOKUP($V$41,Worksheet!$A$11:$AE$41,V20+1,FALSE))) ->  | X20: =IF('Entry Information'!$I21="","",'WALK TROT RESULTS'!X21) ->  | AA20: =IF('Entry Information'!$I21="","",IF('Entry Information'!X21="",Z20,Z20-100)) ->  | AC20: =IF($X20="","",(VLOOKUP($AB$41,Worksheet!$A$11:$AE$41,AB20+1,FALSE))) ->  | AD20: =IF('Entry Information'!$I21="","",'WALK TROT RESULTS'!AD21) ->  | AG20: =IF('Entry Information'!$I21="","",IF('Entry Information'!Z21="",AF20,AF20-100)) ->  | AI20: =IF($AD20="","",(VLOOKUP($AH$41,Worksheet!$A$11:$AE$41,AH20+1,FALSE))) -> 
A21: =IF('Entry Information'!I22="","",'Entry Information'!B22) ->  | B21: =IF('Entry Information'!I22="","",'Entry Information'!C22) ->  | C21: =IF('Entry Information'!I22="","",'Entry Information'!D22) ->  | D21: =IF('Entry Information'!I22="","",'Entry Information'!E22) ->  | E21: NOV | F21: =IF('Entry Information'!I22="","",'WALK TROT RESULTS'!F22) ->  | G21: =IF('Entry Information'!$I22="","",IF('WALK TROT RESULTS'!G22="","",'WALK TROT RESULTS'!G22)) ->  | I21: =IF('Entry Information'!$I22="","",IF('Entry Information'!R22="",H21,H21-100)) ->  | K21: =IF($F21="","",(VLOOKUP($J$41,Worksheet!$A$11:$AE$41,J21+1,FALSE))) ->  | L21: =IF('Entry Information'!I22="","",'WALK TROT RESULTS'!L22) ->  | M21: =IF('Entry Information'!$I22="","",IF('WALK TROT RESULTS'!M22="","",'WALK TROT RESULTS'!M22)) ->  | O21: =IF('Entry Information'!$I22="","",IF('Entry Information'!T22="",N21,N21-100)) ->  | Q21: =IF($L21="","",(VLOOKUP($P$41,Worksheet!$A$11:$AE$41,P21+1,FALSE))) ->  | R21: =IF('Entry Information'!I22="","",'WALK TROT RESULTS'!R22) ->  | S21: =IF('Entry Information'!$I22="","",IF('WALK TROT RESULTS'!S22="","",'WALK TROT RESULTS'!S22)) ->  | U21: =IF('Entry Information'!$I22="","",IF('Entry Information'!V22="",T21,T21-100)) ->  | W21: =IF($R21="","",(VLOOKUP($V$41,Worksheet!$A$11:$AE$41,V21+1,FALSE))) ->  | X21: =IF('Entry Information'!$I22="","",'WALK TROT RESULTS'!X22) ->  | AA21: =IF('Entry Information'!$I22="","",IF('Entry Information'!X22="",Z21,Z21-100)) ->  | AC21: =IF($X21="","",(VLOOKUP($AB$41,Worksheet!$A$11:$AE$41,AB21+1,FALSE))) ->  | AD21: =IF('Entry Information'!$I22="","",'WALK TROT RESULTS'!AD22) ->  | AG21: =IF('Entry Information'!$I22="","",IF('Entry Information'!Z22="",AF21,AF21-100)) ->  | AI21: =IF($AD21="","",(VLOOKUP($AH$41,Worksheet!$A$11:$AE$41,AH21+1,FALSE))) -> 
A22: =IF('Entry Information'!I23="","",'Entry Information'!B23) ->  | B22: =IF('Entry Information'!I23="","",'Entry Information'!C23) ->  | C22: =IF('Entry Information'!I23="","",'Entry Information'!D23) ->  | D22: =IF('Entry Information'!I23="","",'Entry Information'!E23) ->  | E22: NOV | F22: =IF('Entry Information'!I23="","",'WALK TROT RESULTS'!F23) ->  | G22: =IF('Entry Information'!$I23="","",IF('WALK TROT RESULTS'!G23="","",'WALK TROT RESULTS'!G23)) ->  | I22: =IF('Entry Information'!$I23="","",IF('Entry Information'!R23="",H22,H22-100)) ->  | K22: =IF($F22="","",(VLOOKUP($J$41,Worksheet!$A$11:$AE$41,J22+1,FALSE))) ->  | L22: =IF('Entry Information'!I23="","",'WALK TROT RESULTS'!L23) ->  | M22: =IF('Entry Information'!$I23="","",IF('WALK TROT RESULTS'!M23="","",'WALK TROT RESULTS'!M23)) ->  | O22: =IF('Entry Information'!$I23="","",IF('Entry Information'!T23="",N22,N22-100)) ->  | Q22: =IF($L22="","",(VLOOKUP($P$41,Worksheet!$A$11:$AE$41,P22+1,FALSE))) ->  | R22: =IF('Entry Information'!I23="","",'WALK TROT RESULTS'!R23) ->  | S22: =IF('Entry Information'!$I23="","",IF('WALK TROT RESULTS'!S23="","",'WALK TROT RESULTS'!S23)) ->  | U22: =IF('Entry Information'!$I23="","",IF('Entry Information'!V23="",T22,T22-100)) ->  | W22: =IF($R22="","",(VLOOKUP($V$41,Worksheet!$A$11:$AE$41,V22+1,FALSE))) ->  | X22: =IF('Entry Information'!$I23="","",'WALK TROT RESULTS'!X23) ->  | AA22: =IF('Entry Information'!$I23="","",IF('Entry Information'!X23="",Z22,Z22-100)) ->  | AC22: =IF($X22="","",(VLOOKUP($AB$41,Worksheet!$A$11:$AE$41,AB22+1,FALSE))) ->  | AD22: =IF('Entry Information'!$I23="","",'WALK TROT RESULTS'!AD23) ->  | AG22: =IF('Entry Information'!$I23="","",IF('Entry Information'!Z23="",AF22,AF22-100)) ->  | AI22: =IF($AD22="","",(VLOOKUP($AH$41,Worksheet!$A$11:$AE$41,AH22+1,FALSE))) -> 
A23: =IF('Entry Information'!I24="","",'Entry Information'!B24) ->  | B23: =IF('Entry Information'!I24="","",'Entry Information'!C24) ->  | C23: =IF('Entry Information'!I24="","",'Entry Information'!D24) ->  | D23: =IF('Entry Information'!I24="","",'Entry Information'!E24) ->  | E23: NOV | F23: =IF('Entry Information'!I24="","",'WALK TROT RESULTS'!F24) ->  | G23: =IF('Entry Information'!$I24="","",IF('WALK TROT RESULTS'!G24="","",'WALK TROT RESULTS'!G24)) ->  | I23: =IF('Entry Information'!$I24="","",IF('Entry Information'!R24="",H23,H23-100)) ->  | K23: =IF($F23="","",(VLOOKUP($J$41,Worksheet!$A$11:$AE$41,J23+1,FALSE))) ->  | L23: =IF('Entry Information'!I24="","",'WALK TROT RESULTS'!L24) ->  | M23: =IF('Entry Information'!$I24="","",IF('WALK TROT RESULTS'!M24="","",'WALK TROT RESULTS'!M24)) ->  | O23: =IF('Entry Information'!$I24="","",IF('Entry Information'!T24="",N23,N23-100)) ->  | Q23: =IF($L23="","",(VLOOKUP($P$41,Worksheet!$A$11:$AE$41,P23+1,FALSE))) ->  | R23: =IF('Entry Information'!I24="","",'WALK TROT RESULTS'!R24) ->  | S23: =IF('Entry Information'!$I24="","",IF('WALK TROT RESULTS'!S24="","",'WALK TROT RESULTS'!S24)) ->  | U23: =IF('Entry Information'!$I24="","",IF('Entry Information'!V24="",T23,T23-100)) ->  | W23: =IF($R23="","",(VLOOKUP($V$41,Worksheet!$A$11:$AE$41,V23+1,FALSE))) ->  | X23: =IF('Entry Information'!$I24="","",'WALK TROT RESULTS'!X24) ->  | AA23: =IF('Entry Information'!$I24="","",IF('Entry Information'!X24="",Z23,Z23-100)) ->  | AC23: =IF($X23="","",(VLOOKUP($AB$41,Worksheet!$A$11:$AE$41,AB23+1,FALSE))) ->  | AD23: =IF('Entry Information'!$I24="","",'WALK TROT RESULTS'!AD24) ->  | AG23: =IF('Entry Information'!$I24="","",IF('Entry Information'!Z24="",AF23,AF23-100)) ->  | AI23: =IF($AD23="","",(VLOOKUP($AH$41,Worksheet!$A$11:$AE$41,AH23+1,FALSE))) -> 
A24: =IF('Entry Information'!I25="","",'Entry Information'!B25) ->  | B24: =IF('Entry Information'!I25="","",'Entry Information'!C25) ->  | C24: =IF('Entry Information'!I25="","",'Entry Information'!D25) ->  | D24: =IF('Entry Information'!I25="","",'Entry Information'!E25) ->  | E24: NOV | F24: =IF('Entry Information'!I25="","",'WALK TROT RESULTS'!F25) ->  | G24: =IF('Entry Information'!$I25="","",IF('WALK TROT RESULTS'!G25="","",'WALK TROT RESULTS'!G25)) ->  | I24: =IF('Entry Information'!$I25="","",IF('Entry Information'!R25="",H24,H24-100)) ->  | K24: =IF($F24="","",(VLOOKUP($J$41,Worksheet!$A$11:$AE$41,J24+1,FALSE))) ->  | L24: =IF('Entry Information'!I25="","",'WALK TROT RESULTS'!L25) ->  | M24: =IF('Entry Information'!$I25="","",IF('WALK TROT RESULTS'!M25="","",'WALK TROT RESULTS'!M25)) ->  | O24: =IF('Entry Information'!$I25="","",IF('Entry Information'!T25="",N24,N24-100)) ->  | Q24: =IF($L24="","",(VLOOKUP($P$41,Worksheet!$A$11:$AE$41,P24+1,FALSE))) ->  | R24: =IF('Entry Information'!I25="","",'WALK TROT RESULTS'!R25) ->  | S24: =IF('Entry Information'!$I25="","",IF('WALK TROT RESULTS'!S25="","",'WALK TROT RESULTS'!S25)) ->  | U24: =IF('Entry Information'!$I25="","",IF('Entry Information'!V25="",T24,T24-100)) ->  | W24: =IF($R24="","",(VLOOKUP($V$41,Worksheet!$A$11:$AE$41,V24+1,FALSE))) ->  | X24: =IF('Entry Information'!$I25="","",'WALK TROT RESULTS'!X25) ->  | AA24: =IF('Entry Information'!$I25="","",IF('Entry Information'!X25="",Z24,Z24-100)) ->  | AC24: =IF($X24="","",(VLOOKUP($AB$41,Worksheet!$A$11:$AE$41,AB24+1,FALSE))) ->  | AD24: =IF('Entry Information'!$I25="","",'WALK TROT RESULTS'!AD25) ->  | AG24: =IF('Entry Information'!$I25="","",IF('Entry Information'!Z25="",AF24,AF24-100)) ->  | AI24: =IF($AD24="","",(VLOOKUP($AH$41,Worksheet!$A$11:$AE$41,AH24+1,FALSE))) -> 
A25: =IF('Entry Information'!I26="","",'Entry Information'!B26) ->  | B25: =IF('Entry Information'!I26="","",'Entry Information'!C26) ->  | C25: =IF('Entry Information'!I26="","",'Entry Information'!D26) ->  | D25: =IF('Entry Information'!I26="","",'Entry Information'!E26) ->  | E25: NOV | F25: =IF('Entry Information'!I26="","",'WALK TROT RESULTS'!F26) ->  | G25: =IF('Entry Information'!$I26="","",IF('WALK TROT RESULTS'!G26="","",'WALK TROT RESULTS'!G26)) ->  | I25: =IF('Entry Information'!$I26="","",IF('Entry Information'!R26="",H25,H25-100)) ->  | K25: =IF($F25="","",(VLOOKUP($J$41,Worksheet!$A$11:$AE$41,J25+1,FALSE))) ->  | L25: =IF('Entry Information'!I26="","",'WALK TROT RESULTS'!L26) ->  | M25: =IF('Entry Information'!$I26="","",IF('WALK TROT RESULTS'!M26="","",'WALK TROT RESULTS'!M26)) ->  | O25: =IF('Entry Information'!$I26="","",IF('Entry Information'!T26="",N25,N25-100)) ->  | Q25: =IF($L25="","",(VLOOKUP($P$41,Worksheet!$A$11:$AE$41,P25+1,FALSE))) ->  | R25: =IF('Entry Information'!I26="","",'WALK TROT RESULTS'!R26) ->  | S25: =IF('Entry Information'!$I26="","",IF('WALK TROT RESULTS'!S26="","",'WALK TROT RESULTS'!S26)) ->  | U25: =IF('Entry Information'!$I26="","",IF('Entry Information'!V26="",T25,T25-100)) ->  | W25: =IF($R25="","",(VLOOKUP($V$41,Worksheet!$A$11:$AE$41,V25+1,FALSE))) ->  | X25: =IF('Entry Information'!$I26="","",'WALK TROT RESULTS'!X26) ->  | AA25: =IF('Entry Information'!$I26="","",IF('Entry Information'!X26="",Z25,Z25-100)) ->  | AC25: =IF($X25="","",(VLOOKUP($AB$41,Worksheet!$A$11:$AE$41,AB25+1,FALSE))) ->  | AD25: =IF('Entry Information'!$I26="","",'WALK TROT RESULTS'!AD26) ->  | AG25: =IF('Entry Information'!$I26="","",IF('Entry Information'!Z26="",AF25,AF25-100)) ->  | AI25: =IF($AD25="","",(VLOOKUP($AH$41,Worksheet!$A$11:$AE$41,AH25+1,FALSE))) -> 
A26: =IF('Entry Information'!I27="","",'Entry Information'!B27) ->  | B26: =IF('Entry Information'!I27="","",'Entry Information'!C27) ->  | C26: =IF('Entry Information'!I27="","",'Entry Information'!D27) ->  | D26: =IF('Entry Information'!I27="","",'Entry Information'!E27) ->  | E26: NOV | F26: =IF('Entry Information'!I27="","",'WALK TROT RESULTS'!F27) ->  | G26: =IF('Entry Information'!$I27="","",IF('WALK TROT RESULTS'!G27="","",'WALK TROT RESULTS'!G27)) ->  | I26: =IF('Entry Information'!$I27="","",IF('Entry Information'!R27="",H26,H26-100)) ->  | K26: =IF($F26="","",(VLOOKUP($J$41,Worksheet!$A$11:$AE$41,J26+1,FALSE))) ->  | L26: =IF('Entry Information'!I27="","",'WALK TROT RESULTS'!L27) ->  | M26: =IF('Entry Information'!$I27="","",IF('WALK TROT RESULTS'!M27="","",'WALK TROT RESULTS'!M27)) ->  | O26: =IF('Entry Information'!$I27="","",IF('Entry Information'!T27="",N26,N26-100)) ->  | Q26: =IF($L26="","",(VLOOKUP($P$41,Worksheet!$A$11:$AE$41,P26+1,FALSE))) ->  | R26: =IF('Entry Information'!I27="","",'WALK TROT RESULTS'!R27) ->  | S26: =IF('Entry Information'!$I27="","",IF('WALK TROT RESULTS'!S27="","",'WALK TROT RESULTS'!S27)) ->  | U26: =IF('Entry Information'!$I27="","",IF('Entry Information'!V27="",T26,T26-100)) ->  | W26: =IF($R26="","",(VLOOKUP($V$41,Worksheet!$A$11:$AE$41,V26+1,FALSE))) ->  | X26: =IF('Entry Information'!$I27="","",'WALK TROT RESULTS'!X27) ->  | AA26: =IF('Entry Information'!$I27="","",IF('Entry Information'!X27="",Z26,Z26-100)) ->  | AC26: =IF($X26="","",(VLOOKUP($AB$41,Worksheet!$A$11:$AE$41,AB26+1,FALSE))) ->  | AD26: =IF('Entry Information'!$I27="","",'WALK TROT RESULTS'!AD27) ->  | AG26: =IF('Entry Information'!$I27="","",IF('Entry Information'!Z27="",AF26,AF26-100)) ->  | AI26: =IF($AD26="","",(VLOOKUP($AH$41,Worksheet!$A$11:$AE$41,AH26+1,FALSE))) -> 
A27: =IF('Entry Information'!I28="","",'Entry Information'!B28) ->  | B27: =IF('Entry Information'!I28="","",'Entry Information'!C28) ->  | C27: =IF('Entry Information'!I28="","",'Entry Information'!D28) ->  | D27: =IF('Entry Information'!I28="","",'Entry Information'!E28) ->  | E27: NOV | F27: =IF('Entry Information'!I28="","",'WALK TROT RESULTS'!F28) ->  | G27: =IF('Entry Information'!$I28="","",IF('WALK TROT RESULTS'!G28="","",'WALK TROT RESULTS'!G28)) ->  | I27: =IF('Entry Information'!$I28="","",IF('Entry Information'!R28="",H27,H27-100)) ->  | K27: =IF($F27="","",(VLOOKUP($J$41,Worksheet!$A$11:$AE$41,J27+1,FALSE))) ->  | L27: =IF('Entry Information'!I28="","",'WALK TROT RESULTS'!L28) ->  | M27: =IF('Entry Information'!$I28="","",IF('WALK TROT RESULTS'!M28="","",'WALK TROT RESULTS'!M28)) ->  | O27: =IF('Entry Information'!$I28="","",IF('Entry Information'!T28="",N27,N27-100)) ->  | Q27: =IF($L27="","",(VLOOKUP($P$41,Worksheet!$A$11:$AE$41,P27+1,FALSE))) ->  | R27: =IF('Entry Information'!I28="","",'WALK TROT RESULTS'!R28) ->  | S27: =IF('Entry Information'!$I28="","",IF('WALK TROT RESULTS'!S28="","",'WALK TROT RESULTS'!S28)) ->  | U27: =IF('Entry Information'!$I28="","",IF('Entry Information'!V28="",T27,T27-100)) ->  | W27: =IF($R27="","",(VLOOKUP($V$41,Worksheet!$A$11:$AE$41,V27+1,FALSE))) ->  | X27: =IF('Entry Information'!$I28="","",'WALK TROT RESULTS'!X28) ->  | AA27: =IF('Entry Information'!$I28="","",IF('Entry Information'!X28="",Z27,Z27-100)) ->  | AC27: =IF($X27="","",(VLOOKUP($AB$41,Worksheet!$A$11:$AE$41,AB27+1,FALSE))) ->  | AD27: =IF('Entry Information'!$I28="","",'WALK TROT RESULTS'!AD28) ->  | AG27: =IF('Entry Information'!$I28="","",IF('Entry Information'!Z28="",AF27,AF27-100)) ->  | AI27: =IF($AD27="","",(VLOOKUP($AH$41,Worksheet!$A$11:$AE$41,AH27+1,FALSE))) -> 
A28: =IF('Entry Information'!I29="","",'Entry Information'!B29) ->  | B28: =IF('Entry Information'!I29="","",'Entry Information'!C29) ->  | C28: =IF('Entry Information'!I29="","",'Entry Information'!D29) ->  | D28: =IF('Entry Information'!I29="","",'Entry Information'!E29) ->  | E28: NOV | F28: =IF('Entry Information'!I29="","",'WALK TROT RESULTS'!F29) ->  | G28: =IF('Entry Information'!$I29="","",IF('WALK TROT RESULTS'!G29="","",'WALK TROT RESULTS'!G29)) ->  | I28: =IF('Entry Information'!$I29="","",IF('Entry Information'!R29="",H28,H28-100)) ->  | K28: =IF($F28="","",(VLOOKUP($J$41,Worksheet!$A$11:$AE$41,J28+1,FALSE))) ->  | L28: =IF('Entry Information'!I29="","",'WALK TROT RESULTS'!L29) ->  | M28: =IF('Entry Information'!$I29="","",IF('WALK TROT RESULTS'!M29="","",'WALK TROT RESULTS'!M29)) ->  | O28: =IF('Entry Information'!$I29="","",IF('Entry Information'!T29="",N28,N28-100)) ->  | Q28: =IF($L28="","",(VLOOKUP($P$41,Worksheet!$A$11:$AE$41,P28+1,FALSE))) ->  | R28: =IF('Entry Information'!I29="","",'WALK TROT RESULTS'!R29) ->  | S28: =IF('Entry Information'!$I29="","",IF('WALK TROT RESULTS'!S29="","",'WALK TROT RESULTS'!S29)) ->  | U28: =IF('Entry Information'!$I29="","",IF('Entry Information'!V29="",T28,T28-100)) ->  | W28: =IF($R28="","",(VLOOKUP($V$41,Worksheet!$A$11:$AE$41,V28+1,FALSE))) ->  | X28: =IF('Entry Information'!$I29="","",'WALK TROT RESULTS'!X29) ->  | AA28: =IF('Entry Information'!$I29="","",IF('Entry Information'!X29="",Z28,Z28-100)) ->  | AC28: =IF($X28="","",(VLOOKUP($AB$41,Worksheet!$A$11:$AE$41,AB28+1,FALSE))) ->  | AD28: =IF('Entry Information'!$I29="","",'WALK TROT RESULTS'!AD29) ->  | AG28: =IF('Entry Information'!$I29="","",IF('Entry Information'!Z29="",AF28,AF28-100)) ->  | AI28: =IF($AD28="","",(VLOOKUP($AH$41,Worksheet!$A$11:$AE$41,AH28+1,FALSE))) -> 
A29: =IF('Entry Information'!I30="","",'Entry Information'!B30) ->  | B29: =IF('Entry Information'!I30="","",'Entry Information'!C30) ->  | C29: =IF('Entry Information'!I30="","",'Entry Information'!D30) ->  | D29: =IF('Entry Information'!I30="","",'Entry Information'!E30) ->  | E29: NOV | F29: =IF('Entry Information'!I30="","",'WALK TROT RESULTS'!F30) ->  | G29: =IF('Entry Information'!$I30="","",IF('WALK TROT RESULTS'!G30="","",'WALK TROT RESULTS'!G30)) ->  | I29: =IF('Entry Information'!$I30="","",IF('Entry Information'!R30="",H29,H29-100)) ->  | K29: =IF($F29="","",(VLOOKUP($J$41,Worksheet!$A$11:$AE$41,J29+1,FALSE))) ->  | L29: =IF('Entry Information'!I30="","",'WALK TROT RESULTS'!L30) ->  | M29: =IF('Entry Information'!$I30="","",IF('WALK TROT RESULTS'!M30="","",'WALK TROT RESULTS'!M30)) ->  | O29: =IF('Entry Information'!$I30="","",IF('Entry Information'!T30="",N29,N29-100)) ->  | Q29: =IF($L29="","",(VLOOKUP($P$41,Worksheet!$A$11:$AE$41,P29+1,FALSE))) ->  | R29: =IF('Entry Information'!I30="","",'WALK TROT RESULTS'!R30) ->  | S29: =IF('Entry Information'!$I30="","",IF('WALK TROT RESULTS'!S30="","",'WALK TROT RESULTS'!S30)) ->  | U29: =IF('Entry Information'!$I30="","",IF('Entry Information'!V30="",T29,T29-100)) ->  | W29: =IF($R29="","",(VLOOKUP($V$41,Worksheet!$A$11:$AE$41,V29+1,FALSE))) ->  | X29: =IF('Entry Information'!$I30="","",'WALK TROT RESULTS'!X30) ->  | AA29: =IF('Entry Information'!$I30="","",IF('Entry Information'!X30="",Z29,Z29-100)) ->  | AC29: =IF($X29="","",(VLOOKUP($AB$41,Worksheet!$A$11:$AE$41,AB29+1,FALSE))) ->  | AD29: =IF('Entry Information'!$I30="","",'WALK TROT RESULTS'!AD30) ->  | AG29: =IF('Entry Information'!$I30="","",IF('Entry Information'!Z30="",AF29,AF29-100)) ->  | AI29: =IF($AD29="","",(VLOOKUP($AH$41,Worksheet!$A$11:$AE$41,AH29+1,FALSE))) -> 
A30: =IF('Entry Information'!I31="","",'Entry Information'!B31) ->  | B30: =IF('Entry Information'!I31="","",'Entry Information'!C31) ->  | C30: =IF('Entry Information'!I31="","",'Entry Information'!D31) ->  | D30: =IF('Entry Information'!I31="","",'Entry Information'!E31) ->  | E30: NOV | F30: =IF('Entry Information'!I31="","",'WALK TROT RESULTS'!F31) ->  | G30: =IF('Entry Information'!$I31="","",IF('WALK TROT RESULTS'!G31="","",'WALK TROT RESULTS'!G31)) ->  | I30: =IF('Entry Information'!$I31="","",IF('Entry Information'!R31="",H30,H30-100)) ->  | K30: =IF($F30="","",(VLOOKUP($J$41,Worksheet!$A$11:$AE$41,J30+1,FALSE))) ->  | L30: =IF('Entry Information'!I31="","",'WALK TROT RESULTS'!L31) ->  | M30: =IF('Entry Information'!$I31="","",IF('WALK TROT RESULTS'!M31="","",'WALK TROT RESULTS'!M31)) ->  | O30: =IF('Entry Information'!$I31="","",IF('Entry Information'!T31="",N30,N30-100)) ->  | Q30: =IF($L30="","",(VLOOKUP($P$41,Worksheet!$A$11:$AE$41,P30+1,FALSE))) ->  | R30: =IF('Entry Information'!I31="","",'WALK TROT RESULTS'!R31) ->  | S30: =IF('Entry Information'!$I31="","",IF('WALK TROT RESULTS'!S31="","",'WALK TROT RESULTS'!S31)) ->  | U30: =IF('Entry Information'!$I31="","",IF('Entry Information'!V31="",T30,T30-100)) ->  | W30: =IF($R30="","",(VLOOKUP($V$41,Worksheet!$A$11:$AE$41,V30+1,FALSE))) ->  | X30: =IF('Entry Information'!$I31="","",'WALK TROT RESULTS'!X31) ->  | AA30: =IF('Entry Information'!$I31="","",IF('Entry Information'!X31="",Z30,Z30-100)) ->  | AC30: =IF($X30="","",(VLOOKUP($AB$41,Worksheet!$A$11:$AE$41,AB30+1,FALSE))) ->  | AD30: =IF('Entry Information'!$I31="","",'WALK TROT RESULTS'!AD31) ->  | AG30: =IF('Entry Information'!$I31="","",IF('Entry Information'!Z31="",AF30,AF30-100)) ->  | AI30: =IF($AD30="","",(VLOOKUP($AH$41,Worksheet!$A$11:$AE$41,AH30+1,FALSE))) -> 
A31: =IF('Entry Information'!I32="","",'Entry Information'!B32) ->  | B31: =IF('Entry Information'!I32="","",'Entry Information'!C32) ->  | C31: =IF('Entry Information'!I32="","",'Entry Information'!D32) ->  | D31: =IF('Entry Information'!I32="","",'Entry Information'!E32) ->  | E31: NOV | F31: =IF('Entry Information'!I32="","",'WALK TROT RESULTS'!F32) ->  | G31: =IF('Entry Information'!$I32="","",IF('WALK TROT RESULTS'!G32="","",'WALK TROT RESULTS'!G32)) ->  | I31: =IF('Entry Information'!$I32="","",IF('Entry Information'!R32="",H31,H31-100)) ->  | K31: =IF($F31="","",(VLOOKUP($J$41,Worksheet!$A$11:$AE$41,J31+1,FALSE))) ->  | L31: =IF('Entry Information'!I32="","",'WALK TROT RESULTS'!L32) ->  | M31: =IF('Entry Information'!$I32="","",IF('WALK TROT RESULTS'!M32="","",'WALK TROT RESULTS'!M32)) ->  | O31: =IF('Entry Information'!$I32="","",IF('Entry Information'!T32="",N31,N31-100)) ->  | Q31: =IF($L31="","",(VLOOKUP($P$41,Worksheet!$A$11:$AE$41,P31+1,FALSE))) ->  | R31: =IF('Entry Information'!I32="","",'WALK TROT RESULTS'!R32) ->  | S31: =IF('Entry Information'!$I32="","",IF('WALK TROT RESULTS'!S32="","",'WALK TROT RESULTS'!S32)) ->  | U31: =IF('Entry Information'!$I32="","",IF('Entry Information'!V32="",T31,T31-100)) ->  | W31: =IF($R31="","",(VLOOKUP($V$41,Worksheet!$A$11:$AE$41,V31+1,FALSE))) ->  | X31: =IF('Entry Information'!$I32="","",'WALK TROT RESULTS'!X32) ->  | AA31: =IF('Entry Information'!$I32="","",IF('Entry Information'!X32="",Z31,Z31-100)) ->  | AC31: =IF($X31="","",(VLOOKUP($AB$41,Worksheet!$A$11:$AE$41,AB31+1,FALSE))) ->  | AD31: =IF('Entry Information'!$I32="","",'WALK TROT RESULTS'!AD32) ->  | AG31: =IF('Entry Information'!$I32="","",IF('Entry Information'!Z32="",AF31,AF31-100)) ->  | AI31: =IF($AD31="","",(VLOOKUP($AH$41,Worksheet!$A$11:$AE$41,AH31+1,FALSE))) -> 
A32: =IF('Entry Information'!I33="","",'Entry Information'!B33) ->  | B32: =IF('Entry Information'!I33="","",'Entry Information'!C33) ->  | C32: =IF('Entry Information'!I33="","",'Entry Information'!D33) ->  | D32: =IF('Entry Information'!I33="","",'Entry Information'!E33) ->  | E32: NOV | F32: =IF('Entry Information'!I33="","",'WALK TROT RESULTS'!F33) ->  | G32: =IF('Entry Information'!$I33="","",IF('WALK TROT RESULTS'!G33="","",'WALK TROT RESULTS'!G33)) ->  | I32: =IF('Entry Information'!$I33="","",IF('Entry Information'!R33="",H32,H32-100)) ->  | K32: =IF($F32="","",(VLOOKUP($J$41,Worksheet!$A$11:$AE$41,J32+1,FALSE))) ->  | L32: =IF('Entry Information'!I33="","",'WALK TROT RESULTS'!L33) ->  | M32: =IF('Entry Information'!$I33="","",IF('WALK TROT RESULTS'!M33="","",'WALK TROT RESULTS'!M33)) ->  | O32: =IF('Entry Information'!$I33="","",IF('Entry Information'!T33="",N32,N32-100)) ->  | Q32: =IF($L32="","",(VLOOKUP($P$41,Worksheet!$A$11:$AE$41,P32+1,FALSE))) ->  | R32: =IF('Entry Information'!I33="","",'WALK TROT RESULTS'!R33) ->  | S32: =IF('Entry Information'!$I33="","",IF('WALK TROT RESULTS'!S33="","",'WALK TROT RESULTS'!S33)) ->  | U32: =IF('Entry Information'!$I33="","",IF('Entry Information'!V33="",T32,T32-100)) ->  | W32: =IF($R32="","",(VLOOKUP($V$41,Worksheet!$A$11:$AE$41,V32+1,FALSE))) ->  | X32: =IF('Entry Information'!$I33="","",'WALK TROT RESULTS'!X33) ->  | AA32: =IF('Entry Information'!$I33="","",IF('Entry Information'!X33="",Z32,Z32-100)) ->  | AC32: =IF($X32="","",(VLOOKUP($AB$41,Worksheet!$A$11:$AE$41,AB32+1,FALSE))) ->  | AD32: =IF('Entry Information'!$I33="","",'WALK TROT RESULTS'!AD33) ->  | AG32: =IF('Entry Information'!$I33="","",IF('Entry Information'!Z33="",AF32,AF32-100)) ->  | AI32: =IF($AD32="","",(VLOOKUP($AH$41,Worksheet!$A$11:$AE$41,AH32+1,FALSE))) -> 
A33: =IF('Entry Information'!I34="","",'Entry Information'!B34) ->  | B33: =IF('Entry Information'!I34="","",'Entry Information'!C34) ->  | C33: =IF('Entry Information'!I34="","",'Entry Information'!D34) ->  | D33: =IF('Entry Information'!I34="","",'Entry Information'!E34) ->  | E33: NOV | F33: =IF('Entry Information'!I34="","",'WALK TROT RESULTS'!F34) ->  | G33: =IF('Entry Information'!$I34="","",IF('WALK TROT RESULTS'!G34="","",'WALK TROT RESULTS'!G34)) ->  | I33: =IF('Entry Information'!$I34="","",IF('Entry Information'!R34="",H33,H33-100)) ->  | K33: =IF($F33="","",(VLOOKUP($J$41,Worksheet!$A$11:$AE$41,J33+1,FALSE))) ->  | L33: =IF('Entry Information'!I34="","",'WALK TROT RESULTS'!L34) ->  | M33: =IF('Entry Information'!$I34="","",IF('WALK TROT RESULTS'!M34="","",'WALK TROT RESULTS'!M34)) ->  | O33: =IF('Entry Information'!$I34="","",IF('Entry Information'!T34="",N33,N33-100)) ->  | Q33: =IF($L33="","",(VLOOKUP($P$41,Worksheet!$A$11:$AE$41,P33+1,FALSE))) ->  | R33: =IF('Entry Information'!I34="","",'WALK TROT RESULTS'!R34) ->  | S33: =IF('Entry Information'!$I34="","",IF('WALK TROT RESULTS'!S34="","",'WALK TROT RESULTS'!S34)) ->  | U33: =IF('Entry Information'!$I34="","",IF('Entry Information'!V34="",T33,T33-100)) ->  | W33: =IF($R33="","",(VLOOKUP($V$41,Worksheet!$A$11:$AE$41,V33+1,FALSE))) ->  | X33: =IF('Entry Information'!$I34="","",'WALK TROT RESULTS'!X34) ->  | AA33: =IF('Entry Information'!$I34="","",IF('Entry Information'!X34="",Z33,Z33-100)) ->  | AC33: =IF($X33="","",(VLOOKUP($AB$41,Worksheet!$A$11:$AE$41,AB33+1,FALSE))) ->  | AD33: =IF('Entry Information'!$I34="","",'WALK TROT RESULTS'!AD34) ->  | AG33: =IF('Entry Information'!$I34="","",IF('Entry Information'!Z34="",AF33,AF33-100)) ->  | AI33: =IF($AD33="","",(VLOOKUP($AH$41,Worksheet!$A$11:$AE$41,AH33+1,FALSE))) -> 
A34: =IF('Entry Information'!I35="","",'Entry Information'!B35) ->  | B34: =IF('Entry Information'!I35="","",'Entry Information'!C35) ->  | C34: =IF('Entry Information'!I35="","",'Entry Information'!D35) ->  | D34: =IF('Entry Information'!I35="","",'Entry Information'!E35) ->  | E34: NOV | F34: =IF('Entry Information'!I35="","",'WALK TROT RESULTS'!F35) ->  | G34: =IF('Entry Information'!$I35="","",IF('WALK TROT RESULTS'!G35="","",'WALK TROT RESULTS'!G35)) ->  | I34: =IF('Entry Information'!$I35="","",IF('Entry Information'!R35="",H34,H34-100)) ->  | K34: =IF($F34="","",(VLOOKUP($J$41,Worksheet!$A$11:$AE$41,J34+1,FALSE))) ->  | L34: =IF('Entry Information'!I35="","",'WALK TROT RESULTS'!L35) ->  | M34: =IF('Entry Information'!$I35="","",IF('WALK TROT RESULTS'!M35="","",'WALK TROT RESULTS'!M35)) ->  | O34: =IF('Entry Information'!$I35="","",IF('Entry Information'!T35="",N34,N34-100)) ->  | Q34: =IF($L34="","",(VLOOKUP($P$41,Worksheet!$A$11:$AE$41,P34+1,FALSE))) ->  | R34: =IF('Entry Information'!I35="","",'WALK TROT RESULTS'!R35) ->  | S34: =IF('Entry Information'!$I35="","",IF('WALK TROT RESULTS'!S35="","",'WALK TROT RESULTS'!S35)) ->  | U34: =IF('Entry Information'!$I35="","",IF('Entry Information'!V35="",T34,T34-100)) ->  | W34: =IF($R34="","",(VLOOKUP($V$41,Worksheet!$A$11:$AE$41,V34+1,FALSE))) ->  | X34: =IF('Entry Information'!$I35="","",'WALK TROT RESULTS'!X35) ->  | AA34: =IF('Entry Information'!$I35="","",IF('Entry Information'!X35="",Z34,Z34-100)) ->  | AC34: =IF($X34="","",(VLOOKUP($AB$41,Worksheet!$A$11:$AE$41,AB34+1,FALSE))) ->  | AD34: =IF('Entry Information'!$I35="","",'WALK TROT RESULTS'!AD35) ->  | AG34: =IF('Entry Information'!$I35="","",IF('Entry Information'!Z35="",AF34,AF34-100)) ->  | AI34: =IF($AD34="","",(VLOOKUP($AH$41,Worksheet!$A$11:$AE$41,AH34+1,FALSE))) -> 
A35: =IF('Entry Information'!I36="","",'Entry Information'!B36) ->  | B35: =IF('Entry Information'!I36="","",'Entry Information'!C36) ->  | C35: =IF('Entry Information'!I36="","",'Entry Information'!D36) ->  | D35: =IF('Entry Information'!I36="","",'Entry Information'!E36) ->  | E35: NOV | F35: =IF('Entry Information'!I36="","",'WALK TROT RESULTS'!F36) ->  | G35: =IF('Entry Information'!$I36="","",IF('WALK TROT RESULTS'!G36="","",'WALK TROT RESULTS'!G36)) ->  | I35: =IF('Entry Information'!$I36="","",IF('Entry Information'!R36="",H35,H35-100)) ->  | K35: =IF($F35="","",(VLOOKUP($J$41,Worksheet!$A$11:$AE$41,J35+1,FALSE))) ->  | L35: =IF('Entry Information'!I36="","",'WALK TROT RESULTS'!L36) ->  | M35: =IF('Entry Information'!$I36="","",IF('WALK TROT RESULTS'!M36="","",'WALK TROT RESULTS'!M36)) ->  | O35: =IF('Entry Information'!$I36="","",IF('Entry Information'!T36="",N35,N35-100)) ->  | Q35: =IF($L35="","",(VLOOKUP($P$41,Worksheet!$A$11:$AE$41,P35+1,FALSE))) ->  | R35: =IF('Entry Information'!I36="","",'WALK TROT RESULTS'!R36) ->  | S35: =IF('Entry Information'!$I36="","",IF('WALK TROT RESULTS'!S36="","",'WALK TROT RESULTS'!S36)) ->  | U35: =IF('Entry Information'!$I36="","",IF('Entry Information'!V36="",T35,T35-100)) ->  | W35: =IF($R35="","",(VLOOKUP($V$41,Worksheet!$A$11:$AE$41,V35+1,FALSE))) ->  | X35: =IF('Entry Information'!$I36="","",'WALK TROT RESULTS'!X36) ->  | AA35: =IF('Entry Information'!$I36="","",IF('Entry Information'!X36="",Z35,Z35-100)) ->  | AC35: =IF($X35="","",(VLOOKUP($AB$41,Worksheet!$A$11:$AE$41,AB35+1,FALSE))) ->  | AD35: =IF('Entry Information'!$I36="","",'WALK TROT RESULTS'!AD36) ->  | AG35: =IF('Entry Information'!$I36="","",IF('Entry Information'!Z36="",AF35,AF35-100)) ->  | AI35: =IF($AD35="","",(VLOOKUP($AH$41,Worksheet!$A$11:$AE$41,AH35+1,FALSE))) -> 
A36: =IF('Entry Information'!I37="","",'Entry Information'!B37) ->  | B36: =IF('Entry Information'!I37="","",'Entry Information'!C37) ->  | C36: =IF('Entry Information'!I37="","",'Entry Information'!D37) ->  | D36: =IF('Entry Information'!I37="","",'Entry Information'!E37) ->  | E36: NOV | F36: =IF('Entry Information'!I37="","",'WALK TROT RESULTS'!F37) ->  | G36: =IF('Entry Information'!$I37="","",IF('WALK TROT RESULTS'!G37="","",'WALK TROT RESULTS'!G37)) ->  | I36: =IF('Entry Information'!$I37="","",IF('Entry Information'!R37="",H36,H36-100)) ->  | K36: =IF($F36="","",(VLOOKUP($J$41,Worksheet!$A$11:$AE$41,J36+1,FALSE))) ->  | L36: =IF('Entry Information'!I37="","",'WALK TROT RESULTS'!L37) ->  | M36: =IF('Entry Information'!$I37="","",IF('WALK TROT RESULTS'!M37="","",'WALK TROT RESULTS'!M37)) ->  | O36: =IF('Entry Information'!$I37="","",IF('Entry Information'!T37="",N36,N36-100)) ->  | Q36: =IF($L36="","",(VLOOKUP($P$41,Worksheet!$A$11:$AE$41,P36+1,FALSE))) ->  | R36: =IF('Entry Information'!I37="","",'WALK TROT RESULTS'!R37) ->  | S36: =IF('Entry Information'!$I37="","",IF('WALK TROT RESULTS'!S37="","",'WALK TROT RESULTS'!S37)) ->  | U36: =IF('Entry Information'!$I37="","",IF('Entry Information'!V37="",T36,T36-100)) ->  | W36: =IF($R36="","",(VLOOKUP($V$41,Worksheet!$A$11:$AE$41,V36+1,FALSE))) ->  | X36: =IF('Entry Information'!$I37="","",'WALK TROT RESULTS'!X37) ->  | AA36: =IF('Entry Information'!$I37="","",IF('Entry Information'!X37="",Z36,Z36-100)) ->  | AC36: =IF($X36="","",(VLOOKUP($AB$41,Worksheet!$A$11:$AE$41,AB36+1,FALSE))) ->  | AD36: =IF('Entry Information'!$I37="","",'WALK TROT RESULTS'!AD37) ->  | AG36: =IF('Entry Information'!$I37="","",IF('Entry Information'!Z37="",AF36,AF36-100)) ->  | AI36: =IF($AD36="","",(VLOOKUP($AH$41,Worksheet!$A$11:$AE$41,AH36+1,FALSE))) -> 
A37: =IF('Entry Information'!I38="","",'Entry Information'!B38) ->  | B37: =IF('Entry Information'!I38="","",'Entry Information'!C38) ->  | C37: =IF('Entry Information'!I38="","",'Entry Information'!D38) ->  | D37: =IF('Entry Information'!I38="","",'Entry Information'!E38) ->  | E37: NOV | F37: =IF('Entry Information'!I38="","",'WALK TROT RESULTS'!F38) ->  | G37: =IF('Entry Information'!$I38="","",IF('WALK TROT RESULTS'!G38="","",'WALK TROT RESULTS'!G38)) ->  | I37: =IF('Entry Information'!$I38="","",IF('Entry Information'!R38="",H37,H37-100)) ->  | K37: =IF($F37="","",(VLOOKUP($J$41,Worksheet!$A$11:$AE$41,J37+1,FALSE))) ->  | L37: =IF('Entry Information'!I38="","",'WALK TROT RESULTS'!L38) ->  | M37: =IF('Entry Information'!$I38="","",IF('WALK TROT RESULTS'!M38="","",'WALK TROT RESULTS'!M38)) ->  | O37: =IF('Entry Information'!$I38="","",IF('Entry Information'!T38="",N37,N37-100)) ->  | Q37: =IF($L37="","",(VLOOKUP($P$41,Worksheet!$A$11:$AE$41,P37+1,FALSE))) ->  | R37: =IF('Entry Information'!I38="","",'WALK TROT RESULTS'!R38) ->  | S37: =IF('Entry Information'!$I38="","",IF('WALK TROT RESULTS'!S38="","",'WALK TROT RESULTS'!S38)) ->  | U37: =IF('Entry Information'!$I38="","",IF('Entry Information'!V38="",T37,T37-100)) ->  | W37: =IF($R37="","",(VLOOKUP($V$41,Worksheet!$A$11:$AE$41,V37+1,FALSE))) ->  | X37: =IF('Entry Information'!$I38="","",'WALK TROT RESULTS'!X38) ->  | AA37: =IF('Entry Information'!$I38="","",IF('Entry Information'!X38="",Z37,Z37-100)) ->  | AC37: =IF($X37="","",(VLOOKUP($AB$41,Worksheet!$A$11:$AE$41,AB37+1,FALSE))) ->  | AD37: =IF('Entry Information'!$I38="","",'WALK TROT RESULTS'!AD38) ->  | AG37: =IF('Entry Information'!$I38="","",IF('Entry Information'!Z38="",AF37,AF37-100)) ->  | AI37: =IF($AD37="","",(VLOOKUP($AH$41,Worksheet!$A$11:$AE$41,AH37+1,FALSE))) -> 
A38: =IF('Entry Information'!I39="","",'Entry Information'!B39) ->  | B38: =IF('Entry Information'!I39="","",'Entry Information'!C39) ->  | C38: =IF('Entry Information'!I39="","",'Entry Information'!D39) ->  | D38: =IF('Entry Information'!I39="","",'Entry Information'!E39) ->  | E38: NOV | F38: =IF('Entry Information'!I39="","",'WALK TROT RESULTS'!F39) ->  | G38: =IF('Entry Information'!$I39="","",IF('WALK TROT RESULTS'!G39="","",'WALK TROT RESULTS'!G39)) ->  | I38: =IF('Entry Information'!$I39="","",IF('Entry Information'!R39="",H38,H38-100)) ->  | K38: =IF($F38="","",(VLOOKUP($J$41,Worksheet!$A$11:$AE$41,J38+1,FALSE))) ->  | L38: =IF('Entry Information'!I39="","",'WALK TROT RESULTS'!L39) ->  | M38: =IF('Entry Information'!$I39="","",IF('WALK TROT RESULTS'!M39="","",'WALK TROT RESULTS'!M39)) ->  | O38: =IF('Entry Information'!$I39="","",IF('Entry Information'!T39="",N38,N38-100)) ->  | Q38: =IF($L38="","",(VLOOKUP($P$41,Worksheet!$A$11:$AE$41,P38+1,FALSE))) ->  | R38: =IF('Entry Information'!I39="","",'WALK TROT RESULTS'!R39) ->  | S38: =IF('Entry Information'!$I39="","",IF('WALK TROT RESULTS'!S39="","",'WALK TROT RESULTS'!S39)) ->  | U38: =IF('Entry Information'!$I39="","",IF('Entry Information'!V39="",T38,T38-100)) ->  | W38: =IF($R38="","",(VLOOKUP($V$41,Worksheet!$A$11:$AE$41,V38+1,FALSE))) ->  | X38: =IF('Entry Information'!$I39="","",'WALK TROT RESULTS'!X39) ->  | AA38: =IF('Entry Information'!$I39="","",IF('Entry Information'!X39="",Z38,Z38-100)) ->  | AC38: =IF($X38="","",(VLOOKUP($AB$41,Worksheet!$A$11:$AE$41,AB38+1,FALSE))) ->  | AD38: =IF('Entry Information'!$I39="","",'WALK TROT RESULTS'!AD39) ->  | AG38: =IF('Entry Information'!$I39="","",IF('Entry Information'!Z39="",AF38,AF38-100)) ->  | AI38: =IF($AD38="","",(VLOOKUP($AH$41,Worksheet!$A$11:$AE$41,AH38+1,FALSE))) -> 
A39: =IF('Entry Information'!I40="","",'Entry Information'!B40) ->  | B39: =IF('Entry Information'!I40="","",'Entry Information'!C40) ->  | C39: =IF('Entry Information'!I40="","",'Entry Information'!D40) ->  | D39: =IF('Entry Information'!I40="","",'Entry Information'!E40) ->  | E39: NOV | F39: =IF('Entry Information'!I40="","",'WALK TROT RESULTS'!F40) ->  | G39: =IF('Entry Information'!$I40="","",IF('WALK TROT RESULTS'!G40="","",'WALK TROT RESULTS'!G40)) ->  | I39: =IF('Entry Information'!$I40="","",IF('Entry Information'!R40="",H39,H39-100)) ->  | K39: =IF($F39="","",(VLOOKUP($J$41,Worksheet!$A$11:$AE$41,J39+1,FALSE))) ->  | L39: =IF('Entry Information'!I40="","",'WALK TROT RESULTS'!L40) ->  | M39: =IF('Entry Information'!$I40="","",IF('WALK TROT RESULTS'!M40="","",'WALK TROT RESULTS'!M40)) ->  | O39: =IF('Entry Information'!$I40="","",IF('Entry Information'!T40="",N39,N39-100)) ->  | Q39: =IF($L39="","",(VLOOKUP($P$41,Worksheet!$A$11:$AE$41,P39+1,FALSE))) ->  | R39: =IF('Entry Information'!I40="","",'WALK TROT RESULTS'!R40) ->  | S39: =IF('Entry Information'!$I40="","",IF('WALK TROT RESULTS'!S40="","",'WALK TROT RESULTS'!S40)) ->  | U39: =IF('Entry Information'!$I40="","",IF('Entry Information'!V40="",T39,T39-100)) ->  | W39: =IF($R39="","",(VLOOKUP($V$41,Worksheet!$A$11:$AE$41,V39+1,FALSE))) ->  | X39: =IF('Entry Information'!$I40="","",'WALK TROT RESULTS'!X40) ->  | AA39: =IF('Entry Information'!$I40="","",IF('Entry Information'!X40="",Z39,Z39-100)) ->  | AC39: =IF($X39="","",(VLOOKUP($AB$41,Worksheet!$A$11:$AE$41,AB39+1,FALSE))) ->  | AD39: =IF('Entry Information'!$I40="","",'WALK TROT RESULTS'!AD40) ->  | AG39: =IF('Entry Information'!$I40="","",IF('Entry Information'!Z40="",AF39,AF39-100)) ->  | AI39: =IF($AD39="","",(VLOOKUP($AH$41,Worksheet!$A$11:$AE$41,AH39+1,FALSE))) -> 
J41: =COUNTIF(J10:J39,">=0") -> 0 | P41: =COUNTIF(P10:P39,">=0") -> 0 | V41: =COUNTIF(V10:V39,">=0") -> 0 | AB41: =COUNTIF(AB10:AB39,">=0") -> 0 | AH41: =COUNTIF(AH10:AH39,">=0") -> 0
F42: 1 - Total Penalty Points | L42: 1 - Total Penalty Points | R42: 1 - Total Penalty Points | X42: 1 - Total Penalty Points | AD42: 1 - Total Penalty Points
F43: 2 - Extended Trot | L43: 2 - Drag Log | R43: 2 - Penning | X43: 2 - Box Cow | AD43: 2 - Box Cow
F44: 3 - Transition down lope/walk/stop | L44: 3 - Ground tie/bridle/pick-up legs | R44: 3 - Working Center of arena | X44: 3 -First Lead Change | AD44: 3 -First Lead Change
F45: 4 - Transition to lope/lope | L45: 4 - Gate | R45: 4 - Cut from Herd | X45: 4 -Spin | AD45: 4 -Spin
A48: Scores in RED are ties - enter a 1 in the Tie Breaker Column of the winner to break tie. If multiple ties enter a 1 for the second place and a 2 for winner.
A51: Places highlighted have a major penatly.

Sheet LIMITED RESULTS (hidden)
E2: Event Name: | J2: ='Entry Information'!C4 -> Ranch Horse Challenge | Y2: Judge #1 Name/Classes: | AD2: ='Entry Information'!F4 -> Mike Lund
A3: Division: | B3: LIMITED | E3: Event Date: | J3: ='Entry Information'!C5 -> 2018-03-25 | Y3: Judge #2 Name/Classes: | AD3: ='Entry Information'!F5 -> Karen Arlin
F5: LIMITED INDIVIDUAL CLASS RESULTS | AK5: LIMITED ALL AROUND RESULTS
F6: RANCH | L6: RANCH | R6: RANCH | X6: RANCH | AD6: RANCH | AK6: TOTAL ALL AROUND PLACEMENT POINTS | AL6: Tie Breaker | AM6: Adjusted | AN6: EVENT ALL AROUND | AP6: TOTAL SELECT ALL AROUND PLACEMENT POINTS | AQ6: Tie Breaker | AR6: Adjusted | AS6: SELECT ALL AROUND | AU6: TOTAL JR HORSE ALL AROUND PLACEMENT POINTS | AV6: Tie Breaker | AW6: Adjusted | AX6: JR HORSE ALL AROUND
F7: RIDING | L7: TRAIL | R7: CUTING | X7: REINED WORK | AD7: COW WORK | AM7: Placement | AR7: Placement | AW7: Placement
F8: Score | G8: Tie Breaker | H8: Adjusted Score for Ties | I8: Adjusted Score Major Penalty | J8: Place | K8: Placement Points | L8: Score | M8: Tie Breaker | N8: Adjusted Score for Ties | O8: Adjusted Score Major Penalty | P8: Place | Q8: Placement Points | R8: Score | S8: Tie Breaker | T8: Adjusted Score for Ties | U8: Adjusted Score Major Penalty | V8: Place | W8: Placement Points | X8: Score | Y8: Tie Breaker | Z8: Adjusted Score for Ties | AA8: Adjusted Score Major Penalty | AB8: Place | AC8: Placement Points | AD8: Score | AE8: Tie Breaker | AF8: Adjusted Score for Ties | AG8: Adjusted Score Major Penalty | AH8: Place | AI8: Placement Points | AM8: Points | AR8: Points | AW8: Points
A10: Back No. | B10: Last Name | C10: First Name | D10: Registered Horse Name | E10: Division
A11: =IF('Entry Information'!B41="","",'Entry Information'!B41) ->  | B11: =IF('Entry Information'!C41="","",'Entry Information'!C41) ->  | C11: =IF('Entry Information'!D41="","",'Entry Information'!D41) ->  | D11: =IF('Entry Information'!E41="","",'Entry Information'!E41) ->  | E11: LIM | F11: =IF('Entry Information'!Q41="","",'Entry Information'!Q41) ->  | H11: =IF(G11="",F11,(F11+(G11*0.001))) ->  | I11: =IF('Entry Information'!R41="",H11,H11-100) ->  | J11: =IF(I11="","",(RANK(I11,$I$11:$I$40,0))) ->  | K11: =IF($F11="","",(VLOOKUP($J$42,Worksheet!$A$11:$AE$41,J11+1,FALSE))) ->  | L11: =IF('Entry Information'!S41="","",'Entry Information'!S41) ->  | N11: =IF(M11="",L11,(L11+(M11*0.001))) ->  | O11: =IF('Entry Information'!T41="",N11,N11-100) ->  | P11: =IF(O11="","",(RANK(O11,$O$11:$O$40,0))) ->  | Q11: =IF($L11="","",(VLOOKUP($P$42,Worksheet!$A$11:$AE$41,P11+1,FALSE))) ->  | R11: =IF('Entry Information'!U41="","",'Entry Information'!U41) ->  | T11: =IF(S11="",R11,(R11+(S11*0.001))) ->  | U11: =IF('Entry Information'!V41="",T11,T11-100) ->  | V11: =IF(U11="","",(RANK(U11,$U$11:$U$40,0))) ->  | W11: =IF($R11="","",(VLOOKUP($V$42,Worksheet!$A$11:$AE$41,V11+1,FALSE))) ->  | X11: =IF('Entry Information'!W41="","",'Entry Information'!W41) ->  | Z11: =IF(Y11="",X11,(X11+(Y11*0.001))) ->  | AA11: =IF('Entry Information'!X41="",Z11,Z11-100) ->  | AB11: =IF(AA11="","",(RANK(AA11,$AA$11:$AA$40,0))) ->  | AC11: =IF($X11="","",(VLOOKUP($AB$42,Worksheet!$A$11:$AE$41,AB11+1,FALSE))) ->  | AD11: =IF('Entry Information'!Y41="","",'Entry Information'!Y41) ->  | AF11: =IF(AE11="",AD11,(AD11+(AE11*0.001))) ->  | AG11: =IF('Entry Information'!Z41="",AF11,AF11-100) ->  | AH11: =IF(AG11="","",(RANK(AG11,$AG$11:$AG$40,0))) ->  | AI11: =IF($AD11="","",(VLOOKUP($AH$42,Worksheet!$A$11:$AE$41,AH11+1,FALSE))) ->  | AK11: =IF('LIMITED ALL-AROUND RESULTS'!A10="","",(SUM('LIMITED ALL-AROUND RESULTS'!$K10,'LIMITED ALL-AROUND RESULTS'!$AC10,'LIMITED ALL-AROUND RESULTS'!$AI10, 'LIMITED ALL-AROUND RESULTS'!$W10,'LIMITED ALL-AROUND RESULTS'!$Q10))) ->  | AM11: =IF(AL11="",AK11,(AK11+(AL11*0.001))) ->  | AN11: =IF(AM11="","",(RANK(AM11,$AM$11:$AM$40,0))) ->  | AP11: =IF(OR('Entry Information'!H41="",'Entry Information'!J41=""),"",(SUM('LIMITED SELECT RESULTS'!$K10,'LIMITED SELECT RESULTS'!$AC10,'LIMITED SELECT RESULTS'!$AI10, 'LIMITED SELECT RESULTS'!$W10,'LIMITED SELECT RESULTS'!$Q10))) ->  | AR11: =IF(AQ11="",AP11,(AP11+(AQ11*0.001))) ->  | AS11: =IF(AR11="","",(RANK(AR11,$AR$11:$AR$40,0))) ->  | AU11: =IF(OR('Entry Information'!I41="",'Entry Information'!J41=""),"",(SUM('LIMITED JR HORSE RESULTS'!$K10,'LIMITED JR HORSE RESULTS'!$AC10,'LIMITED JR HORSE RESULTS'!$AI10, 'LIMITED JR HORSE RESULTS'!$W10,'LIMITED JR HORSE RESULTS'!$Q10))) ->  | AW11: =IF(AV11="",AU11,(AU11+(AV11*0.001))) ->  | AX11: =IF(AW11="","",(RANK(AW11,$AW$11:$AW$40,0))) -> 
A12: =IF('Entry Information'!B42="","",'Entry Information'!B42) ->  | B12: =IF('Entry Information'!C42="","",'Entry Information'!C42) ->  | C12: =IF('Entry Information'!D42="","",'Entry Information'!D42) ->  | D12: =IF('Entry Information'!E42="","",'Entry Information'!E42) ->  | E12: LIM | F12: =IF('Entry Information'!Q42="","",'Entry Information'!Q42) ->  | H12: =IF(G12="",F12,(F12+(G12*0.001))) ->  | I12: =IF('Entry Information'!R42="",H12,H12-100) ->  | J12: =IF(I12="","",(RANK(I12,$I$11:$I$40,0))) ->  | K12: =IF($F12="","",(VLOOKUP($J$42,Worksheet!$A$11:$AE$41,J12+1,FALSE))) ->  | L12: =IF('Entry Information'!S42="","",'Entry Information'!S42) ->  | N12: =IF(M12="",L12,(L12+(M12*0.001))) ->  | O12: =IF('Entry Information'!T42="",N12,N12-100) ->  | P12: =IF(O12="","",(RANK(O12,$O$11:$O$40,0))) ->  | Q12: =IF($L12="","",(VLOOKUP($P$42,Worksheet!$A$11:$AE$41,P12+1,FALSE))) ->  | R12: =IF('Entry Information'!U42="","",'Entry Information'!U42) ->  | T12: =IF(S12="",R12,(R12+(S12*0.001))) ->  | U12: =IF('Entry Information'!V42="",T12,T12-100) ->  | V12: =IF(U12="","",(RANK(U12,$U$11:$U$40,0))) ->  | W12: =IF($R12="","",(VLOOKUP($V$42,Worksheet!$A$11:$AE$41,V12+1,FALSE))) ->  | X12: =IF('Entry Information'!W42="","",'Entry Information'!W42) ->  | Z12: =IF(Y12="",X12,(X12+(Y12*0.001))) ->  | AA12: =IF('Entry Information'!X42="",Z12,Z12-100) ->  | AB12: =IF(AA12="","",(RANK(AA12,$AA$11:$AA$40,0))) ->  | AC12: =IF($X12="","",(VLOOKUP($AB$42,Worksheet!$A$11:$AE$41,AB12+1,FALSE))) ->  | AD12: =IF('Entry Information'!Y42="","",'Entry Information'!Y42) ->  | AF12: =IF(AE12="",AD12,(AD12+(AE12*0.001))) ->  | AG12: =IF('Entry Information'!Z42="",AF12,AF12-100) ->  | AH12: =IF(AG12="","",(RANK(AG12,$AG$11:$AG$40,0))) ->  | AI12: =IF($AD12="","",(VLOOKUP($AH$42,Worksheet!$A$11:$AE$41,AH12+1,FALSE))) ->  | AK12: =IF('LIMITED ALL-AROUND RESULTS'!A11="","",(SUM('LIMITED ALL-AROUND RESULTS'!$K11,'LIMITED ALL-AROUND RESULTS'!$AC11,'LIMITED ALL-AROUND RESULTS'!$AI11, 'LIMITED ALL-AROUND RESULTS'!$W11,'LIMITED ALL-AROUND RESULTS'!$Q11))) ->  | AP12: =IF(OR('Entry Information'!H42="",'Entry Information'!J42=""),"",(SUM('LIMITED SELECT RESULTS'!$K11,'LIMITED SELECT RESULTS'!$AC11,'LIMITED SELECT RESULTS'!$AI11, 'LIMITED SELECT RESULTS'!$W11,'LIMITED SELECT RESULTS'!$Q11))) ->  | AU12: =IF(OR('Entry Information'!I42="",'Entry Information'!J42=""),"",(SUM('LIMITED JR HORSE RESULTS'!$K11,'LIMITED JR HORSE RESULTS'!$AC11,'LIMITED JR HORSE RESULTS'!$AI11, 'LIMITED JR HORSE RESULTS'!$W11,'LIMITED JR HORSE RESULTS'!$Q11))) -> 
A13: =IF('Entry Information'!B43="","",'Entry Information'!B43) ->  | B13: =IF('Entry Information'!C43="","",'Entry Information'!C43) ->  | C13: =IF('Entry Information'!D43="","",'Entry Information'!D43) ->  | D13: =IF('Entry Information'!E43="","",'Entry Information'!E43) ->  | E13: LIM | F13: =IF('Entry Information'!Q43="","",'Entry Information'!Q43) ->  | I13: =IF('Entry Information'!R43="",H13,H13-100) ->  | K13: =IF($F13="","",(VLOOKUP($J$42,Worksheet!$A$11:$AE$41,J13+1,FALSE))) ->  | L13: =IF('Entry Information'!S43="","",'Entry Information'!S43) ->  | O13: =IF('Entry Information'!T43="",N13,N13-100) ->  | Q13: =IF($L13="","",(VLOOKUP($P$42,Worksheet!$A$11:$AE$41,P13+1,FALSE))) ->  | R13: =IF('Entry Information'!U43="","",'Entry Information'!U43) ->  | U13: =IF('Entry Information'!V43="",T13,T13-100) ->  | W13: =IF($R13="","",(VLOOKUP($V$42,Worksheet!$A$11:$AE$41,V13+1,FALSE))) ->  | X13: =IF('Entry Information'!W43="","",'Entry Information'!W43) ->  | AA13: =IF('Entry Information'!X43="",Z13,Z13-100) ->  | AC13: =IF($X13="","",(VLOOKUP($AB$42,Worksheet!$A$11:$AE$41,AB13+1,FALSE))) ->  | AD13: =IF('Entry Information'!Y43="","",'Entry Information'!Y43) ->  | AG13: =IF('Entry Information'!Z43="",AF13,AF13-100) ->  | AI13: =IF($AD13="","",(VLOOKUP($AH$42,Worksheet!$A$11:$AE$41,AH13+1,FALSE))) ->  | AK13: =IF('LIMITED ALL-AROUND RESULTS'!A12="","",(SUM('LIMITED ALL-AROUND RESULTS'!$K12,'LIMITED ALL-AROUND RESULTS'!$AC12,'LIMITED ALL-AROUND RESULTS'!$AI12, 'LIMITED ALL-AROUND RESULTS'!$W12,'LIMITED ALL-AROUND RESULTS'!$Q12))) ->  | AP13: =IF(OR('Entry Information'!H43="",'Entry Information'!J43=""),"",(SUM('LIMITED SELECT RESULTS'!$K12,'LIMITED SELECT RESULTS'!$AC12,'LIMITED SELECT RESULTS'!$AI12, 'LIMITED SELECT RESULTS'!$W12,'LIMITED SELECT RESULTS'!$Q12))) ->  | AU13: =IF(OR('Entry Information'!I43="",'Entry Information'!J43=""),"",(SUM('LIMITED JR HORSE RESULTS'!$K12,'LIMITED JR HORSE RESULTS'!$AC12,'LIMITED JR HORSE RESULTS'!$AI12, 'LIMITED JR HORSE RESULTS'!$W12,'LIMITED JR HORSE RESULTS'!$Q12))) -> 
A14: =IF('Entry Information'!B44="","",'Entry Information'!B44) ->  | B14: =IF('Entry Information'!C44="","",'Entry Information'!C44) ->  | C14: =IF('Entry Information'!D44="","",'Entry Information'!D44) ->  | D14: =IF('Entry Information'!E44="","",'Entry Information'!E44) ->  | E14: LIM | F14: =IF('Entry Information'!Q44="","",'Entry Information'!Q44) ->  | I14: =IF('Entry Information'!R44="",H14,H14-100) ->  | K14: =IF($F14="","",(VLOOKUP($J$42,Worksheet!$A$11:$AE$41,J14+1,FALSE))) ->  | L14: =IF('Entry Information'!S44="","",'Entry Information'!S44) ->  | O14: =IF('Entry Information'!T44="",N14,N14-100) ->  | Q14: =IF($L14="","",(VLOOKUP($P$42,Worksheet!$A$11:$AE$41,P14+1,FALSE))) ->  | R14: =IF('Entry Information'!U44="","",'Entry Information'!U44) ->  | U14: =IF('Entry Information'!V44="",T14,T14-100) ->  | W14: =IF($R14="","",(VLOOKUP($V$42,Worksheet!$A$11:$AE$41,V14+1,FALSE))) ->  | X14: =IF('Entry Information'!W44="","",'Entry Information'!W44) ->  | AA14: =IF('Entry Information'!X44="",Z14,Z14-100) ->  | AC14: =IF($X14="","",(VLOOKUP($AB$42,Worksheet!$A$11:$AE$41,AB14+1,FALSE))) ->  | AD14: =IF('Entry Information'!Y44="","",'Entry Information'!Y44) ->  | AG14: =IF('Entry Information'!Z44="",AF14,AF14-100) ->  | AI14: =IF($AD14="","",(VLOOKUP($AH$42,Worksheet!$A$11:$AE$41,AH14+1,FALSE))) ->  | AK14: =IF('LIMITED ALL-AROUND RESULTS'!A13="","",(SUM('LIMITED ALL-AROUND RESULTS'!$K13,'LIMITED ALL-AROUND RESULTS'!$AC13,'LIMITED ALL-AROUND RESULTS'!$AI13, 'LIMITED ALL-AROUND RESULTS'!$W13,'LIMITED ALL-AROUND RESULTS'!$Q13))) ->  | AP14: =IF(OR('Entry Information'!H44="",'Entry Information'!J44=""),"",(SUM('LIMITED SELECT RESULTS'!$K13,'LIMITED SELECT RESULTS'!$AC13,'LIMITED SELECT RESULTS'!$AI13, 'LIMITED SELECT RESULTS'!$W13,'LIMITED SELECT RESULTS'!$Q13))) ->  | AU14: =IF(OR('Entry Information'!I44="",'Entry Information'!J44=""),"",(SUM('LIMITED JR HORSE RESULTS'!$K13,'LIMITED JR HORSE RESULTS'!$AC13,'LIMITED JR HORSE RESULTS'!$AI13, 'LIMITED JR HORSE RESULTS'!$W13,'LIMITED JR HORSE RESULTS'!$Q13))) -> 
A15: =IF('Entry Information'!B45="","",'Entry Information'!B45) ->  | B15: =IF('Entry Information'!C45="","",'Entry Information'!C45) ->  | C15: =IF('Entry Information'!D45="","",'Entry Information'!D45) ->  | D15: =IF('Entry Information'!E45="","",'Entry Information'!E45) ->  | E15: LIM | F15: =IF('Entry Information'!Q45="","",'Entry Information'!Q45) ->  | I15: =IF('Entry Information'!R45="",H15,H15-100) ->  | K15: =IF($F15="","",(VLOOKUP($J$42,Worksheet!$A$11:$AE$41,J15+1,FALSE))) ->  | L15: =IF('Entry Information'!S45="","",'Entry Information'!S45) ->  | O15: =IF('Entry Information'!T45="",N15,N15-100) ->  | Q15: =IF($L15="","",(VLOOKUP($P$42,Worksheet!$A$11:$AE$41,P15+1,FALSE))) ->  | R15: =IF('Entry Information'!U45="","",'Entry Information'!U45) ->  | U15: =IF('Entry Information'!V45="",T15,T15-100) ->  | W15: =IF($R15="","",(VLOOKUP($V$42,Worksheet!$A$11:$AE$41,V15+1,FALSE))) ->  | X15: =IF('Entry Information'!W45="","",'Entry Information'!W45) ->  | AA15: =IF('Entry Information'!X45="",Z15,Z15-100) ->  | AC15: =IF($X15="","",(VLOOKUP($AB$42,Worksheet!$A$11:$AE$41,AB15+1,FALSE))) ->  | AD15: =IF('Entry Information'!Y45="","",'Entry Information'!Y45) ->  | AG15: =IF('Entry Information'!Z45="",AF15,AF15-100) ->  | AI15: =IF($AD15="","",(VLOOKUP($AH$42,Worksheet!$A$11:$AE$41,AH15+1,FALSE))) ->  | AK15: =IF('LIMITED ALL-AROUND RESULTS'!A14="","",(SUM('LIMITED ALL-AROUND RESULTS'!$K14,'LIMITED ALL-AROUND RESULTS'!$AC14,'LIMITED ALL-AROUND RESULTS'!$AI14, 'LIMITED ALL-AROUND RESULTS'!$W14,'LIMITED ALL-AROUND RESULTS'!$Q14))) ->  | AP15: =IF(OR('Entry Information'!H45="",'Entry Information'!J45=""),"",(SUM('LIMITED SELECT RESULTS'!$K14,'LIMITED SELECT RESULTS'!$AC14,'LIMITED SELECT RESULTS'!$AI14, 'LIMITED SELECT RESULTS'!$W14,'LIMITED SELECT RESULTS'!$Q14))) ->  | AU15: =IF(OR('Entry Information'!I45="",'Entry Information'!J45=""),"",(SUM('LIMITED JR HORSE RESULTS'!$K14,'LIMITED JR HORSE RESULTS'!$AC14,'LIMITED JR HORSE RESULTS'!$AI14, 'LIMITED JR HORSE RESULTS'!$W14,'LIMITED JR HORSE RESULTS'!$Q14))) -> 
A16: =IF('Entry Information'!B46="","",'Entry Information'!B46) ->  | B16: =IF('Entry Information'!C46="","",'Entry Information'!C46) ->  | C16: =IF('Entry Information'!D46="","",'Entry Information'!D46) ->  | D16: =IF('Entry Information'!E46="","",'Entry Information'!E46) ->  | E16: LIM | F16: =IF('Entry Information'!Q46="","",'Entry Information'!Q46) ->  | I16: =IF('Entry Information'!R46="",H16,H16-100) ->  | K16: =IF($F16="","",(VLOOKUP($J$42,Worksheet!$A$11:$AE$41,J16+1,FALSE))) ->  | L16: =IF('Entry Information'!S46="","",'Entry Information'!S46) ->  | O16: =IF('Entry Information'!T46="",N16,N16-100) ->  | Q16: =IF($L16="","",(VLOOKUP($P$42,Worksheet!$A$11:$AE$41,P16+1,FALSE))) ->  | R16: =IF('Entry Information'!U46="","",'Entry Information'!U46) ->  | U16: =IF('Entry Information'!V46="",T16,T16-100) ->  | W16: =IF($R16="","",(VLOOKUP($V$42,Worksheet!$A$11:$AE$41,V16+1,FALSE))) ->  | X16: =IF('Entry Information'!W46="","",'Entry Information'!W46) ->  | AA16: =IF('Entry Information'!X46="",Z16,Z16-100) ->  | AC16: =IF($X16="","",(VLOOKUP($AB$42,Worksheet!$A$11:$AE$41,AB16+1,FALSE))) ->  | AD16: =IF('Entry Information'!Y46="","",'Entry Information'!Y46) ->  | AG16: =IF('Entry Information'!Z46="",AF16,AF16-100) ->  | AI16: =IF($AD16="","",(VLOOKUP($AH$42,Worksheet!$A$11:$AE$41,AH16+1,FALSE))) ->  | AK16: =IF('LIMITED ALL-AROUND RESULTS'!A15="","",(SUM('LIMITED ALL-AROUND RESULTS'!$K15,'LIMITED ALL-AROUND RESULTS'!$AC15,'LIMITED ALL-AROUND RESULTS'!$AI15, 'LIMITED ALL-AROUND RESULTS'!$W15,'LIMITED ALL-AROUND RESULTS'!$Q15))) ->  | AP16: =IF(OR('Entry Information'!H46="",'Entry Information'!J46=""),"",(SUM('LIMITED SELECT RESULTS'!$K15,'LIMITED SELECT RESULTS'!$AC15,'LIMITED SELECT RESULTS'!$AI15, 'LIMITED SELECT RESULTS'!$W15,'LIMITED SELECT RESULTS'!$Q15))) ->  | AU16: =IF(OR('Entry Information'!I46="",'Entry Information'!J46=""),"",(SUM('LIMITED JR HORSE RESULTS'!$K15,'LIMITED JR HORSE RESULTS'!$AC15,'LIMITED JR HORSE RESULTS'!$AI15, 'LIMITED JR HORSE RESULTS'!$W15,'LIMITED JR HORSE RESULTS'!$Q15))) -> 
